Workbook

Sheet SolCotizacion
B1: SOLICITUD DE COTIZACIÓN
B2: Servicios BPO III
C3: Versión: 2 | D3: 2025-02-17
B4: Información de la Entidad Compradora
B6: Nombre de la Entidad | E6: SECRETARÍA GENERAL - ALCALDÍA MAYOR DE BOGOTÁ | H6: NIT | J6: 899999061
B8: Dirección de la Entidad | E8: Cra 8 10 65 | H8: Correo de contacto | J8: ecusba@alcaldiabogota.gov.co
B10: Municipio | E10: Bogotá D.C. | H10: Teléfono de contacto | J10: 3813000
B12: Nombre funcionario Comprador | E12: ENRIQUE CUSBA GARCÍA | H12: Número RFI | J12: 193460
B15: Solicitud de Cotización
B18: Segmento | E18: Lote 1
B20: Cantidad de filas:
B22: 1
B24: Paquete de Servicios
B25: Item | C25: Cod. Matriz | D25: Servicio | E25: Característica 1 | F25: Característica 2 | G25: Característica 3 | H25: Característica 4 | I25: Característica 5 | J25: Característica 6 | K25: Capacidad | L25: Unidad de Facturación | M25: Cantidad en Tiempo | N25: Unidad x Cantidad
B26: 1 | C26: IT-BPO-1-1 | D26: =+IFERROR(IF($E$18="Lote 1",VLOOKUP($C26,ServiciosLote1!$B:$U,COLUMN(D$25)-2,FALSE), IF($E$18="Lote 2",VLOOKUP($C26,ServiciosLote2!$B:$U,COLUMN(D$25)-2,FALSE),"") ),"") -> Troncal SIP | E26: =+IFERROR(IF($E$18="Lote 1",VLOOKUP($C26,ServiciosLote1!$B:$U,COLUMN(E$25)-2,FALSE), IF($E$18="Lote 2",VLOOKUP($C26,ServiciosLote2!$B:$U,COLUMN(E$25)-2,FALSE),"") ),"") -> NA | F26: =+IFERROR(IF($E$18="Lote 1",VLOOKUP($C26,ServiciosLote1!$B:$U,COLUMN(F$25)-2,FALSE), IF($E$18="Lote 2",VLOOKUP($C26,ServiciosLote2!$B:$U,COLUMN(F$25)-2,FALSE),"") ),"") -> NA | G26: =+IFERROR(IF($E$18="Lote 1",VLOOKUP($C26,ServiciosLote1!$B:$U,COLUMN(G$25)-2,FALSE), IF($E$18="Lote 2",VLOOKUP($C26,ServiciosLote2!$B:$U,COLUMN(G$25)-2,FALSE),"") ),"") -> NA | H26: =+IFERROR(IF($E$18="Lote 1",VLOOKUP($C26,ServiciosLote1!$B:$U,COLUMN(H$25)-2,FALSE), IF($E$18="Lote 2",VLOOKUP($C26,ServiciosLote2!$B:$U,COLUMN(H$25)-2,FALSE),"") ),"") -> NA | I26: =+IFERROR(IF($E$18="Lote 1",VLOOKUP($C26,ServiciosLote1!$B:$U,COLUMN(I$25)-2,FALSE), IF($E$18="Lote 2",VLOOKUP($C26,ServiciosLote2!$B:$U,COLUMN(I$25)-2,FALSE),"") ),"") -> NA | J26: =+IFERROR(IF($E$18="Lote 1",VLOOKUP($C26,ServiciosLote1!$B:$U,COLUMN(J$25)-2,FALSE), IF($E$18="Lote 2",VLOOKUP($C26,ServiciosLote2!$B:$U,COLUMN(J$25)-2,FALSE),"") ),"") -> NA | K26: 110 | L26: =+IFERROR(IF($E$18="Lote 1",VLOOKUP($C26,ServiciosLote1!$B:$U,9,FALSE), IF($E$18="Lote 2",VLOOKUP($C26,ServiciosLote2!$B:$U,9,FALSE),"") ),"") -> Mes | M26: 28 | N26: Mes | O26: =C26&" - "&D26&"_"&E26&"_"&F26&"_"&G26&"_"&H26&"_"&I26&"_"&J26&" - "&K26&" "&L26 -> IT-BPO-1-1 - Troncal SIP _NA_NA_NA_NA_NA_NA - 110 Mes
B27: 2 | C27: IT-BPO-2-1 | D27: =+IFERROR(IF($E$18="Lote 1",VLOOKUP($C27,ServiciosLote1!$B:$U,COLUMN(D$25)-2,FALSE), IF($E$18="Lote 2",VLOOKUP($C27,ServiciosLote2!$B:$U,COLUMN(D$25)-2,FALSE),"") ),"") -> Minuto IVR (Interactive Voice Response) - Enrutador | E27: =+IFERROR(IF($E$18="Lote 1",VLOOKUP($C27,ServiciosLote1!$B:$U,COLUMN(E$25)-2,FALSE), IF($E$18="Lote 2",VLOOKUP($C27,ServiciosLote2!$B:$U,COLUMN(E$25)-2,FALSE),"") ),"") -> NA | F27: =+IFERROR(IF($E$18="Lote 1",VLOOKUP($C27,ServiciosLote1!$B:$U,COLUMN(F$25)-2,FALSE), IF($E$18="Lote 2",VLOOKUP($C27,ServiciosLote2!$B:$U,COLUMN(F$25)-2,FALSE),"") ),"") -> NA | G27: =+IFERROR(IF($E$18="Lote 1",VLOOKUP($C27,ServiciosLote1!$B:$U,COLUMN(G$25)-2,FALSE), IF($E$18="Lote 2",VLOOKUP($C27,ServiciosLote2!$B:$U,COLUMN(G$25)-2,FALSE),"") ),"") -> NA | H27: =+IFERROR(IF($E$18="Lote 1",VLOOKUP($C27,ServiciosLote1!$B:$U,COLUMN(H$25)-2,FALSE), IF($E$18="Lote 2",VLOOKUP($C27,ServiciosLote2!$B:$U,COLUMN(H$25)-2,FALSE),"") ),"") -> NA | I27: =+IFERROR(IF($E$18="Lote 1",VLOOKUP($C27,ServiciosLote1!$B:$U,COLUMN(I$25)-2,FALSE), IF($E$18="Lote 2",VLOOKUP($C27,ServiciosLote2!$B:$U,COLUMN(I$25)-2,FALSE),"") ),"") -> NA | J27: =+IFERROR(IF($E$18="Lote 1",VLOOKUP($C27,ServiciosLote1!$B:$U,COLUMN(J$25)-2,FALSE), IF($E$18="Lote 2",VLOOKUP($C27,ServiciosLote2!$B:$U,COLUMN(J$25)-2,FALSE),"") ),"") -> NA | K27: 110000 | L27: =+IFERROR(IF($E$18="Lote 1",VLOOKUP($C27,ServiciosLote1!$B:$U,9,FALSE), IF($E$18="Lote 2",VLOOKUP($C27,ServiciosLote2!$B:$U,9,FALSE),"") ),"") -> Minuto | M27: 4 | N27: Mes | O27: IT-BPO-2-1 - Minuto IVR (Interactive Voice Response) - Enrutador_NA_NA_NA_NA_NA_NA - 110000 Minuto
B28: 3 | C28: IT-BPO-3-1 | D28: =+IFERROR(IF($E$18="Lote 1",VLOOKUP($C28,ServiciosLote1!$B:$U,COLUMN(D$25)-2,FALSE), IF($E$18="Lote 2",VLOOKUP($C28,ServiciosLote2!$B:$U,COLUMN(D$25)-2,FALSE),"") ),"") -> Minuto IVR (Interactive Voice Response) - Audiotexto | E28: =+IFERROR(IF($E$18="Lote 1",VLOOKUP($C28,ServiciosLote1!$B:$U,COLUMN(E$25)-2,FALSE), IF($E$18="Lote 2",VLOOKUP($C28,ServiciosLote2!$B:$U,COLUMN(E$25)-2,FALSE),"") ),"") -> NA | F28: =+IFERROR(IF($E$18="Lote 1",VLOOKUP($C28,ServiciosLote1!$B:$U,COLUMN(F$25)-2,FALSE), IF($E$18="Lote 2",VLOOKUP($C28,ServiciosLote2!$B:$U,COLUMN(F$25)-2,FALSE),"") ),"") -> NA | G28: =+IFERROR(IF($E$18="Lote 1",VLOOKUP($C28,ServiciosLote1!$B:$U,COLUMN(G$25)-2,FALSE), IF($E$18="Lote 2",VLOOKUP($C28,ServiciosLote2!$B:$U,COLUMN(G$25)-2,FALSE),"") ),"") -> NA | H28: =+IFERROR(IF($E$18="Lote 1",VLOOKUP($C28,ServiciosLote1!$B:$U,COLUMN(H$25)-2,FALSE), IF($E$18="Lote 2",VLOOKUP($C28,ServiciosLote2!$B:$U,COLUMN(H$25)-2,FALSE),"") ),"") -> NA | I28: =+IFERROR(IF($E$18="Lote 1",VLOOKUP($C28,ServiciosLote1!$B:$U,COLUMN(I$25)-2,FALSE), IF($E$18="Lote 2",VLOOKUP($C28,ServiciosLote2!$B:$U,COLUMN(I$25)-2,FALSE),"") ),"") -> NA | J28: =+IFERROR(IF($E$18="Lote 1",VLOOKUP($C28,ServiciosLote1!$B:$U,COLUMN(J$25)-2,FALSE), IF($E$18="Lote 2",VLOOKUP($C28,ServiciosLote2!$B:$U,COLUMN(J$25)-2,FALSE),"") ),"") -> NA | K28: 110000 | L28: =+IFERROR(IF($E$18="Lote 1",VLOOKUP($C28,ServiciosLote1!$B:$U,9,FALSE), IF($E$18="Lote 2",VLOOKUP($C28,ServiciosLote2!$B:$U,9,FALSE),"") ),"") -> Minuto | M28: 24 | N28: Mes | O28: IT-BPO-3-1 - Minuto IVR (Interactive Voice Response) - Audiotexto _NA_NA_NA_NA_NA_NA - 110000 Minuto
B29: 4 | C29: IT-BPO-4-1 | D29: =+IFERROR(IF($E$18="Lote 1",VLOOKUP($C29,ServiciosLote1!$B:$U,COLUMN(D$25)-2,FALSE), IF($E$18="Lote 2",VLOOKUP($C29,ServiciosLote2!$B:$U,COLUMN(D$25)-2,FALSE),"") ),"") -> Minuto IVR (Interactive Voice Response) Transaccional | E29: =+IFERROR(IF($E$18="Lote 1",VLOOKUP($C29,ServiciosLote1!$B:$U,COLUMN(E$25)-2,FALSE), IF($E$18="Lote 2",VLOOKUP($C29,ServiciosLote2!$B:$U,COLUMN(E$25)-2,FALSE),"") ),"") -> NA | F29: =+IFERROR(IF($E$18="Lote 1",VLOOKUP($C29,ServiciosLote1!$B:$U,COLUMN(F$25)-2,FALSE), IF($E$18="Lote 2",VLOOKUP($C29,ServiciosLote2!$B:$U,COLUMN(F$25)-2,FALSE),"") ),"") -> NA | G29: =+IFERROR(IF($E$18="Lote 1",VLOOKUP($C29,ServiciosLote1!$B:$U,COLUMN(G$25)-2,FALSE), IF($E$18="Lote 2",VLOOKUP($C29,ServiciosLote2!$B:$U,COLUMN(G$25)-2,FALSE),"") ),"") -> NA | H29: =+IFERROR(IF($E$18="Lote 1",VLOOKUP($C29,ServiciosLote1!$B:$U,COLUMN(H$25)-2,FALSE), IF($E$18="Lote 2",VLOOKUP($C29,ServiciosLote2!$B:$U,COLUMN(H$25)-2,FALSE),"") ),"") -> NA | I29: =+IFERROR(IF($E$18="Lote 1",VLOOKUP($C29,ServiciosLote1!$B:$U,COLUMN(I$25)-2,FALSE), IF($E$18="Lote 2",VLOOKUP($C29,ServiciosLote2!$B:$U,COLUMN(I$25)-2,FALSE),"") ),"") -> NA | J29: =+IFERROR(IF($E$18="Lote 1",VLOOKUP($C29,ServiciosLote1!$B:$U,COLUMN(J$25)-2,FALSE), IF($E$18="Lote 2",VLOOKUP($C29,ServiciosLote2!$B:$U,COLUMN(J$25)-2,FALSE),"") ),"") -> NA | K29: 110000 | L29: =+IFERROR(IF($E$18="Lote 1",VLOOKUP($C29,ServiciosLote1!$B:$U,9,FALSE), IF($E$18="Lote 2",VLOOKUP($C29,ServiciosLote2!$B:$U,9,FALSE),"") ),"") -> Minuto | M29: 12 | N29: Mes | O29: IT-BPO-4-1 - Minuto IVR (Interactive Voice Response) Transaccional _NA_NA_NA_NA_NA_NA - 110000 Minuto
B30: 5 | C30: IT-BPO-6-2 | D30: =+IFERROR(IF($E$18="Lote 1",VLOOKUP($C30,ServiciosLote1!$B:$U,COLUMN(D$25)-2,FALSE), IF($E$18="Lote 2",VLOOKUP($C30,ServiciosLote2!$B:$U,COLUMN(D$25)-2,FALSE),"") ),"") -> Grabación anuncios IVR (Interactive Voice Response) Respuesta de Voz Interactiva | E30: =+IFERROR(IF($E$18="Lote 1",VLOOKUP($C30,ServiciosLote1!$B:$U,COLUMN(E$25)-2,FALSE), IF($E$18="Lote 2",VLOOKUP($C30,ServiciosLote2!$B:$U,COLUMN(E$25)-2,FALSE),"") ),"") -> Voz sintética | F30: =+IFERROR(IF($E$18="Lote 1",VLOOKUP($C30,ServiciosLote1!$B:$U,COLUMN(F$25)-2,FALSE), IF($E$18="Lote 2",VLOOKUP($C30,ServiciosLote2!$B:$U,COLUMN(F$25)-2,FALSE),"") ),"") -> NA | G30: =+IFERROR(IF($E$18="Lote 1",VLOOKUP($C30,ServiciosLote1!$B:$U,COLUMN(G$25)-2,FALSE), IF($E$18="Lote 2",VLOOKUP($C30,ServiciosLote2!$B:$U,COLUMN(G$25)-2,FALSE),"") ),"") -> NA | H30: =+IFERROR(IF($E$18="Lote 1",VLOOKUP($C30,ServiciosLote1!$B:$U,COLUMN(H$25)-2,FALSE), IF($E$18="Lote 2",VLOOKUP($C30,ServiciosLote2!$B:$U,COLUMN(H$25)-2,FALSE),"") ),"") -> NA | I30: =+IFERROR(IF($E$18="Lote 1",VLOOKUP($C30,ServiciosLote1!$B:$U,COLUMN(I$25)-2,FALSE), IF($E$18="Lote 2",VLOOKUP($C30,ServiciosLote2!$B:$U,COLUMN(I$25)-2,FALSE),"") ),"") -> NA | J30: =+IFERROR(IF($E$18="Lote 1",VLOOKUP($C30,ServiciosLote1!$B:$U,COLUMN(J$25)-2,FALSE), IF($E$18="Lote 2",VLOOKUP($C30,ServiciosLote2!$B:$U,COLUMN(J$25)-2,FALSE),"") ),"") -> NA | K30: 2 | L30: =+IFERROR(IF($E$18="Lote 1",VLOOKUP($C30,ServiciosLote1!$B:$U,9,FALSE), IF($E$18="Lote 2",VLOOKUP($C30,ServiciosLote2!$B:$U,9,FALSE),"") ),"") -> Anuncio | M30: 28 | N30: Mes | O30: IT-BPO-6-2 - Grabación anuncios IVR (Interactive Voice Response) Respuesta de Voz Interactiva _Voz sintética _NA_NA_NA_NA_NA - 2 Anuncio
B31: 6 | C31: IT-BPO-7-6 | D31: =+IFERROR(IF($E$18="Lote 1",VLOOKUP($C31,ServiciosLote1!$B:$U,COLUMN(D$25)-2,FALSE), IF($E$18="Lote 2",VLOOKUP($C31,ServiciosLote2!$B:$U,COLUMN(D$25)-2,FALSE),"") ),"") -> Minutos de conexión outbound/Inbound | E31: =+IFERROR(IF($E$18="Lote 1",VLOOKUP($C31,ServiciosLote1!$B:$U,COLUMN(E$25)-2,FALSE), IF($E$18="Lote 2",VLOOKUP($C31,ServiciosLote2!$B:$U,COLUMN(E$25)-2,FALSE),"") ),"") -> Outbound de fijo a celular | F31: =+IFERROR(IF($E$18="Lote 1",VLOOKUP($C31,ServiciosLote1!$B:$U,COLUMN(F$25)-2,FALSE), IF($E$18="Lote 2",VLOOKUP($C31,ServiciosLote2!$B:$U,COLUMN(F$25)-2,FALSE),"") ),"") -> NA | G31: =+IFERROR(IF($E$18="Lote 1",VLOOKUP($C31,ServiciosLote1!$B:$U,COLUMN(G$25)-2,FALSE), IF($E$18="Lote 2",VLOOKUP($C31,ServiciosLote2!$B:$U,COLUMN(G$25)-2,FALSE),"") ),"") -> NA | H31: =+IFERROR(IF($E$18="Lote 1",VLOOKUP($C31,ServiciosLote1!$B:$U,COLUMN(H$25)-2,FALSE), IF($E$18="Lote 2",VLOOKUP($C31,ServiciosLote2!$B:$U,COLUMN(H$25)-2,FALSE),"") ),"") -> NA | I31: =+IFERROR(IF($E$18="Lote 1",VLOOKUP($C31,ServiciosLote1!$B:$U,COLUMN(I$25)-2,FALSE), IF($E$18="Lote 2",VLOOKUP($C31,ServiciosLote2!$B:$U,COLUMN(I$25)-2,FALSE),"") ),"") -> NA | J31: =+IFERROR(IF($E$18="Lote 1",VLOOKUP($C31,ServiciosLote1!$B:$U,COLUMN(J$25)-2,FALSE), IF($E$18="Lote 2",VLOOKUP($C31,ServiciosLote2!$B:$U,COLUMN(J$25)-2,FALSE),"") ),"") -> NA | K31: 72000 | L31: =+IFERROR(IF($E$18="Lote 1",VLOOKUP($C31,ServiciosLote1!$B:$U,9,FALSE), IF($E$18="Lote 2",VLOOKUP($C31,ServiciosLote2!$B:$U,9,FALSE),"") ),"") -> Minuto | M31: 28 | N31: Mes | O31: IT-BPO-7-6 - Minutos de conexión outbound/Inbound_Outbound de fijo a celular _NA_NA_NA_NA_NA - 72000 Minuto
B32: 7 | C32: IT-BPO-8-1 | D32: =+IFERROR(IF($E$18="Lote 1",VLOOKUP($C32,ServiciosLote1!$B:$U,COLUMN(D$25)-2,FALSE), IF($E$18="Lote 2",VLOOKUP($C32,ServiciosLote2!$B:$U,COLUMN(D$25)-2,FALSE),"") ),"") -> Transferencia de llamadas | E32: =+IFERROR(IF($E$18="Lote 1",VLOOKUP($C32,ServiciosLote1!$B:$U,COLUMN(E$25)-2,FALSE), IF($E$18="Lote 2",VLOOKUP($C32,ServiciosLote2!$B:$U,COLUMN(E$25)-2,FALSE),"") ),"") -> NA | F32: =+IFERROR(IF($E$18="Lote 1",VLOOKUP($C32,ServiciosLote1!$B:$U,COLUMN(F$25)-2,FALSE), IF($E$18="Lote 2",VLOOKUP($C32,ServiciosLote2!$B:$U,COLUMN(F$25)-2,FALSE),"") ),"") -> NA | G32: =+IFERROR(IF($E$18="Lote 1",VLOOKUP($C32,ServiciosLote1!$B:$U,COLUMN(G$25)-2,FALSE), IF($E$18="Lote 2",VLOOKUP($C32,ServiciosLote2!$B:$U,COLUMN(G$25)-2,FALSE),"") ),"") -> NA | H32: =+IFERROR(IF($E$18="Lote 1",VLOOKUP($C32,ServiciosLote1!$B:$U,COLUMN(H$25)-2,FALSE), IF($E$18="Lote 2",VLOOKUP($C32,ServiciosLote2!$B:$U,COLUMN(H$25)-2,FALSE),"") ),"") -> NA | I32: =+IFERROR(IF($E$18="Lote 1",VLOOKUP($C32,ServiciosLote1!$B:$U,COLUMN(I$25)-2,FALSE), IF($E$18="Lote 2",VLOOKUP($C32,ServiciosLote2!$B:$U,COLUMN(I$25)-2,FALSE),"") ),"") -> NA | J32: =+IFERROR(IF($E$18="Lote 1",VLOOKUP($C32,ServiciosLote1!$B:$U,COLUMN(J$25)-2,FALSE), IF($E$18="Lote 2",VLOOKUP($C32,ServiciosLote2!$B:$U,COLUMN(J$25)-2,FALSE),"") ),"") -> NA | K32: 400 | L32: =+IFERROR(IF($E$18="Lote 1",VLOOKUP($C32,ServiciosLote1!$B:$U,9,FALSE), IF($E$18="Lote 2",VLOOKUP($C32,ServiciosLote2!$B:$U,9,FALSE),"") ),"") -> Transferencia | M32: 28 | N32: Mes | O32: IT-BPO-8-1 - Transferencia de llamadas_NA_NA_NA_NA_NA_NA - 400 Transferencia
B33: 8 | C33: IT-BPO-11-1 | D33: =+IFERROR(IF($E$18="Lote 1",VLOOKUP($C33,ServiciosLote1!$B:$U,COLUMN(D$25)-2,FALSE), IF($E$18="Lote 2",VLOOKUP($C33,ServiciosLote2!$B:$U,COLUMN(D$25)-2,FALSE),"") ),"") -> Clic to call | E33: =+IFERROR(IF($E$18="Lote 1",VLOOKUP($C33,ServiciosLote1!$B:$U,COLUMN(E$25)-2,FALSE), IF($E$18="Lote 2",VLOOKUP($C33,ServiciosLote2!$B:$U,COLUMN(E$25)-2,FALSE),"") ),"") -> NA | F33: =+IFERROR(IF($E$18="Lote 1",VLOOKUP($C33,ServiciosLote1!$B:$U,COLUMN(F$25)-2,FALSE), IF($E$18="Lote 2",VLOOKUP($C33,ServiciosLote2!$B:$U,COLUMN(F$25)-2,FALSE),"") ),"") -> NA | G33: =+IFERROR(IF($E$18="Lote 1",VLOOKUP($C33,ServiciosLote1!$B:$U,COLUMN(G$25)-2,FALSE), IF($E$18="Lote 2",VLOOKUP($C33,ServiciosLote2!$B:$U,COLUMN(G$25)-2,FALSE),"") ),"") -> NA | H33: =+IFERROR(IF($E$18="Lote 1",VLOOKUP($C33,ServiciosLote1!$B:$U,COLUMN(H$25)-2,FALSE), IF($E$18="Lote 2",VLOOKUP($C33,ServiciosLote2!$B:$U,COLUMN(H$25)-2,FALSE),"") ),"") -> NA | I33: =+IFERROR(IF($E$18="Lote 1",VLOOKUP($C33,ServiciosLote1!$B:$U,COLUMN(I$25)-2,FALSE), IF($E$18="Lote 2",VLOOKUP($C33,ServiciosLote2!$B:$U,COLUMN(I$25)-2,FALSE),"") ),"") -> NA | J33: =+IFERROR(IF($E$18="Lote 1",VLOOKUP($C33,ServiciosLote1!$B:$U,COLUMN(J$25)-2,FALSE), IF($E$18="Lote 2",VLOOKUP($C33,ServiciosLote2!$B:$U,COLUMN(J$25)-2,FALSE),"") ),"") -> NA | K33: 2 | L33: =+IFERROR(IF($E$18="Lote 1",VLOOKUP($C33,ServiciosLote1!$B:$U,9,FALSE), IF($E$18="Lote 2",VLOOKUP($C33,ServiciosLote2!$B:$U,9,FALSE),"") ),"") -> Licencia Mes | M33: 28 | N33: Mes | O33: IT-BPO-11-1 - Clic to call_NA_NA_NA_NA_NA_NA - 2 Licencia Mes
B34: 9 | C34: IT-BPO-12-1 | D34: =+IFERROR(IF($E$18="Lote 1",VLOOKUP($C34,ServiciosLote1!$B:$U,COLUMN(D$25)-2,FALSE), IF($E$18="Lote 2",VLOOKUP($C34,ServiciosLote2!$B:$U,COLUMN(D$25)-2,FALSE),"") ),"") -> Web Callback | E34: =+IFERROR(IF($E$18="Lote 1",VLOOKUP($C34,ServiciosLote1!$B:$U,COLUMN(E$25)-2,FALSE), IF($E$18="Lote 2",VLOOKUP($C34,ServiciosLote2!$B:$U,COLUMN(E$25)-2,FALSE),"") ),"") -> NA | F34: =+IFERROR(IF($E$18="Lote 1",VLOOKUP($C34,ServiciosLote1!$B:$U,COLUMN(F$25)-2,FALSE), IF($E$18="Lote 2",VLOOKUP($C34,ServiciosLote2!$B:$U,COLUMN(F$25)-2,FALSE),"") ),"") -> NA | G34: =+IFERROR(IF($E$18="Lote 1",VLOOKUP($C34,ServiciosLote1!$B:$U,COLUMN(G$25)-2,FALSE), IF($E$18="Lote 2",VLOOKUP($C34,ServiciosLote2!$B:$U,COLUMN(G$25)-2,FALSE),"") ),"") -> NA | H34: =+IFERROR(IF($E$18="Lote 1",VLOOKUP($C34,ServiciosLote1!$B:$U,COLUMN(H$25)-2,FALSE), IF($E$18="Lote 2",VLOOKUP($C34,ServiciosLote2!$B:$U,COLUMN(H$25)-2,FALSE),"") ),"") -> NA | I34: =+IFERROR(IF($E$18="Lote 1",VLOOKUP($C34,ServiciosLote1!$B:$U,COLUMN(I$25)-2,FALSE), IF($E$18="Lote 2",VLOOKUP($C34,ServiciosLote2!$B:$U,COLUMN(I$25)-2,FALSE),"") ),"") -> NA | J34: =+IFERROR(IF($E$18="Lote 1",VLOOKUP($C34,ServiciosLote1!$B:$U,COLUMN(J$25)-2,FALSE), IF($E$18="Lote 2",VLOOKUP($C34,ServiciosLote2!$B:$U,COLUMN(J$25)-2,FALSE),"") ),"") -> NA | K34: 2 | L34: =+IFERROR(IF($E$18="Lote 1",VLOOKUP($C34,ServiciosLote1!$B:$U,9,FALSE), IF($E$18="Lote 2",VLOOKUP($C34,ServiciosLote2!$B:$U,9,FALSE),"") ),"") -> Licencia Mes | M34: 28 | N34: Mes | O34: IT-BPO-12-1 - Web Callback _NA_NA_NA_NA_NA_NA - 2 Licencia Mes
B35: 10 | C35: IT-BPO-13-1 | D35: =+IFERROR(IF($E$18="Lote 1",VLOOKUP($C35,ServiciosLote1!$B:$U,COLUMN(D$25)-2,FALSE), IF($E$18="Lote 2",VLOOKUP($C35,ServiciosLote2!$B:$U,COLUMN(D$25)-2,FALSE),"") ),"") -> Mailing | E35: =+IFERROR(IF($E$18="Lote 1",VLOOKUP($C35,ServiciosLote1!$B:$U,COLUMN(E$25)-2,FALSE), IF($E$18="Lote 2",VLOOKUP($C35,ServiciosLote2!$B:$U,COLUMN(E$25)-2,FALSE),"") ),"") -> NA | F35: =+IFERROR(IF($E$18="Lote 1",VLOOKUP($C35,ServiciosLote1!$B:$U,COLUMN(F$25)-2,FALSE), IF($E$18="Lote 2",VLOOKUP($C35,ServiciosLote2!$B:$U,COLUMN(F$25)-2,FALSE),"") ),"") -> NA | G35: =+IFERROR(IF($E$18="Lote 1",VLOOKUP($C35,ServiciosLote1!$B:$U,COLUMN(G$25)-2,FALSE), IF($E$18="Lote 2",VLOOKUP($C35,ServiciosLote2!$B:$U,COLUMN(G$25)-2,FALSE),"") ),"") -> NA | H35: =+IFERROR(IF($E$18="Lote 1",VLOOKUP($C35,ServiciosLote1!$B:$U,COLUMN(H$25)-2,FALSE), IF($E$18="Lote 2",VLOOKUP($C35,ServiciosLote2!$B:$U,COLUMN(H$25)-2,FALSE),"") ),"") -> NA | I35: =+IFERROR(IF($E$18="Lote 1",VLOOKUP($C35,ServiciosLote1!$B:$U,COLUMN(I$25)-2,FALSE), IF($E$18="Lote 2",VLOOKUP($C35,ServiciosLote2!$B:$U,COLUMN(I$25)-2,FALSE),"") ),"") -> NA | J35: =+IFERROR(IF($E$18="Lote 1",VLOOKUP($C35,ServiciosLote1!$B:$U,COLUMN(J$25)-2,FALSE), IF($E$18="Lote 2",VLOOKUP($C35,ServiciosLote2!$B:$U,COLUMN(J$25)-2,FALSE),"") ),"") -> NA | K35: 127000 | L35: =+IFERROR(IF($E$18="Lote 1",VLOOKUP($C35,ServiciosLote1!$B:$U,9,FALSE), IF($E$18="Lote 2",VLOOKUP($C35,ServiciosLote2!$B:$U,9,FALSE),"") ),"") -> Correo | M35: 28 | N35: Mes | O35: IT-BPO-13-1 - Mailing_NA_NA_NA_NA_NA_NA - 127000 Correo
B36: 11 | C36: IT-BPO-16-1 | D36: =+IFERROR(IF($E$18="Lote 1",VLOOKUP($C36,ServiciosLote1!$B:$U,COLUMN(D$25)-2,FALSE), IF($E$18="Lote 2",VLOOKUP($C36,ServiciosLote2!$B:$U,COLUMN(D$25)-2,FALSE),"") ),"") -> Mensaje SMS (Short Message Service) | E36: =+IFERROR(IF($E$18="Lote 1",VLOOKUP($C36,ServiciosLote1!$B:$U,COLUMN(E$25)-2,FALSE), IF($E$18="Lote 2",VLOOKUP($C36,ServiciosLote2!$B:$U,COLUMN(E$25)-2,FALSE),"") ),"") -> SMS en una vía | F36: =+IFERROR(IF($E$18="Lote 1",VLOOKUP($C36,ServiciosLote1!$B:$U,COLUMN(F$25)-2,FALSE), IF($E$18="Lote 2",VLOOKUP($C36,ServiciosLote2!$B:$U,COLUMN(F$25)-2,FALSE),"") ),"") -> NA | G36: =+IFERROR(IF($E$18="Lote 1",VLOOKUP($C36,ServiciosLote1!$B:$U,COLUMN(G$25)-2,FALSE), IF($E$18="Lote 2",VLOOKUP($C36,ServiciosLote2!$B:$U,COLUMN(G$25)-2,FALSE),"") ),"") -> NA | H36: =+IFERROR(IF($E$18="Lote 1",VLOOKUP($C36,ServiciosLote1!$B:$U,COLUMN(H$25)-2,FALSE), IF($E$18="Lote 2",VLOOKUP($C36,ServiciosLote2!$B:$U,COLUMN(H$25)-2,FALSE),"") ),"") -> NA | I36: =+IFERROR(IF($E$18="Lote 1",VLOOKUP($C36,ServiciosLote1!$B:$U,COLUMN(I$25)-2,FALSE), IF($E$18="Lote 2",VLOOKUP($C36,ServiciosLote2!$B:$U,COLUMN(I$25)-2,FALSE),"") ),"") -> NA | J36: =+IFERROR(IF($E$18="Lote 1",VLOOKUP($C36,ServiciosLote1!$B:$U,COLUMN(J$25)-2,FALSE), IF($E$18="Lote 2",VLOOKUP($C36,ServiciosLote2!$B:$U,COLUMN(J$25)-2,FALSE),"") ),"") -> NA | K36: 10900 | L36: =+IFERROR(IF($E$18="Lote 1",VLOOKUP($C36,ServiciosLote1!$B:$U,9,FALSE), IF($E$18="Lote 2",VLOOKUP($C36,ServiciosLote2!$B:$U,9,FALSE),"") ),"") -> Mensaje SMS | M36: 28 | N36: Mes | O36: IT-BPO-16-1 - Mensaje SMS (Short Message Service) _SMS en una vía_NA_NA_NA_NA_NA - 10900 Mensaje SMS
B37: 12 | C37: IT-BPO-21-1 | D37: =+IFERROR(IF($E$18="Lote 1",VLOOKUP($C37,ServiciosLote1!$B:$U,COLUMN(D$25)-2,FALSE), IF($E$18="Lote 2",VLOOKUP($C37,ServiciosLote2!$B:$U,COLUMN(D$25)-2,FALSE),"") ),"") -> Chatbot Smart | E37: =+IFERROR(IF($E$18="Lote 1",VLOOKUP($C37,ServiciosLote1!$B:$U,COLUMN(E$25)-2,FALSE), IF($E$18="Lote 2",VLOOKUP($C37,ServiciosLote2!$B:$U,COLUMN(E$25)-2,FALSE),"") ),"") -> NA | F37: =+IFERROR(IF($E$18="Lote 1",VLOOKUP($C37,ServiciosLote1!$B:$U,COLUMN(F$25)-2,FALSE), IF($E$18="Lote 2",VLOOKUP($C37,ServiciosLote2!$B:$U,COLUMN(F$25)-2,FALSE),"") ),"") -> NA | G37: =+IFERROR(IF($E$18="Lote 1",VLOOKUP($C37,ServiciosLote1!$B:$U,COLUMN(G$25)-2,FALSE), IF($E$18="Lote 2",VLOOKUP($C37,ServiciosLote2!$B:$U,COLUMN(G$25)-2,FALSE),"") ),"") -> NA | H37: =+IFERROR(IF($E$18="Lote 1",VLOOKUP($C37,ServiciosLote1!$B:$U,COLUMN(H$25)-2,FALSE), IF($E$18="Lote 2",VLOOKUP($C37,ServiciosLote2!$B:$U,COLUMN(H$25)-2,FALSE),"") ),"") -> NA | I37: =+IFERROR(IF($E$18="Lote 1",VLOOKUP($C37,ServiciosLote1!$B:$U,COLUMN(I$25)-2,FALSE), IF($E$18="Lote 2",VLOOKUP($C37,ServiciosLote2!$B:$U,COLUMN(I$25)-2,FALSE),"") ),"") -> NA | J37: =+IFERROR(IF($E$18="Lote 1",VLOOKUP($C37,ServiciosLote1!$B:$U,COLUMN(J$25)-2,FALSE), IF($E$18="Lote 2",VLOOKUP($C37,ServiciosLote2!$B:$U,COLUMN(J$25)-2,FALSE),"") ),"") -> NA | K37: 12200 | L37: =+IFERROR(IF($E$18="Lote 1",VLOOKUP($C37,ServiciosLote1!$B:$U,9,FALSE), IF($E$18="Lote 2",VLOOKUP($C37,ServiciosLote2!$B:$U,9,FALSE),"") ),"") -> Respuesta Chatbot Smart | M37: 25 | N37: Mes | O37: IT-BPO-21-1 - Chatbot Smart_NA_NA_NA_NA_NA_NA - 12200 Respuesta Chatbot Smart
B38: 13 | C38: IT-BPO-22-1 | D38: =+IFERROR(IF($E$18="Lote 1",VLOOKUP($C38,ServiciosLote1!$B:$U,COLUMN(D$25)-2,FALSE), IF($E$18="Lote 2",VLOOKUP($C38,ServiciosLote2!$B:$U,COLUMN(D$25)-2,FALSE),"") ),"") -> Voicebot Smart | E38: =+IFERROR(IF($E$18="Lote 1",VLOOKUP($C38,ServiciosLote1!$B:$U,COLUMN(E$25)-2,FALSE), IF($E$18="Lote 2",VLOOKUP($C38,ServiciosLote2!$B:$U,COLUMN(E$25)-2,FALSE),"") ),"") -> NA | F38: =+IFERROR(IF($E$18="Lote 1",VLOOKUP($C38,ServiciosLote1!$B:$U,COLUMN(F$25)-2,FALSE), IF($E$18="Lote 2",VLOOKUP($C38,ServiciosLote2!$B:$U,COLUMN(F$25)-2,FALSE),"") ),"") -> NA | G38: =+IFERROR(IF($E$18="Lote 1",VLOOKUP($C38,ServiciosLote1!$B:$U,COLUMN(G$25)-2,FALSE), IF($E$18="Lote 2",VLOOKUP($C38,ServiciosLote2!$B:$U,COLUMN(G$25)-2,FALSE),"") ),"") -> NA | H38: =+IFERROR(IF($E$18="Lote 1",VLOOKUP($C38,ServiciosLote1!$B:$U,COLUMN(H$25)-2,FALSE), IF($E$18="Lote 2",VLOOKUP($C38,ServiciosLote2!$B:$U,COLUMN(H$25)-2,FALSE),"") ),"") -> NA | I38: =+IFERROR(IF($E$18="Lote 1",VLOOKUP($C38,ServiciosLote1!$B:$U,COLUMN(I$25)-2,FALSE), IF($E$18="Lote 2",VLOOKUP($C38,ServiciosLote2!$B:$U,COLUMN(I$25)-2,FALSE),"") ),"") -> NA | J38: =+IFERROR(IF($E$18="Lote 1",VLOOKUP($C38,ServiciosLote1!$B:$U,COLUMN(J$25)-2,FALSE), IF($E$18="Lote 2",VLOOKUP($C38,ServiciosLote2!$B:$U,COLUMN(J$25)-2,FALSE),"") ),"") -> NA | K38: 2700000 | L38: =+IFERROR(IF($E$18="Lote 1",VLOOKUP($C38,ServiciosLote1!$B:$U,9,FALSE), IF($E$18="Lote 2",VLOOKUP($C38,ServiciosLote2!$B:$U,9,FALSE),"") ),"") -> Minuto Voicebot Smart | M38: 25 | N38: Mes | O38: IT-BPO-22-1 - Voicebot Smart_NA_NA_NA_NA_NA_NA - 2700000 Minuto Voicebot Smart
B39: 14 | C39: IT-BPO-23-1 | D39: =+IFERROR(IF($E$18="Lote 1",VLOOKUP($C39,ServiciosLote1!$B:$U,COLUMN(D$25)-2,FALSE), IF($E$18="Lote 2",VLOOKUP($C39,ServiciosLote2!$B:$U,COLUMN(D$25)-2,FALSE),"") ),"") -> Hora desarrollo para Integraciones y canales digitales | E39: =+IFERROR(IF($E$18="Lote 1",VLOOKUP($C39,ServiciosLote1!$B:$U,COLUMN(E$25)-2,FALSE), IF($E$18="Lote 2",VLOOKUP($C39,ServiciosLote2!$B:$U,COLUMN(E$25)-2,FALSE),"") ),"") -> NA | F39: =+IFERROR(IF($E$18="Lote 1",VLOOKUP($C39,ServiciosLote1!$B:$U,COLUMN(F$25)-2,FALSE), IF($E$18="Lote 2",VLOOKUP($C39,ServiciosLote2!$B:$U,COLUMN(F$25)-2,FALSE),"") ),"") -> NA | G39: =+IFERROR(IF($E$18="Lote 1",VLOOKUP($C39,ServiciosLote1!$B:$U,COLUMN(G$25)-2,FALSE), IF($E$18="Lote 2",VLOOKUP($C39,ServiciosLote2!$B:$U,COLUMN(G$25)-2,FALSE),"") ),"") -> NA | H39: =+IFERROR(IF($E$18="Lote 1",VLOOKUP($C39,ServiciosLote1!$B:$U,COLUMN(H$25)-2,FALSE), IF($E$18="Lote 2",VLOOKUP($C39,ServiciosLote2!$B:$U,COLUMN(H$25)-2,FALSE),"") ),"") -> NA | I39: =+IFERROR(IF($E$18="Lote 1",VLOOKUP($C39,ServiciosLote1!$B:$U,COLUMN(I$25)-2,FALSE), IF($E$18="Lote 2",VLOOKUP($C39,ServiciosLote2!$B:$U,COLUMN(I$25)-2,FALSE),"") ),"") -> NA | J39: =+IFERROR(IF($E$18="Lote 1",VLOOKUP($C39,ServiciosLote1!$B:$U,COLUMN(J$25)-2,FALSE), IF($E$18="Lote 2",VLOOKUP($C39,ServiciosLote2!$B:$U,COLUMN(J$25)-2,FALSE),"") ),"") -> NA | K39: 125 | L39: =+IFERROR(IF($E$18="Lote 1",VLOOKUP($C39,ServiciosLote1!$B:$U,9,FALSE), IF($E$18="Lote 2",VLOOKUP($C39,ServiciosLote2!$B:$U,9,FALSE),"") ),"") -> Hora desarrollo para Integraciones y canales digitales | M39: 28 | N39: Mes | O39: IT-BPO-23-1 - Hora desarrollo para Integraciones y canales digitales_NA_NA_NA_NA_NA_NA - 125 Hora desarrollo para Integraciones y canales digitales
B40: 15 | C40: IT-BPO-24-1 | D40: =+IFERROR(IF($E$18="Lote 1",VLOOKUP($C40,ServiciosLote1!$B:$U,COLUMN(D$25)-2,FALSE), IF($E$18="Lote 2",VLOOKUP($C40,ServiciosLote2!$B:$U,COLUMN(D$25)-2,FALSE),"") ),"") -> Analytics | E40: =+IFERROR(IF($E$18="Lote 1",VLOOKUP($C40,ServiciosLote1!$B:$U,COLUMN(E$25)-2,FALSE), IF($E$18="Lote 2",VLOOKUP($C40,ServiciosLote2!$B:$U,COLUMN(E$25)-2,FALSE),"") ),"") -> NA | F40: =+IFERROR(IF($E$18="Lote 1",VLOOKUP($C40,ServiciosLote1!$B:$U,COLUMN(F$25)-2,FALSE), IF($E$18="Lote 2",VLOOKUP($C40,ServiciosLote2!$B:$U,COLUMN(F$25)-2,FALSE),"") ),"") -> NA | G40: =+IFERROR(IF($E$18="Lote 1",VLOOKUP($C40,ServiciosLote1!$B:$U,COLUMN(G$25)-2,FALSE), IF($E$18="Lote 2",VLOOKUP($C40,ServiciosLote2!$B:$U,COLUMN(G$25)-2,FALSE),"") ),"") -> NA | H40: =+IFERROR(IF($E$18="Lote 1",VLOOKUP($C40,ServiciosLote1!$B:$U,COLUMN(H$25)-2,FALSE), IF($E$18="Lote 2",VLOOKUP($C40,ServiciosLote2!$B:$U,COLUMN(H$25)-2,FALSE),"") ),"") -> NA | I40: =+IFERROR(IF($E$18="Lote 1",VLOOKUP($C40,ServiciosLote1!$B:$U,COLUMN(I$25)-2,FALSE), IF($E$18="Lote 2",VLOOKUP($C40,ServiciosLote2!$B:$U,COLUMN(I$25)-2,FALSE),"") ),"") -> NA | J40: =+IFERROR(IF($E$18="Lote 1",VLOOKUP($C40,ServiciosLote1!$B:$U,COLUMN(J$25)-2,FALSE), IF($E$18="Lote 2",VLOOKUP($C40,ServiciosLote2!$B:$U,COLUMN(J$25)-2,FALSE),"") ),"") -> NA | K40: 2 | L40: =+IFERROR(IF($E$18="Lote 1",VLOOKUP($C40,ServiciosLote1!$B:$U,9,FALSE), IF($E$18="Lote 2",VLOOKUP($C40,ServiciosLote2!$B:$U,9,FALSE),"") ),"") -> Licencia Mes | M40: 28 | N40: Mes | O40: IT-BPO-24-1 - Analytics_NA_NA_NA_NA_NA_NA - 2 Licencia Mes
B41: 16 | C41: IT-BPO-25-1 | D41: =+IFERROR(IF($E$18="Lote 1",VLOOKUP($C41,ServiciosLote1!$B:$U,COLUMN(D$25)-2,FALSE), IF($E$18="Lote 2",VLOOKUP($C41,ServiciosLote2!$B:$U,COLUMN(D$25)-2,FALSE),"") ),"") -> Agente en Sitio | E41: =+IFERROR(IF($E$18="Lote 1",VLOOKUP($C41,ServiciosLote1!$B:$U,COLUMN(E$25)-2,FALSE), IF($E$18="Lote 2",VLOOKUP($C41,ServiciosLote2!$B:$U,COLUMN(E$25)-2,FALSE),"") ),"") -> Agente general | F41: =+IFERROR(IF($E$18="Lote 1",VLOOKUP($C41,ServiciosLote1!$B:$U,COLUMN(F$25)-2,FALSE), IF($E$18="Lote 2",VLOOKUP($C41,ServiciosLote2!$B:$U,COLUMN(F$25)-2,FALSE),"") ),"") -> Jornada Ordinaria | G41: =+IFERROR(IF($E$18="Lote 1",VLOOKUP($C41,ServiciosLote1!$B:$U,COLUMN(G$25)-2,FALSE), IF($E$18="Lote 2",VLOOKUP($C41,ServiciosLote2!$B:$U,COLUMN(G$25)-2,FALSE),"") ),"") -> En sitio | H41: =+IFERROR(IF($E$18="Lote 1",VLOOKUP($C41,ServiciosLote1!$B:$U,COLUMN(H$25)-2,FALSE), IF($E$18="Lote 2",VLOOKUP($C41,ServiciosLote2!$B:$U,COLUMN(H$25)-2,FALSE),"") ),"") -> Oro | I41: =+IFERROR(IF($E$18="Lote 1",VLOOKUP($C41,ServiciosLote1!$B:$U,COLUMN(I$25)-2,FALSE), IF($E$18="Lote 2",VLOOKUP($C41,ServiciosLote2!$B:$U,COLUMN(I$25)-2,FALSE),"") ),"") -> NA | J41: =+IFERROR(IF($E$18="Lote 1",VLOOKUP($C41,ServiciosLote1!$B:$U,COLUMN(J$25)-2,FALSE), IF($E$18="Lote 2",VLOOKUP($C41,ServiciosLote2!$B:$U,COLUMN(J$25)-2,FALSE),"") ),"") -> NA | K41: 66 | L41: =+IFERROR(IF($E$18="Lote 1",VLOOKUP($C41,ServiciosLote1!$B:$U,9,FALSE), IF($E$18="Lote 2",VLOOKUP($C41,ServiciosLote2!$B:$U,9,FALSE),"") ),"") -> Mes | M41: 3 | N41: Mes | O41: IT-BPO-25-1 - Agente en Sitio _Agente general_Jornada Ordinaria_En sitio_Oro_NA_NA - 66 Mes
B42: 17 | C42: IT-BPO-25-1 | D42: =+IFERROR(IF($E$18="Lote 1",VLOOKUP($C42,ServiciosLote1!$B:$U,COLUMN(D$25)-2,FALSE), IF($E$18="Lote 2",VLOOKUP($C42,ServiciosLote2!$B:$U,COLUMN(D$25)-2,FALSE),"") ),"") -> Agente en Sitio | E42: =+IFERROR(IF($E$18="Lote 1",VLOOKUP($C42,ServiciosLote1!$B:$U,COLUMN(E$25)-2,FALSE), IF($E$18="Lote 2",VLOOKUP($C42,ServiciosLote2!$B:$U,COLUMN(E$25)-2,FALSE),"") ),"") -> Agente general | F42: =+IFERROR(IF($E$18="Lote 1",VLOOKUP($C42,ServiciosLote1!$B:$U,COLUMN(F$25)-2,FALSE), IF($E$18="Lote 2",VLOOKUP($C42,ServiciosLote2!$B:$U,COLUMN(F$25)-2,FALSE),"") ),"") -> Jornada Ordinaria | G42: =+IFERROR(IF($E$18="Lote 1",VLOOKUP($C42,ServiciosLote1!$B:$U,COLUMN(G$25)-2,FALSE), IF($E$18="Lote 2",VLOOKUP($C42,ServiciosLote2!$B:$U,COLUMN(G$25)-2,FALSE),"") ),"") -> En sitio | H42: =+IFERROR(IF($E$18="Lote 1",VLOOKUP($C42,ServiciosLote1!$B:$U,COLUMN(H$25)-2,FALSE), IF($E$18="Lote 2",VLOOKUP($C42,ServiciosLote2!$B:$U,COLUMN(H$25)-2,FALSE),"") ),"") -> Oro | I42: =+IFERROR(IF($E$18="Lote 1",VLOOKUP($C42,ServiciosLote1!$B:$U,COLUMN(I$25)-2,FALSE), IF($E$18="Lote 2",VLOOKUP($C42,ServiciosLote2!$B:$U,COLUMN(I$25)-2,FALSE),"") ),"") -> NA | J42: =+IFERROR(IF($E$18="Lote 1",VLOOKUP($C42,ServiciosLote1!$B:$U,COLUMN(J$25)-2,FALSE), IF($E$18="Lote 2",VLOOKUP($C42,ServiciosLote2!$B:$U,COLUMN(J$25)-2,FALSE),"") ),"") -> NA | K42: 51 | L42: =+IFERROR(IF($E$18="Lote 1",VLOOKUP($C42,ServiciosLote1!$B:$U,9,FALSE), IF($E$18="Lote 2",VLOOKUP($C42,ServiciosLote2!$B:$U,9,FALSE),"") ),"") -> Mes | M42: 6 | N42: Mes | O42: IT-BPO-25-1 - Agente en Sitio _Agente general_Jornada Ordinaria_En sitio_Oro_NA_NA - 51 Mes
B43: 18 | C43: IT-BPO-25-1 | D43: =+IFERROR(IF($E$18="Lote 1",VLOOKUP($C43,ServiciosLote1!$B:$U,COLUMN(D$25)-2,FALSE), IF($E$18="Lote 2",VLOOKUP($C43,ServiciosLote2!$B:$U,COLUMN(D$25)-2,FALSE),"") ),"") -> Agente en Sitio | E43: =+IFERROR(IF($E$18="Lote 1",VLOOKUP($C43,ServiciosLote1!$B:$U,COLUMN(E$25)-2,FALSE), IF($E$18="Lote 2",VLOOKUP($C43,ServiciosLote2!$B:$U,COLUMN(E$25)-2,FALSE),"") ),"") -> Agente general | F43: =+IFERROR(IF($E$18="Lote 1",VLOOKUP($C43,ServiciosLote1!$B:$U,COLUMN(F$25)-2,FALSE), IF($E$18="Lote 2",VLOOKUP($C43,ServiciosLote2!$B:$U,COLUMN(F$25)-2,FALSE),"") ),"") -> Jornada Ordinaria | G43: =+IFERROR(IF($E$18="Lote 1",VLOOKUP($C43,ServiciosLote1!$B:$U,COLUMN(G$25)-2,FALSE), IF($E$18="Lote 2",VLOOKUP($C43,ServiciosLote2!$B:$U,COLUMN(G$25)-2,FALSE),"") ),"") -> En sitio | H43: =+IFERROR(IF($E$18="Lote 1",VLOOKUP($C43,ServiciosLote1!$B:$U,COLUMN(H$25)-2,FALSE), IF($E$18="Lote 2",VLOOKUP($C43,ServiciosLote2!$B:$U,COLUMN(H$25)-2,FALSE),"") ),"") -> Oro | I43: =+IFERROR(IF($E$18="Lote 1",VLOOKUP($C43,ServiciosLote1!$B:$U,COLUMN(I$25)-2,FALSE), IF($E$18="Lote 2",VLOOKUP($C43,ServiciosLote2!$B:$U,COLUMN(I$25)-2,FALSE),"") ),"") -> NA | J43: =+IFERROR(IF($E$18="Lote 1",VLOOKUP($C43,ServiciosLote1!$B:$U,COLUMN(J$25)-2,FALSE), IF($E$18="Lote 2",VLOOKUP($C43,ServiciosLote2!$B:$U,COLUMN(J$25)-2,FALSE),"") ),"") -> NA | K43: 39 | L43: =+IFERROR(IF($E$18="Lote 1",VLOOKUP($C43,ServiciosLote1!$B:$U,9,FALSE), IF($E$18="Lote 2",VLOOKUP($C43,ServiciosLote2!$B:$U,9,FALSE),"") ),"") -> Mes | M43: 6 | N43: Mes | O43: IT-BPO-25-1 - Agente en Sitio _Agente general_Jornada Ordinaria_En sitio_Oro_NA_NA - 39 Mes
B44: 19 | C44: IT-BPO-25-1 | D44: =+IFERROR(IF($E$18="Lote 1",VLOOKUP($C44,ServiciosLote1!$B:$U,COLUMN(D$25)-2,FALSE), IF($E$18="Lote 2",VLOOKUP($C44,ServiciosLote2!$B:$U,COLUMN(D$25)-2,FALSE),"") ),"") -> Agente en Sitio | E44: =+IFERROR(IF($E$18="Lote 1",VLOOKUP($C44,ServiciosLote1!$B:$U,COLUMN(E$25)-2,FALSE), IF($E$18="Lote 2",VLOOKUP($C44,ServiciosLote2!$B:$U,COLUMN(E$25)-2,FALSE),"") ),"") -> Agente general | F44: =+IFERROR(IF($E$18="Lote 1",VLOOKUP($C44,ServiciosLote1!$B:$U,COLUMN(F$25)-2,FALSE), IF($E$18="Lote 2",VLOOKUP($C44,ServiciosLote2!$B:$U,COLUMN(F$25)-2,FALSE),"") ),"") -> Jornada Ordinaria | G44: =+IFERROR(IF($E$18="Lote 1",VLOOKUP($C44,ServiciosLote1!$B:$U,COLUMN(G$25)-2,FALSE), IF($E$18="Lote 2",VLOOKUP($C44,ServiciosLote2!$B:$U,COLUMN(G$25)-2,FALSE),"") ),"") -> En sitio | H44: =+IFERROR(IF($E$18="Lote 1",VLOOKUP($C44,ServiciosLote1!$B:$U,COLUMN(H$25)-2,FALSE), IF($E$18="Lote 2",VLOOKUP($C44,ServiciosLote2!$B:$U,COLUMN(H$25)-2,FALSE),"") ),"") -> Oro | I44: =+IFERROR(IF($E$18="Lote 1",VLOOKUP($C44,ServiciosLote1!$B:$U,COLUMN(I$25)-2,FALSE), IF($E$18="Lote 2",VLOOKUP($C44,ServiciosLote2!$B:$U,COLUMN(I$25)-2,FALSE),"") ),"") -> NA | J44: =+IFERROR(IF($E$18="Lote 1",VLOOKUP($C44,ServiciosLote1!$B:$U,COLUMN(J$25)-2,FALSE), IF($E$18="Lote 2",VLOOKUP($C44,ServiciosLote2!$B:$U,COLUMN(J$25)-2,FALSE),"") ),"") -> NA | K44: 25 | L44: =+IFERROR(IF($E$18="Lote 1",VLOOKUP($C44,ServiciosLote1!$B:$U,9,FALSE), IF($E$18="Lote 2",VLOOKUP($C44,ServiciosLote2!$B:$U,9,FALSE),"") ),"") -> Mes | M44: 13 | N44: Mes | O44: IT-BPO-25-1 - Agente en Sitio _Agente general_Jornada Ordinaria_En sitio_Oro_NA_NA - 25 Mes
B45: 20 | C45: IT-BPO-25-4 | D45: =+IFERROR(IF($E$18="Lote 1",VLOOKUP($C45,ServiciosLote1!$B:$U,COLUMN(D$25)-2,FALSE), IF($E$18="Lote 2",VLOOKUP($C45,ServiciosLote2!$B:$U,COLUMN(D$25)-2,FALSE),"") ),"") -> Agente en Sitio | E45: =+IFERROR(IF($E$18="Lote 1",VLOOKUP($C45,ServiciosLote1!$B:$U,COLUMN(E$25)-2,FALSE), IF($E$18="Lote 2",VLOOKUP($C45,ServiciosLote2!$B:$U,COLUMN(E$25)-2,FALSE),"") ),"") -> Agente general | F45: =+IFERROR(IF($E$18="Lote 1",VLOOKUP($C45,ServiciosLote1!$B:$U,COLUMN(F$25)-2,FALSE), IF($E$18="Lote 2",VLOOKUP($C45,ServiciosLote2!$B:$U,COLUMN(F$25)-2,FALSE),"") ),"") -> Hora extra dominical y festivo | G45: =+IFERROR(IF($E$18="Lote 1",VLOOKUP($C45,ServiciosLote1!$B:$U,COLUMN(G$25)-2,FALSE), IF($E$18="Lote 2",VLOOKUP($C45,ServiciosLote2!$B:$U,COLUMN(G$25)-2,FALSE),"") ),"") -> En sitio | H45: =+IFERROR(IF($E$18="Lote 1",VLOOKUP($C45,ServiciosLote1!$B:$U,COLUMN(H$25)-2,FALSE), IF($E$18="Lote 2",VLOOKUP($C45,ServiciosLote2!$B:$U,COLUMN(H$25)-2,FALSE),"") ),"") -> Oro | I45: =+IFERROR(IF($E$18="Lote 1",VLOOKUP($C45,ServiciosLote1!$B:$U,COLUMN(I$25)-2,FALSE), IF($E$18="Lote 2",VLOOKUP($C45,ServiciosLote2!$B:$U,COLUMN(I$25)-2,FALSE),"") ),"") -> NA | J45: =+IFERROR(IF($E$18="Lote 1",VLOOKUP($C45,ServiciosLote1!$B:$U,COLUMN(J$25)-2,FALSE), IF($E$18="Lote 2",VLOOKUP($C45,ServiciosLote2!$B:$U,COLUMN(J$25)-2,FALSE),"") ),"") -> NA | K45: 1000 | L45: =+IFERROR(IF($E$18="Lote 1",VLOOKUP($C45,ServiciosLote1!$B:$U,9,FALSE), IF($E$18="Lote 2",VLOOKUP($C45,ServiciosLote2!$B:$U,9,FALSE),"") ),"") -> Hora | M45: 3 | N45: Mes | O45: IT-BPO-25-4 - Agente en Sitio _Agente general_Hora extra dominical y festivo_En sitio_Oro_NA_NA - 1000 Hora
B46: 21 | C46: IT-BPO-25-4 | D46: =+IFERROR(IF($E$18="Lote 1",VLOOKUP($C46,ServiciosLote1!$B:$U,COLUMN(D$25)-2,FALSE), IF($E$18="Lote 2",VLOOKUP($C46,ServiciosLote2!$B:$U,COLUMN(D$25)-2,FALSE),"") ),"") -> Agente en Sitio | E46: =+IFERROR(IF($E$18="Lote 1",VLOOKUP($C46,ServiciosLote1!$B:$U,COLUMN(E$25)-2,FALSE), IF($E$18="Lote 2",VLOOKUP($C46,ServiciosLote2!$B:$U,COLUMN(E$25)-2,FALSE),"") ),"") -> Agente general | F46: =+IFERROR(IF($E$18="Lote 1",VLOOKUP($C46,ServiciosLote1!$B:$U,COLUMN(F$25)-2,FALSE), IF($E$18="Lote 2",VLOOKUP($C46,ServiciosLote2!$B:$U,COLUMN(F$25)-2,FALSE),"") ),"") -> Hora extra dominical y festivo | G46: =+IFERROR(IF($E$18="Lote 1",VLOOKUP($C46,ServiciosLote1!$B:$U,COLUMN(G$25)-2,FALSE), IF($E$18="Lote 2",VLOOKUP($C46,ServiciosLote2!$B:$U,COLUMN(G$25)-2,FALSE),"") ),"") -> En sitio | H46: =+IFERROR(IF($E$18="Lote 1",VLOOKUP($C46,ServiciosLote1!$B:$U,COLUMN(H$25)-2,FALSE), IF($E$18="Lote 2",VLOOKUP($C46,ServiciosLote2!$B:$U,COLUMN(H$25)-2,FALSE),"") ),"") -> Oro | I46: =+IFERROR(IF($E$18="Lote 1",VLOOKUP($C46,ServiciosLote1!$B:$U,COLUMN(I$25)-2,FALSE), IF($E$18="Lote 2",VLOOKUP($C46,ServiciosLote2!$B:$U,COLUMN(I$25)-2,FALSE),"") ),"") -> NA | J46: =+IFERROR(IF($E$18="Lote 1",VLOOKUP($C46,ServiciosLote1!$B:$U,COLUMN(J$25)-2,FALSE), IF($E$18="Lote 2",VLOOKUP($C46,ServiciosLote2!$B:$U,COLUMN(J$25)-2,FALSE),"") ),"") -> NA | K46: 500 | L46: =+IFERROR(IF($E$18="Lote 1",VLOOKUP($C46,ServiciosLote1!$B:$U,9,FALSE), IF($E$18="Lote 2",VLOOKUP($C46,ServiciosLote2!$B:$U,9,FALSE),"") ),"") -> Hora | M46: 6 | N46: Mes | O46: IT-BPO-25-4 - Agente en Sitio _Agente general_Hora extra dominical y festivo_En sitio_Oro_NA_NA - 500 Hora
B47: 22 | C47: IT-BPO-25-4 | D47: =+IFERROR(IF($E$18="Lote 1",VLOOKUP($C47,ServiciosLote1!$B:$U,COLUMN(D$25)-2,FALSE), IF($E$18="Lote 2",VLOOKUP($C47,ServiciosLote2!$B:$U,COLUMN(D$25)-2,FALSE),"") ),"") -> Agente en Sitio | E47: =+IFERROR(IF($E$18="Lote 1",VLOOKUP($C47,ServiciosLote1!$B:$U,COLUMN(E$25)-2,FALSE), IF($E$18="Lote 2",VLOOKUP($C47,ServiciosLote2!$B:$U,COLUMN(E$25)-2,FALSE),"") ),"") -> Agente general | F47: =+IFERROR(IF($E$18="Lote 1",VLOOKUP($C47,ServiciosLote1!$B:$U,COLUMN(F$25)-2,FALSE), IF($E$18="Lote 2",VLOOKUP($C47,ServiciosLote2!$B:$U,COLUMN(F$25)-2,FALSE),"") ),"") -> Hora extra dominical y festivo | G47: =+IFERROR(IF($E$18="Lote 1",VLOOKUP($C47,ServiciosLote1!$B:$U,COLUMN(G$25)-2,FALSE), IF($E$18="Lote 2",VLOOKUP($C47,ServiciosLote2!$B:$U,COLUMN(G$25)-2,FALSE),"") ),"") -> En sitio | H47: =+IFERROR(IF($E$18="Lote 1",VLOOKUP($C47,ServiciosLote1!$B:$U,COLUMN(H$25)-2,FALSE), IF($E$18="Lote 2",VLOOKUP($C47,ServiciosLote2!$B:$U,COLUMN(H$25)-2,FALSE),"") ),"") -> Oro | I47: =+IFERROR(IF($E$18="Lote 1",VLOOKUP($C47,ServiciosLote1!$B:$U,COLUMN(I$25)-2,FALSE), IF($E$18="Lote 2",VLOOKUP($C47,ServiciosLote2!$B:$U,COLUMN(I$25)-2,FALSE),"") ),"") -> NA | J47: =+IFERROR(IF($E$18="Lote 1",VLOOKUP($C47,ServiciosLote1!$B:$U,COLUMN(J$25)-2,FALSE), IF($E$18="Lote 2",VLOOKUP($C47,ServiciosLote2!$B:$U,COLUMN(J$25)-2,FALSE),"") ),"") -> NA | K47: 500 | L47: =+IFERROR(IF($E$18="Lote 1",VLOOKUP($C47,ServiciosLote1!$B:$U,9,FALSE), IF($E$18="Lote 2",VLOOKUP($C47,ServiciosLote2!$B:$U,9,FALSE),"") ),"") -> Hora | M47: 6 | N47: Mes | O47: IT-BPO-25-4 - Agente en Sitio _Agente general_Hora extra dominical y festivo_En sitio_Oro_NA_NA - 500 Hora
B48: 23 | C48: IT-BPO-25-4 | D48: =+IFERROR(IF($E$18="Lote 1",VLOOKUP($C48,ServiciosLote1!$B:$U,COLUMN(D$25)-2,FALSE), IF($E$18="Lote 2",VLOOKUP($C48,ServiciosLote2!$B:$U,COLUMN(D$25)-2,FALSE),"") ),"") -> Agente en Sitio | E48: =+IFERROR(IF($E$18="Lote 1",VLOOKUP($C48,ServiciosLote1!$B:$U,COLUMN(E$25)-2,FALSE), IF($E$18="Lote 2",VLOOKUP($C48,ServiciosLote2!$B:$U,COLUMN(E$25)-2,FALSE),"") ),"") -> Agente general | F48: =+IFERROR(IF($E$18="Lote 1",VLOOKUP($C48,ServiciosLote1!$B:$U,COLUMN(F$25)-2,FALSE), IF($E$18="Lote 2",VLOOKUP($C48,ServiciosLote2!$B:$U,COLUMN(F$25)-2,FALSE),"") ),"") -> Hora extra dominical y festivo | G48: =+IFERROR(IF($E$18="Lote 1",VLOOKUP($C48,ServiciosLote1!$B:$U,COLUMN(G$25)-2,FALSE), IF($E$18="Lote 2",VLOOKUP($C48,ServiciosLote2!$B:$U,COLUMN(G$25)-2,FALSE),"") ),"") -> En sitio | H48: =+IFERROR(IF($E$18="Lote 1",VLOOKUP($C48,ServiciosLote1!$B:$U,COLUMN(H$25)-2,FALSE), IF($E$18="Lote 2",VLOOKUP($C48,ServiciosLote2!$B:$U,COLUMN(H$25)-2,FALSE),"") ),"") -> Oro | I48: =+IFERROR(IF($E$18="Lote 1",VLOOKUP($C48,ServiciosLote1!$B:$U,COLUMN(I$25)-2,FALSE), IF($E$18="Lote 2",VLOOKUP($C48,ServiciosLote2!$B:$U,COLUMN(I$25)-2,FALSE),"") ),"") -> NA | J48: =+IFERROR(IF($E$18="Lote 1",VLOOKUP($C48,ServiciosLote1!$B:$U,COLUMN(J$25)-2,FALSE), IF($E$18="Lote 2",VLOOKUP($C48,ServiciosLote2!$B:$U,COLUMN(J$25)-2,FALSE),"") ),"") -> NA | K48: 500 | L48: =+IFERROR(IF($E$18="Lote 1",VLOOKUP($C48,ServiciosLote1!$B:$U,9,FALSE), IF($E$18="Lote 2",VLOOKUP($C48,ServiciosLote2!$B:$U,9,FALSE),"") ),"") -> Hora | M48: 13 | N48: Mes | O48: IT-BPO-25-4 - Agente en Sitio _Agente general_Hora extra dominical y festivo_En sitio_Oro_NA_NA - 500 Hora
B49: 24 | C49: IT-BPO-25-5 | D49: =+IFERROR(IF($E$18="Lote 1",VLOOKUP($C49,ServiciosLote1!$B:$U,COLUMN(D$25)-2,FALSE), IF($E$18="Lote 2",VLOOKUP($C49,ServiciosLote2!$B:$U,COLUMN(D$25)-2,FALSE),"") ),"") -> Agente en Sitio | E49: =+IFERROR(IF($E$18="Lote 1",VLOOKUP($C49,ServiciosLote1!$B:$U,COLUMN(E$25)-2,FALSE), IF($E$18="Lote 2",VLOOKUP($C49,ServiciosLote2!$B:$U,COLUMN(E$25)-2,FALSE),"") ),"") -> Agente general | F49: =+IFERROR(IF($E$18="Lote 1",VLOOKUP($C49,ServiciosLote1!$B:$U,COLUMN(F$25)-2,FALSE), IF($E$18="Lote 2",VLOOKUP($C49,ServiciosLote2!$B:$U,COLUMN(F$25)-2,FALSE),"") ),"") -> Servicio 7x24 | G49: =+IFERROR(IF($E$18="Lote 1",VLOOKUP($C49,ServiciosLote1!$B:$U,COLUMN(G$25)-2,FALSE), IF($E$18="Lote 2",VLOOKUP($C49,ServiciosLote2!$B:$U,COLUMN(G$25)-2,FALSE),"") ),"") -> En sitio | H49: =+IFERROR(IF($E$18="Lote 1",VLOOKUP($C49,ServiciosLote1!$B:$U,COLUMN(H$25)-2,FALSE), IF($E$18="Lote 2",VLOOKUP($C49,ServiciosLote2!$B:$U,COLUMN(H$25)-2,FALSE),"") ),"") -> Oro | I49: =+IFERROR(IF($E$18="Lote 1",VLOOKUP($C49,ServiciosLote1!$B:$U,COLUMN(I$25)-2,FALSE), IF($E$18="Lote 2",VLOOKUP($C49,ServiciosLote2!$B:$U,COLUMN(I$25)-2,FALSE),"") ),"") -> NA | J49: =+IFERROR(IF($E$18="Lote 1",VLOOKUP($C49,ServiciosLote1!$B:$U,COLUMN(J$25)-2,FALSE), IF($E$18="Lote 2",VLOOKUP($C49,ServiciosLote2!$B:$U,COLUMN(J$25)-2,FALSE),"") ),"") -> NA | K49: 1 | L49: =+IFERROR(IF($E$18="Lote 1",VLOOKUP($C49,ServiciosLote1!$B:$U,9,FALSE), IF($E$18="Lote 2",VLOOKUP($C49,ServiciosLote2!$B:$U,9,FALSE),"") ),"") -> Mes 7x24 | M49: 28 | N49: Mes | O49: IT-BPO-25-5 - Agente en Sitio _Agente general_Servicio 7x24_En sitio_Oro_NA_NA - 1 Mes 7x24
B50: 25 | C50: IT-BPO-25-11 | D50: =+IFERROR(IF($E$18="Lote 1",VLOOKUP($C50,ServiciosLote1!$B:$U,COLUMN(D$25)-2,FALSE), IF($E$18="Lote 2",VLOOKUP($C50,ServiciosLote2!$B:$U,COLUMN(D$25)-2,FALSE),"") ),"") -> Agente en Sitio | E50: =+IFERROR(IF($E$18="Lote 1",VLOOKUP($C50,ServiciosLote1!$B:$U,COLUMN(E$25)-2,FALSE), IF($E$18="Lote 2",VLOOKUP($C50,ServiciosLote2!$B:$U,COLUMN(E$25)-2,FALSE),"") ),"") -> Agente técnico | F50: =+IFERROR(IF($E$18="Lote 1",VLOOKUP($C50,ServiciosLote1!$B:$U,COLUMN(F$25)-2,FALSE), IF($E$18="Lote 2",VLOOKUP($C50,ServiciosLote2!$B:$U,COLUMN(F$25)-2,FALSE),"") ),"") -> Jornada Ordinaria | G50: =+IFERROR(IF($E$18="Lote 1",VLOOKUP($C50,ServiciosLote1!$B:$U,COLUMN(G$25)-2,FALSE), IF($E$18="Lote 2",VLOOKUP($C50,ServiciosLote2!$B:$U,COLUMN(G$25)-2,FALSE),"") ),"") -> En sitio | H50: =+IFERROR(IF($E$18="Lote 1",VLOOKUP($C50,ServiciosLote1!$B:$U,COLUMN(H$25)-2,FALSE), IF($E$18="Lote 2",VLOOKUP($C50,ServiciosLote2!$B:$U,COLUMN(H$25)-2,FALSE),"") ),"") -> Oro | I50: =+IFERROR(IF($E$18="Lote 1",VLOOKUP($C50,ServiciosLote1!$B:$U,COLUMN(I$25)-2,FALSE), IF($E$18="Lote 2",VLOOKUP($C50,ServiciosLote2!$B:$U,COLUMN(I$25)-2,FALSE),"") ),"") -> NA | J50: =+IFERROR(IF($E$18="Lote 1",VLOOKUP($C50,ServiciosLote1!$B:$U,COLUMN(J$25)-2,FALSE), IF($E$18="Lote 2",VLOOKUP($C50,ServiciosLote2!$B:$U,COLUMN(J$25)-2,FALSE),"") ),"") -> NA | K50: 1 | L50: =+IFERROR(IF($E$18="Lote 1",VLOOKUP($C50,ServiciosLote1!$B:$U,9,FALSE), IF($E$18="Lote 2",VLOOKUP($C50,ServiciosLote2!$B:$U,9,FALSE),"") ),"") -> Mes | M50: 28 | N50: Mes | O50: IT-BPO-25-11 - Agente en Sitio _Agente técnico_Jornada Ordinaria_En sitio_Oro_NA_NA - 1 Mes
B51: 26 | C51: IT-BPO-25-51 | D51: =+IFERROR(IF($E$18="Lote 1",VLOOKUP($C51,ServiciosLote1!$B:$U,COLUMN(D$25)-2,FALSE), IF($E$18="Lote 2",VLOOKUP($C51,ServiciosLote2!$B:$U,COLUMN(D$25)-2,FALSE),"") ),"") -> Agente en Sitio | E51: =+IFERROR(IF($E$18="Lote 1",VLOOKUP($C51,ServiciosLote1!$B:$U,COLUMN(E$25)-2,FALSE), IF($E$18="Lote 2",VLOOKUP($C51,ServiciosLote2!$B:$U,COLUMN(E$25)-2,FALSE),"") ),"") -> Agente profesional | F51: =+IFERROR(IF($E$18="Lote 1",VLOOKUP($C51,ServiciosLote1!$B:$U,COLUMN(F$25)-2,FALSE), IF($E$18="Lote 2",VLOOKUP($C51,ServiciosLote2!$B:$U,COLUMN(F$25)-2,FALSE),"") ),"") -> Ciencias sociales, humanas y afines | G51: =+IFERROR(IF($E$18="Lote 1",VLOOKUP($C51,ServiciosLote1!$B:$U,COLUMN(G$25)-2,FALSE), IF($E$18="Lote 2",VLOOKUP($C51,ServiciosLote2!$B:$U,COLUMN(G$25)-2,FALSE),"") ),"") -> Jornada Ordinaria | H51: =+IFERROR(IF($E$18="Lote 1",VLOOKUP($C51,ServiciosLote1!$B:$U,COLUMN(H$25)-2,FALSE), IF($E$18="Lote 2",VLOOKUP($C51,ServiciosLote2!$B:$U,COLUMN(H$25)-2,FALSE),"") ),"") -> En sitio | I51: =+IFERROR(IF($E$18="Lote 1",VLOOKUP($C51,ServiciosLote1!$B:$U,COLUMN(I$25)-2,FALSE), IF($E$18="Lote 2",VLOOKUP($C51,ServiciosLote2!$B:$U,COLUMN(I$25)-2,FALSE),"") ),"") -> Oro | J51: =+IFERROR(IF($E$18="Lote 1",VLOOKUP($C51,ServiciosLote1!$B:$U,COLUMN(J$25)-2,FALSE), IF($E$18="Lote 2",VLOOKUP($C51,ServiciosLote2!$B:$U,COLUMN(J$25)-2,FALSE),"") ),"") -> NA | K51: 1 | L51: =+IFERROR(IF($E$18="Lote 1",VLOOKUP($C51,ServiciosLote1!$B:$U,9,FALSE), IF($E$18="Lote 2",VLOOKUP($C51,ServiciosLote2!$B:$U,9,FALSE),"") ),"") -> Mes | M51: 28 | N51: Mes | O51: IT-BPO-25-51 - Agente en Sitio _Agente profesional_Ciencias sociales, humanas y afines_Jornada Ordinaria_En sitio_Oro_NA - 1 Mes
B52: 27 | C52: IT-BPO-26-31 | D52: =+IFERROR(IF($E$18="Lote 1",VLOOKUP($C52,ServiciosLote1!$B:$U,COLUMN(D$25)-2,FALSE), IF($E$18="Lote 2",VLOOKUP($C52,ServiciosLote2!$B:$U,COLUMN(D$25)-2,FALSE),"") ),"") -> Agente en la Entidad Compradora o Back Office | E52: =+IFERROR(IF($E$18="Lote 1",VLOOKUP($C52,ServiciosLote1!$B:$U,COLUMN(E$25)-2,FALSE), IF($E$18="Lote 2",VLOOKUP($C52,ServiciosLote2!$B:$U,COLUMN(E$25)-2,FALSE),"") ),"") -> Agente técnico | F52: =+IFERROR(IF($E$18="Lote 1",VLOOKUP($C52,ServiciosLote1!$B:$U,COLUMN(F$25)-2,FALSE), IF($E$18="Lote 2",VLOOKUP($C52,ServiciosLote2!$B:$U,COLUMN(F$25)-2,FALSE),"") ),"") -> Jornada Ordinaria | G52: =+IFERROR(IF($E$18="Lote 1",VLOOKUP($C52,ServiciosLote1!$B:$U,COLUMN(G$25)-2,FALSE), IF($E$18="Lote 2",VLOOKUP($C52,ServiciosLote2!$B:$U,COLUMN(G$25)-2,FALSE),"") ),"") -> Oro | H52: =+IFERROR(IF($E$18="Lote 1",VLOOKUP($C52,ServiciosLote1!$B:$U,COLUMN(H$25)-2,FALSE), IF($E$18="Lote 2",VLOOKUP($C52,ServiciosLote2!$B:$U,COLUMN(H$25)-2,FALSE),"") ),"") -> Zona 1 | I52: =+IFERROR(IF($E$18="Lote 1",VLOOKUP($C52,ServiciosLote1!$B:$U,COLUMN(I$25)-2,FALSE), IF($E$18="Lote 2",VLOOKUP($C52,ServiciosLote2!$B:$U,COLUMN(I$25)-2,FALSE),"") ),"") -> NA | J52: =+IFERROR(IF($E$18="Lote 1",VLOOKUP($C52,ServiciosLote1!$B:$U,COLUMN(J$25)-2,FALSE), IF($E$18="Lote 2",VLOOKUP($C52,ServiciosLote2!$B:$U,COLUMN(J$25)-2,FALSE),"") ),"") -> NA | K52: 2 | L52: =+IFERROR(IF($E$18="Lote 1",VLOOKUP($C52,ServiciosLote1!$B:$U,9,FALSE), IF($E$18="Lote 2",VLOOKUP($C52,ServiciosLote2!$B:$U,9,FALSE),"") ),"") -> Mes | M52: 28 | N52: Mes | O52: IT-BPO-26-31 - Agente en la Entidad Compradora o Back Office_Agente técnico_Jornada Ordinaria_Oro_Zona 1_NA_NA - 2 Mes
B53: 28 | C53: IT-BPO-26-61 | D53: =+IFERROR(IF($E$18="Lote 1",VLOOKUP($C53,ServiciosLote1!$B:$U,COLUMN(D$25)-2,FALSE), IF($E$18="Lote 2",VLOOKUP($C53,ServiciosLote2!$B:$U,COLUMN(D$25)-2,FALSE),"") ),"") -> Agente en la Entidad Compradora o Back Office | E53: =+IFERROR(IF($E$18="Lote 1",VLOOKUP($C53,ServiciosLote1!$B:$U,COLUMN(E$25)-2,FALSE), IF($E$18="Lote 2",VLOOKUP($C53,ServiciosLote2!$B:$U,COLUMN(E$25)-2,FALSE),"") ),"") -> Agente profesional | F53: =+IFERROR(IF($E$18="Lote 1",VLOOKUP($C53,ServiciosLote1!$B:$U,COLUMN(F$25)-2,FALSE), IF($E$18="Lote 2",VLOOKUP($C53,ServiciosLote2!$B:$U,COLUMN(F$25)-2,FALSE),"") ),"") -> Economía, administración, contaduría y afines | G53: =+IFERROR(IF($E$18="Lote 1",VLOOKUP($C53,ServiciosLote1!$B:$U,COLUMN(G$25)-2,FALSE), IF($E$18="Lote 2",VLOOKUP($C53,ServiciosLote2!$B:$U,COLUMN(G$25)-2,FALSE),"") ),"") -> Jornada Ordinaria | H53: =+IFERROR(IF($E$18="Lote 1",VLOOKUP($C53,ServiciosLote1!$B:$U,COLUMN(H$25)-2,FALSE), IF($E$18="Lote 2",VLOOKUP($C53,ServiciosLote2!$B:$U,COLUMN(H$25)-2,FALSE),"") ),"") -> Oro | I53: =+IFERROR(IF($E$18="Lote 1",VLOOKUP($C53,ServiciosLote1!$B:$U,COLUMN(I$25)-2,FALSE), IF($E$18="Lote 2",VLOOKUP($C53,ServiciosLote2!$B:$U,COLUMN(I$25)-2,FALSE),"") ),"") -> Zona 1 | J53: =+IFERROR(IF($E$18="Lote 1",VLOOKUP($C53,ServiciosLote1!$B:$U,COLUMN(J$25)-2,FALSE), IF($E$18="Lote 2",VLOOKUP($C53,ServiciosLote2!$B:$U,COLUMN(J$25)-2,FALSE),"") ),"") -> NA | K53: 2 | L53: =+IFERROR(IF($E$18="Lote 1",VLOOKUP($C53,ServiciosLote1!$B:$U,9,FALSE), IF($E$18="Lote 2",VLOOKUP($C53,ServiciosLote2!$B:$U,9,FALSE),"") ),"") -> Mes | M53: 28 | N53: Mes | O53: IT-BPO-26-61 - Agente en la Entidad Compradora o Back Office_Agente profesional_Economía, administración, contaduría y afines_Jornada Ordinaria_Oro_Zona 1_NA - 2 Mes
B54: 29 | C54: IT-BPO-29-41 | D54: =+IFERROR(IF($E$18="Lote 1",VLOOKUP($C54,ServiciosLote1!$B:$U,COLUMN(D$25)-2,FALSE), IF($E$18="Lote 2",VLOOKUP($C54,ServiciosLote2!$B:$U,COLUMN(D$25)-2,FALSE),"") ),"") -> Agente con dominio en lenguaje de señas colombiana (Videollamada) | E54: =+IFERROR(IF($E$18="Lote 1",VLOOKUP($C54,ServiciosLote1!$B:$U,COLUMN(E$25)-2,FALSE), IF($E$18="Lote 2",VLOOKUP($C54,ServiciosLote2!$B:$U,COLUMN(E$25)-2,FALSE),"") ),"") -> Agente técnico | F54: =+IFERROR(IF($E$18="Lote 1",VLOOKUP($C54,ServiciosLote1!$B:$U,COLUMN(F$25)-2,FALSE), IF($E$18="Lote 2",VLOOKUP($C54,ServiciosLote2!$B:$U,COLUMN(F$25)-2,FALSE),"") ),"") -> En Sitio | G54: =+IFERROR(IF($E$18="Lote 1",VLOOKUP($C54,ServiciosLote1!$B:$U,COLUMN(G$25)-2,FALSE), IF($E$18="Lote 2",VLOOKUP($C54,ServiciosLote2!$B:$U,COLUMN(G$25)-2,FALSE),"") ),"") -> Jornada Ordinaria | H54: =+IFERROR(IF($E$18="Lote 1",VLOOKUP($C54,ServiciosLote1!$B:$U,COLUMN(H$25)-2,FALSE), IF($E$18="Lote 2",VLOOKUP($C54,ServiciosLote2!$B:$U,COLUMN(H$25)-2,FALSE),"") ),"") -> Oro | I54: =+IFERROR(IF($E$18="Lote 1",VLOOKUP($C54,ServiciosLote1!$B:$U,COLUMN(I$25)-2,FALSE), IF($E$18="Lote 2",VLOOKUP($C54,ServiciosLote2!$B:$U,COLUMN(I$25)-2,FALSE),"") ),"") -> NA | J54: =+IFERROR(IF($E$18="Lote 1",VLOOKUP($C54,ServiciosLote1!$B:$U,COLUMN(J$25)-2,FALSE), IF($E$18="Lote 2",VLOOKUP($C54,ServiciosLote2!$B:$U,COLUMN(J$25)-2,FALSE),"") ),"") -> NA | K54: 1 | L54: =+IFERROR(IF($E$18="Lote 1",VLOOKUP($C54,ServiciosLote1!$B:$U,9,FALSE), IF($E$18="Lote 2",VLOOKUP($C54,ServiciosLote2!$B:$U,9,FALSE),"") ),"") -> Mes | M54: 28 | N54: Mes | O54: IT-BPO-29-41 - Agente con dominio en lenguaje de señas colombiana (Videollamada)_Agente técnico_En Sitio_Jornada Ordinaria_Oro_NA_NA - 1 Mes
B55: 30 | C55: IT-BPO-33-1 | D55: =+IFERROR(IF($E$18="Lote 1",VLOOKUP($C55,ServiciosLote1!$B:$U,COLUMN(D$25)-2,FALSE), IF($E$18="Lote 2",VLOOKUP($C55,ServiciosLote2!$B:$U,COLUMN(D$25)-2,FALSE),"") ),"") -> Agente Minero de Datos | E55: =+IFERROR(IF($E$18="Lote 1",VLOOKUP($C55,ServiciosLote1!$B:$U,COLUMN(E$25)-2,FALSE), IF($E$18="Lote 2",VLOOKUP($C55,ServiciosLote2!$B:$U,COLUMN(E$25)-2,FALSE),"") ),"") -> Agente profesional | F55: =+IFERROR(IF($E$18="Lote 1",VLOOKUP($C55,ServiciosLote1!$B:$U,COLUMN(F$25)-2,FALSE), IF($E$18="Lote 2",VLOOKUP($C55,ServiciosLote2!$B:$U,COLUMN(F$25)-2,FALSE),"") ),"") -> Jornada Ordinaria | G55: =+IFERROR(IF($E$18="Lote 1",VLOOKUP($C55,ServiciosLote1!$B:$U,COLUMN(G$25)-2,FALSE), IF($E$18="Lote 2",VLOOKUP($C55,ServiciosLote2!$B:$U,COLUMN(G$25)-2,FALSE),"") ),"") -> NA | H55: =+IFERROR(IF($E$18="Lote 1",VLOOKUP($C55,ServiciosLote1!$B:$U,COLUMN(H$25)-2,FALSE), IF($E$18="Lote 2",VLOOKUP($C55,ServiciosLote2!$B:$U,COLUMN(H$25)-2,FALSE),"") ),"") -> NA | I55: =+IFERROR(IF($E$18="Lote 1",VLOOKUP($C55,ServiciosLote1!$B:$U,COLUMN(I$25)-2,FALSE), IF($E$18="Lote 2",VLOOKUP($C55,ServiciosLote2!$B:$U,COLUMN(I$25)-2,FALSE),"") ),"") -> NA | J55: =+IFERROR(IF($E$18="Lote 1",VLOOKUP($C55,ServiciosLote1!$B:$U,COLUMN(J$25)-2,FALSE), IF($E$18="Lote 2",VLOOKUP($C55,ServiciosLote2!$B:$U,COLUMN(J$25)-2,FALSE),"") ),"") -> NA | K55: 2 | L55: =+IFERROR(IF($E$18="Lote 1",VLOOKUP($C55,ServiciosLote1!$B:$U,9,FALSE), IF($E$18="Lote 2",VLOOKUP($C55,ServiciosLote2!$B:$U,9,FALSE),"") ),"") -> Mes | M55: 28 | N55: Mes | O55: IT-BPO-33-1 - Agente Minero de Datos_Agente profesional_Jornada Ordinaria _NA_NA_NA_NA - 2 Mes
B56: 31 | C56: IT-BPO-35-1 | D56: =+IFERROR(IF($E$18="Lote 1",VLOOKUP($C56,ServiciosLote1!$B:$U,COLUMN(D$25)-2,FALSE), IF($E$18="Lote 2",VLOOKUP($C56,ServiciosLote2!$B:$U,COLUMN(D$25)-2,FALSE),"") ),"") -> Coordinador Nacional | E56: =+IFERROR(IF($E$18="Lote 1",VLOOKUP($C56,ServiciosLote1!$B:$U,COLUMN(E$25)-2,FALSE), IF($E$18="Lote 2",VLOOKUP($C56,ServiciosLote2!$B:$U,COLUMN(E$25)-2,FALSE),"") ),"") -> Jornada Ordinaria | F56: =+IFERROR(IF($E$18="Lote 1",VLOOKUP($C56,ServiciosLote1!$B:$U,COLUMN(F$25)-2,FALSE), IF($E$18="Lote 2",VLOOKUP($C56,ServiciosLote2!$B:$U,COLUMN(F$25)-2,FALSE),"") ),"") -> Zona 1 | G56: =+IFERROR(IF($E$18="Lote 1",VLOOKUP($C56,ServiciosLote1!$B:$U,COLUMN(G$25)-2,FALSE), IF($E$18="Lote 2",VLOOKUP($C56,ServiciosLote2!$B:$U,COLUMN(G$25)-2,FALSE),"") ),"") -> Con herramienta | H56: =+IFERROR(IF($E$18="Lote 1",VLOOKUP($C56,ServiciosLote1!$B:$U,COLUMN(H$25)-2,FALSE), IF($E$18="Lote 2",VLOOKUP($C56,ServiciosLote2!$B:$U,COLUMN(H$25)-2,FALSE),"") ),"") -> NA | I56: =+IFERROR(IF($E$18="Lote 1",VLOOKUP($C56,ServiciosLote1!$B:$U,COLUMN(I$25)-2,FALSE), IF($E$18="Lote 2",VLOOKUP($C56,ServiciosLote2!$B:$U,COLUMN(I$25)-2,FALSE),"") ),"") -> NA | J56: =+IFERROR(IF($E$18="Lote 1",VLOOKUP($C56,ServiciosLote1!$B:$U,COLUMN(J$25)-2,FALSE), IF($E$18="Lote 2",VLOOKUP($C56,ServiciosLote2!$B:$U,COLUMN(J$25)-2,FALSE),"") ),"") -> NA | K56: 1 | L56: =+IFERROR(IF($E$18="Lote 1",VLOOKUP($C56,ServiciosLote1!$B:$U,9,FALSE), IF($E$18="Lote 2",VLOOKUP($C56,ServiciosLote2!$B:$U,9,FALSE),"") ),"") -> Mes | M56: 28 | N56: Mes | O56: IT-BPO-35-1 - Coordinador Nacional_Jornada Ordinaria_Zona 1_Con herramienta_NA_NA_NA - 1 Mes
B57: 32 | C57: IT-BPO-37-8 | D57: =+IFERROR(IF($E$18="Lote 1",VLOOKUP($C57,ServiciosLote1!$B:$U,COLUMN(D$25)-2,FALSE), IF($E$18="Lote 2",VLOOKUP($C57,ServiciosLote2!$B:$U,COLUMN(D$25)-2,FALSE),"") ),"") -> Supervisor Servicios BPO | E57: =+IFERROR(IF($E$18="Lote 1",VLOOKUP($C57,ServiciosLote1!$B:$U,COLUMN(E$25)-2,FALSE), IF($E$18="Lote 2",VLOOKUP($C57,ServiciosLote2!$B:$U,COLUMN(E$25)-2,FALSE),"") ),"") -> Jornada Ordinaria | F57: =+IFERROR(IF($E$18="Lote 1",VLOOKUP($C57,ServiciosLote1!$B:$U,COLUMN(F$25)-2,FALSE), IF($E$18="Lote 2",VLOOKUP($C57,ServiciosLote2!$B:$U,COLUMN(F$25)-2,FALSE),"") ),"") -> Detallada | G57: =+IFERROR(IF($E$18="Lote 1",VLOOKUP($C57,ServiciosLote1!$B:$U,COLUMN(G$25)-2,FALSE), IF($E$18="Lote 2",VLOOKUP($C57,ServiciosLote2!$B:$U,COLUMN(G$25)-2,FALSE),"") ),"") -> Con herramienta | H57: =+IFERROR(IF($E$18="Lote 1",VLOOKUP($C57,ServiciosLote1!$B:$U,COLUMN(H$25)-2,FALSE), IF($E$18="Lote 2",VLOOKUP($C57,ServiciosLote2!$B:$U,COLUMN(H$25)-2,FALSE),"") ),"") -> NA | I57: =+IFERROR(IF($E$18="Lote 1",VLOOKUP($C57,ServiciosLote1!$B:$U,COLUMN(I$25)-2,FALSE), IF($E$18="Lote 2",VLOOKUP($C57,ServiciosLote2!$B:$U,COLUMN(I$25)-2,FALSE),"") ),"") -> NA | J57: =+IFERROR(IF($E$18="Lote 1",VLOOKUP($C57,ServiciosLote1!$B:$U,COLUMN(J$25)-2,FALSE), IF($E$18="Lote 2",VLOOKUP($C57,ServiciosLote2!$B:$U,COLUMN(J$25)-2,FALSE),"") ),"") -> NA | K57: 4 | L57: =+IFERROR(IF($E$18="Lote 1",VLOOKUP($C57,ServiciosLote1!$B:$U,9,FALSE), IF($E$18="Lote 2",VLOOKUP($C57,ServiciosLote2!$B:$U,9,FALSE),"") ),"") -> Mes | M57: 3 | N57: Mes | O57: IT-BPO-37-8 - Supervisor Servicios BPO_Jornada Ordinaria_Detallada_Con herramienta_NA_NA_NA - 4 Mes
B58: 33 | C58: IT-BPO-37-8 | D58: =+IFERROR(IF($E$18="Lote 1",VLOOKUP($C58,ServiciosLote1!$B:$U,COLUMN(D$25)-2,FALSE), IF($E$18="Lote 2",VLOOKUP($C58,ServiciosLote2!$B:$U,COLUMN(D$25)-2,FALSE),"") ),"") -> Supervisor Servicios BPO | E58: =+IFERROR(IF($E$18="Lote 1",VLOOKUP($C58,ServiciosLote1!$B:$U,COLUMN(E$25)-2,FALSE), IF($E$18="Lote 2",VLOOKUP($C58,ServiciosLote2!$B:$U,COLUMN(E$25)-2,FALSE),"") ),"") -> Jornada Ordinaria | F58: =+IFERROR(IF($E$18="Lote 1",VLOOKUP($C58,ServiciosLote1!$B:$U,COLUMN(F$25)-2,FALSE), IF($E$18="Lote 2",VLOOKUP($C58,ServiciosLote2!$B:$U,COLUMN(F$25)-2,FALSE),"") ),"") -> Detallada | G58: =+IFERROR(IF($E$18="Lote 1",VLOOKUP($C58,ServiciosLote1!$B:$U,COLUMN(G$25)-2,FALSE), IF($E$18="Lote 2",VLOOKUP($C58,ServiciosLote2!$B:$U,COLUMN(G$25)-2,FALSE),"") ),"") -> Con herramienta | H58: =+IFERROR(IF($E$18="Lote 1",VLOOKUP($C58,ServiciosLote1!$B:$U,COLUMN(H$25)-2,FALSE), IF($E$18="Lote 2",VLOOKUP($C58,ServiciosLote2!$B:$U,COLUMN(H$25)-2,FALSE),"") ),"") -> NA | I58: =+IFERROR(IF($E$18="Lote 1",VLOOKUP($C58,ServiciosLote1!$B:$U,COLUMN(I$25)-2,FALSE), IF($E$18="Lote 2",VLOOKUP($C58,ServiciosLote2!$B:$U,COLUMN(I$25)-2,FALSE),"") ),"") -> NA | J58: =+IFERROR(IF($E$18="Lote 1",VLOOKUP($C58,ServiciosLote1!$B:$U,COLUMN(J$25)-2,FALSE), IF($E$18="Lote 2",VLOOKUP($C58,ServiciosLote2!$B:$U,COLUMN(J$25)-2,FALSE),"") ),"") -> NA | K58: 3 | L58: =+IFERROR(IF($E$18="Lote 1",VLOOKUP($C58,ServiciosLote1!$B:$U,9,FALSE), IF($E$18="Lote 2",VLOOKUP($C58,ServiciosLote2!$B:$U,9,FALSE),"") ),"") -> Mes | M58: 4 | N58: Mes | O58: =C58&" - "&D58&"_"&E58&"_"&F58&"_"&G58&"_"&H58&"_"&I58&"_"&J58&" - "&K58&" "&L58 -> IT-BPO-37-8 - Supervisor Servicios BPO_Jornada Ordinaria_Detallada_Con herramienta_NA_NA_NA - 3 Mes
B59: 34 | C59: IT-BPO-37-8 | D59: =+IFERROR(IF($E$18="Lote 1",VLOOKUP($C59,ServiciosLote1!$B:$U,COLUMN(D$25)-2,FALSE), IF($E$18="Lote 2",VLOOKUP($C59,ServiciosLote2!$B:$U,COLUMN(D$25)-2,FALSE),"") ),"") -> Supervisor Servicios BPO | E59: =+IFERROR(IF($E$18="Lote 1",VLOOKUP($C59,ServiciosLote1!$B:$U,COLUMN(E$25)-2,FALSE), IF($E$18="Lote 2",VLOOKUP($C59,ServiciosLote2!$B:$U,COLUMN(E$25)-2,FALSE),"") ),"") -> Jornada Ordinaria | F59: =+IFERROR(IF($E$18="Lote 1",VLOOKUP($C59,ServiciosLote1!$B:$U,COLUMN(F$25)-2,FALSE), IF($E$18="Lote 2",VLOOKUP($C59,ServiciosLote2!$B:$U,COLUMN(F$25)-2,FALSE),"") ),"") -> Detallada | G59: =+IFERROR(IF($E$18="Lote 1",VLOOKUP($C59,ServiciosLote1!$B:$U,COLUMN(G$25)-2,FALSE), IF($E$18="Lote 2",VLOOKUP($C59,ServiciosLote2!$B:$U,COLUMN(G$25)-2,FALSE),"") ),"") -> Con herramienta | H59: =+IFERROR(IF($E$18="Lote 1",VLOOKUP($C59,ServiciosLote1!$B:$U,COLUMN(H$25)-2,FALSE), IF($E$18="Lote 2",VLOOKUP($C59,ServiciosLote2!$B:$U,COLUMN(H$25)-2,FALSE),"") ),"") -> NA | I59: =+IFERROR(IF($E$18="Lote 1",VLOOKUP($C59,ServiciosLote1!$B:$U,COLUMN(I$25)-2,FALSE), IF($E$18="Lote 2",VLOOKUP($C59,ServiciosLote2!$B:$U,COLUMN(I$25)-2,FALSE),"") ),"") -> NA | J59: =+IFERROR(IF($E$18="Lote 1",VLOOKUP($C59,ServiciosLote1!$B:$U,COLUMN(J$25)-2,FALSE), IF($E$18="Lote 2",VLOOKUP($C59,ServiciosLote2!$B:$U,COLUMN(J$25)-2,FALSE),"") ),"") -> NA | K59: 2 | L59: =+IFERROR(IF($E$18="Lote 1",VLOOKUP($C59,ServiciosLote1!$B:$U,9,FALSE), IF($E$18="Lote 2",VLOOKUP($C59,ServiciosLote2!$B:$U,9,FALSE),"") ),"") -> Mes | M59: 21 | N59: Mes | O59: IT-BPO-37-8 - Supervisor Servicios BPO_Jornada Ordinaria_Detallada_Con herramienta_NA_NA_NA - 2 Mes
B60: 35 | C60: IT-BPO-38-1 | D60: =+IFERROR(IF($E$18="Lote 1",VLOOKUP($C60,ServiciosLote1!$B:$U,COLUMN(D$25)-2,FALSE), IF($E$18="Lote 2",VLOOKUP($C60,ServiciosLote2!$B:$U,COLUMN(D$25)-2,FALSE),"") ),"") -> Líder de calidad | E60: =+IFERROR(IF($E$18="Lote 1",VLOOKUP($C60,ServiciosLote1!$B:$U,COLUMN(E$25)-2,FALSE), IF($E$18="Lote 2",VLOOKUP($C60,ServiciosLote2!$B:$U,COLUMN(E$25)-2,FALSE),"") ),"") -> Jornada Ordinaria | F60: =+IFERROR(IF($E$18="Lote 1",VLOOKUP($C60,ServiciosLote1!$B:$U,COLUMN(F$25)-2,FALSE), IF($E$18="Lote 2",VLOOKUP($C60,ServiciosLote2!$B:$U,COLUMN(F$25)-2,FALSE),"") ),"") -> Detallada | G60: =+IFERROR(IF($E$18="Lote 1",VLOOKUP($C60,ServiciosLote1!$B:$U,COLUMN(G$25)-2,FALSE), IF($E$18="Lote 2",VLOOKUP($C60,ServiciosLote2!$B:$U,COLUMN(G$25)-2,FALSE),"") ),"") -> Con herramienta | H60: =+IFERROR(IF($E$18="Lote 1",VLOOKUP($C60,ServiciosLote1!$B:$U,COLUMN(H$25)-2,FALSE), IF($E$18="Lote 2",VLOOKUP($C60,ServiciosLote2!$B:$U,COLUMN(H$25)-2,FALSE),"") ),"") -> NA | I60: =+IFERROR(IF($E$18="Lote 1",VLOOKUP($C60,ServiciosLote1!$B:$U,COLUMN(I$25)-2,FALSE), IF($E$18="Lote 2",VLOOKUP($C60,ServiciosLote2!$B:$U,COLUMN(I$25)-2,FALSE),"") ),"") -> NA | J60: =+IFERROR(IF($E$18="Lote 1",VLOOKUP($C60,ServiciosLote1!$B:$U,COLUMN(J$25)-2,FALSE), IF($E$18="Lote 2",VLOOKUP($C60,ServiciosLote2!$B:$U,COLUMN(J$25)-2,FALSE),"") ),"") -> NA | K60: 4 | L60: =+IFERROR(IF($E$18="Lote 1",VLOOKUP($C60,ServiciosLote1!$B:$U,9,FALSE), IF($E$18="Lote 2",VLOOKUP($C60,ServiciosLote2!$B:$U,9,FALSE),"") ),"") -> Mes | M60: 3 | N60: Mes | O60: IT-BPO-38-1 - Líder de calidad_Jornada Ordinaria_Detallada_Con herramienta_NA_NA_NA - 4 Mes
B61: 36 | C61: IT-BPO-38-1 | D61: =+IFERROR(IF($E$18="Lote 1",VLOOKUP($C61,ServiciosLote1!$B:$U,COLUMN(D$25)-2,FALSE), IF($E$18="Lote 2",VLOOKUP($C61,ServiciosLote2!$B:$U,COLUMN(D$25)-2,FALSE),"") ),"") -> Líder de calidad | E61: =+IFERROR(IF($E$18="Lote 1",VLOOKUP($C61,ServiciosLote1!$B:$U,COLUMN(E$25)-2,FALSE), IF($E$18="Lote 2",VLOOKUP($C61,ServiciosLote2!$B:$U,COLUMN(E$25)-2,FALSE),"") ),"") -> Jornada Ordinaria | F61: =+IFERROR(IF($E$18="Lote 1",VLOOKUP($C61,ServiciosLote1!$B:$U,COLUMN(F$25)-2,FALSE), IF($E$18="Lote 2",VLOOKUP($C61,ServiciosLote2!$B:$U,COLUMN(F$25)-2,FALSE),"") ),"") -> Detallada | G61: =+IFERROR(IF($E$18="Lote 1",VLOOKUP($C61,ServiciosLote1!$B:$U,COLUMN(G$25)-2,FALSE), IF($E$18="Lote 2",VLOOKUP($C61,ServiciosLote2!$B:$U,COLUMN(G$25)-2,FALSE),"") ),"") -> Con herramienta | H61: =+IFERROR(IF($E$18="Lote 1",VLOOKUP($C61,ServiciosLote1!$B:$U,COLUMN(H$25)-2,FALSE), IF($E$18="Lote 2",VLOOKUP($C61,ServiciosLote2!$B:$U,COLUMN(H$25)-2,FALSE),"") ),"") -> NA | I61: =+IFERROR(IF($E$18="Lote 1",VLOOKUP($C61,ServiciosLote1!$B:$U,COLUMN(I$25)-2,FALSE), IF($E$18="Lote 2",VLOOKUP($C61,ServiciosLote2!$B:$U,COLUMN(I$25)-2,FALSE),"") ),"") -> NA | J61: =+IFERROR(IF($E$18="Lote 1",VLOOKUP($C61,ServiciosLote1!$B:$U,COLUMN(J$25)-2,FALSE), IF($E$18="Lote 2",VLOOKUP($C61,ServiciosLote2!$B:$U,COLUMN(J$25)-2,FALSE),"") ),"") -> NA | K61: 3 | L61: =+IFERROR(IF($E$18="Lote 1",VLOOKUP($C61,ServiciosLote1!$B:$U,9,FALSE), IF($E$18="Lote 2",VLOOKUP($C61,ServiciosLote2!$B:$U,9,FALSE),"") ),"") -> Mes | M61: 4 | N61: Mes | O61: IT-BPO-38-1 - Líder de calidad_Jornada Ordinaria_Detallada_Con herramienta_NA_NA_NA - 3 Mes
B62: 37 | C62: IT-BPO-38-1 | D62: =+IFERROR(IF($E$18="Lote 1",VLOOKUP($C62,ServiciosLote1!$B:$U,COLUMN(D$25)-2,FALSE), IF($E$18="Lote 2",VLOOKUP($C62,ServiciosLote2!$B:$U,COLUMN(D$25)-2,FALSE),"") ),"") -> Líder de calidad | E62: =+IFERROR(IF($E$18="Lote 1",VLOOKUP($C62,ServiciosLote1!$B:$U,COLUMN(E$25)-2,FALSE), IF($E$18="Lote 2",VLOOKUP($C62,ServiciosLote2!$B:$U,COLUMN(E$25)-2,FALSE),"") ),"") -> Jornada Ordinaria | F62: =+IFERROR(IF($E$18="Lote 1",VLOOKUP($C62,ServiciosLote1!$B:$U,COLUMN(F$25)-2,FALSE), IF($E$18="Lote 2",VLOOKUP($C62,ServiciosLote2!$B:$U,COLUMN(F$25)-2,FALSE),"") ),"") -> Detallada | G62: =+IFERROR(IF($E$18="Lote 1",VLOOKUP($C62,ServiciosLote1!$B:$U,COLUMN(G$25)-2,FALSE), IF($E$18="Lote 2",VLOOKUP($C62,ServiciosLote2!$B:$U,COLUMN(G$25)-2,FALSE),"") ),"") -> Con herramienta | H62: =+IFERROR(IF($E$18="Lote 1",VLOOKUP($C62,ServiciosLote1!$B:$U,COLUMN(H$25)-2,FALSE), IF($E$18="Lote 2",VLOOKUP($C62,ServiciosLote2!$B:$U,COLUMN(H$25)-2,FALSE),"") ),"") -> NA | I62: =+IFERROR(IF($E$18="Lote 1",VLOOKUP($C62,ServiciosLote1!$B:$U,COLUMN(I$25)-2,FALSE), IF($E$18="Lote 2",VLOOKUP($C62,ServiciosLote2!$B:$U,COLUMN(I$25)-2,FALSE),"") ),"") -> NA | J62: =+IFERROR(IF($E$18="Lote 1",VLOOKUP($C62,ServiciosLote1!$B:$U,COLUMN(J$25)-2,FALSE), IF($E$18="Lote 2",VLOOKUP($C62,ServiciosLote2!$B:$U,COLUMN(J$25)-2,FALSE),"") ),"") -> NA | K62: 2 | L62: =+IFERROR(IF($E$18="Lote 1",VLOOKUP($C62,ServiciosLote1!$B:$U,9,FALSE), IF($E$18="Lote 2",VLOOKUP($C62,ServiciosLote2!$B:$U,9,FALSE),"") ),"") -> Mes | M62: 21 | N62: Mes | O62: IT-BPO-38-1 - Líder de calidad_Jornada Ordinaria_Detallada_Con herramienta_NA_NA_NA - 2 Mes
B63: 38 | C63: IT-BPO-39-1 | D63: =+IFERROR(IF($E$18="Lote 1",VLOOKUP($C63,ServiciosLote1!$B:$U,COLUMN(D$25)-2,FALSE), IF($E$18="Lote 2",VLOOKUP($C63,ServiciosLote2!$B:$U,COLUMN(D$25)-2,FALSE),"") ),"") -> Formador | E63: =+IFERROR(IF($E$18="Lote 1",VLOOKUP($C63,ServiciosLote1!$B:$U,COLUMN(E$25)-2,FALSE), IF($E$18="Lote 2",VLOOKUP($C63,ServiciosLote2!$B:$U,COLUMN(E$25)-2,FALSE),"") ),"") -> Jornada Ordinaria | F63: =+IFERROR(IF($E$18="Lote 1",VLOOKUP($C63,ServiciosLote1!$B:$U,COLUMN(F$25)-2,FALSE), IF($E$18="Lote 2",VLOOKUP($C63,ServiciosLote2!$B:$U,COLUMN(F$25)-2,FALSE),"") ),"") -> NA | G63: =+IFERROR(IF($E$18="Lote 1",VLOOKUP($C63,ServiciosLote1!$B:$U,COLUMN(G$25)-2,FALSE), IF($E$18="Lote 2",VLOOKUP($C63,ServiciosLote2!$B:$U,COLUMN(G$25)-2,FALSE),"") ),"") -> NA | H63: =+IFERROR(IF($E$18="Lote 1",VLOOKUP($C63,ServiciosLote1!$B:$U,COLUMN(H$25)-2,FALSE), IF($E$18="Lote 2",VLOOKUP($C63,ServiciosLote2!$B:$U,COLUMN(H$25)-2,FALSE),"") ),"") -> NA | I63: =+IFERROR(IF($E$18="Lote 1",VLOOKUP($C63,ServiciosLote1!$B:$U,COLUMN(I$25)-2,FALSE), IF($E$18="Lote 2",VLOOKUP($C63,ServiciosLote2!$B:$U,COLUMN(I$25)-2,FALSE),"") ),"") -> NA | J63: =+IFERROR(IF($E$18="Lote 1",VLOOKUP($C63,ServiciosLote1!$B:$U,COLUMN(J$25)-2,FALSE), IF($E$18="Lote 2",VLOOKUP($C63,ServiciosLote2!$B:$U,COLUMN(J$25)-2,FALSE),"") ),"") -> NA | K63: 3 | L63: =+IFERROR(IF($E$18="Lote 1",VLOOKUP($C63,ServiciosLote1!$B:$U,9,FALSE), IF($E$18="Lote 2",VLOOKUP($C63,ServiciosLote2!$B:$U,9,FALSE),"") ),"") -> Mes | M63: 3 | N63: Mes | O63: IT-BPO-39-1 - Formador_Jornada Ordinaria_NA_NA_NA_NA_NA - 3 Mes
B64: 39 | C64: IT-BPO-39-1 | D64: =+IFERROR(IF($E$18="Lote 1",VLOOKUP($C64,ServiciosLote1!$B:$U,COLUMN(D$25)-2,FALSE), IF($E$18="Lote 2",VLOOKUP($C64,ServiciosLote2!$B:$U,COLUMN(D$25)-2,FALSE),"") ),"") -> Formador | E64: =+IFERROR(IF($E$18="Lote 1",VLOOKUP($C64,ServiciosLote1!$B:$U,COLUMN(E$25)-2,FALSE), IF($E$18="Lote 2",VLOOKUP($C64,ServiciosLote2!$B:$U,COLUMN(E$25)-2,FALSE),"") ),"") -> Jornada Ordinaria | F64: =+IFERROR(IF($E$18="Lote 1",VLOOKUP($C64,ServiciosLote1!$B:$U,COLUMN(F$25)-2,FALSE), IF($E$18="Lote 2",VLOOKUP($C64,ServiciosLote2!$B:$U,COLUMN(F$25)-2,FALSE),"") ),"") -> NA | G64: =+IFERROR(IF($E$18="Lote 1",VLOOKUP($C64,ServiciosLote1!$B:$U,COLUMN(G$25)-2,FALSE), IF($E$18="Lote 2",VLOOKUP($C64,ServiciosLote2!$B:$U,COLUMN(G$25)-2,FALSE),"") ),"") -> NA | H64: =+IFERROR(IF($E$18="Lote 1",VLOOKUP($C64,ServiciosLote1!$B:$U,COLUMN(H$25)-2,FALSE), IF($E$18="Lote 2",VLOOKUP($C64,ServiciosLote2!$B:$U,COLUMN(H$25)-2,FALSE),"") ),"") -> NA | I64: =+IFERROR(IF($E$18="Lote 1",VLOOKUP($C64,ServiciosLote1!$B:$U,COLUMN(I$25)-2,FALSE), IF($E$18="Lote 2",VLOOKUP($C64,ServiciosLote2!$B:$U,COLUMN(I$25)-2,FALSE),"") ),"") -> NA | J64: =+IFERROR(IF($E$18="Lote 1",VLOOKUP($C64,ServiciosLote1!$B:$U,COLUMN(J$25)-2,FALSE), IF($E$18="Lote 2",VLOOKUP($C64,ServiciosLote2!$B:$U,COLUMN(J$25)-2,FALSE),"") ),"") -> NA | K64: 2 | L64: =+IFERROR(IF($E$18="Lote 1",VLOOKUP($C64,ServiciosLote1!$B:$U,9,FALSE), IF($E$18="Lote 2",VLOOKUP($C64,ServiciosLote2!$B:$U,9,FALSE),"") ),"") -> Mes | M64: 25 | N64: Mes | O64: IT-BPO-39-1 - Formador_Jornada Ordinaria_NA_NA_NA_NA_NA - 2 Mes
B65: 40 | C65: IT-BPO-47-1 | D65: =+IFERROR(IF($E$18="Lote 1",VLOOKUP($C65,ServiciosLote1!$B:$U,COLUMN(D$25)-2,FALSE), IF($E$18="Lote 2",VLOOKUP($C65,ServiciosLote2!$B:$U,COLUMN(D$25)-2,FALSE),"") ),"") -> Plataforma de Centro de Contacto para Agente | E65: =+IFERROR(IF($E$18="Lote 1",VLOOKUP($C65,ServiciosLote1!$B:$U,COLUMN(E$25)-2,FALSE), IF($E$18="Lote 2",VLOOKUP($C65,ServiciosLote2!$B:$U,COLUMN(E$25)-2,FALSE),"") ),"") -> Omnicanal | F65: =+IFERROR(IF($E$18="Lote 1",VLOOKUP($C65,ServiciosLote1!$B:$U,COLUMN(F$25)-2,FALSE), IF($E$18="Lote 2",VLOOKUP($C65,ServiciosLote2!$B:$U,COLUMN(F$25)-2,FALSE),"") ),"") -> NA | G65: =+IFERROR(IF($E$18="Lote 1",VLOOKUP($C65,ServiciosLote1!$B:$U,COLUMN(G$25)-2,FALSE), IF($E$18="Lote 2",VLOOKUP($C65,ServiciosLote2!$B:$U,COLUMN(G$25)-2,FALSE),"") ),"") -> NA | H65: =+IFERROR(IF($E$18="Lote 1",VLOOKUP($C65,ServiciosLote1!$B:$U,COLUMN(H$25)-2,FALSE), IF($E$18="Lote 2",VLOOKUP($C65,ServiciosLote2!$B:$U,COLUMN(H$25)-2,FALSE),"") ),"") -> NA | I65: =+IFERROR(IF($E$18="Lote 1",VLOOKUP($C65,ServiciosLote1!$B:$U,COLUMN(I$25)-2,FALSE), IF($E$18="Lote 2",VLOOKUP($C65,ServiciosLote2!$B:$U,COLUMN(I$25)-2,FALSE),"") ),"") -> NA | J65: =+IFERROR(IF($E$18="Lote 1",VLOOKUP($C65,ServiciosLote1!$B:$U,COLUMN(J$25)-2,FALSE), IF($E$18="Lote 2",VLOOKUP($C65,ServiciosLote2!$B:$U,COLUMN(J$25)-2,FALSE),"") ),"") -> NA | K65: 72 | L65: =+IFERROR(IF($E$18="Lote 1",VLOOKUP($C65,ServiciosLote1!$B:$U,9,FALSE), IF($E$18="Lote 2",VLOOKUP($C65,ServiciosLote2!$B:$U,9,FALSE),"") ),"") -> Licencia por posición | M65: 3 | N65: Mes | O65: IT-BPO-47-1 - Plataforma de Centro de Contacto para Agente _Omnicanal_NA_NA_NA_NA_NA - 72 Licencia por posición
B66: 41 | C66: IT-BPO-47-1 | D66: =+IFERROR(IF($E$18="Lote 1",VLOOKUP($C66,ServiciosLote1!$B:$U,COLUMN(D$25)-2,FALSE), IF($E$18="Lote 2",VLOOKUP($C66,ServiciosLote2!$B:$U,COLUMN(D$25)-2,FALSE),"") ),"") -> Plataforma de Centro de Contacto para Agente | E66: =+IFERROR(IF($E$18="Lote 1",VLOOKUP($C66,ServiciosLote1!$B:$U,COLUMN(E$25)-2,FALSE), IF($E$18="Lote 2",VLOOKUP($C66,ServiciosLote2!$B:$U,COLUMN(E$25)-2,FALSE),"") ),"") -> Omnicanal | F66: =+IFERROR(IF($E$18="Lote 1",VLOOKUP($C66,ServiciosLote1!$B:$U,COLUMN(F$25)-2,FALSE), IF($E$18="Lote 2",VLOOKUP($C66,ServiciosLote2!$B:$U,COLUMN(F$25)-2,FALSE),"") ),"") -> NA | G66: =+IFERROR(IF($E$18="Lote 1",VLOOKUP($C66,ServiciosLote1!$B:$U,COLUMN(G$25)-2,FALSE), IF($E$18="Lote 2",VLOOKUP($C66,ServiciosLote2!$B:$U,COLUMN(G$25)-2,FALSE),"") ),"") -> NA | H66: =+IFERROR(IF($E$18="Lote 1",VLOOKUP($C66,ServiciosLote1!$B:$U,COLUMN(H$25)-2,FALSE), IF($E$18="Lote 2",VLOOKUP($C66,ServiciosLote2!$B:$U,COLUMN(H$25)-2,FALSE),"") ),"") -> NA | I66: =+IFERROR(IF($E$18="Lote 1",VLOOKUP($C66,ServiciosLote1!$B:$U,COLUMN(I$25)-2,FALSE), IF($E$18="Lote 2",VLOOKUP($C66,ServiciosLote2!$B:$U,COLUMN(I$25)-2,FALSE),"") ),"") -> NA | J66: =+IFERROR(IF($E$18="Lote 1",VLOOKUP($C66,ServiciosLote1!$B:$U,COLUMN(J$25)-2,FALSE), IF($E$18="Lote 2",VLOOKUP($C66,ServiciosLote2!$B:$U,COLUMN(J$25)-2,FALSE),"") ),"") -> NA | K66: 56 | L66: =+IFERROR(IF($E$18="Lote 1",VLOOKUP($C66,ServiciosLote1!$B:$U,9,FALSE), IF($E$18="Lote 2",VLOOKUP($C66,ServiciosLote2!$B:$U,9,FALSE),"") ),"") -> Licencia por posición | M66: 6 | N66: Mes | O66: IT-BPO-47-1 - Plataforma de Centro de Contacto para Agente _Omnicanal_NA_NA_NA_NA_NA - 56 Licencia por posición
B67: 42 | C67: IT-BPO-47-1 | D67: =+IFERROR(IF($E$18="Lote 1",VLOOKUP($C67,ServiciosLote1!$B:$U,COLUMN(D$25)-2,FALSE), IF($E$18="Lote 2",VLOOKUP($C67,ServiciosLote2!$B:$U,COLUMN(D$25)-2,FALSE),"") ),"") -> Plataforma de Centro de Contacto para Agente | E67: =+IFERROR(IF($E$18="Lote 1",VLOOKUP($C67,ServiciosLote1!$B:$U,COLUMN(E$25)-2,FALSE), IF($E$18="Lote 2",VLOOKUP($C67,ServiciosLote2!$B:$U,COLUMN(E$25)-2,FALSE),"") ),"") -> Omnicanal | F67: =+IFERROR(IF($E$18="Lote 1",VLOOKUP($C67,ServiciosLote1!$B:$U,COLUMN(F$25)-2,FALSE), IF($E$18="Lote 2",VLOOKUP($C67,ServiciosLote2!$B:$U,COLUMN(F$25)-2,FALSE),"") ),"") -> NA | G67: =+IFERROR(IF($E$18="Lote 1",VLOOKUP($C67,ServiciosLote1!$B:$U,COLUMN(G$25)-2,FALSE), IF($E$18="Lote 2",VLOOKUP($C67,ServiciosLote2!$B:$U,COLUMN(G$25)-2,FALSE),"") ),"") -> NA | H67: =+IFERROR(IF($E$18="Lote 1",VLOOKUP($C67,ServiciosLote1!$B:$U,COLUMN(H$25)-2,FALSE), IF($E$18="Lote 2",VLOOKUP($C67,ServiciosLote2!$B:$U,COLUMN(H$25)-2,FALSE),"") ),"") -> NA | I67: =+IFERROR(IF($E$18="Lote 1",VLOOKUP($C67,ServiciosLote1!$B:$U,COLUMN(I$25)-2,FALSE), IF($E$18="Lote 2",VLOOKUP($C67,ServiciosLote2!$B:$U,COLUMN(I$25)-2,FALSE),"") ),"") -> NA | J67: =+IFERROR(IF($E$18="Lote 1",VLOOKUP($C67,ServiciosLote1!$B:$U,COLUMN(J$25)-2,FALSE), IF($E$18="Lote 2",VLOOKUP($C67,ServiciosLote2!$B:$U,COLUMN(J$25)-2,FALSE),"") ),"") -> NA | K67: 44 | L67: =+IFERROR(IF($E$18="Lote 1",VLOOKUP($C67,ServiciosLote1!$B:$U,9,FALSE), IF($E$18="Lote 2",VLOOKUP($C67,ServiciosLote2!$B:$U,9,FALSE),"") ),"") -> Licencia por posición | M67: 6 | N67: Mes | O67: IT-BPO-47-1 - Plataforma de Centro de Contacto para Agente _Omnicanal_NA_NA_NA_NA_NA - 44 Licencia por posición
B68: 43 | C68: IT-BPO-47-1 | D68: =+IFERROR(IF($E$18="Lote 1",VLOOKUP($C68,ServiciosLote1!$B:$U,COLUMN(D$25)-2,FALSE), IF($E$18="Lote 2",VLOOKUP($C68,ServiciosLote2!$B:$U,COLUMN(D$25)-2,FALSE),"") ),"") -> Plataforma de Centro de Contacto para Agente | E68: =+IFERROR(IF($E$18="Lote 1",VLOOKUP($C68,ServiciosLote1!$B:$U,COLUMN(E$25)-2,FALSE), IF($E$18="Lote 2",VLOOKUP($C68,ServiciosLote2!$B:$U,COLUMN(E$25)-2,FALSE),"") ),"") -> Omnicanal | F68: =+IFERROR(IF($E$18="Lote 1",VLOOKUP($C68,ServiciosLote1!$B:$U,COLUMN(F$25)-2,FALSE), IF($E$18="Lote 2",VLOOKUP($C68,ServiciosLote2!$B:$U,COLUMN(F$25)-2,FALSE),"") ),"") -> NA | G68: =+IFERROR(IF($E$18="Lote 1",VLOOKUP($C68,ServiciosLote1!$B:$U,COLUMN(G$25)-2,FALSE), IF($E$18="Lote 2",VLOOKUP($C68,ServiciosLote2!$B:$U,COLUMN(G$25)-2,FALSE),"") ),"") -> NA | H68: =+IFERROR(IF($E$18="Lote 1",VLOOKUP($C68,ServiciosLote1!$B:$U,COLUMN(H$25)-2,FALSE), IF($E$18="Lote 2",VLOOKUP($C68,ServiciosLote2!$B:$U,COLUMN(H$25)-2,FALSE),"") ),"") -> NA | I68: =+IFERROR(IF($E$18="Lote 1",VLOOKUP($C68,ServiciosLote1!$B:$U,COLUMN(I$25)-2,FALSE), IF($E$18="Lote 2",VLOOKUP($C68,ServiciosLote2!$B:$U,COLUMN(I$25)-2,FALSE),"") ),"") -> NA | J68: =+IFERROR(IF($E$18="Lote 1",VLOOKUP($C68,ServiciosLote1!$B:$U,COLUMN(J$25)-2,FALSE), IF($E$18="Lote 2",VLOOKUP($C68,ServiciosLote2!$B:$U,COLUMN(J$25)-2,FALSE),"") ),"") -> NA | K68: 30 | L68: =+IFERROR(IF($E$18="Lote 1",VLOOKUP($C68,ServiciosLote1!$B:$U,9,FALSE), IF($E$18="Lote 2",VLOOKUP($C68,ServiciosLote2!$B:$U,9,FALSE),"") ),"") -> Licencia por posición | M68: 13 | N68: Mes | O68: IT-BPO-47-1 - Plataforma de Centro de Contacto para Agente _Omnicanal_NA_NA_NA_NA_NA - 30 Licencia por posición
B69: 44 | C69: IT-BPO-48-1 | D69: =+IFERROR(IF($E$18="Lote 1",VLOOKUP($C69,ServiciosLote1!$B:$U,COLUMN(D$25)-2,FALSE), IF($E$18="Lote 2",VLOOKUP($C69,ServiciosLote2!$B:$U,COLUMN(D$25)-2,FALSE),"") ),"") -> Hora desarrollo | E69: =+IFERROR(IF($E$18="Lote 1",VLOOKUP($C69,ServiciosLote1!$B:$U,COLUMN(E$25)-2,FALSE), IF($E$18="Lote 2",VLOOKUP($C69,ServiciosLote2!$B:$U,COLUMN(E$25)-2,FALSE),"") ),"") -> NA | F69: =+IFERROR(IF($E$18="Lote 1",VLOOKUP($C69,ServiciosLote1!$B:$U,COLUMN(F$25)-2,FALSE), IF($E$18="Lote 2",VLOOKUP($C69,ServiciosLote2!$B:$U,COLUMN(F$25)-2,FALSE),"") ),"") -> NA | G69: =+IFERROR(IF($E$18="Lote 1",VLOOKUP($C69,ServiciosLote1!$B:$U,COLUMN(G$25)-2,FALSE), IF($E$18="Lote 2",VLOOKUP($C69,ServiciosLote2!$B:$U,COLUMN(G$25)-2,FALSE),"") ),"") -> NA | H69: =+IFERROR(IF($E$18="Lote 1",VLOOKUP($C69,ServiciosLote1!$B:$U,COLUMN(H$25)-2,FALSE), IF($E$18="Lote 2",VLOOKUP($C69,ServiciosLote2!$B:$U,COLUMN(H$25)-2,FALSE),"") ),"") -> NA | I69: =+IFERROR(IF($E$18="Lote 1",VLOOKUP($C69,ServiciosLote1!$B:$U,COLUMN(I$25)-2,FALSE), IF($E$18="Lote 2",VLOOKUP($C69,ServiciosLote2!$B:$U,COLUMN(I$25)-2,FALSE),"") ),"") -> NA | J69: =+IFERROR(IF($E$18="Lote 1",VLOOKUP($C69,ServiciosLote1!$B:$U,COLUMN(J$25)-2,FALSE), IF($E$18="Lote 2",VLOOKUP($C69,ServiciosLote2!$B:$U,COLUMN(J$25)-2,FALSE),"") ),"") -> NA | K69: 125 | L69: =+IFERROR(IF($E$18="Lote 1",VLOOKUP($C69,ServiciosLote1!$B:$U,9,FALSE), IF($E$18="Lote 2",VLOOKUP($C69,ServiciosLote2!$B:$U,9,FALSE),"") ),"") -> Hora desarrollo | M69: 28 | N69: Mes | O69: IT-BPO-48-1 - Hora desarrollo_NA_NA_NA_NA_NA_NA - 125 Hora desarrollo
B70: 45 | C70: IT-BPO-49-1 | D70: =+IFERROR(IF($E$18="Lote 1",VLOOKUP($C70,ServiciosLote1!$B:$U,COLUMN(D$25)-2,FALSE), IF($E$18="Lote 2",VLOOKUP($C70,ServiciosLote2!$B:$U,COLUMN(D$25)-2,FALSE),"") ),"") -> Puesto de trabajo en el Call Center sin Agente | E70: =+IFERROR(IF($E$18="Lote 1",VLOOKUP($C70,ServiciosLote1!$B:$U,COLUMN(E$25)-2,FALSE), IF($E$18="Lote 2",VLOOKUP($C70,ServiciosLote2!$B:$U,COLUMN(E$25)-2,FALSE),"") ),"") -> NA | F70: =+IFERROR(IF($E$18="Lote 1",VLOOKUP($C70,ServiciosLote1!$B:$U,COLUMN(F$25)-2,FALSE), IF($E$18="Lote 2",VLOOKUP($C70,ServiciosLote2!$B:$U,COLUMN(F$25)-2,FALSE),"") ),"") -> NA | G70: =+IFERROR(IF($E$18="Lote 1",VLOOKUP($C70,ServiciosLote1!$B:$U,COLUMN(G$25)-2,FALSE), IF($E$18="Lote 2",VLOOKUP($C70,ServiciosLote2!$B:$U,COLUMN(G$25)-2,FALSE),"") ),"") -> NA | H70: =+IFERROR(IF($E$18="Lote 1",VLOOKUP($C70,ServiciosLote1!$B:$U,COLUMN(H$25)-2,FALSE), IF($E$18="Lote 2",VLOOKUP($C70,ServiciosLote2!$B:$U,COLUMN(H$25)-2,FALSE),"") ),"") -> NA | I70: =+IFERROR(IF($E$18="Lote 1",VLOOKUP($C70,ServiciosLote1!$B:$U,COLUMN(I$25)-2,FALSE), IF($E$18="Lote 2",VLOOKUP($C70,ServiciosLote2!$B:$U,COLUMN(I$25)-2,FALSE),"") ),"") -> NA | J70: =+IFERROR(IF($E$18="Lote 1",VLOOKUP($C70,ServiciosLote1!$B:$U,COLUMN(J$25)-2,FALSE), IF($E$18="Lote 2",VLOOKUP($C70,ServiciosLote2!$B:$U,COLUMN(J$25)-2,FALSE),"") ),"") -> NA | K70: 1 | L70: =+IFERROR(IF($E$18="Lote 1",VLOOKUP($C70,ServiciosLote1!$B:$U,9,FALSE), IF($E$18="Lote 2",VLOOKUP($C70,ServiciosLote2!$B:$U,9,FALSE),"") ),"") -> Puesto de trabajo | M70: 28 | N70: Mes | O70: IT-BPO-49-1 - Puesto de trabajo en el Call Center sin Agente_NA_NA_NA_NA_NA_NA - 1 Puesto de trabajo
B71: 46 | C71: IT-BPO-52-1 | D71: =+IFERROR(IF($E$18="Lote 1",VLOOKUP($C71,ServiciosLote1!$B:$U,COLUMN(D$25)-2,FALSE), IF($E$18="Lote 2",VLOOKUP($C71,ServiciosLote2!$B:$U,COLUMN(D$25)-2,FALSE),"") ),"") -> Enlace Dedicado entre puntos | E71: =+IFERROR(IF($E$18="Lote 1",VLOOKUP($C71,ServiciosLote1!$B:$U,COLUMN(E$25)-2,FALSE), IF($E$18="Lote 2",VLOOKUP($C71,ServiciosLote2!$B:$U,COLUMN(E$25)-2,FALSE),"") ),"") -> 10Mbps | F71: =+IFERROR(IF($E$18="Lote 1",VLOOKUP($C71,ServiciosLote1!$B:$U,COLUMN(F$25)-2,FALSE), IF($E$18="Lote 2",VLOOKUP($C71,ServiciosLote2!$B:$U,COLUMN(F$25)-2,FALSE),"") ),"") -> Zona 1 | G71: =+IFERROR(IF($E$18="Lote 1",VLOOKUP($C71,ServiciosLote1!$B:$U,COLUMN(G$25)-2,FALSE), IF($E$18="Lote 2",VLOOKUP($C71,ServiciosLote2!$B:$U,COLUMN(G$25)-2,FALSE),"") ),"") -> NA | H71: =+IFERROR(IF($E$18="Lote 1",VLOOKUP($C71,ServiciosLote1!$B:$U,COLUMN(H$25)-2,FALSE), IF($E$18="Lote 2",VLOOKUP($C71,ServiciosLote2!$B:$U,COLUMN(H$25)-2,FALSE),"") ),"") -> NA | I71: =+IFERROR(IF($E$18="Lote 1",VLOOKUP($C71,ServiciosLote1!$B:$U,COLUMN(I$25)-2,FALSE), IF($E$18="Lote 2",VLOOKUP($C71,ServiciosLote2!$B:$U,COLUMN(I$25)-2,FALSE),"") ),"") -> NA | J71: =+IFERROR(IF($E$18="Lote 1",VLOOKUP($C71,ServiciosLote1!$B:$U,COLUMN(J$25)-2,FALSE), IF($E$18="Lote 2",VLOOKUP($C71,ServiciosLote2!$B:$U,COLUMN(J$25)-2,FALSE),"") ),"") -> NA | K71: 1 | L71: =+IFERROR(IF($E$18="Lote 1",VLOOKUP($C71,ServiciosLote1!$B:$U,9,FALSE), IF($E$18="Lote 2",VLOOKUP($C71,ServiciosLote2!$B:$U,9,FALSE),"") ),"") -> Mes | M71: 28 | N71: Mes | O71: IT-BPO-52-1 - Enlace Dedicado entre puntos _10Mbps_Zona 1_NA_NA_NA_NA - 1 Mes
B72: 47 | C72: IT-BPO-52-19 | D72: =+IFERROR(IF($E$18="Lote 1",VLOOKUP($C72,ServiciosLote1!$B:$U,COLUMN(D$25)-2,FALSE), IF($E$18="Lote 2",VLOOKUP($C72,ServiciosLote2!$B:$U,COLUMN(D$25)-2,FALSE),"") ),"") -> Enlace Dedicado a Internet | E72: =+IFERROR(IF($E$18="Lote 1",VLOOKUP($C72,ServiciosLote1!$B:$U,COLUMN(E$25)-2,FALSE), IF($E$18="Lote 2",VLOOKUP($C72,ServiciosLote2!$B:$U,COLUMN(E$25)-2,FALSE),"") ),"") -> 1Gbps | F72: =+IFERROR(IF($E$18="Lote 1",VLOOKUP($C72,ServiciosLote1!$B:$U,COLUMN(F$25)-2,FALSE), IF($E$18="Lote 2",VLOOKUP($C72,ServiciosLote2!$B:$U,COLUMN(F$25)-2,FALSE),"") ),"") -> Zona 1 | G72: =+IFERROR(IF($E$18="Lote 1",VLOOKUP($C72,ServiciosLote1!$B:$U,COLUMN(G$25)-2,FALSE), IF($E$18="Lote 2",VLOOKUP($C72,ServiciosLote2!$B:$U,COLUMN(G$25)-2,FALSE),"") ),"") -> NA | H72: =+IFERROR(IF($E$18="Lote 1",VLOOKUP($C72,ServiciosLote1!$B:$U,COLUMN(H$25)-2,FALSE), IF($E$18="Lote 2",VLOOKUP($C72,ServiciosLote2!$B:$U,COLUMN(H$25)-2,FALSE),"") ),"") -> NA | I72: =+IFERROR(IF($E$18="Lote 1",VLOOKUP($C72,ServiciosLote1!$B:$U,COLUMN(I$25)-2,FALSE), IF($E$18="Lote 2",VLOOKUP($C72,ServiciosLote2!$B:$U,COLUMN(I$25)-2,FALSE),"") ),"") -> NA | J72: =+IFERROR(IF($E$18="Lote 1",VLOOKUP($C72,ServiciosLote1!$B:$U,COLUMN(J$25)-2,FALSE), IF($E$18="Lote 2",VLOOKUP($C72,ServiciosLote2!$B:$U,COLUMN(J$25)-2,FALSE),"") ),"") -> NA | K72: 1 | L72: =+IFERROR(IF($E$18="Lote 1",VLOOKUP($C72,ServiciosLote1!$B:$U,9,FALSE), IF($E$18="Lote 2",VLOOKUP($C72,ServiciosLote2!$B:$U,9,FALSE),"") ),"") -> Mes | M72: 28 | N72: Mes | O72: IT-BPO-52-19 - Enlace Dedicado a Internet_1Gbps_Zona 1_NA_NA_NA_NA - 1 Mes
B73: 48 | C73: IT-BPO-62-43 | D73: =+IFERROR(IF($E$18="Lote 1",VLOOKUP($C73,ServiciosLote1!$B:$U,COLUMN(D$25)-2,FALSE), IF($E$18="Lote 2",VLOOKUP($C73,ServiciosLote2!$B:$U,COLUMN(D$25)-2,FALSE),"") ),"") -> Componentes complemento Puesto de Trabajo | E73: =+IFERROR(IF($E$18="Lote 1",VLOOKUP($C73,ServiciosLote1!$B:$U,COLUMN(E$25)-2,FALSE), IF($E$18="Lote 2",VLOOKUP($C73,ServiciosLote2!$B:$U,COLUMN(E$25)-2,FALSE),"") ),"") -> Licenciamiento de ofimatica | F73: =+IFERROR(IF($E$18="Lote 1",VLOOKUP($C73,ServiciosLote1!$B:$U,COLUMN(F$25)-2,FALSE), IF($E$18="Lote 2",VLOOKUP($C73,ServiciosLote2!$B:$U,COLUMN(F$25)-2,FALSE),"") ),"") -> NA | G73: =+IFERROR(IF($E$18="Lote 1",VLOOKUP($C73,ServiciosLote1!$B:$U,COLUMN(G$25)-2,FALSE), IF($E$18="Lote 2",VLOOKUP($C73,ServiciosLote2!$B:$U,COLUMN(G$25)-2,FALSE),"") ),"") -> NA | H73: =+IFERROR(IF($E$18="Lote 1",VLOOKUP($C73,ServiciosLote1!$B:$U,COLUMN(H$25)-2,FALSE), IF($E$18="Lote 2",VLOOKUP($C73,ServiciosLote2!$B:$U,COLUMN(H$25)-2,FALSE),"") ),"") -> NA | I73: =+IFERROR(IF($E$18="Lote 1",VLOOKUP($C73,ServiciosLote1!$B:$U,COLUMN(I$25)-2,FALSE), IF($E$18="Lote 2",VLOOKUP($C73,ServiciosLote2!$B:$U,COLUMN(I$25)-2,FALSE),"") ),"") -> NA | J73: =+IFERROR(IF($E$18="Lote 1",VLOOKUP($C73,ServiciosLote1!$B:$U,COLUMN(J$25)-2,FALSE), IF($E$18="Lote 2",VLOOKUP($C73,ServiciosLote2!$B:$U,COLUMN(J$25)-2,FALSE),"") ),"") -> NA | K73: 12 | L73: =+IFERROR(IF($E$18="Lote 1",VLOOKUP($C73,ServiciosLote1!$B:$U,9,FALSE), IF($E$18="Lote 2",VLOOKUP($C73,ServiciosLote2!$B:$U,9,FALSE),"") ),"") -> Licencia Mes | M73: 3 | N73: Mes | O73: IT-BPO-62-43 - Componentes complemento Puesto de Trabajo_Licenciamiento de ofimatica_NA_NA_NA_NA_NA - 12 Licencia Mes
B74: 49 | C74: IT-BPO-62-43 | D74: =+IFERROR(IF($E$18="Lote 1",VLOOKUP($C74,ServiciosLote1!$B:$U,COLUMN(D$25)-2,FALSE), IF($E$18="Lote 2",VLOOKUP($C74,ServiciosLote2!$B:$U,COLUMN(D$25)-2,FALSE),"") ),"") -> Componentes complemento Puesto de Trabajo | E74: =+IFERROR(IF($E$18="Lote 1",VLOOKUP($C74,ServiciosLote1!$B:$U,COLUMN(E$25)-2,FALSE), IF($E$18="Lote 2",VLOOKUP($C74,ServiciosLote2!$B:$U,COLUMN(E$25)-2,FALSE),"") ),"") -> Licenciamiento de ofimatica | F74: =+IFERROR(IF($E$18="Lote 1",VLOOKUP($C74,ServiciosLote1!$B:$U,COLUMN(F$25)-2,FALSE), IF($E$18="Lote 2",VLOOKUP($C74,ServiciosLote2!$B:$U,COLUMN(F$25)-2,FALSE),"") ),"") -> NA | G74: =+IFERROR(IF($E$18="Lote 1",VLOOKUP($C74,ServiciosLote1!$B:$U,COLUMN(G$25)-2,FALSE), IF($E$18="Lote 2",VLOOKUP($C74,ServiciosLote2!$B:$U,COLUMN(G$25)-2,FALSE),"") ),"") -> NA | H74: =+IFERROR(IF($E$18="Lote 1",VLOOKUP($C74,ServiciosLote1!$B:$U,COLUMN(H$25)-2,FALSE), IF($E$18="Lote 2",VLOOKUP($C74,ServiciosLote2!$B:$U,COLUMN(H$25)-2,FALSE),"") ),"") -> NA | I74: =+IFERROR(IF($E$18="Lote 1",VLOOKUP($C74,ServiciosLote1!$B:$U,COLUMN(I$25)-2,FALSE), IF($E$18="Lote 2",VLOOKUP($C74,ServiciosLote2!$B:$U,COLUMN(I$25)-2,FALSE),"") ),"") -> NA | J74: =+IFERROR(IF($E$18="Lote 1",VLOOKUP($C74,ServiciosLote1!$B:$U,COLUMN(J$25)-2,FALSE), IF($E$18="Lote 2",VLOOKUP($C74,ServiciosLote2!$B:$U,COLUMN(J$25)-2,FALSE),"") ),"") -> NA | K74: 9 | L74: =+IFERROR(IF($E$18="Lote 1",VLOOKUP($C74,ServiciosLote1!$B:$U,9,FALSE), IF($E$18="Lote 2",VLOOKUP($C74,ServiciosLote2!$B:$U,9,FALSE),"") ),"") -> Licencia Mes | M74: 4 | N74: Mes | O74: IT-BPO-62-43 - Componentes complemento Puesto de Trabajo_Licenciamiento de ofimatica_NA_NA_NA_NA_NA - 9 Licencia Mes
B75: 50 | C75: IT-BPO-62-43 | D75: =+IFERROR(IF($E$18="Lote 1",VLOOKUP($C75,ServiciosLote1!$B:$U,COLUMN(D$25)-2,FALSE), IF($E$18="Lote 2",VLOOKUP($C75,ServiciosLote2!$B:$U,COLUMN(D$25)-2,FALSE),"") ),"") -> Componentes complemento Puesto de Trabajo | E75: =+IFERROR(IF($E$18="Lote 1",VLOOKUP($C75,ServiciosLote1!$B:$U,COLUMN(E$25)-2,FALSE), IF($E$18="Lote 2",VLOOKUP($C75,ServiciosLote2!$B:$U,COLUMN(E$25)-2,FALSE),"") ),"") -> Licenciamiento de ofimatica | F75: =+IFERROR(IF($E$18="Lote 1",VLOOKUP($C75,ServiciosLote1!$B:$U,COLUMN(F$25)-2,FALSE), IF($E$18="Lote 2",VLOOKUP($C75,ServiciosLote2!$B:$U,COLUMN(F$25)-2,FALSE),"") ),"") -> NA | G75: =+IFERROR(IF($E$18="Lote 1",VLOOKUP($C75,ServiciosLote1!$B:$U,COLUMN(G$25)-2,FALSE), IF($E$18="Lote 2",VLOOKUP($C75,ServiciosLote2!$B:$U,COLUMN(G$25)-2,FALSE),"") ),"") -> NA | H75: =+IFERROR(IF($E$18="Lote 1",VLOOKUP($C75,ServiciosLote1!$B:$U,COLUMN(H$25)-2,FALSE), IF($E$18="Lote 2",VLOOKUP($C75,ServiciosLote2!$B:$U,COLUMN(H$25)-2,FALSE),"") ),"") -> NA | I75: =+IFERROR(IF($E$18="Lote 1",VLOOKUP($C75,ServiciosLote1!$B:$U,COLUMN(I$25)-2,FALSE), IF($E$18="Lote 2",VLOOKUP($C75,ServiciosLote2!$B:$U,COLUMN(I$25)-2,FALSE),"") ),"") -> NA | J75: =+IFERROR(IF($E$18="Lote 1",VLOOKUP($C75,ServiciosLote1!$B:$U,COLUMN(J$25)-2,FALSE), IF($E$18="Lote 2",VLOOKUP($C75,ServiciosLote2!$B:$U,COLUMN(J$25)-2,FALSE),"") ),"") -> NA | K75: 7 | L75: =+IFERROR(IF($E$18="Lote 1",VLOOKUP($C75,ServiciosLote1!$B:$U,9,FALSE), IF($E$18="Lote 2",VLOOKUP($C75,ServiciosLote2!$B:$U,9,FALSE),"") ),"") -> Licencia Mes | M75: 21 | N75: Mes | O75: IT-BPO-62-43 - Componentes complemento Puesto de Trabajo_Licenciamiento de ofimatica_NA_NA_NA_NA_NA - 7 Licencia Mes
B76: 51 | C76: IT-BPO-63-1 | D76: =+IFERROR(IF($E$18="Lote 1",VLOOKUP($C76,ServiciosLote1!$B:$U,COLUMN(D$25)-2,FALSE), IF($E$18="Lote 2",VLOOKUP($C76,ServiciosLote2!$B:$U,COLUMN(D$25)-2,FALSE),"") ),"") -> Licencia RPA – Robotic Process Automation | E76: =+IFERROR(IF($E$18="Lote 1",VLOOKUP($C76,ServiciosLote1!$B:$U,COLUMN(E$25)-2,FALSE), IF($E$18="Lote 2",VLOOKUP($C76,ServiciosLote2!$B:$U,COLUMN(E$25)-2,FALSE),"") ),"") -> NA | F76: =+IFERROR(IF($E$18="Lote 1",VLOOKUP($C76,ServiciosLote1!$B:$U,COLUMN(F$25)-2,FALSE), IF($E$18="Lote 2",VLOOKUP($C76,ServiciosLote2!$B:$U,COLUMN(F$25)-2,FALSE),"") ),"") -> NA | G76: =+IFERROR(IF($E$18="Lote 1",VLOOKUP($C76,ServiciosLote1!$B:$U,COLUMN(G$25)-2,FALSE), IF($E$18="Lote 2",VLOOKUP($C76,ServiciosLote2!$B:$U,COLUMN(G$25)-2,FALSE),"") ),"") -> NA | H76: =+IFERROR(IF($E$18="Lote 1",VLOOKUP($C76,ServiciosLote1!$B:$U,COLUMN(H$25)-2,FALSE), IF($E$18="Lote 2",VLOOKUP($C76,ServiciosLote2!$B:$U,COLUMN(H$25)-2,FALSE),"") ),"") -> NA | I76: =+IFERROR(IF($E$18="Lote 1",VLOOKUP($C76,ServiciosLote1!$B:$U,COLUMN(I$25)-2,FALSE), IF($E$18="Lote 2",VLOOKUP($C76,ServiciosLote2!$B:$U,COLUMN(I$25)-2,FALSE),"") ),"") -> NA | J76: =+IFERROR(IF($E$18="Lote 1",VLOOKUP($C76,ServiciosLote1!$B:$U,COLUMN(J$25)-2,FALSE), IF($E$18="Lote 2",VLOOKUP($C76,ServiciosLote2!$B:$U,COLUMN(J$25)-2,FALSE),"") ),"") -> NA | K76: 2 | L76: =+IFERROR(IF($E$18="Lote 1",VLOOKUP($C76,ServiciosLote1!$B:$U,9,FALSE), IF($E$18="Lote 2",VLOOKUP($C76,ServiciosLote2!$B:$U,9,FALSE),"") ),"") -> Licencia Mes | M76: 25 | N76: Mes | O76: IT-BPO-63-1 - Licencia RPA – Robotic Process Automation_NA_NA_NA_NA_NA_NA - 2 Licencia Mes
B77: 52 | C77: IT-BPO-67-1 | D77: =+IFERROR(IF($E$18="Lote 1",VLOOKUP($C77,ServiciosLote1!$B:$U,COLUMN(D$25)-2,FALSE), IF($E$18="Lote 2",VLOOKUP($C77,ServiciosLote2!$B:$U,COLUMN(D$25)-2,FALSE),"") ),"") -> Speech Analytics | E77: =+IFERROR(IF($E$18="Lote 1",VLOOKUP($C77,ServiciosLote1!$B:$U,COLUMN(E$25)-2,FALSE), IF($E$18="Lote 2",VLOOKUP($C77,ServiciosLote2!$B:$U,COLUMN(E$25)-2,FALSE),"") ),"") -> NA | F77: =+IFERROR(IF($E$18="Lote 1",VLOOKUP($C77,ServiciosLote1!$B:$U,COLUMN(F$25)-2,FALSE), IF($E$18="Lote 2",VLOOKUP($C77,ServiciosLote2!$B:$U,COLUMN(F$25)-2,FALSE),"") ),"") -> NA | G77: =+IFERROR(IF($E$18="Lote 1",VLOOKUP($C77,ServiciosLote1!$B:$U,COLUMN(G$25)-2,FALSE), IF($E$18="Lote 2",VLOOKUP($C77,ServiciosLote2!$B:$U,COLUMN(G$25)-2,FALSE),"") ),"") -> NA | H77: =+IFERROR(IF($E$18="Lote 1",VLOOKUP($C77,ServiciosLote1!$B:$U,COLUMN(H$25)-2,FALSE), IF($E$18="Lote 2",VLOOKUP($C77,ServiciosLote2!$B:$U,COLUMN(H$25)-2,FALSE),"") ),"") -> NA | I77: =+IFERROR(IF($E$18="Lote 1",VLOOKUP($C77,ServiciosLote1!$B:$U,COLUMN(I$25)-2,FALSE), IF($E$18="Lote 2",VLOOKUP($C77,ServiciosLote2!$B:$U,COLUMN(I$25)-2,FALSE),"") ),"") -> NA | J77: =+IFERROR(IF($E$18="Lote 1",VLOOKUP($C77,ServiciosLote1!$B:$U,COLUMN(J$25)-2,FALSE), IF($E$18="Lote 2",VLOOKUP($C77,ServiciosLote2!$B:$U,COLUMN(J$25)-2,FALSE),"") ),"") -> NA | K77: 416 | L77: =+IFERROR(IF($E$18="Lote 1",VLOOKUP($C77,ServiciosLote1!$B:$U,9,FALSE), IF($E$18="Lote 2",VLOOKUP($C77,ServiciosLote2!$B:$U,9,FALSE),"") ),"") -> Hora | M77: 28 | N77: Mes | O77: IT-BPO-67-1 - Speech Analytics_NA_NA_NA_NA_NA_NA - 416 Hora
B78: 1. Si requiere agregue o elimine filas
B81: Gravamenes adicionales*
B83: Gravamenes adicionales (estampillas)
B84: No | C84: Descripción | G84: Porcentaje
B85: 1 | C85: PROADULTO MAYOR | G85: 0.02
B86: 2 | C86: PROCULTURA | G86: 0.005
B87: 3 | C87: UNIVERSIDAD DISTRITAL FRANCISCO JOSE DE CALDAS | G87: 0.011
B88: 4 | C88: IMPUESTO AL TIMBRE | G88: 0.01
F89: Total porcentaje: | G89: =SUM(G85:G88) -> 0.046
D90: Filas a agregar o eliminar Gravamenes:
D91: 1

Sheet ANS Centro de Contacto
A1: ANS CENTRO DE CONTACTO
A2: =+SolCotizacion!$B$2 -> Servicios BPO III
A3: =+SolCotizacion!$C$3 -> Versión: 2 | B3: =+SolCotizacion!$D$3 -> 2025-02-17
A5: La Entidad Compradora puede definir hasta 5 indicadores.
A6: Escoja los ANS que quiere medir durante la ejecución de la Orden de Compra
B7: Puntualidad en tiempos de aprovisionamiento. Penaliza el tiempo que tarda el Proveedor en aprovisionar el recurso humano y los recursos tecnológicos, Servicios BPO e integración de todos los servicios definidos por zona
B8: Disponibilidad de los Servicios BPO. RTO (Tiempo para volver a operar después de un incidente – Recovery Time Objective)
B9: Nivel de servicio para atención por voz (La selección de este indicador excluye el de tiempo de atención para voz).
B10: Tiempo de atención canales: Telefónico o voz (La selección de este indicador excluye el de nivel de servicio para el canal voz).
B11: Tiempo de atención canales: Chat y Web (Web callback, clic to call)
B12: Tiempo de atención: Videollamada
B13: Tiempo de atención canales: Correo electrónico. Porcentaje antes de 5 horas hábiles: “a”
B14: Quejas sobre los servicios BPO: "QUEJA"
B15: Nivel de satisfacción de los Servicios BPO: “s”
B16: Rotación de Recurso Humano: "rotación"
B17: TMO (Tiempo Medio de Operación).
B18: Eficacia: Telefónico o Voz, Chat, Correo Electrónico, Web (Web callback, clic to call)
B19: Ocupación de Agentes en los canales de atención: Telefónico o Voz, Chat, Correo Electrónico, Web (Web callback, clic to call). Para transacciones entrantes.
B20: Ocupación de Agentes en los canales de atención: Telefónico o Voz, Chat, Correo Electrónico, Web (Web callback, clic to call). Para transacciones salientes.
B21: Precisión error crítico de usuario: “ecu”
B22: Precisión error crítico de negocio: “ecn”
B23: Auditoría efectuada por la Entidad Compradora a la medida de Precisión Error Critico de usuario: "ae"
B24: Evaluación de conocimiento Agentes: "eca."
B25: Incluir de acuerdo con la necesidad de la Entidad Compradora
B26: Incluir de acuerdo con la necesidad de la Entidad Compradora
B27: Incluir de acuerdo con la necesidad de la Entidad Compradora
B28: Incluir de acuerdo con la necesidad de la Entidad Compradora
B29: Incluir de acuerdo con la necesidad de la Entidad Compradora

Sheet Anexo Tecnico
A1: ANEXO
A2: Con el objetivo de complementar el entendimiento sobre la solicitud de Servicios de Centos de Contacto , por favor diligencie la totalidad de la información que se pide a continuación.
A4: Tenga en cuenta que esta información es de utilidad para que el Proveedor pueda cotizar de la manera más precisa posible los servicios solicitados, por lo cual la exactitud y completitud es muy importante.
A6: Entidad solicitante
A7: Nit
A8: Contacto técnico
A9: Correo contacto técnico
A10: Teléfono contacto técnico
A11: Condiciones particulares establecidas en el RFI
A14: Requerimiento adicional | B14: Descripción | C14: INFORMACION SUMINISTRADA POR LA ENTIDAD COMPRADORA
A15: Redireccionamiento a otros Centros de Contacto | B15: [Si requiere / No requiere]
A16: Imagen Institucional en el Centro de Contacto | B16: [Si requiere / No requiere] La Entidad Compradora Requiere que se disponga de la imagen institucional en las instalaciones del Centro de Contacto
A17: Area de gestión del Servicio | B17: [Si requiere / No requiere] La Entidad Compradora requiere que se disponga de una area exclusiva para la ubicación de su personal en las instalaciones del Centro de Contacto
A18: Visita técnica | B18: [Si requiere / No requiere] Se debe realizar visita técnica a la Entidad Compradora dado que los servicios adquiridos son in-house
A19: Información adicional de canales | B19: La Entidad Compradora entregar la siguiente información que amplia los flujos de entrada y salida de los diferentes canales, según la operación de los ultimos seis (6) meses
A20: Traslado de Líneas teléfonicas | B20: [Si requiere / No requiere] La Entidad Compradora indica si requiere el traslado de líneas teléfonicas , para lo cual suministra la información de las mismas
A21: TMO | B21: La Entidad Compradora indica los TMO establecidos para la prestación del servicio
A22: item | B22: Servicio a contratar | C22: Especificación
A23: =SolCotizacion!B26 -> 1 | B23: =SolCotizacion!O26 -> IT-BPO-1-1 - Troncal SIP _NA_NA_NA_NA_NA_NA - 110 Mes
A24: =SolCotizacion!B27 -> 2 | B24: =SolCotizacion!O27 -> IT-BPO-2-1 - Minuto IVR (Interactive Voice Response) - Enrutador_NA_NA_NA_NA_NA_NA - 110000 Minuto
A25: =SolCotizacion!B28 -> 3 | B25: =SolCotizacion!O28 -> IT-BPO-3-1 - Minuto IVR (Interactive Voice Response) - Audiotexto _NA_NA_NA_NA_NA_NA - 110000 Minuto
A26: =SolCotizacion!B29 -> 4 | B26: =SolCotizacion!O29 -> IT-BPO-4-1 - Minuto IVR (Interactive Voice Response) Transaccional _NA_NA_NA_NA_NA_NA - 110000 Minuto
A27: =SolCotizacion!B30 -> 5 | B27: =SolCotizacion!O30 -> IT-BPO-6-2 - Grabación anuncios IVR (Interactive Voice Response) Respuesta de Voz Interactiva _Voz sintética _NA_NA_NA_NA_NA - 2 Anuncio
A28: =SolCotizacion!B31 -> 6 | B28: =SolCotizacion!O31 -> IT-BPO-7-6 - Minutos de conexión outbound/Inbound_Outbound de fijo a celular _NA_NA_NA_NA_NA - 72000 Minuto
A29: =SolCotizacion!B32 -> 7 | B29: =SolCotizacion!O32 -> IT-BPO-8-1 - Transferencia de llamadas_NA_NA_NA_NA_NA_NA - 400 Transferencia
A30: =SolCotizacion!B33 -> 8 | B30: =SolCotizacion!O33 -> IT-BPO-11-1 - Clic to call_NA_NA_NA_NA_NA_NA - 2 Licencia Mes
A31: =SolCotizacion!B34 -> 9 | B31: =SolCotizacion!O34 -> IT-BPO-12-1 - Web Callback _NA_NA_NA_NA_NA_NA - 2 Licencia Mes
A32: =SolCotizacion!B35 -> 10 | B32: =SolCotizacion!O35 -> IT-BPO-13-1 - Mailing_NA_NA_NA_NA_NA_NA - 127000 Correo
A33: =SolCotizacion!B36 -> 11 | B33: =SolCotizacion!O36 -> IT-BPO-16-1 - Mensaje SMS (Short Message Service) _SMS en una vía_NA_NA_NA_NA_NA - 10900 Mensaje SMS
A34: =SolCotizacion!B37 -> 12 | B34: =SolCotizacion!O37 -> IT-BPO-21-1 - Chatbot Smart_NA_NA_NA_NA_NA_NA - 12200 Respuesta Chatbot Smart
A35: =SolCotizacion!B38 -> 13 | B35: =SolCotizacion!O38 -> IT-BPO-22-1 - Voicebot Smart_NA_NA_NA_NA_NA_NA - 2700000 Minuto Voicebot Smart
A36: =SolCotizacion!B39 -> 14 | B36: =SolCotizacion!O39 -> IT-BPO-23-1 - Hora desarrollo para Integraciones y canales digitales_NA_NA_NA_NA_NA_NA - 125 Hora desarrollo para Integraciones y canales digitales
A37: =SolCotizacion!B40 -> 15 | B37: =SolCotizacion!O40 -> IT-BPO-24-1 - Analytics_NA_NA_NA_NA_NA_NA - 2 Licencia Mes
A38: =SolCotizacion!B41 -> 16 | B38: =SolCotizacion!O41 -> IT-BPO-25-1 - Agente en Sitio _Agente general_Jornada Ordinaria_En sitio_Oro_NA_NA - 66 Mes
A39: =SolCotizacion!B42 -> 17 | B39: =SolCotizacion!O42 -> IT-BPO-25-1 - Agente en Sitio _Agente general_Jornada Ordinaria_En sitio_Oro_NA_NA - 51 Mes
A40: =SolCotizacion!B43 -> 18 | B40: =SolCotizacion!O43 -> IT-BPO-25-1 - Agente en Sitio _Agente general_Jornada Ordinaria_En sitio_Oro_NA_NA - 39 Mes
A41: =SolCotizacion!B44 -> 19 | B41: =SolCotizacion!O44 -> IT-BPO-25-1 - Agente en Sitio _Agente general_Jornada Ordinaria_En sitio_Oro_NA_NA - 25 Mes
A42: =SolCotizacion!B45 -> 20 | B42: =SolCotizacion!O45 -> IT-BPO-25-4 - Agente en Sitio _Agente general_Hora extra dominical y festivo_En sitio_Oro_NA_NA - 1000 Hora
A43: =SolCotizacion!B46 -> 21 | B43: =SolCotizacion!O46 -> IT-BPO-25-4 - Agente en Sitio _Agente general_Hora extra dominical y festivo_En sitio_Oro_NA_NA - 500 Hora
A44: =SolCotizacion!B47 -> 22 | B44: =SolCotizacion!O47 -> IT-BPO-25-4 - Agente en Sitio _Agente general_Hora extra dominical y festivo_En sitio_Oro_NA_NA - 500 Hora
A45: =SolCotizacion!B48 -> 23 | B45: =SolCotizacion!O48 -> IT-BPO-25-4 - Agente en Sitio _Agente general_Hora extra dominical y festivo_En sitio_Oro_NA_NA - 500 Hora
A46: =SolCotizacion!B49 -> 24 | B46: =SolCotizacion!O49 -> IT-BPO-25-5 - Agente en Sitio _Agente general_Servicio 7x24_En sitio_Oro_NA_NA - 1 Mes 7x24
A47: =SolCotizacion!B50 -> 25 | B47: =SolCotizacion!O50 -> IT-BPO-25-11 - Agente en Sitio _Agente técnico_Jornada Ordinaria_En sitio_Oro_NA_NA - 1 Mes
A48: =SolCotizacion!B51 -> 26 | B48: =SolCotizacion!O51 -> IT-BPO-25-51 - Agente en Sitio _Agente profesional_Ciencias sociales, humanas y afines_Jornada Ordinaria_En sitio_Oro_NA - 1 Mes
A49: =SolCotizacion!B52 -> 27 | B49: =SolCotizacion!O52 -> IT-BPO-26-31 - Agente en la Entidad Compradora o Back Office_Agente técnico_Jornada Ordinaria_Oro_Zona 1_NA_NA - 2 Mes
A50: =SolCotizacion!B53 -> 28 | B50: =SolCotizacion!O53 -> IT-BPO-26-61 - Agente en la Entidad Compradora o Back Office_Agente profesional_Economía, administración, contaduría y afines_Jornada Ordinaria_Oro_Zona 1_NA - 2 Mes
A51: =SolCotizacion!B54 -> 29 | B51: =SolCotizacion!O54 -> IT-BPO-29-41 - Agente con dominio en lenguaje de señas colombiana (Videollamada)_Agente técnico_En Sitio_Jornada Ordinaria_Oro_NA_NA - 1 Mes
A52: =SolCotizacion!B55 -> 30 | B52: =SolCotizacion!O55 -> IT-BPO-33-1 - Agente Minero de Datos_Agente profesional_Jornada Ordinaria _NA_NA_NA_NA - 2 Mes
A53: =SolCotizacion!B56 -> 31 | B53: =SolCotizacion!O56 -> IT-BPO-35-1 - Coordinador Nacional_Jornada Ordinaria_Zona 1_Con herramienta_NA_NA_NA - 1 Mes
A54: =SolCotizacion!B57 -> 32 | B54: =SolCotizacion!O57 -> IT-BPO-37-8 - Supervisor Servicios BPO_Jornada Ordinaria_Detallada_Con herramienta_NA_NA_NA - 4 Mes
A55: =SolCotizacion!B58 -> 33 | B55: =SolCotizacion!O58 -> IT-BPO-37-8 - Supervisor Servicios BPO_Jornada Ordinaria_Detallada_Con herramienta_NA_NA_NA - 3 Mes
A56: =SolCotizacion!B59 -> 34 | B56: =SolCotizacion!O59 -> IT-BPO-37-8 - Supervisor Servicios BPO_Jornada Ordinaria_Detallada_Con herramienta_NA_NA_NA - 2 Mes
A57: =SolCotizacion!B60 -> 35 | B57: =SolCotizacion!O60 -> IT-BPO-38-1 - Líder de calidad_Jornada Ordinaria_Detallada_Con herramienta_NA_NA_NA - 4 Mes
A58: =SolCotizacion!B61 -> 36 | B58: =SolCotizacion!O61 -> IT-BPO-38-1 - Líder de calidad_Jornada Ordinaria_Detallada_Con herramienta_NA_NA_NA - 3 Mes
A59: =SolCotizacion!B62 -> 37 | B59: =SolCotizacion!O62 -> IT-BPO-38-1 - Líder de calidad_Jornada Ordinaria_Detallada_Con herramienta_NA_NA_NA - 2 Mes
A60: =SolCotizacion!B63 -> 38 | B60: =SolCotizacion!O63 -> IT-BPO-39-1 - Formador_Jornada Ordinaria_NA_NA_NA_NA_NA - 3 Mes
A61: =SolCotizacion!B64 -> 39 | B61: =SolCotizacion!O64 -> IT-BPO-39-1 - Formador_Jornada Ordinaria_NA_NA_NA_NA_NA - 2 Mes
A62: =SolCotizacion!B65 -> 40 | B62: =SolCotizacion!O65 -> IT-BPO-47-1 - Plataforma de Centro de Contacto para Agente _Omnicanal_NA_NA_NA_NA_NA - 72 Licencia por posición
A63: =SolCotizacion!B66 -> 41 | B63: =SolCotizacion!O66 -> IT-BPO-47-1 - Plataforma de Centro de Contacto para Agente _Omnicanal_NA_NA_NA_NA_NA - 56 Licencia por posición
A64: =SolCotizacion!B67 -> 42 | B64: =SolCotizacion!O67 -> IT-BPO-47-1 - Plataforma de Centro de Contacto para Agente _Omnicanal_NA_NA_NA_NA_NA - 44 Licencia por posición
A65: =SolCotizacion!B68 -> 43 | B65: =SolCotizacion!O68 -> IT-BPO-47-1 - Plataforma de Centro de Contacto para Agente _Omnicanal_NA_NA_NA_NA_NA - 30 Licencia por posición
A66: =SolCotizacion!B69 -> 44 | B66: =SolCotizacion!O69 -> IT-BPO-48-1 - Hora desarrollo_NA_NA_NA_NA_NA_NA - 125 Hora desarrollo
A67: =SolCotizacion!B70 -> 45 | B67: =SolCotizacion!O70 -> IT-BPO-49-1 - Puesto de trabajo en el Call Center sin Agente_NA_NA_NA_NA_NA_NA - 1 Puesto de trabajo
A68: =SolCotizacion!B71 -> 46 | B68: =SolCotizacion!O71 -> IT-BPO-52-1 - Enlace Dedicado entre puntos _10Mbps_Zona 1_NA_NA_NA_NA - 1 Mes
A69: =SolCotizacion!B72 -> 47 | B69: =SolCotizacion!O72 -> IT-BPO-52-19 - Enlace Dedicado a Internet_1Gbps_Zona 1_NA_NA_NA_NA - 1 Mes
A70: =SolCotizacion!B73 -> 48 | B70: =SolCotizacion!O73 -> IT-BPO-62-43 - Componentes complemento Puesto de Trabajo_Licenciamiento de ofimatica_NA_NA_NA_NA_NA - 12 Licencia Mes
A71: =SolCotizacion!B74 -> 49 | B71: =SolCotizacion!O74 -> IT-BPO-62-43 - Componentes complemento Puesto de Trabajo_Licenciamiento de ofimatica_NA_NA_NA_NA_NA - 9 Licencia Mes
A72: =SolCotizacion!B75 -> 50 | B72: =SolCotizacion!O75 -> IT-BPO-62-43 - Componentes complemento Puesto de Trabajo_Licenciamiento de ofimatica_NA_NA_NA_NA_NA - 7 Licencia Mes
A73: =SolCotizacion!B76 -> 51 | B73: =SolCotizacion!O76 -> IT-BPO-63-1 - Licencia RPA – Robotic Process Automation_NA_NA_NA_NA_NA_NA - 2 Licencia Mes
A74: =SolCotizacion!B77 -> 52 | B74: =SolCotizacion!O77 -> IT-BPO-67-1 - Speech Analytics_NA_NA_NA_NA_NA_NA - 416 Hora

Sheet ResumenCotizacion
B1: RESUMEN DE COTIZACIÓN
B2: =+SolCotizacion!B2 -> Servicios BPO III
C3: =+SolCotizacion!$C$3 -> Versión: 2 | D3: =+SolCotizacion!$D$3 -> 2025-02-17
B4: Información de la Entidad Compradora
B6: Nombre de la Entidad | E6: =SolCotizacion!E6 -> SECRETARÍA GENERAL - ALCALDÍA MAYOR DE BOGOTÁ | H6: NIT | J6: =SolCotizacion!J6 -> 899999061
B8: Dirección de la Entidad | E8: =SolCotizacion!E8 -> Cra 8 10 65 | H8: Correo de contacto | J8: =SolCotizacion!J8 -> ecusba@alcaldiabogota.gov.co
B10: Municipio | E10: =SolCotizacion!E10 -> Bogotá D.C. | H10: Teléfono de contacto | J10: =SolCotizacion!J10 -> 3813000
B12: Nombre funcionario Comprador | E12: =SolCotizacion!E12 -> ENRIQUE CUSBA GARCÍA | H12: Número RFI | J12: =+SolCotizacion!$J$12 -> 193460
B15: Resumen de Cotización
B18: Segmento | E18: =SolCotizacion!E18 -> Lote 1
B20: Cantidad de filas:
B22: =SolCotizacion!B22 -> 1
B24: Paquete de Servicios | O24: Valores
B25: Item | C25: Cod. Matriz | D25: Servicio | E25: Característica 1 | F25: Característica 2 | G25: Característica 3 | H25: Característica 4 | I25: Característica 5 | J25: Característica 6 | K25: Capacidad | L25: Unidad de Facturación | M25: Cantidad en Tiempo | N25: Unidad x Cantidad | O25: Valor Unitario | P25: Valor Unitario + Gravamenes | Q25: Valor X Capacidad | R25: Precio Total
B26: 1 | C26: IT-BPO-1-1 | D26: Troncal SIP | E26: NA | F26: NA | G26: NA | H26: NA | I26: NA | J26: NA | K26: 110 | L26: Mes | M26: 28 | N26: Mes | O26: =VLOOKUP(C26,temp!$B:$AC,28,0) -> 45721.54 | P26: =ROUND(O26/(1-(VLOOKUP("Total porcentaje:",$F:$G,2,0))),2) -> 47926.14 | Q26: =ROUND(P26*K26,2) -> 5271875.4 | R26: =ROUND(Q26*M26,2) -> 147612511.2 | S26: =B26&" - "&C26&"-"&D26&"_"&E26&"_"&F26&"_"&G26&"_"&H26&"_"&I26&"_"&J26&" - "&K26&" "&L26 -> 1 - IT-BPO-1-1-Troncal SIP _NA_NA_NA_NA_NA_NA - 110 Mes
B27: 2 | C27: IT-BPO-2-1 | D27: Minuto IVR (Interactive Voice Response) - Enrutador | E27: NA | F27: NA | G27: NA | H27: NA | I27: NA | J27: NA | K27: 110000 | L27: Minuto | M27: 4 | N27: Mes | O27: =VLOOKUP(C27,temp!$B:$AC,28,0) -> 45.86 | P27: =ROUND(O27/(1-(VLOOKUP("Total porcentaje:",$F:$G,2,0))),2) -> 48.07 | Q27: =ROUND(P27*K27,2) -> 5287700 | R27: =ROUND(Q27*M27,2) -> 21150800 | S27: =B27&" - "&C27&"-"&D27&"_"&E27&"_"&F27&"_"&G27&"_"&H27&"_"&I27&"_"&J27&" - "&K27&" "&L27 -> 2 - IT-BPO-2-1-Minuto IVR (Interactive Voice Response) - Enrutador_NA_NA_NA_NA_NA_NA - 110000 Minuto
B28: 3 | C28: IT-BPO-3-1 | D28: Minuto IVR (Interactive Voice Response) - Audiotexto | E28: NA | F28: NA | G28: NA | H28: NA | I28: NA | J28: NA | K28: 110000 | L28: Minuto | M28: 24 | N28: Mes | O28: =VLOOKUP(C28,temp!$B:$AC,28,0) -> 45.86 | P28: 48.07 | Q28: 5287700 | R28: 126904800 | S28: 3 - IT-BPO-3-1-Minuto IVR (Interactive Voice Response) - Audiotexto _NA_NA_NA_NA_NA_NA - 110000 Minuto
B29: 4 | C29: IT-BPO-4-1 | D29: Minuto IVR (Interactive Voice Response) Transaccional | E29: NA | F29: NA | G29: NA | H29: NA | I29: NA | J29: NA | K29: 110000 | L29: Minuto | M29: 12 | N29: Mes | O29: =VLOOKUP(C29,temp!$B:$AC,28,0) -> 112.46 | P29: 117.88 | Q29: 12966800 | R29: 155601600 | S29: 4 - IT-BPO-4-1-Minuto IVR (Interactive Voice Response) Transaccional _NA_NA_NA_NA_NA_NA - 110000 Minuto
B30: 5 | C30: IT-BPO-6-2 | D30: Grabación anuncios IVR (Interactive Voice Response) Respuesta de Voz Interactiva | E30: Voz sintética | F30: NA | G30: NA | H30: NA | I30: NA | J30: NA | K30: 2 | L30: Anuncio | M30: 28 | N30: Mes | O30: =VLOOKUP(C30,temp!$B:$AC,28,0) -> 40461.54 | P30: 42412.52 | Q30: 84825.04 | R30: 2375101.12 | S30: 5 - IT-BPO-6-2-Grabación anuncios IVR (Interactive Voice Response) Respuesta de Voz Interactiva _Voz sintética _NA_NA_NA_NA_NA - 2 Anuncio
B31: 6 | C31: IT-BPO-7-6 | D31: Minutos de conexión outbound/Inbound | E31: Outbound de fijo a celular | F31: NA | G31: NA | H31: NA | I31: NA | J31: NA | K31: 72000 | L31: Minuto | M31: 28 | N31: Mes | O31: =VLOOKUP(C31,temp!$B:$AC,28,0) -> 49.9 | P31: 52.31 | Q31: 3766320 | R31: 105456960 | S31: 6 - IT-BPO-7-6-Minutos de conexión outbound/Inbound_Outbound de fijo a celular _NA_NA_NA_NA_NA - 72000 Minuto
B32: 7 | C32: IT-BPO-8-1 | D32: Transferencia de llamadas | E32: NA | F32: NA | G32: NA | H32: NA | I32: NA | J32: NA | K32: 400 | L32: Transferencia | M32: 28 | N32: Mes | O32: =VLOOKUP(C32,temp!$B:$AC,28,0) -> 26.97 | P32: 28.27 | Q32: 11308 | R32: 316624 | S32: 7 - IT-BPO-8-1-Transferencia de llamadas_NA_NA_NA_NA_NA_NA - 400 Transferencia
B33: 8 | C33: IT-BPO-11-1 | D33: Clic to call | E33: NA | F33: NA | G33: NA | H33: NA | I33: NA | J33: NA | K33: 2 | L33: Licencia Mes | M33: 28 | N33: Mes | O33: =VLOOKUP(C33,temp!$B:$AC,28,0) -> 124956.02 | P33: 130981.15 | Q33: 261962.3 | R33: 7334944.4 | S33: 8 - IT-BPO-11-1-Clic to call_NA_NA_NA_NA_NA_NA - 2 Licencia Mes
B34: 9 | C34: IT-BPO-12-1 | D34: Web Callback | E34: NA | F34: NA | G34: NA | H34: NA | I34: NA | J34: NA | K34: 2 | L34: Licencia Mes | M34: 28 | N34: Mes | O34: =VLOOKUP(C34,temp!$B:$AC,28,0) -> 124956.02 | P34: 130981.15 | Q34: 261962.3 | R34: 7334944.4 | S34: 9 - IT-BPO-12-1-Web Callback _NA_NA_NA_NA_NA_NA - 2 Licencia Mes
B35: 10 | C35: IT-BPO-13-1 | D35: Mailing | E35: NA | F35: NA | G35: NA | H35: NA | I35: NA | J35: NA | K35: 127000 | L35: Correo | M35: 28 | N35: Mes | O35: =VLOOKUP(C35,temp!$B:$AC,28,0) -> 1.62 | P35: 1.7 | Q35: 215900 | R35: 6045200 | S35: 10 - IT-BPO-13-1-Mailing_NA_NA_NA_NA_NA_NA - 127000 Correo
B36: 11 | C36: IT-BPO-16-1 | D36: Mensaje SMS (Short Message Service) | E36: SMS en una vía | F36: NA | G36: NA | H36: NA | I36: NA | J36: NA | K36: 10900 | L36: Mensaje SMS | M36: 28 | N36: Mes | O36: =VLOOKUP(C36,temp!$B:$AC,28,0) -> 5.39 | P36: 5.65 | Q36: 61585 | R36: 1724380 | S36: 11 - IT-BPO-16-1-Mensaje SMS (Short Message Service) _SMS en una vía_NA_NA_NA_NA_NA - 10900 Mensaje SMS
B37: 12 | C37: IT-BPO-21-1 | D37: Chatbot Smart | E37: NA | F37: NA | G37: NA | H37: NA | I37: NA | J37: NA | K37: 12200 | L37: Respuesta Chatbot Smart | M37: 25 | N37: Mes | O37: =VLOOKUP(C37,temp!$B:$AC,28,0) -> 62.48 | P37: 65.49 | Q37: 798978 | R37: 19974450 | S37: 12 - IT-BPO-21-1-Chatbot Smart_NA_NA_NA_NA_NA_NA - 12200 Respuesta Chatbot Smart
B38: 13 | C38: IT-BPO-22-1 | D38: Voicebot Smart | E38: NA | F38: NA | G38: NA | H38: NA | I38: NA | J38: NA | K38: 2700000 | L38: Minuto Voicebot Smart | M38: 25 | N38: Mes | O38: =VLOOKUP(C38,temp!$B:$AC,28,0) -> 46.22 | P38: 48.45 | Q38: 130815000 | R38: 3270375000 | S38: 13 - IT-BPO-22-1-Voicebot Smart_NA_NA_NA_NA_NA_NA - 2700000 Minuto Voicebot Smart
B39: 14 | C39: IT-BPO-23-1 | D39: Hora desarrollo para Integraciones y canales digitales | E39: NA | F39: NA | G39: NA | H39: NA | I39: NA | J39: NA | K39: 125 | L39: Hora desarrollo para Integraciones y canales digitales | M39: 28 | N39: Mes | O39: =VLOOKUP(C39,temp!$B:$AC,28,0) -> 87666.67 | P39: 91893.78 | Q39: 11486722.5 | R39: 321628230 | S39: 14 - IT-BPO-23-1-Hora desarrollo para Integraciones y canales digitales_NA_NA_NA_NA_NA_NA - 125 Hora desarrollo para Integraciones y canales digitales
B40: 15 | C40: IT-BPO-24-1 | D40: Analytics | E40: NA | F40: NA | G40: NA | H40: NA | I40: NA | J40: NA | K40: 2 | L40: Licencia Mes | M40: 28 | N40: Mes | O40: =VLOOKUP(C40,temp!$B:$AC,28,0) -> 124956.02 | P40: 130981.15 | Q40: 261962.3 | R40: 7334944.4 | S40: 15 - IT-BPO-24-1-Analytics_NA_NA_NA_NA_NA_NA - 2 Licencia Mes
B41: 16 | C41: IT-BPO-25-1 | D41: Agente en Sitio | E41: Agente general | F41: Jornada Ordinaria | G41: En sitio | H41: Oro | I41: NA | J41: NA | K41: 66 | L41: Mes | M41: 3 | N41: Mes | O41: =VLOOKUP(C41,temp!$B:$AC,28,0) -> 4965358.74 | P41: 5204778.55 | Q41: 343515384.3 | R41: 1030546153 | S41: 16 - IT-BPO-25-1-Agente en Sitio _Agente general_Jornada Ordinaria_En sitio_Oro_NA_NA - 66 Mes
B42: 17 | C42: IT-BPO-25-1 | D42: Agente en Sitio | E42: Agente general | F42: Jornada Ordinaria | G42: En sitio | H42: Oro | I42: NA | J42: NA | K42: 51 | L42: Mes | M42: 6 | N42: Mes | O42: =VLOOKUP(C42,temp!$B:$AC,28,0) -> 4965358.74 | P42: 5204778.55 | Q42: 265443706.1 | R42: 1592662236 | S42: 17 - IT-BPO-25-1-Agente en Sitio _Agente general_Jornada Ordinaria_En sitio_Oro_NA_NA - 51 Mes
B43: 18 | C43: IT-BPO-25-1 | D43: Agente en Sitio | E43: Agente general | F43: Jornada Ordinaria | G43: En sitio | H43: Oro | I43: NA | J43: NA | K43: 39 | L43: Mes | M43: 6 | N43: Mes | O43: =VLOOKUP(C43,temp!$B:$AC,28,0) -> 4965358.74 | P43: 5204778.55 | Q43: 202986363.4 | R43: 1217918181 | S43: 18 - IT-BPO-25-1-Agente en Sitio _Agente general_Jornada Ordinaria_En sitio_Oro_NA_NA - 39 Mes
B44: 19 | C44: IT-BPO-25-1 | D44: Agente en Sitio | E44: Agente general | F44: Jornada Ordinaria | G44: En sitio | H44: Oro | I44: NA | J44: NA | K44: 25 | L44: Mes | M44: 13 | N44: Mes | O44: =VLOOKUP(C44,temp!$B:$AC,28,0) -> 4965358.74 | P44: 5204778.55 | Q44: 130119463.8 | R44: 1691553029 | S44: 19 - IT-BPO-25-1-Agente en Sitio _Agente general_Jornada Ordinaria_En sitio_Oro_NA_NA - 25 Mes
B45: 20 | C45: IT-BPO-25-4 | D45: Agente en Sitio | E45: Agente general | F45: Hora extra dominical y festivo | G45: En sitio | H45: Oro | I45: NA | J45: NA | K45: 1000 | L45: Hora | M45: 3 | N45: Mes | O45: =VLOOKUP(C45,temp!$B:$AC,28,0) -> 36250.81 | P45: 37998.75 | Q45: 37998750 | R45: 113996250 | S45: 20 - IT-BPO-25-4-Agente en Sitio _Agente general_Hora extra dominical y festivo_En sitio_Oro_NA_NA - 1000 Hora
B46: 21 | C46: IT-BPO-25-4 | D46: Agente en Sitio | E46: Agente general | F46: Hora extra dominical y festivo | G46: En sitio | H46: Oro | I46: NA | J46: NA | K46: 500 | L46: Hora | M46: 6 | N46: Mes | O46: =VLOOKUP(C46,temp!$B:$AC,28,0) -> 36250.81 | P46: 37998.75 | Q46: 18999375 | R46: 113996250 | S46: 21 - IT-BPO-25-4-Agente en Sitio _Agente general_Hora extra dominical y festivo_En sitio_Oro_NA_NA - 500 Hora
B47: 22 | C47: IT-BPO-25-4 | D47: Agente en Sitio | E47: Agente general | F47: Hora extra dominical y festivo | G47: En sitio | H47: Oro | I47: NA | J47: NA | K47: 500 | L47: Hora | M47: 6 | N47: Mes | O47: =VLOOKUP(C47,temp!$B:$AC,28,0) -> 36250.81 | P47: 37998.75 | Q47: 18999375 | R47: 113996250 | S47: 22 - IT-BPO-25-4-Agente en Sitio _Agente general_Hora extra dominical y festivo_En sitio_Oro_NA_NA - 500 Hora
B48: 23 | C48: IT-BPO-25-4 | D48: Agente en Sitio | E48: Agente general | F48: Hora extra dominical y festivo | G48: En sitio | H48: Oro | I48: NA | J48: NA | K48: 500 | L48: Hora | M48: 13 | N48: Mes | O48: =VLOOKUP(C48,temp!$B:$AC,28,0) -> 36250.81 | P48: 37998.75 | Q48: 18999375 | R48: 246991875 | S48: 23 - IT-BPO-25-4-Agente en Sitio _Agente general_Hora extra dominical y festivo_En sitio_Oro_NA_NA - 500 Hora
B49: 24 | C49: IT-BPO-25-5 | D49: Agente en Sitio | E49: Agente general | F49: Servicio 7x24 | G49: En sitio | H49: Oro | I49: NA | J49: NA | K49: 1 | L49: Mes 7x24 | M49: 28 | N49: Mes | O49: =VLOOKUP(C49,temp!$B:$AC,28,0) -> 20023632.82 | P49: 20989132.94 | Q49: 20989132.94 | R49: 587695722.3 | S49: 24 - IT-BPO-25-5-Agente en Sitio _Agente general_Servicio 7x24_En sitio_Oro_NA_NA - 1 Mes 7x24
B50: 25 | C50: IT-BPO-25-11 | D50: Agente en Sitio | E50: Agente técnico | F50: Jornada Ordinaria | G50: En sitio | H50: Oro | I50: NA | J50: NA | K50: 1 | L50: Mes | M50: 28 | N50: Mes | O50: =VLOOKUP(C50,temp!$B:$AC,28,0) -> 6258051.08 | P50: 6559801.97 | Q50: 6559801.97 | R50: 183674455.2 | S50: 25 - IT-BPO-25-11-Agente en Sitio _Agente técnico_Jornada Ordinaria_En sitio_Oro_NA_NA - 1 Mes
B51: 26 | C51: IT-BPO-25-51 | D51: Agente en Sitio | E51: Agente profesional | F51: Ciencias sociales, humanas y afines | G51: Jornada Ordinaria | H51: En sitio | I51: Oro | J51: NA | K51: 1 | L51: Mes | M51: 28 | N51: Mes | O51: =VLOOKUP(C51,temp!$B:$AC,28,0) -> 11580912.97 | P51: 12139321.77 | Q51: 12139321.77 | R51: 339901009.6 | S51: 26 - IT-BPO-25-51-Agente en Sitio _Agente profesional_Ciencias sociales, humanas y afines_Jornada Ordinaria_En sitio_Oro_NA - 1 Mes
B52: 27 | C52: IT-BPO-26-31 | D52: Agente en la Entidad Compradora o Back Office | E52: Agente técnico | F52: Jornada Ordinaria | G52: Oro | H52: Zona 1 | I52: NA | J52: NA | K52: 2 | L52: Mes | M52: 28 | N52: Mes | O52: =VLOOKUP(C52,temp!$B:$AC,28,0) -> 5322861.89 | P52: 5579519.8 | Q52: 11159039.6 | R52: 312453108.8 | S52: 27 - IT-BPO-26-31-Agente en la Entidad Compradora o Back Office_Agente técnico_Jornada Ordinaria_Oro_Zona 1_NA_NA - 2 Mes
B53: 28 | C53: IT-BPO-26-61 | D53: Agente en la Entidad Compradora o Back Office | E53: Agente profesional | F53: Economía, administración, contaduría y afines | G53: Jornada Ordinaria | H53: Oro | I53: Zona 1 | J53: NA | K53: 2 | L53: Mes | M53: 28 | N53: Mes | O53: =VLOOKUP(C53,temp!$B:$AC,28,0) -> 10645723.78 | P53: 11159039.6 | Q53: 22318079.2 | R53: 624906217.6 | S53: 28 - IT-BPO-26-61-Agente en la Entidad Compradora o Back Office_Agente profesional_Economía, administración, contaduría y afines_Jornada Ordinaria_Oro_Zona 1_NA - 2 Mes
B54: 29 | C54: IT-BPO-29-41 | D54: Agente con dominio en lenguaje de señas colombiana (Videollamada) | E54: Agente técnico | F54: En Sitio | G54: Jornada Ordinaria | H54: Oro | I54: NA | J54: NA | K54: 1 | L54: Mes | M54: 28 | N54: Mes | O54: =VLOOKUP(C54,temp!$B:$AC,28,0) -> 6790337.27 | P54: 7117753.95 | Q54: 7117753.95 | R54: 199297110.6 | S54: 29 - IT-BPO-29-41-Agente con dominio en lenguaje de señas colombiana (Videollamada)_Agente técnico_En Sitio_Jornada Ordinaria_Oro_NA_NA - 1 Mes
B55: 30 | C55: IT-BPO-33-1 | D55: Agente Minero de Datos | E55: Agente profesional | F55: Jornada Ordinaria | G55: NA | H55: NA | I55: NA | J55: NA | K55: 2 | L55: Mes | M55: 28 | N55: Mes | O55: =VLOOKUP(C55,temp!$B:$AC,28,0) -> 10823291.35 | P55: 11345169.13 | Q55: 22690338.26 | R55: 635329471.3 | S55: 30 - IT-BPO-33-1-Agente Minero de Datos_Agente profesional_Jornada Ordinaria _NA_NA_NA_NA - 2 Mes
B56: 31 | C56: IT-BPO-35-1 | D56: Coordinador Nacional | E56: Jornada Ordinaria | F56: Zona 1 | G56: Con herramienta | H56: NA | I56: NA | J56: NA | K56: 1 | L56: Mes | M56: 28 | N56: Mes | O56: =VLOOKUP(C56,temp!$B:$AC,28,0) -> 18090148.32 | P56: 18962419.62 | Q56: 18962419.62 | R56: 530947749.4 | S56: 31 - IT-BPO-35-1-Coordinador Nacional_Jornada Ordinaria_Zona 1_Con herramienta_NA_NA_NA - 1 Mes
B57: 32 | C57: IT-BPO-37-8 | D57: Supervisor Servicios BPO | E57: Jornada Ordinaria | F57: Detallada | G57: Con herramienta | H57: NA | I57: NA | J57: NA | K57: 4 | L57: Mes | M57: 3 | N57: Mes | O57: =VLOOKUP(C57,temp!$B:$AC,28,0) -> 10241908.79 | P57: 10735753.45 | Q57: 42943013.8 | R57: 128829041.4 | S57: 32 - IT-BPO-37-8-Supervisor Servicios BPO_Jornada Ordinaria_Detallada_Con herramienta_NA_NA_NA - 4 Mes
B58: 33 | C58: IT-BPO-37-8 | D58: Supervisor Servicios BPO | E58: Jornada Ordinaria | F58: Detallada | G58: Con herramienta | H58: NA | I58: NA | J58: NA | K58: 3 | L58: Mes | M58: 4 | N58: Mes | O58: =VLOOKUP(C58,temp!$B:$AC,28,0) -> 10241908.79 | P58: 10735753.45 | Q58: 32207260.35 | R58: 128829041.4 | S58: 33 - IT-BPO-37-8-Supervisor Servicios BPO_Jornada Ordinaria_Detallada_Con herramienta_NA_NA_NA - 3 Mes
B59: 34 | C59: IT-BPO-37-8 | D59: Supervisor Servicios BPO | E59: Jornada Ordinaria | F59: Detallada | G59: Con herramienta | H59: NA | I59: NA | J59: NA | K59: 2 | L59: Mes | M59: 21 | N59: Mes | O59: =VLOOKUP(C59,temp!$B:$AC,28,0) -> 10241908.79 | P59: 10735753.45 | Q59: 21471506.9 | R59: 450901644.9 | S59: 34 - IT-BPO-37-8-Supervisor Servicios BPO_Jornada Ordinaria_Detallada_Con herramienta_NA_NA_NA - 2 Mes
B60: 35 | C60: IT-BPO-38-1 | D60: Líder de calidad | E60: Jornada Ordinaria | F60: Detallada | G60: Con herramienta | H60: NA | I60: NA | J60: NA | K60: 4 | L60: Mes | M60: 3 | N60: Mes | O60: =VLOOKUP(C60,temp!$B:$AC,28,0) -> 9473765.63 | P60: 9930571.94 | Q60: 39722287.76 | R60: 119166863.3 | S60: 35 - IT-BPO-38-1-Líder de calidad_Jornada Ordinaria_Detallada_Con herramienta_NA_NA_NA - 4 Mes
B61: 36 | C61: IT-BPO-38-1 | D61: Líder de calidad | E61: Jornada Ordinaria | F61: Detallada | G61: Con herramienta | H61: NA | I61: NA | J61: NA | K61: 3 | L61: Mes | M61: 4 | N61: Mes | O61: =VLOOKUP(C61,temp!$B:$AC,28,0) -> 9473765.63 | P61: 9930571.94 | Q61: 29791715.82 | R61: 119166863.3 | S61: 36 - IT-BPO-38-1-Líder de calidad_Jornada Ordinaria_Detallada_Con herramienta_NA_NA_NA - 3 Mes
B62: 37 | C62: IT-BPO-38-1 | D62: Líder de calidad | E62: Jornada Ordinaria | F62: Detallada | G62: Con herramienta | H62: NA | I62: NA | J62: NA | K62: 2 | L62: Mes | M62: 21 | N62: Mes | O62: =VLOOKUP(C62,temp!$B:$AC,28,0) -> 9473765.63 | P62: 9930571.94 | Q62: 19861143.88 | R62: 417084021.5 | S62: 37 - IT-BPO-38-1-Líder de calidad_Jornada Ordinaria_Detallada_Con herramienta_NA_NA_NA - 2 Mes
B63: 38 | C63: IT-BPO-39-1 | D63: Formador | E63: Jornada Ordinaria | F63: NA | G63: NA | H63: NA | I63: NA | J63: NA | K63: 3 | L63: Mes | M63: 3 | N63: Mes | O63: =VLOOKUP(C63,temp!$B:$AC,28,0) -> 8242853.82 | P63: 8640307.99 | Q63: 25920923.97 | R63: 77762771.91 | S63: 38 - IT-BPO-39-1-Formador_Jornada Ordinaria_NA_NA_NA_NA_NA - 3 Mes
B64: 39 | C64: IT-BPO-39-1 | D64: Formador | E64: Jornada Ordinaria | F64: NA | G64: NA | H64: NA | I64: NA | J64: NA | K64: 2 | L64: Mes | M64: 25 | N64: Mes | O64: =VLOOKUP(C64,temp!$B:$AC,28,0) -> 8242853.82 | P64: 8640307.99 | Q64: 17280615.98 | R64: 432015399.5 | S64: 39 - IT-BPO-39-1-Formador_Jornada Ordinaria_NA_NA_NA_NA_NA - 2 Mes
B65: 40 | C65: IT-BPO-47-1 | D65: Plataforma de Centro de Contacto para Agente | E65: Omnicanal | F65: NA | G65: NA | H65: NA | I65: NA | J65: NA | K65: 72 | L65: Licencia por posición | M65: 3 | N65: Mes | O65: =VLOOKUP(C65,temp!$B:$AC,28,0) -> 213561.39 | P65: 223858.9 | Q65: 16117840.8 | R65: 48353522.4 | S65: 40 - IT-BPO-47-1-Plataforma de Centro de Contacto para Agente _Omnicanal_NA_NA_NA_NA_NA - 72 Licencia por posición
B66: 41 | C66: IT-BPO-47-1 | D66: Plataforma de Centro de Contacto para Agente | E66: Omnicanal | F66: NA | G66: NA | H66: NA | I66: NA | J66: NA | K66: 56 | L66: Licencia por posición | M66: 6 | N66: Mes | O66: =VLOOKUP(C66,temp!$B:$AC,28,0) -> 213561.39 | P66: 223858.9 | Q66: 12536098.4 | R66: 75216590.4 | S66: 41 - IT-BPO-47-1-Plataforma de Centro de Contacto para Agente _Omnicanal_NA_NA_NA_NA_NA - 56 Licencia por posición
B67: 42 | C67: IT-BPO-47-1 | D67: Plataforma de Centro de Contacto para Agente | E67: Omnicanal | F67: NA | G67: NA | H67: NA | I67: NA | J67: NA | K67: 44 | L67: Licencia por posición | M67: 6 | N67: Mes | O67: =VLOOKUP(C67,temp!$B:$AC,28,0) -> 213561.39 | P67: 223858.9 | Q67: 9849791.6 | R67: 59098749.6 | S67: 42 - IT-BPO-47-1-Plataforma de Centro de Contacto para Agente _Omnicanal_NA_NA_NA_NA_NA - 44 Licencia por posición
B68: 43 | C68: IT-BPO-47-1 | D68: Plataforma de Centro de Contacto para Agente | E68: Omnicanal | F68: NA | G68: NA | H68: NA | I68: NA | J68: NA | K68: 30 | L68: Licencia por posición | M68: 13 | N68: Mes | O68: =VLOOKUP(C68,temp!$B:$AC,28,0) -> 213561.39 | P68: 223858.9 | Q68: 6715767 | R68: 87304971 | S68: 43 - IT-BPO-47-1-Plataforma de Centro de Contacto para Agente _Omnicanal_NA_NA_NA_NA_NA - 30 Licencia por posición
B69: 44 | C69: IT-BPO-48-1 | D69: Hora desarrollo | E69: NA | F69: NA | G69: NA | H69: NA | I69: NA | J69: NA | K69: 125 | L69: Hora desarrollo | M69: 28 | N69: Mes | O69: =VLOOKUP(C69,temp!$B:$AC,28,0) -> 87666.67 | P69: 91893.78 | Q69: 11486722.5 | R69: 321628230 | S69: 44 - IT-BPO-48-1-Hora desarrollo_NA_NA_NA_NA_NA_NA - 125 Hora desarrollo
B70: 45 | C70: IT-BPO-49-1 | D70: Puesto de trabajo en el Call Center sin Agente | E70: NA | F70: NA | G70: NA | H70: NA | I70: NA | J70: NA | K70: 1 | L70: Puesto de trabajo | M70: 28 | N70: Mes | O70: =VLOOKUP(C70,temp!$B:$AC,28,0) -> 1109282 | P70: 1162769.39 | Q70: 1162769.39 | R70: 32557542.92 | S70: 45 - IT-BPO-49-1-Puesto de trabajo en el Call Center sin Agente_NA_NA_NA_NA_NA_NA - 1 Puesto de trabajo
B71: 46 | C71: IT-BPO-52-1 | D71: Enlace Dedicado entre puntos | E71: 10Mbps | F71: Zona 1 | G71: NA | H71: NA | I71: NA | J71: NA | K71: 1 | L71: Mes | M71: 28 | N71: Mes | O71: =VLOOKUP(C71,temp!$B:$AC,28,0) -> 6980297.57 | P71: 7316873.76 | Q71: 7316873.76 | R71: 204872465.3 | S71: 46 - IT-BPO-52-1-Enlace Dedicado entre puntos _10Mbps_Zona 1_NA_NA_NA_NA - 1 Mes
B72: 47 | C72: IT-BPO-52-19 | D72: Enlace Dedicado a Internet | E72: 1Gbps | F72: Zona 1 | G72: NA | H72: NA | I72: NA | J72: NA | K72: 1 | L72: Mes | M72: 28 | N72: Mes | O72: =VLOOKUP(C72,temp!$B:$AC,28,0) -> 29279061.69 | P72: 30690840.35 | Q72: 30690840.35 | R72: 859343529.8 | S72: 47 - IT-BPO-52-19-Enlace Dedicado a Internet_1Gbps_Zona 1_NA_NA_NA_NA - 1 Mes
B73: 48 | C73: IT-BPO-62-43 | D73: Componentes complemento Puesto de Trabajo | E73: Licenciamiento de ofimatica | F73: NA | G73: NA | H73: NA | I73: NA | J73: NA | K73: 12 | L73: Licencia Mes | M73: 3 | N73: Mes | O73: =VLOOKUP(C73,temp!$B:$AC,28,0) -> 69003.11 | P73: 72330.3 | Q73: 867963.6 | R73: 2603890.8 | S73: 48 - IT-BPO-62-43-Componentes complemento Puesto de Trabajo_Licenciamiento de ofimatica_NA_NA_NA_NA_NA - 12 Licencia Mes
B74: 49 | C74: IT-BPO-62-43 | D74: Componentes complemento Puesto de Trabajo | E74: Licenciamiento de ofimatica | F74: NA | G74: NA | H74: NA | I74: NA | J74: NA | K74: 9 | L74: Licencia Mes | M74: 4 | N74: Mes | O74: =VLOOKUP(C74,temp!$B:$AC,28,0) -> 69003.11 | P74: 72330.3 | Q74: 650972.7 | R74: 2603890.8 | S74: 49 - IT-BPO-62-43-Componentes complemento Puesto de Trabajo_Licenciamiento de ofimatica_NA_NA_NA_NA_NA - 9 Licencia Mes
B75: 50 | C75: IT-BPO-62-43 | D75: Componentes complemento Puesto de Trabajo | E75: Licenciamiento de ofimatica | F75: NA | G75: NA | H75: NA | I75: NA | J75: NA | K75: 7 | L75: Licencia Mes | M75: 21 | N75: Mes | O75: =VLOOKUP(C75,temp!$B:$AC,28,0) -> 69003.11 | P75: 72330.3 | Q75: 506312.1 | R75: 10632554.1 | S75: 50 - IT-BPO-62-43-Componentes complemento Puesto de Trabajo_Licenciamiento de ofimatica_NA_NA_NA_NA_NA - 7 Licencia Mes
B76: 51 | C76: IT-BPO-63-1 | D76: Licencia RPA – Robotic Process Automation | E76: NA | F76: NA | G76: NA | H76: NA | I76: NA | J76: NA | K76: 2 | L76: Licencia Mes | M76: 25 | N76: Mes | O76: =VLOOKUP(C76,temp!$B:$AC,28,0) -> 268655.44 | P76: 281609.48 | Q76: 563218.96 | R76: 14080474 | S76: 51 - IT-BPO-63-1-Licencia RPA – Robotic Process Automation_NA_NA_NA_NA_NA_NA - 2 Licencia Mes
B77: 52 | C77: IT-BPO-67-1 | D77: Speech Analytics | E77: NA | F77: NA | G77: NA | H77: NA | I77: NA | J77: NA | K77: 416 | L77: Hora | M77: 28 | N77: Mes | O77: =VLOOKUP(C77,temp!$B:$AC,28,0) -> 7497.36 | P77: 7858.87 | Q77: 3269289.92 | R77: 91540117.76 | S77: 52 - IT-BPO-67-1-Speech Analytics_NA_NA_NA_NA_NA_NA - 416 Hora
B78: 1. Si requiere agregue o elimine filas | Q78: Sub Total | R78: =SUM(R$26:R77) -> 1.742062773e+10
Q79: IVA | R79: =ROUND(R78*19%,2) -> 3309919269
Q80: Valor Total | R80: =ROUND(SUM(R78:R79),2) -> 2.0730547e+10
B81: Gravamenes adicionales*
B83: Gravamenes adicionales (estampillas)
B84: No | C84: Descripción | G84: Porcentaje
B85: 1 | C85: PROADULTO MAYOR | G85: 0.02
B86: 2 | C86: PROCULTURA | G86: 0.005
B87: 3 | C87: UNIVERSIDAD DISTRITAL FRANCISCO JOSE DE CALDAS | G87: 0.011
B88: 4 | C88: IMPUESTO AL TIMBRE | G88: 0.01
F89: Total porcentaje: | G89: 0.046
D90: Filas a agregar o eliminar Gravamenes:
D91: 1

Sheet Cotizacion
B1: COTIZACIÓN
B2: =+SolCotizacion!B2 -> Servicios BPO III
C3: =+SolCotizacion!$C$3 -> Versión: 2 | D3: =+SolCotizacion!$D$3 -> 2025-02-17
B4: Información de la Entidad Compradora
B6: Nombre de la Entidad | E6: =SolCotizacion!E6 -> SECRETARÍA GENERAL - ALCALDÍA MAYOR DE BOGOTÁ | H6: NIT | J6: =SolCotizacion!J6 -> 899999061
B8: Dirección de la Entidad | E8: =SolCotizacion!E8 -> Cra 8 10 65 | H8: Correo de contacto | J8: =SolCotizacion!J8 -> ecusba@alcaldiabogota.gov.co
B10: Municipio | E10: =SolCotizacion!E10 -> Bogotá D.C. | H10: Teléfono de contacto | J10: =SolCotizacion!J10 -> 3813000
B12: Nombre funcionario Comprador | E12: =SolCotizacion!E12 -> ENRIQUE CUSBA GARCÍA | H12: Número RFI | J12: =+SolCotizacion!$J$12 -> 193460
B15: Cotización
B18: Segmento | E18: =SolCotizacion!E18 -> Lote 1 | G18: Proveedor
B20: Cantidad de filas:
B22: =SolCotizacion!B22 -> 1
B24: Paquete de Servicios | O24: Valores
B25: Item | C25: Cod. Matriz | D25: Servicio | E25: Característica 1 | F25: Característica 2 | G25: Característica 3 | H25: Característica 4 | I25: Característica 5 | J25: Característica 6 | K25: Capacidad | L25: Unidad de Facturación | M25: Cantidad en Tiempo | N25: Unidad x Cantidad | O25: Valor Unitario | P25: Valor Unitario + Gravamenes | Q25: Descuento adicional | R25: Precio con Descuento | S25: Valor X Capacidad | T25: Precio Total
B26: 1 | C26: IT-BPO-1-1 | D26: Troncal SIP | E26: NA | F26: NA | G26: NA | H26: NA | I26: NA | J26: NA | K26: 110 | L26: Mes | M26: 28 | N26: Mes | O26: =VLOOKUP($C26,temp!$B:$AB,MATCH(Cotizacion!$I$18,temp!$B$1:$AB$1,0),0) ->  | P26: =ROUND(O26/(1-(VLOOKUP("Total porcentaje:",$F:$H,2,0))),2) ->  | R26: =ROUND(P26*(1-Q26),2) ->  | S26: =ROUND(R26*K26,2) ->  | T26: =ROUND(S26*M26,2) -> 
B27: 2 | C27: IT-BPO-2-1 | D27: Minuto IVR (Interactive Voice Response) - Enrutador | E27: NA | F27: NA | G27: NA | H27: NA | I27: NA | J27: NA | K27: 110000 | L27: Minuto | M27: 4 | N27: Mes | O27: =VLOOKUP($C27,temp!$B:$AB,MATCH(Cotizacion!$I$18,temp!$B$1:$AB$1,0),0) ->  | P27: =ROUND(O27/(1-(VLOOKUP("Total porcentaje:",$F:$H,2,0))),2) ->  | R27: =ROUND(P27*(1-Q27),2) ->  | S27: =ROUND(R27*K27,2) ->  | T27: =ROUND(S27*M27,2) -> 
B28: 3 | C28: IT-BPO-3-1 | D28: Minuto IVR (Interactive Voice Response) - Audiotexto | E28: NA | F28: NA | G28: NA | H28: NA | I28: NA | J28: NA | K28: 110000 | L28: Minuto | M28: 24 | N28: Mes | O28: =VLOOKUP($C28,temp!$B:$AB,MATCH(Cotizacion!$I$18,temp!$B$1:$AB$1,0),0) -> 
B29: 4 | C29: IT-BPO-4-1 | D29: Minuto IVR (Interactive Voice Response) Transaccional | E29: NA | F29: NA | G29: NA | H29: NA | I29: NA | J29: NA | K29: 110000 | L29: Minuto | M29: 12 | N29: Mes | O29: =VLOOKUP($C29,temp!$B:$AB,MATCH(Cotizacion!$I$18,temp!$B$1:$AB$1,0),0) -> 
B30: 5 | C30: IT-BPO-6-2 | D30: Grabación anuncios IVR (Interactive Voice Response) Respuesta de Voz Interactiva | E30: Voz sintética | F30: NA | G30: NA | H30: NA | I30: NA | J30: NA | K30: 2 | L30: Anuncio | M30: 28 | N30: Mes | O30: =VLOOKUP($C30,temp!$B:$AB,MATCH(Cotizacion!$I$18,temp!$B$1:$AB$1,0),0) -> 
B31: 6 | C31: IT-BPO-7-6 | D31: Minutos de conexión outbound/Inbound | E31: Outbound de fijo a celular | F31: NA | G31: NA | H31: NA | I31: NA | J31: NA | K31: 72000 | L31: Minuto | M31: 28 | N31: Mes | O31: =VLOOKUP($C31,temp!$B:$AB,MATCH(Cotizacion!$I$18,temp!$B$1:$AB$1,0),0) -> 
B32: 7 | C32: IT-BPO-8-1 | D32: Transferencia de llamadas | E32: NA | F32: NA | G32: NA | H32: NA | I32: NA | J32: NA | K32: 400 | L32: Transferencia | M32: 28 | N32: Mes | O32: =VLOOKUP($C32,temp!$B:$AB,MATCH(Cotizacion!$I$18,temp!$B$1:$AB$1,0),0) -> 
B33: 8 | C33: IT-BPO-11-1 | D33: Clic to call | E33: NA | F33: NA | G33: NA | H33: NA | I33: NA | J33: NA | K33: 2 | L33: Licencia Mes | M33: 28 | N33: Mes | O33: =VLOOKUP($C33,temp!$B:$AB,MATCH(Cotizacion!$I$18,temp!$B$1:$AB$1,0),0) -> 
B34: 9 | C34: IT-BPO-12-1 | D34: Web Callback | E34: NA | F34: NA | G34: NA | H34: NA | I34: NA | J34: NA | K34: 2 | L34: Licencia Mes | M34: 28 | N34: Mes | O34: =VLOOKUP($C34,temp!$B:$AB,MATCH(Cotizacion!$I$18,temp!$B$1:$AB$1,0),0) -> 
B35: 10 | C35: IT-BPO-13-1 | D35: Mailing | E35: NA | F35: NA | G35: NA | H35: NA | I35: NA | J35: NA | K35: 127000 | L35: Correo | M35: 28 | N35: Mes | O35: =VLOOKUP($C35,temp!$B:$AB,MATCH(Cotizacion!$I$18,temp!$B$1:$AB$1,0),0) -> 
B36: 11 | C36: IT-BPO-16-1 | D36: Mensaje SMS (Short Message Service) | E36: SMS en una vía | F36: NA | G36: NA | H36: NA | I36: NA | J36: NA | K36: 10900 | L36: Mensaje SMS | M36: 28 | N36: Mes | O36: =VLOOKUP($C36,temp!$B:$AB,MATCH(Cotizacion!$I$18,temp!$B$1:$AB$1,0),0) -> 
B37: 12 | C37: IT-BPO-21-1 | D37: Chatbot Smart | E37: NA | F37: NA | G37: NA | H37: NA | I37: NA | J37: NA | K37: 12200 | L37: Respuesta Chatbot Smart | M37: 25 | N37: Mes | O37: =VLOOKUP($C37,temp!$B:$AB,MATCH(Cotizacion!$I$18,temp!$B$1:$AB$1,0),0) -> 
B38: 13 | C38: IT-BPO-22-1 | D38: Voicebot Smart | E38: NA | F38: NA | G38: NA | H38: NA | I38: NA | J38: NA | K38: 2700000 | L38: Minuto Voicebot Smart | M38: 25 | N38: Mes | O38: =VLOOKUP($C38,temp!$B:$AB,MATCH(Cotizacion!$I$18,temp!$B$1:$AB$1,0),0) -> 
B39: 14 | C39: IT-BPO-23-1 | D39: Hora desarrollo para Integraciones y canales digitales | E39: NA | F39: NA | G39: NA | H39: NA | I39: NA | J39: NA | K39: 125 | L39: Hora desarrollo para Integraciones y canales digitales | M39: 28 | N39: Mes | O39: =VLOOKUP($C39,temp!$B:$AB,MATCH(Cotizacion!$I$18,temp!$B$1:$AB$1,0),0) -> 
B40: 15 | C40: IT-BPO-24-1 | D40: Analytics | E40: NA | F40: NA | G40: NA | H40: NA | I40: NA | J40: NA | K40: 2 | L40: Licencia Mes | M40: 28 | N40: Mes | O40: =VLOOKUP($C40,temp!$B:$AB,MATCH(Cotizacion!$I$18,temp!$B$1:$AB$1,0),0) -> 
B41: 16 | C41: IT-BPO-25-1 | D41: Agente en Sitio | E41: Agente general | F41: Jornada Ordinaria | G41: En sitio | H41: Oro | I41: NA | J41: NA | K41: 66 | L41: Mes | M41: 3 | N41: Mes | O41: =VLOOKUP($C41,temp!$B:$AB,MATCH(Cotizacion!$I$18,temp!$B$1:$AB$1,0),0) -> 
B42: 17 | C42: IT-BPO-25-1 | D42: Agente en Sitio | E42: Agente general | F42: Jornada Ordinaria | G42: En sitio | H42: Oro | I42: NA | J42: NA | K42: 51 | L42: Mes | M42: 6 | N42: Mes | O42: =VLOOKUP($C42,temp!$B:$AB,MATCH(Cotizacion!$I$18,temp!$B$1:$AB$1,0),0) -> 
B43: 18 | C43: IT-BPO-25-1 | D43: Agente en Sitio | E43: Agente general | F43: Jornada Ordinaria | G43: En sitio | H43: Oro | I43: NA | J43: NA | K43: 39 | L43: Mes | M43: 6 | N43: Mes | O43: =VLOOKUP($C43,temp!$B:$AB,MATCH(Cotizacion!$I$18,temp!$B$1:$AB$1,0),0) -> 
B44: 19 | C44: IT-BPO-25-1 | D44: Agente en Sitio | E44: Agente general | F44: Jornada Ordinaria | G44: En sitio | H44: Oro | I44: NA | J44: NA | K44: 25 | L44: Mes | M44: 13 | N44: Mes | O44: =VLOOKUP($C44,temp!$B:$AB,MATCH(Cotizacion!$I$18,temp!$B$1:$AB$1,0),0) -> 
B45: 20 | C45: IT-BPO-25-4 | D45: Agente en Sitio | E45: Agente general | F45: Hora extra dominical y festivo | G45: En sitio | H45: Oro | I45: NA | J45: NA | K45: 1000 | L45: Hora | M45: 3 | N45: Mes | O45: =VLOOKUP($C45,temp!$B:$AB,MATCH(Cotizacion!$I$18,temp!$B$1:$AB$1,0),0) -> 
B46: 21 | C46: IT-BPO-25-4 | D46: Agente en Sitio | E46: Agente general | F46: Hora extra dominical y festivo | G46: En sitio | H46: Oro | I46: NA | J46: NA | K46: 500 | L46: Hora | M46: 6 | N46: Mes | O46: =VLOOKUP($C46,temp!$B:$AB,MATCH(Cotizacion!$I$18,temp!$B$1:$AB$1,0),0) -> 
B47: 22 | C47: IT-BPO-25-4 | D47: Agente en Sitio | E47: Agente general | F47: Hora extra dominical y festivo | G47: En sitio | H47: Oro | I47: NA | J47: NA | K47: 500 | L47: Hora | M47: 6 | N47: Mes | O47: =VLOOKUP($C47,temp!$B:$AB,MATCH(Cotizacion!$I$18,temp!$B$1:$AB$1,0),0) -> 
B48: 23 | C48: IT-BPO-25-4 | D48: Agente en Sitio | E48: Agente general | F48: Hora extra dominical y festivo | G48: En sitio | H48: Oro | I48: NA | J48: NA | K48: 500 | L48: Hora | M48: 13 | N48: Mes | O48: =VLOOKUP($C48,temp!$B:$AB,MATCH(Cotizacion!$I$18,temp!$B$1:$AB$1,0),0) -> 
B49: 24 | C49: IT-BPO-25-5 | D49: Agente en Sitio | E49: Agente general | F49: Servicio 7x24 | G49: En sitio | H49: Oro | I49: NA | J49: NA | K49: 1 | L49: Mes 7x24 | M49: 28 | N49: Mes | O49: =VLOOKUP($C49,temp!$B:$AB,MATCH(Cotizacion!$I$18,temp!$B$1:$AB$1,0),0) -> 
B50: 25 | C50: IT-BPO-25-11 | D50: Agente en Sitio | E50: Agente técnico | F50: Jornada Ordinaria | G50: En sitio | H50: Oro | I50: NA | J50: NA | K50: 1 | L50: Mes | M50: 28 | N50: Mes | O50: =VLOOKUP($C50,temp!$B:$AB,MATCH(Cotizacion!$I$18,temp!$B$1:$AB$1,0),0) -> 
B51: 26 | C51: IT-BPO-25-51 | D51: Agente en Sitio | E51: Agente profesional | F51: Ciencias sociales, humanas y afines | G51: Jornada Ordinaria | H51: En sitio | I51: Oro | J51: NA | K51: 1 | L51: Mes | M51: 28 | N51: Mes | O51: =VLOOKUP($C51,temp!$B:$AB,MATCH(Cotizacion!$I$18,temp!$B$1:$AB$1,0),0) -> 
B52: 27 | C52: IT-BPO-26-31 | D52: Agente en la Entidad Compradora o Back Office | E52: Agente técnico | F52: Jornada Ordinaria | G52: Oro | H52: Zona 1 | I52: NA | J52: NA | K52: 2 | L52: Mes | M52: 28 | N52: Mes | O52: =VLOOKUP($C52,temp!$B:$AB,MATCH(Cotizacion!$I$18,temp!$B$1:$AB$1,0),0) -> 
B53: 28 | C53: IT-BPO-26-61 | D53: Agente en la Entidad Compradora o Back Office | E53: Agente profesional | F53: Economía, administración, contaduría y afines | G53: Jornada Ordinaria | H53: Oro | I53: Zona 1 | J53: NA | K53: 2 | L53: Mes | M53: 28 | N53: Mes | O53: =VLOOKUP($C53,temp!$B:$AB,MATCH(Cotizacion!$I$18,temp!$B$1:$AB$1,0),0) -> 
B54: 29 | C54: IT-BPO-29-41 | D54: Agente con dominio en lenguaje de señas colombiana (Videollamada) | E54: Agente técnico | F54: En Sitio | G54: Jornada Ordinaria | H54: Oro | I54: NA | J54: NA | K54: 1 | L54: Mes | M54: 28 | N54: Mes | O54: =VLOOKUP($C54,temp!$B:$AB,MATCH(Cotizacion!$I$18,temp!$B$1:$AB$1,0),0) -> 
B55: 30 | C55: IT-BPO-33-1 | D55: Agente Minero de Datos | E55: Agente profesional | F55: Jornada Ordinaria | G55: NA | H55: NA | I55: NA | J55: NA | K55: 2 | L55: Mes | M55: 28 | N55: Mes | O55: =VLOOKUP($C55,temp!$B:$AB,MATCH(Cotizacion!$I$18,temp!$B$1:$AB$1,0),0) -> 
B56: 31 | C56: IT-BPO-35-1 | D56: Coordinador Nacional | E56: Jornada Ordinaria | F56: Zona 1 | G56: Con herramienta | H56: NA | I56: NA | J56: NA | K56: 1 | L56: Mes | M56: 28 | N56: Mes | O56: =VLOOKUP($C56,temp!$B:$AB,MATCH(Cotizacion!$I$18,temp!$B$1:$AB$1,0),0) -> 
B57: 32 | C57: IT-BPO-37-8 | D57: Supervisor Servicios BPO | E57: Jornada Ordinaria | F57: Detallada | G57: Con herramienta | H57: NA | I57: NA | J57: NA | K57: 4 | L57: Mes | M57: 3 | N57: Mes | O57: =VLOOKUP($C57,temp!$B:$AB,MATCH(Cotizacion!$I$18,temp!$B$1:$AB$1,0),0) -> 
B58: 33 | C58: IT-BPO-37-8 | D58: Supervisor Servicios BPO | E58: Jornada Ordinaria | F58: Detallada | G58: Con herramienta | H58: NA | I58: NA | J58: NA | K58: 3 | L58: Mes | M58: 4 | N58: Mes | O58: =VLOOKUP($C58,temp!$B:$AB,MATCH(Cotizacion!$I$18,temp!$B$1:$AB$1,0),0) -> 
B59: 34 | C59: IT-BPO-37-8 | D59: Supervisor Servicios BPO | E59: Jornada Ordinaria | F59: Detallada | G59: Con herramienta | H59: NA | I59: NA | J59: NA | K59: 2 | L59: Mes | M59: 21 | N59: Mes | O59: =VLOOKUP($C59,temp!$B:$AB,MATCH(Cotizacion!$I$18,temp!$B$1:$AB$1,0),0) -> 
B60: 35 | C60: IT-BPO-38-1 | D60: Líder de calidad | E60: Jornada Ordinaria | F60: Detallada | G60: Con herramienta | H60: NA | I60: NA | J60: NA | K60: 4 | L60: Mes | M60: 3 | N60: Mes | O60: =VLOOKUP($C60,temp!$B:$AB,MATCH(Cotizacion!$I$18,temp!$B$1:$AB$1,0),0) -> 
B61: 36 | C61: IT-BPO-38-1 | D61: Líder de calidad | E61: Jornada Ordinaria | F61: Detallada | G61: Con herramienta | H61: NA | I61: NA | J61: NA | K61: 3 | L61: Mes | M61: 4 | N61: Mes | O61: =VLOOKUP($C61,temp!$B:$AB,MATCH(Cotizacion!$I$18,temp!$B$1:$AB$1,0),0) -> 
B62: 37 | C62: IT-BPO-38-1 | D62: Líder de calidad | E62: Jornada Ordinaria | F62: Detallada | G62: Con herramienta | H62: NA | I62: NA | J62: NA | K62: 2 | L62: Mes | M62: 21 | N62: Mes | O62: =VLOOKUP($C62,temp!$B:$AB,MATCH(Cotizacion!$I$18,temp!$B$1:$AB$1,0),0) -> 
B63: 38 | C63: IT-BPO-39-1 | D63: Formador | E63: Jornada Ordinaria | F63: NA | G63: NA | H63: NA | I63: NA | J63: NA | K63: 3 | L63: Mes | M63: 3 | N63: Mes | O63: =VLOOKUP($C63,temp!$B:$AB,MATCH(Cotizacion!$I$18,temp!$B$1:$AB$1,0),0) -> 
B64: 39 | C64: IT-BPO-39-1 | D64: Formador | E64: Jornada Ordinaria | F64: NA | G64: NA | H64: NA | I64: NA | J64: NA | K64: 2 | L64: Mes | M64: 25 | N64: Mes | O64: =VLOOKUP($C64,temp!$B:$AB,MATCH(Cotizacion!$I$18,temp!$B$1:$AB$1,0),0) -> 
B65: 40 | C65: IT-BPO-47-1 | D65: Plataforma de Centro de Contacto para Agente | E65: Omnicanal | F65: NA | G65: NA | H65: NA | I65: NA | J65: NA | K65: 72 | L65: Licencia por posición | M65: 3 | N65: Mes | O65: =VLOOKUP($C65,temp!$B:$AB,MATCH(Cotizacion!$I$18,temp!$B$1:$AB$1,0),0) -> 
B66: 41 | C66: IT-BPO-47-1 | D66: Plataforma de Centro de Contacto para Agente | E66: Omnicanal | F66: NA | G66: NA | H66: NA | I66: NA | J66: NA | K66: 56 | L66: Licencia por posición | M66: 6 | N66: Mes | O66: =VLOOKUP($C66,temp!$B:$AB,MATCH(Cotizacion!$I$18,temp!$B$1:$AB$1,0),0) -> 
B67: 42 | C67: IT-BPO-47-1 | D67: Plataforma de Centro de Contacto para Agente | E67: Omnicanal | F67: NA | G67: NA | H67: NA | I67: NA | J67: NA | K67: 44 | L67: Licencia por posición | M67: 6 | N67: Mes | O67: =VLOOKUP($C67,temp!$B:$AB,MATCH(Cotizacion!$I$18,temp!$B$1:$AB$1,0),0) -> 
B68: 43 | C68: IT-BPO-47-1 | D68: Plataforma de Centro de Contacto para Agente | E68: Omnicanal | F68: NA | G68: NA | H68: NA | I68: NA | J68: NA | K68: 30 | L68: Licencia por posición | M68: 13 | N68: Mes | O68: =VLOOKUP($C68,temp!$B:$AB,MATCH(Cotizacion!$I$18,temp!$B$1:$AB$1,0),0) -> 
B69: 44 | C69: IT-BPO-48-1 | D69: Hora desarrollo | E69: NA | F69: NA | G69: NA | H69: NA | I69: NA | J69: NA | K69: 125 | L69: Hora desarrollo | M69: 28 | N69: Mes | O69: =VLOOKUP($C69,temp!$B:$AB,MATCH(Cotizacion!$I$18,temp!$B$1:$AB$1,0),0) -> 
B70: 45 | C70: IT-BPO-49-1 | D70: Puesto de trabajo en el Call Center sin Agente | E70: NA | F70: NA | G70: NA | H70: NA | I70: NA | J70: NA | K70: 1 | L70: Puesto de trabajo | M70: 28 | N70: Mes | O70: =VLOOKUP($C70,temp!$B:$AB,MATCH(Cotizacion!$I$18,temp!$B$1:$AB$1,0),0) -> 
B71: 46 | C71: IT-BPO-52-1 | D71: Enlace Dedicado entre puntos | E71: 10Mbps | F71: Zona 1 | G71: NA | H71: NA | I71: NA | J71: NA | K71: 1 | L71: Mes | M71: 28 | N71: Mes | O71: =VLOOKUP($C71,temp!$B:$AB,MATCH(Cotizacion!$I$18,temp!$B$1:$AB$1,0),0) -> 
B72: 47 | C72: IT-BPO-52-19 | D72: Enlace Dedicado a Internet | E72: 1Gbps | F72: Zona 1 | G72: NA | H72: NA | I72: NA | J72: NA | K72: 1 | L72: Mes | M72: 28 | N72: Mes | O72: =VLOOKUP($C72,temp!$B:$AB,MATCH(Cotizacion!$I$18,temp!$B$1:$AB$1,0),0) -> 
B73: 48 | C73: IT-BPO-62-43 | D73: Componentes complemento Puesto de Trabajo | E73: Licenciamiento de ofimatica | F73: NA | G73: NA | H73: NA | I73: NA | J73: NA | K73: 12 | L73: Licencia Mes | M73: 3 | N73: Mes | O73: =VLOOKUP($C73,temp!$B:$AB,MATCH(Cotizacion!$I$18,temp!$B$1:$AB$1,0),0) -> 
B74: 49 | C74: IT-BPO-62-43 | D74: Componentes complemento Puesto de Trabajo | E74: Licenciamiento de ofimatica | F74: NA | G74: NA | H74: NA | I74: NA | J74: NA | K74: 9 | L74: Licencia Mes | M74: 4 | N74: Mes | O74: =VLOOKUP($C74,temp!$B:$AB,MATCH(Cotizacion!$I$18,temp!$B$1:$AB$1,0),0) -> 
B75: 50 | C75: IT-BPO-62-43 | D75: Componentes complemento Puesto de Trabajo | E75: Licenciamiento de ofimatica | F75: NA | G75: NA | H75: NA | I75: NA | J75: NA | K75: 7 | L75: Licencia Mes | M75: 21 | N75: Mes | O75: =VLOOKUP($C75,temp!$B:$AB,MATCH(Cotizacion!$I$18,temp!$B$1:$AB$1,0),0) -> 
B76: 51 | C76: IT-BPO-63-1 | D76: Licencia RPA – Robotic Process Automation | E76: NA | F76: NA | G76: NA | H76: NA | I76: NA | J76: NA | K76: 2 | L76: Licencia Mes | M76: 25 | N76: Mes | O76: =VLOOKUP($C76,temp!$B:$AB,MATCH(Cotizacion!$I$18,temp!$B$1:$AB$1,0),0) -> 
B77: 52 | C77: IT-BPO-67-1 | D77: Speech Analytics | E77: NA | F77: NA | G77: NA | H77: NA | I77: NA | J77: NA | K77: 416 | L77: Hora | M77: 28 | N77: Mes | O77: =VLOOKUP($C77,temp!$B:$AB,MATCH(Cotizacion!$I$18,temp!$B$1:$AB$1,0),0) -> 
B78: 1. Si requiere agregue o elimine filas | S78: Sub Total | T78: =SUM(T$26:T77) -> 
S79: IVA | T79: =ROUND(T78*19%,2) -> 
S80: Valor Total | T80: =ROUND(SUM(T78:T79),2) -> 
B81: Gravamenes adicionales*
B83: Gravamenes adicionales (estampillas)
B84: No | C84: Descripción | G84: Porcentaje
B85: 1 | C85: PROADULTO MAYOR | G85: 0.02
B86: 2 | C86: PROCULTURA | G86: 0.005
B87: 3 | C87: UNIVERSIDAD DISTRITAL FRANCISCO JOSE DE CALDAS | G87: 0.011
B88: 4 | C88: IMPUESTO AL TIMBRE | G88: 0.01
F89: Total porcentaje: | G89: 0.046
D90: Filas a agregar o eliminar Gravamenes:
D91: 1

Sheet Cuadro Totales (hidden)
A1: Valores
A2: Valor Unitario | B2: Valor Unitario + Gravamenes | C2: Valor X Capacidad | D2: Precio Total
C4: Sub Total
C5: IVA | D5: =ROUND(D4*19%,2) -> 0
C6: Valor Total | D6: =ROUND(SUM(D4:D5),2) -> 0
A8: Valores
A9: Valor Unitario | B9: Valor Unitario + Gravamenes | C9: Descuento adicional | D9: Precio con Descuento | E9: Valor X Capacidad | F9: Precio Total
E11: Sub Total
E12: IVA | F12: =ROUND(F11*19%,2) -> 0
E13: Valor Total | F13: =ROUND(SUM(F11:F12),2) -> 0

Sheet ListaProveedores (hidden)
A1: ProveedorLote2 | B1: ProveedorLote1
A2: LEON & ASOCIADOS | B2: EMTELCO
A3: INNOVA TECH IT S.A.S | B3: BPM CONSULTING
A4: RST ASOCIADOS SAS | B4: C&C SERVICES S.A.S
B5: OUTSOURCING S.A.S BIC
B6: UT ACUERDO MARCO ASD-IQ 2024
B7: COS
B8: CONALCREDITOS - CONALCENTER BPO
B9: MILLENIUM BPO

Sheet tempProveedores (hidden)
A1: EMTELCO
A2: BPM CONSULTING
A3: C&C SERVICES S.A.S
A4: OUTSOURCING S.A.S BIC
A5: UT ACUERDO MARCO ASD-IQ 2024
A6: COS
A7: CONALCREDITOS - CONALCENTER BPO
A8: MILLENIUM BPO

Sheet Listas (hidden)
A1: TipoServicio
A2: Lote 1
A3: Lote 2

Sheet ListasAutomaticas (hidden)
A1: TipoServicio | B1: Lote1 | C1: Lote2 | D1: 1ModAgentes | E1: 1Caracteristica | F1: 1Nivel | G1: 1Caracteristica4 | H1: 1Caracteristica5 | I1: 1Caracteristica6 | J1: 2Caracteristica4 | K1: 2Caracteristica5 | L1: 2Caracteristica6 | M1: 4ModAgentes | N1: 4Caracteristica | O1: 4Nivel | P1: 5ModAgentes | Q1: 5Caracteristica | R1: 5Nivel | S1: 6ModAgentes | T1: 6Caracteristica | U1: 6Nivel | V1: 7ModAgentes | W1: 7Caracteristica | X1: 7Nivel | Y1: 7Caracteristica4 | Z1: 7Caracteristica5 | AA1: 7Caracteristica6
A2: Lote 1 | B2: Agente Bilingüe | C2: Agente Bilingüe | D2: Agente especializado | E2: Agronomía, veterinaria y afines | F2: En las instalaciones de la Entidad Compradora | G2: Hora extra diurna | H2: Oro | I2: NA | J2: Oro | K2: Zona 1 | L2: NA | M2: API | N2: NA | O2: NA | P2: API | Q2: NA | R2: NA | S2: API | T2: NA | U2: NA | V2: API | W2: Alemania | X2: NA | Y2: NA | Z2: NA | AA2: NA
A3: Lote 2 | B3: Agente con dominio en lenguaje de señas colombiana (Videollamada) | C3: Agente con dominio en lenguaje de señas colombiana (Videollamada) | D3: Agente general | E3: Bellas artes y afines | F3: En Sitio | G3: Hora extra dominical y festivo | H3: Plata | J3: Plata | K3: Zona 2 | M3: conversación iniciada por el usuario | P3: conversación iniciada por el usuario | S3: conversación iniciada por el usuario | V3: conversación iniciada por el usuario | W3: Arabia Saudí
B4: Agente en la Entidad Compradora o Back Office | C4: Agente en la Entidad Compradora o Back Office | D4: Agente profesional | E4: Ciencias de la educación y afines | F4: Front office con herramienta | G4: Hora extra nocturna | H4: Platino | J4: Platino | K4: Zona 3 | M4: conversación iniciada por la empresa (Entidad) | P4: conversación iniciada por la empresa (Entidad) | S4: conversación iniciada por la empresa (Entidad) | V4: conversación iniciada por la empresa (Entidad) | W4: Argentina
B5: Agente en Sitio | C5: Agente en Sitio | D5: Agente técnico | E5: Ciencias de la salud y afines | F5: Front office sin herramienta | G5: Jornada Ordinaria | M5: setup | P5: setup | S5: setup | V5: setup | W5: Brasil
B6: Agente Front Office | C6: Agente Front Office | E6: Ciencias sociales, humanas y afines | G6: Servicio 7x24 | M6: usuario activo | P6: usuario activo | S6: usuario activo | V6: usuario activo | W6: Chile
B7: Agente Front Office sin herramienta | C7: Agente Front Office sin herramienta | E7: Economía, administración, contaduría y afines | W7: Colombia
B8: Agente Minero de Datos | C8: Agente Minero de Datos | E8: Ingeniería, arquitectura, urbanismo y afines | W8: Egipto
B9: Agente para atención con Videollamada | C9: Agente para atención con Videollamada | E9: Matemáticas, ciencias naturales y afines | W9: Emiratos Árabes Unidos
B10: Agente para gestión de redes sociales | C10: Agente para gestión de redes sociales | W10: España
B11: Agente Profesional con experiencia adicional | C11: Agente Profesional con experiencia adicional | W11: Francia
B12: Alimentación | C12: Alimentación | W12: India
B13: Alojamiento | C13: Alojamiento | W13: Indonesia
B14: Analytics | C14: Cabina de contacto telefónico | W14: Israel
B15: Cabina de contacto telefónico | C15: Carné Institucional | W15: Italia
B16: Carné Institucional | C16: Cerramiento área de trabajo en Centro de Contacto | W16: Malasia
B17: Cerramiento área de trabajo en Centro de Contacto | C17: Clic to call | W17: México
B18: Chatbot dumb | C18: Componentes complemento Puesto de Trabajo | W18: Nigeria
B19: Chatbot Smart | C19: Coordinador Nacional | W19: Norteamérica*
B20: Clic to call | C20: Digiturno Avanzado | W20: Otros*
B21: Componentes complemento Puesto de Trabajo | C21: Digiturno Básico | W21: Países Bajos
B22: Coordinador Nacional | C22: Distintivo Institucional | W22: Pakistán
B23: Digiturno Avanzado | C23: Enlace Dedicado a Internet | W23: Perú
B24: Digiturno Básico | C24: Enlace Dedicado entre puntos | W24: Reino Unido
B25: Distintivo Institucional | C25: Estudio de Seguridad por Agente | W25: Resto de África*
B26: Enlace Dedicado a Internet | C26: Formador | W26: Resto de Asia-Pacífico*
B27: Enlace Dedicado entre puntos | C27: Gerente de proyecto | W27: Resto de Europa Central y Oriental*
B28: Estudio de Seguridad por Agente | C28: Grabación anuncios IVR (Interactive Voice Response) Respuesta de Voz Interactiva | W28: Resto de Europa Occidental*
B29: Formador | C29: Grabación pantalla | W29: Resto de Latinoamérica*
B30: Gerente de proyecto | C30: Hora desarrollo | W30: Resto de Oriente Medio*
B31: Grabación anuncios IVR (Interactive Voice Response) Respuesta de Voz Interactiva | C31: Licencia RDP-CAL | W31: Rusia
B32: Grabación pantalla | C32: Líder de calidad | W32: Sudáfrica
B33: Hora desarrollo | C33: Mailing | W33: Turquía
B34: Hora desarrollo para Integraciones y canales digitales | C34: Mensaje SMS (Short Message Service)
B35: Licencia RDP-CAL | C35: Mensajes de voz o audio
B36: Licencia RPA – Robotic Process Automation | C36: Minuto IVR (Interactive Voice Response) - Audiotexto
B37: Líder de calidad | C37: Minuto IVR (Interactive Voice Response) - Enrutador
B38: Mailing | C38: Minuto IVR (Interactive Voice Response) Transaccional
B39: Mensaje SMS (Short Message Service) | C39: Minuto IVR con reconocimiento de Voz
B40: Mensajes de voz o audio | C40: Minuto Virtual Hold
B41: Minuto IVR (Interactive Voice Response) - Audiotexto | C41: Minutos de conexión outbound/Inbound
B42: Minuto IVR (Interactive Voice Response) - Enrutador | C42: Plataforma de Centro de Contacto para Agente
B43: Minuto IVR (Interactive Voice Response) Transaccional | C43: Profesional de operación zonal en campo
B44: Minuto IVR con reconocimiento de Voz | C44: Puesto de trabajo en el Call Center sin Agente
B45: Minuto Virtual Hold | C45: Puesto de trabajo móvil sin Agente
B46: Minutos de conexión outbound/Inbound | C46: Quiosco virtual de auto consulta
B47: Plataforma de Centro de Contacto para Agente | C47: Servicio de interprete - Traductor
B48: Profesional de operación zonal en campo | C48: Servidor de Aplicaciones y Componentes
B49: Puesto de trabajo en el Call Center sin Agente | C49: Sesión formación o capacitación
B50: Puesto de trabajo móvil sin Agente | C50: SMS como CHAT
B51: Quiosco virtual de auto consulta | C51: SMS con Landing Page
B52: Servicio de interprete - Traductor | C52: Software de gestión de operaciones de TI
B53: Servidor de Aplicaciones y Componentes | C53: Supervisor Servicios BPO
B54: Sesión formación o capacitación | C54: Transferencia de chat
B55: SMS como CHAT | C55: Transferencia de llamadas
B56: SMS con Landing Page | C56: Transporte
B57: Software de gestión de operaciones de TI | C57: Troncal SIP
B58: Supervisor Servicios BPO | C58: USSD (Unstructured Supplementary Service Data)
B59: Transferencia de chat | C59: Validación de identidad en centrales de riesgo
B60: Transferencia de llamadas | C60: Validación de información dactiloscópica y biométrica
B61: Transporte | C61: VPN (Virtual Private Network) - Red Privada Virtual sobre Internet
B62: Troncal SIP | C62: Web Callback
B63: USSD (Unstructured Supplementary Service Data) | C63: WhatsApp for Business API
B64: Validación de identidad en centrales de riesgo
B65: Validación de información dactiloscópica y biométrica
B66: Voicebot Smart
B67: VPN (Virtual Private Network) - Red Privada Virtual sobre Internet
B68: Web Callback
B69: WhatsApp for Business API

Sheet Parametros (hidden)
A1: Limite de filas | B1: 240

Sheet ServiciosLote1 (hidden)
A1: concatenar | B1: Código del servicio | C1: Nombre del servicio | D1: Caracteristica 1 | E1: Caracteristica 2 | F1: Caracteristica 3 | G1: Caracteristica 4 | H1: Caracteristica 5 | I1: Caracteristica 6 | J1: Unidad de facturación | K1: EMTELCO | L1: BPM CONSULTING | M1: C&C SERVICES S.A.S | N1: OUTSOURCING S.A.S BIC | O1: UT ACUERDO MARCO ASD-IQ 2024 | P1: COS | Q1: CONALCREDITOS - CONALCENTER BPO | R1: MILLENIUM BPO | U1: INCREMENTO
A2: =SUBSTITUTE(C2&D2&E2&F2&G2&H2&I2," ","") -> TroncalSIPNANANANANANA | B2: IT-BPO-1-1 | C2: Troncal SIP | D2: NA | E2: NA | F2: NA | G2: NA | H2: NA | I2: NA | J2: Mes | K2: 50586.47 | L2: 138933.43 | M2: 2065392.65 | N2: 53263.81 | O2: 410313.63 | P2: 45086.62 | Q2: 45721.54 | R2: 52223.07 | U2: IPC
A3: MinutoIVR(InteractiveVoiceResponse)-EnrutadorNANANANANANA | B3: IT-BPO-2-1 | C3: Minuto IVR (Interactive Voice Response) - Enrutador | D3: NA | E3: NA | F3: NA | G3: NA | H3: NA | I3: NA | J3: Minuto | K3: 22.09 | L3: 18.94 | M3: 176.74 | N3: 11.57 | O3: 10.92 | P3: 5.26 | Q3: 45.86 | R3: 9.57 | U3: IPC
A4: MinutoIVR(InteractiveVoiceResponse)-AudiotextoNANANANANANA | B4: IT-BPO-3-1 | C4: Minuto IVR (Interactive Voice Response) - Audiotexto | D4: NA | E4: NA | F4: NA | G4: NA | H4: NA | I4: NA | J4: Minuto | K4: 54.7 | L4: 37.87 | M4: 176.74 | N4: 11.57 | O4: 34.96 | P4: 23.14 | Q4: 45.86 | R4: 9.57 | U4: IPC
A5: MinutoIVR(InteractiveVoiceResponse)TransaccionalNANANANANANA | B5: IT-BPO-4-1 | C5: Minuto IVR (Interactive Voice Response) Transaccional | D5: NA | E5: NA | F5: NA | G5: NA | H5: NA | I5: NA | J5: Minuto | K5: 22.09 | L5: 126.24 | M5: 177.79 | N5: 26.3 | O5: 79.91 | P5: 45.24 | Q5: 112.46 | R5: 9.57 | U5: IPC
A6: MinutoIVRconreconocimientodeVozNANANANANANA | B6: IT-BPO-5-1 | C6: Minuto IVR con reconocimiento de Voz | D6: NA | E6: NA | F6: NA | G6: NA | H6: NA | I6: NA | J6: Minuto | K6: 85.21 | L6: 2525.85 | M6: 2516.38 | N6: 514.43 | O6: 1152.64 | P6: 286.14 | Q6: 5.39 | R6: 9.57 | U6: IPC
A7: MinutoIVRMixtoNANANANANANA | B7: IT-BPO-15-1 | C7: Minuto IVR Mixto | D7: NA | E7: NA | F7: NA | G7: NA | H7: NA | I7: NA | J7: Minuto | K7: 368.2 | L7: 2778.33 | M7: 5032.77 | N7: 644.88 | O7: 1081.67 | P7: 331.38 | Q7: 112.46 | R7: 9.57 | U7: IPC
A8: GrabaciónanunciosIVR(InteractiveVoiceResponse)RespuestadeVozInteractivaVozprofesionalNANANANANA | B8: IT-BPO-6-1 | C8: Grabación anuncios IVR (Interactive Voice Response) Respuesta de Voz Interactiva | D8: Voz profesional | E8: NA | F8: NA | G8: NA | H8: NA | I8: NA | J8: Anuncio | K8: 134.66 | L8: 189454.68 | M8: 323174.4 | N8: 466060.2 | O8: 131868.97 | P8: 4508572.18 | Q8: 54380.31 | R8: 107725.85 | U8: IPC
A9: GrabaciónanunciosIVR(InteractiveVoiceResponse)RespuestadeVozInteractivaVozsintéticaNANANANANA | B9: IT-BPO-6-2 | C9: Grabación anuncios IVR (Interactive Voice Response) Respuesta de Voz Interactiva | D9: Voz sintética | E9: NA | F9: NA | G9: NA | H9: NA | I9: NA | J9: Anuncio | K9: 167.27 | L9: 101042.5 | M9: 347412.48 | N9: 1171.93 | O9: 50791.61 | P9: 901714.44 | Q9: 40461.54 | R9: 6185.76 | U9: IPC
A10: Minutosdeconexiónoutbound/InboundOutbounddefijoa01-8000NANANANANA | B10: IT-BPO-7-1 | C10: Minutos de conexión outbound/Inbound | D10: Outbound de fijo a 01-8000 | E10: NA | F10: NA | G10: NA | H10: NA | I10: NA | J10: Minuto | K10: 148.11 | L10: 378.72 | M10: 267.21 | N10: 130.45 | O10: 211.91 | P10: 164.11 | Q10: 49.9 | R10: 23.04 | U10: IPC
A11: Minutosdeconexiónoutbound/InboundOutbounddesdecelulara01-8000NANANANANA | B11: IT-BPO-7-2 | C11: Minutos de conexión outbound/Inbound | D11: Outbound desde celular a 01-8000 | E11: NA | F11: NA | G11: NA | H11: NA | I11: NA | J11: Minuto | K11: 148.11 | L11: 504.96 | M11: 548.09 | N11: 292.46 | O11: 353.5 | P11: 289.3 | Q11: 49.9 | R11: 23.04 | U11: IPC
A12: Minutosdeconexiónoutbound/InboundOutboundentrefijosenciudadesprincipalesNANANANANA | B12: IT-BPO-7-3 | C12: Minutos de conexión outbound/Inbound | D12: Outbound entre fijos en ciudades principales | E12: NA | F12: NA | G12: NA | H12: NA | I12: NA | J12: Minuto | K12: 21.45 | L12: 100.99 | M12: 267.21 | N12: 146.23 | O12: 73.1 | P12: 41.03 | Q12: 49.9 | R12: 29.67 | U12: IPC
A13: Minutosdeconexiónoutbound/InboundOutboundentrefijosenelrestodelterritorionacionalNANANANANA | B13: IT-BPO-7-4 | C13: Minutos de conexión outbound/Inbound | D13: Outbound entre fijos en el resto del territorio nacional | E13: NA | F13: NA | G13: NA | H13: NA | I13: NA | J13: Minuto | K13: 21.45 | L13: 189.36 | M13: 1016.23 | N13: 199.88 | O13: 116.25 | P13: 41.03 | Q13: 49.9 | R13: 29.67 | U13: IPC
A14: Minutosdeconexiónoutbound/InboundOutbounddefijoalargadistancianacionalNANANANANA | B14: IT-BPO-7-5 | C14: Minutos de conexión outbound/Inbound | D14: Outbound de fijo a larga distancia nacional | E14: NA | F14: NA | G14: NA | H14: NA | I14: NA | J14: Minuto | K14: 21.45 | L14: 189.36 | M14: 1016.23 | N14: 31.56 | O14: 117.93 | P14: 41.03 | Q14: 49.9 | R14: 32.72 | U14: IPC
A15: Minutosdeconexiónoutbound/InboundOutbounddefijoacelularNANANANANA | B15: IT-BPO-7-6 | C15: Minutos de conexión outbound/Inbound | D15: Outbound de fijo a celular | E15: NA | F15: NA | G15: NA | H15: NA | I15: NA | J15: Minuto | K15: 21.45 | L15: 63.12 | M15: 733.24 | N15: 31.56 | O15: 106.08 | P15: 41.03 | Q15: 49.9 | R15: 29.67 | U15: IPC
A16: Minutosdeconexiónoutbound/InboundInternacionalOutboundafijosymóvilesenEstadosUnidos,CanadáyPuertoRicoNANANANANA | B16: IT-BPO-7-7 | C16: Minutos de conexión outbound/Inbound | D16: Internacional Outbound a fijos y móviles en Estados Unidos, Canadá y Puerto Rico | E16: NA | F16: NA | G16: NA | H16: NA | I16: NA | J16: Minuto | K16: 135.09 | L16: 504.96 | M16: 967.84 | N16: 798.47 | O16: 547.78 | P16: 131.5 | Q16: 49.9 | R16: 81.64 | U16: IPC
A17: Minutosdeconexiónoutbound/InboundInternacionalOutboundafijosymóvilesenEuropa,Asia,OceaníaNANANANANA | B17: IT-BPO-7-8 | C17: Minutos de conexión outbound/Inbound | D17: Internacional Outbound a fijos y móviles en Europa, Asia, Oceanía | E17: NA | F17: NA | G17: NA | H17: NA | I17: NA | J17: Minuto | K17: 779.02 | L17: 2525.85 | M17: 3522.1 | N17: 798.47 | O17: 1158.78 | P17: 2254.44 | Q17: 49.9 | R17: 248.9 | U17: IPC
A18: Minutosdeconexiónoutbound/InboundInternacionalOutboundafijosymóvileselrestodeAméricaNANANANANA | B18: IT-BPO-7-9 | C18: Minutos de conexión outbound/Inbound | D18: Internacional Outbound a fijos y móviles el resto de América | E18: NA | F18: NA | G18: NA | H18: NA | I18: NA | J18: Minuto | K18: 297.2 | L18: 2525.85 | M18: 3075 | N18: 798.47 | O18: 750.87 | P18: 1677.94 | Q18: 49.9 | R18: 360.2 | U18: IPC
A19: Minutosdeconexiónoutbound/InboundInternacionalOutboundafijosymóvilesyalrestodelmundoNANANANANA | B19: IT-BPO-7-10 | C19: Minutos de conexión outbound/Inbound | D19: Internacional Outbound a fijos y móviles y al resto del mundo | E19: NA | F19: NA | G19: NA | H19: NA | I19: NA | J19: Minuto | K19: 4336.41 | L19: 5051.7 | M19: 20080.58 | N19: 798.47 | O19: 3451.3 | P19: 3719.87 | Q19: 43.73 | R19: 2464.94 | U19: IPC
A20: Minutosdeconexiónoutbound/InboundInbounddefijoa018000NANANANANA | B20: IT-BPO-7-11 | C20: Minutos de conexión outbound/Inbound | D20: Inbound de fijo a 018000 | E20: NA | F20: NA | G20: NA | H20: NA | I20: NA | J20: Minuto | K20: 148.11 | L20: 504.96 | M20: 319.81 | N20: 130.45 | O20: 247.13 | P20: 164.11 | Q20: 49.9 | R20: 356.52 | U20: IPC
A21: Minutosdeconexiónoutbound/InboundInbounddecelulara018000NANANANANA | B21: IT-BPO-7-12 | C21: Minutos de conexión outbound/Inbound | D21: Inbound de celular a 018000 | E21: NA | F21: NA | G21: NA | H21: NA | I21: NA | J21: Minuto | K21: 148.11 | L21: 694.32 | M21: 1424.41 | N21: 292.46 | O21: 514.28 | P21: 289.3 | Q21: 49.9 | R21: 356.52 | U21: IPC
A22: TransferenciadellamadasNANANANANANA | B22: IT-BPO-8-1 | C22: Transferencia de llamadas | D22: NA | E22: NA | F22: NA | G22: NA | H22: NA | I22: NA | J22: Transferencia | K22: 53.57 | L22: 56.81 | M22: 73.64 | N22: 10.52 | O22: 58.49 | P22: 250.38 | Q22: 26.97 | R22: 39.66 | U22: IPC
A23: MensajesdevozoaudioNANANANANANA | B23: IT-BPO-9-1 | C23: Mensajes de voz o audio | D23: NA | E23: NA | F23: NA | G23: NA | H23: NA | I23: NA | J23: Minuto | K23: 83.79 | L23: 151.49 | M23: 2675.24 | N23: 46.29 | O23: 116.64 | P23: 82.06 | Q23: 26.97 | R23: 23.04 | U23: IPC
A24: MinutoVirtualHoldNANANANANANA | B24: IT-BPO-10-1 | C24: Minuto Virtual Hold | D24: NA | E24: NA | F24: NA | G24: NA | H24: NA | I24: NA | J24: Minuto | K24: 124.99 | L24: 126.24 | M24: 2524.8 | N24: 14.73 | O24: 152.94 | P24: 150.44 | Q24: 26.97 | R24: 5.47 | U24: IPC
A25: ClictocallNANANANANANA | B25: IT-BPO-11-1 | C25: Clic to call | D25: NA | E25: NA | F25: NA | G25: NA | H25: NA | I25: NA | J25: Licencia Mes | K25: 254894.34 | L25: 442060.92 | M25: 2254287.67 | N25: 131828.22 | O25: 437291.78 | P25: 231440 | Q25: 124956.02 | R25: 521371.2 | U25: IPC
A26: WebCallbackNANANANANANA | B26: IT-BPO-12-1 | C26: Web Callback | D26: NA | E26: NA | F26: NA | G26: NA | H26: NA | I26: NA | J26: Licencia Mes | K26: 337483.7 | L26: 442060.92 | M26: 2254287.67 | N26: 127295.16 | O26: 442160.99 | P26: 231440 | Q26: 124956.02 | R26: 521371.2 | U26: IPC
A27: MailingNANANANANANA | B27: IT-BPO-13-1 | C27: Mailing | D27: NA | E27: NA | F27: NA | G27: NA | H27: NA | I27: NA | J27: Correo | K27: 4.21 | L27: 37.87 | M27: 1079.35 | N27: 5.26 | O27: 8.15 | P27: 3.16 | Q27: 1.62 | R27: 5.47 | U27: IPC
A28: WhatsAppforBusinessAPIsetupNANANANANA | B28: IT-BPO-14-1 | C28: WhatsApp for Business API | D28: setup | E28: NA | F28: NA | G28: NA | H28: NA | I28: NA | J28: setup | K28: 5137561.93 | L28: 2778668.64 | M28: 13830379.95 | N28: 2003550.83 | O28: 3178056.42 | P28: 429817.74 | Q28: 637134.36 | R28: 7894852.35 | U28: IPC
A29: WhatsAppforBusinessAPIAPINANANANANA | B29: IT-BPO-14-2 | C29: WhatsApp for Business API | D29: API | E29: NA | F29: NA | G29: NA | H29: NA | I29: NA | J29: Mes | K29: 494004.04 | L29: 1515637.44 | M29: 2433239.18 | N29: 961315.5 | O29: 1703070.26 | P29: 1124137.74 | Q29: 108149.65 | R29: 7648869.82 | U29: IPC
A30: WhatsAppforBusinessAPIconversacióniniciadaporlaempresa(Entidad)ArgentinamarketingNANANA | B30: IT-BPO-14-3 | C30: WhatsApp for Business API | D30: conversación iniciada por la empresa (Entidad) | E30: Argentina | F30: marketing | G30: NA | H30: NA | I30: NA | J30: Conversación | K30: 366.1 | L30: 406.07 | M30: 1506.46 | N30: 353.47 | O30: 529.26 | P30: 531.26 | Q30: 507.75 | R30: 147.91 | U30: IPC
A31: WhatsAppforBusinessAPIconversacióniniciadaporlaempresa(Entidad)BrasilmarketingNANANA | B31: IT-BPO-14-4 | C31: WhatsApp for Business API | D31: conversación iniciada por la empresa (Entidad) | E31: Brasil | F31: marketing | G31: NA | H31: NA | I31: NA | J31: Conversación | K31: 370.3 | L31: 411.33 | M31: 1523.3 | N31: 357.68 | O31: 535.26 | P31: 538.62 | Q31: 513.5 | R31: 147.91 | U31: IPC
A32: WhatsAppforBusinessAPIconversacióniniciadaporlaempresa(Entidad)ChilemarketingNANANA | B32: IT-BPO-14-5 | C32: WhatsApp for Business API | D32: conversación iniciada por la empresa (Entidad) | E32: Chile | F32: marketing | G32: NA | H32: NA | I32: NA | J32: Conversación | K32: 526 | L32: 584.91 | M32: 2167.12 | N32: 509.17 | O32: 761.35 | P32: 764.8 | Q32: 730.28 | R32: 147.91 | U32: IPC
A33: WhatsAppforBusinessAPIconversacióniniciadaporlaempresa(Entidad)ColombiamarketingNANANA | B33: IT-BPO-14-6 | C33: WhatsApp for Business API | D33: conversación iniciada por la empresa (Entidad) | E33: Colombia | F33: marketing | G33: NA | H33: NA | I33: NA | J33: Conversación | K33: 74.69 | L33: 408.18 | M33: 307.18 | N33: 71.54 | O33: 107.05 | P33: 108.36 | Q33: 102.93 | R33: 147.91 | U33: IPC
A34: WhatsAppforBusinessAPIconversacióniniciadaporlaempresa(Entidad)EgiptomarketingNANANA | B34: IT-BPO-14-7 | C34: WhatsApp for Business API | D34: conversación iniciada por la empresa (Entidad) | E34: Egipto | F34: marketing | G34: NA | H34: NA | I34: NA | J34: Conversación | K34: 634.36 | L34: 705.89 | M34: 2610.01 | N34: 614.37 | O34: 918.93 | P34: 922.6 | Q34: 881.51 | R34: 147.91 | U34: IPC
A35: WhatsAppforBusinessAPIconversacióniniciadaporlaempresa(Entidad)FranciamarketingNANANA | B35: IT-BPO-14-8 | C35: WhatsApp for Business API | D35: conversación iniciada por la empresa (Entidad) | E35: Francia | F35: marketing | G35: NA | H35: NA | I35: NA | J35: Conversación | K35: 846.86 | L35: 941.54 | M35: 3484.22 | N35: 819.51 | O35: 1226.38 | P35: 1231.89 | Q35: 1176.5 | R35: 147.91 | U35: IPC
A36: WhatsAppforBusinessAPIconversacióniniciadaporlaempresa(Entidad)AlemaniamarketingNANANA | B36: IT-BPO-14-9 | C36: WhatsApp for Business API | D36: conversación iniciada por la empresa (Entidad) | E36: Alemania | F36: marketing | G36: NA | H36: NA | I36: NA | J36: Conversación | K36: 806.88 | L36: 897.36 | M36: 3320.11 | N36: 781.64 | O36: 1169 | P36: 1174.03 | Q36: 1121.3 | R36: 147.91 | U36: IPC
A37: WhatsAppforBusinessAPIconversacióniniciadaporlaempresa(Entidad)IndiamarketingNANANA | B37: IT-BPO-14-10 | C37: WhatsApp for Business API | D37: conversación iniciada por la empresa (Entidad) | E37: India | F37: marketing | G37: NA | H37: NA | I37: NA | J37: Conversación | K37: 58.91 | L37: 105.2 | M37: 243.01 | N37: 61.02 | O37: 91.64 | P37: 86.26 | Q37: 87.98 | R37: 147.91 | U37: IPC
A38: WhatsAppforBusinessAPIconversacióniniciadaporlaempresa(Entidad)IndonesiamarketingNANANA | B38: IT-BPO-14-11 | C38: WhatsApp for Business API | D38: conversación iniciada por la empresa (Entidad) | E38: Indonesia | F38: marketing | G38: NA | H38: NA | I38: NA | J38: Conversación | K38: 243.01 | L38: 270.36 | M38: 1000.45 | N38: 235.65 | O38: 351.99 | P38: 353.47 | Q38: 337.54 | R38: 147.91 | U38: IPC
A39: WhatsAppforBusinessAPIconversacióniniciadaporlaempresa(Entidad)IsraelmarketingNANANA | B39: IT-BPO-14-12 | C39: WhatsApp for Business API | D39: conversación iniciada por la empresa (Entidad) | E39: Israel | F39: marketing | G39: NA | H39: NA | I39: NA | J39: Conversación | K39: 209.35 | L39: 232.49 | M39: 859.48 | N39: 201.98 | O39: 302.31 | P39: 304.03 | Q39: 289.81 | R39: 147.91 | U39: IPC
A40: WhatsAppforBusinessAPIconversacióniniciadaporlaempresa(Entidad)ItaliamarketingNANANA | B40: IT-BPO-14-13 | C40: WhatsApp for Business API | D40: conversación iniciada por la empresa (Entidad) | E40: Italia | F40: marketing | G40: NA | H40: NA | I40: NA | J40: Conversación | K40: 409.23 | L40: 454.46 | M40: 1684.25 | N40: 395.55 | O40: 591.78 | P40: 594.38 | Q40: 567.55 | R40: 147.91 | U40: IPC
A41: WhatsAppforBusinessAPIconversacióniniciadaporlaempresa(Entidad)MalasiamarketingNANANA | B41: IT-BPO-14-14 | C41: WhatsApp for Business API | D41: conversación iniciada por la empresa (Entidad) | E41: Malasia | F41: marketing | G41: NA | H41: NA | I41: NA | J41: Conversación | K41: 509.17 | L41: 565.98 | M41: 2095.58 | N41: 492.34 | O41: 736.52 | P41: 739.56 | Q41: 706.71 | R41: 147.91 | U41: IPC
A42: WhatsAppforBusinessAPIconversacióniniciadaporlaempresa(Entidad)MéxicomarketingNANANA | B42: IT-BPO-14-15 | C42: WhatsApp for Business API | D42: conversación iniciada por la empresa (Entidad) | E42: México | F42: marketing | G42: NA | H42: NA | I42: NA | J42: Conversación | K42: 257.74 | L42: 287.2 | M42: 1060.42 | N42: 249.32 | O42: 373.4 | P42: 375.56 | Q42: 358.24 | R42: 147.91 | U42: IPC
A43: WhatsAppforBusinessAPIconversacióniniciadaporlaempresa(Entidad)PaísesBajosmarketingNANANA | B43: IT-BPO-14-16 | C43: WhatsApp for Business API | D43: conversación iniciada por la empresa (Entidad) | E43: Países Bajos | F43: marketing | G43: NA | H43: NA | I43: NA | J43: Conversación | K43: 944.7 | L43: 1049.9 | M43: 3887.14 | N43: 914.19 | O43: 1367.69 | P43: 1372.86 | Q43: 1311.63 | R43: 147.91 | U43: IPC
A44: WhatsAppforBusinessAPIconversacióniniciadaporlaempresa(Entidad)NigeriamarketingNANANA | B44: IT-BPO-14-17 | C44: WhatsApp for Business API | D44: conversación iniciada por la empresa (Entidad) | E44: Nigeria | F44: marketing | G44: NA | H44: NA | I44: NA | J44: Conversación | K44: 305.08 | L44: 339.8 | M44: 1258.19 | N44: 295.61 | O44: 441.91 | P44: 443.94 | Q44: 423.79 | R44: 147.91 | U44: IPC
A45: WhatsAppforBusinessAPIconversacióniniciadaporlaempresa(Entidad)PakistánmarketingNANANA | B45: IT-BPO-14-18 | C45: WhatsApp for Business API | D45: conversación iniciada por la empresa (Entidad) | E45: Pakistán | F45: marketing | G45: NA | H45: NA | I45: NA | J45: Conversación | K45: 279.83 | L45: 311.39 | M45: 1151.94 | N45: 270.36 | O45: 405.08 | P45: 407.12 | Q45: 388.72 | R45: 147.91 | U45: IPC
A46: WhatsAppforBusinessAPIconversacióniniciadaporlaempresa(Entidad)PerúmarketingNANANA | B46: IT-BPO-14-19 | C46: WhatsApp for Business API | D46: conversación iniciada por la empresa (Entidad) | E46: Perú | F46: marketing | G46: NA | H46: NA | I46: NA | J46: Conversación | K46: 415.54 | L46: 461.83 | M46: 1712.66 | N46: 402.92 | O46: 602.06 | P46: 604.9 | Q46: 577.33 | R46: 147.91 | U46: IPC
A47: WhatsAppforBusinessAPIconversacióniniciadaporlaempresa(Entidad)RusiamarketingNANANA | B47: IT-BPO-14-20 | C47: WhatsApp for Business API | D47: conversación iniciada por la empresa (Entidad) | E47: Rusia | F47: marketing | G47: NA | H47: NA | I47: NA | J47: Conversación | K47: 474.45 | L47: 527.05 | M47: 1954.62 | N47: 459.72 | O47: 686.84 | P47: 690.11 | Q47: 658.98 | R47: 147.91 | U47: IPC
A48: WhatsAppforBusinessAPIconversacióniniciadaporlaempresa(Entidad)ArabiaSaudímarketingNANANA | B48: IT-BPO-14-21 | C48: WhatsApp for Business API | D48: conversación iniciada por la empresa (Entidad) | E48: Arabia Saudí | F48: marketing | G48: NA | H48: NA | I48: NA | J48: Conversación | K48: 240.91 | L48: 298.77 | M48: 990.98 | N48: 260.9 | O48: 389.67 | P48: 349.26 | Q48: 373.77 | R48: 147.91 | U48: IPC
A49: WhatsAppforBusinessAPIconversacióniniciadaporlaempresa(Entidad)SudáfricamarketingNANANA | B49: IT-BPO-14-22 | C49: WhatsApp for Business API | D49: conversación iniciada por la empresa (Entidad) | E49: Sudáfrica | F49: marketing | G49: NA | H49: NA | I49: NA | J49: Conversación | K49: 224.08 | L49: 249.32 | M49: 924.71 | N49: 216.71 | O49: 324.58 | P49: 326.12 | Q49: 311.09 | R49: 147.91 | U49: IPC
A50: WhatsAppforBusinessAPIconversacióniniciadaporlaempresa(Entidad)EspañamarketingNANANA | B50: IT-BPO-14-23 | C50: WhatsApp for Business API | D50: conversación iniciada por la empresa (Entidad) | E50: España | F50: marketing | G50: NA | H50: NA | I50: NA | J50: Conversación | K50: 363.99 | L50: 403.97 | M50: 1500.15 | N50: 352.42 | O50: 526.69 | P50: 529.16 | Q50: 505.45 | R50: 147.91 | U50: IPC
A51: WhatsAppforBusinessAPIconversacióniniciadaporlaempresa(Entidad)TurquíamarketingNANANA | B51: IT-BPO-14-24 | C51: WhatsApp for Business API | D51: conversación iniciada por la empresa (Entidad) | E51: Turquía | F51: marketing | G51: NA | H51: NA | I51: NA | J51: Conversación | K51: 65.22 | L51: 71.54 | M51: 267.21 | N51: 62.07 | O51: 93.34 | P51: 94.68 | Q51: 89.7 | R51: 147.91 | U51: IPC
A52: WhatsAppforBusinessAPIconversacióniniciadaporlaempresa(Entidad)EmiratosÁrabesUnidosmarketingNANANA | B52: IT-BPO-14-25 | C52: WhatsApp for Business API | D52: conversación iniciada por la empresa (Entidad) | E52: Emiratos Árabes Unidos | F52: marketing | G52: NA | H52: NA | I52: NA | J52: Conversación | K52: 201.98 | L52: 252.48 | M52: 830.03 | N52: 219.87 | O52: 328.87 | P52: 292.46 | Q52: 315.69 | R52: 147.91 | U52: IPC
A53: WhatsAppforBusinessAPIconversacióniniciadaporlaempresa(Entidad)ReinoUnidomarketingNANANA | B53: IT-BPO-14-26 | C53: WhatsApp for Business API | D53: conversación iniciada por la empresa (Entidad) | E53: Reino Unido | F53: marketing | G53: NA | H53: NA | I53: NA | J53: Conversación | K53: 417.64 | L53: 348.21 | M53: 1717.92 | N53: 302.98 | O53: 453.04 | P53: 607 | Q53: 434.72 | R53: 147.91 | U53: IPC
A54: WhatsAppforBusinessAPIconversacióniniciadaporlaempresa(Entidad)Norteamérica*marketingNANANA | B54: IT-BPO-14-27 | C54: WhatsApp for Business API | D54: conversación iniciada por la empresa (Entidad) | E54: Norteamérica* | F54: marketing | G54: NA | H54: NA | I54: NA | J54: Conversación | K54: 148.33 | L54: 164.11 | M54: 610.16 | N54: 143.07 | O54: 214.1 | P54: 215.66 | Q54: 205.28 | R54: 147.91 | U54: IPC
A55: WhatsAppforBusinessAPIconversacióniniciadaporlaempresa(Entidad)RestodeÁfrica*marketingNANANA | B55: IT-BPO-14-28 | C55: WhatsApp for Business API | D55: conversación iniciada por la empresa (Entidad) | E55: Resto de África* | F55: marketing | G55: NA | H55: NA | I55: NA | J55: Conversación | K55: 133.6 | L55: 148.33 | M55: 550.2 | N55: 128.34 | O55: 192.69 | P55: 194.62 | Q55: 184.58 | R55: 147.91 | U55: IPC
A56: WhatsAppforBusinessAPIconversacióniniciadaporlaempresa(Entidad)RestodeAsia-Pacífico*marketingNANANA | B56: IT-BPO-14-29 | C56: WhatsApp for Business API | D56: conversación iniciada por la empresa (Entidad) | E56: Resto de Asia-Pacífico* | F56: marketing | G56: NA | H56: NA | I56: NA | J56: Conversación | K56: 433.42 | L56: 481.82 | M56: 1782.09 | N56: 418.7 | O56: 626.9 | P56: 630.15 | Q56: 601.48 | R56: 147.91 | U56: IPC
A57: WhatsAppforBusinessAPIconversacióniniciadaporlaempresa(Entidad)RestodeEuropaCentralyOriental*marketingNANANA | B57: IT-BPO-14-30 | C57: WhatsApp for Business API | D57: conversación iniciada por la empresa (Entidad) | E57: Resto de Europa Central y Oriental* | F57: marketing | G57: NA | H57: NA | I57: NA | J57: Conversación | K57: 509.17 | L57: 565.98 | M57: 2095.58 | N57: 492.34 | O57: 736.52 | P57: 739.56 | Q57: 706.71 | R57: 147.91 | U57: IPC
A58: WhatsAppforBusinessAPIconversacióniniciadaporlaempresa(Entidad)RestodeLatinoamérica*marketingNANANA | B58: IT-BPO-14-31 | C58: WhatsApp for Business API | D58: conversación iniciada por la empresa (Entidad) | E58: Resto de Latinoamérica* | F58: marketing | G58: NA | H58: NA | I58: NA | J58: Conversación | K58: 437.63 | L58: 487.08 | M58: 1803.13 | N58: 423.96 | O58: 633.75 | P58: 636.46 | Q58: 607.8 | R58: 147.91 | U58: IPC
A59: WhatsAppforBusinessAPIconversacióniniciadaporlaempresa(Entidad)RestodeOrienteMedio*marketingNANANA | B59: IT-BPO-14-32 | C59: WhatsApp for Business API | D59: conversación iniciada por la empresa (Entidad) | E59: Resto de Oriente Medio* | F59: marketing | G59: NA | H59: NA | I59: NA | J59: Conversación | K59: 201.98 | L59: 224.08 | M59: 833.18 | N59: 195.67 | O59: 292.04 | P59: 293.51 | Q59: 280.04 | R59: 147.91 | U59: IPC
A60: WhatsAppforBusinessAPIconversacióniniciadaporlaempresa(Entidad)RestodeEuropaOccidental*marketingNANANA | B60: IT-BPO-14-33 | C60: WhatsApp for Business API | D60: conversación iniciada por la empresa (Entidad) | E60: Resto de Europa Occidental* | F60: marketing | G60: NA | H60: NA | I60: NA | J60: Conversación | K60: 350.32 | L60: 389.24 | M60: 1441.24 | N60: 338.74 | O60: 507 | P60: 509.17 | Q60: 486.47 | R60: 147.91 | U60: IPC
A61: WhatsAppforBusinessAPIconversacióniniciadaporlaempresa(Entidad)Otros*marketingNANANA | B61: IT-BPO-14-34 | C61: WhatsApp for Business API | D61: conversación iniciada por la empresa (Entidad) | E61: Otros* | F61: marketing | G61: NA | H61: NA | I61: NA | J61: Conversación | K61: 357.68 | L61: 397.66 | M61: 1471.75 | N61: 346.11 | O61: 517.27 | P61: 519.69 | Q61: 496.25 | R61: 147.91 | U61: IPC
A62: WhatsAppforBusinessAPIconversacióniniciadaporlaempresa(Entidad)ArgentinaUtilidadNANANA | B62: IT-BPO-14-35 | C62: WhatsApp for Business API | D62: conversación iniciada por la empresa (Entidad) | E62: Argentina | F62: Utilidad | G62: NA | H62: NA | I62: NA | J62: Conversación | K62: 201.98 | L62: 224.08 | M62: 830.03 | N62: 194.62 | O62: 529.26 | P62: 351.37 | Q62: 507.75 | R62: 147.91 | U62: IPC
A63: WhatsAppforBusinessAPIconversacióniniciadaporlaempresa(Entidad)BrasilUtilidadNANANA | B63: IT-BPO-14-36 | C63: WhatsApp for Business API | D63: conversación iniciada por la empresa (Entidad) | E63: Brasil | F63: Utilidad | G63: NA | H63: NA | I63: NA | J63: Conversación | K63: 47.34 | L63: 52.6 | M63: 197.78 | N63: 46.29 | O63: 535.26 | P63: 300.87 | Q63: 513.5 | R63: 147.91 | U63: IPC
A64: WhatsAppforBusinessAPIconversacióniniciadaporlaempresa(Entidad)ChileUtilidadNANANA | B64: IT-BPO-14-37 | C64: WhatsApp for Business API | D64: conversación iniciada por la empresa (Entidad) | E64: Chile | F64: Utilidad | G64: NA | H64: NA | I64: NA | J64: Conversación | K64: 118.88 | L64: 131.5 | M64: 489.18 | N64: 114.67 | O64: 761.35 | P64: 503.91 | Q64: 730.28 | R64: 147.91 | U64: IPC
A65: WhatsAppforBusinessAPIconversacióniniciadaporlaempresa(Entidad)ColombiaUtilidadNANANA | B65: IT-BPO-14-38 | C65: WhatsApp for Business API | D65: conversación iniciada por la empresa (Entidad) | E65: Colombia | F65: Utilidad | G65: NA | H65: NA | I65: NA | J65: Conversación | K65: 2.1 | L65: 408.18 | M65: 8.42 | N65: 3.16 | O65: 107.05 | P65: 73.64 | Q65: 102.93 | R65: 147.91 | U65: IPC
A66: =SUBSTITUTE(C66&D66&E66&F66&G66&H66&I66," ","") -> WhatsAppforBusinessAPIconversacióniniciadaporlaempresa(Entidad)EgiptoUtilidadNANANA | B66: IT-BPO-14-39 | C66: WhatsApp for Business API | D66: conversación iniciada por la empresa (Entidad) | E66: Egipto | F66: Utilidad | G66: NA | H66: NA | I66: NA | J66: Conversación | K66: 31.56 | L66: 34.72 | M66: 129.4 | N66: 29.46 | O66: 918.93 | P66: 591.22 | Q66: 881.51 | R66: 147.91 | U66: IPC
A67: WhatsAppforBusinessAPIconversacióniniciadaporlaempresa(Entidad)FranciaUtilidadNANANA | B67: IT-BPO-14-40 | C67: WhatsApp for Business API | D67: conversación iniciada por la empresa (Entidad) | E67: Francia | F67: Utilidad | G67: NA | H67: NA | I67: NA | J67: Conversación | K67: 177.79 | L67: 197.78 | M67: 732.19 | N67: 171.48 | O67: 1226.38 | P67: 660.66 | Q67: 1176.5 | R67: 147.91 | U67: IPC
A68: WhatsAppforBusinessAPIconversacióniniciadaporlaempresa(Entidad)AlemaniaUtilidadNANANA | B68: IT-BPO-14-41 | C68: WhatsApp for Business API | D68: conversación iniciada por la empresa (Entidad) | E68: Alemania | F68: Utilidad | G68: NA | H68: NA | I68: NA | J68: Conversación | K68: 326.12 | L68: 361.89 | M68: 1341.3 | N68: 314.55 | O68: 1169 | P68: 734.3 | Q68: 1121.3 | R68: 147.91 | U68: IPC
A69: WhatsAppforBusinessAPIconversacióniniciadaporlaempresa(Entidad)IndiaUtilidadNANANA | B69: IT-BPO-14-42 | C69: WhatsApp for Business API | D69: conversación iniciada por la empresa (Entidad) | E69: India | F69: Utilidad | G69: NA | H69: NA | I69: NA | J69: Conversación | K69: 8.42 | L69: 105.2 | M69: 38.92 | N69: 8.42 | O69: 91.64 | P69: 36.82 | Q69: 87.98 | R69: 147.91 | U69: IPC
A70: WhatsAppforBusinessAPIconversacióniniciadaporlaempresa(Entidad)IndonesiaUtilidadNANANA | B70: IT-BPO-14-43 | C70: WhatsApp for Business API | D70: conversación iniciada por la empresa (Entidad) | E70: Indonesia | F70: Utilidad | G70: NA | H70: NA | I70: NA | J70: Conversación | K70: 118.88 | L70: 131.5 | M70: 489.18 | N70: 114.67 | O70: 351.99 | P70: 172.53 | Q70: 337.54 | R70: 147.91 | U70: IPC
A71: WhatsAppforBusinessAPIconversacióniniciadaporlaempresa(Entidad)IsraelUtilidadNANANA | B71: IT-BPO-14-44 | C71: WhatsApp for Business API | D71: conversación iniciada por la empresa (Entidad) | E71: Israel | F71: Utilidad | G71: NA | H71: NA | I71: NA | J71: Conversación | K71: 31.56 | L71: 34.72 | M71: 132.55 | N71: 30.51 | O71: 302.31 | P71: 162.01 | Q71: 289.81 | R71: 147.91 | U71: IPC
A72: WhatsAppforBusinessAPIconversacióniniciadaporlaempresa(Entidad)ItaliaUtilidadNANANA | B72: IT-BPO-14-45 | C72: WhatsApp for Business API | D72: conversación iniciada por la empresa (Entidad) | E72: Italia | F72: Utilidad | G72: NA | H72: NA | I72: NA | J72: Conversación | K72: 177.79 | L72: 197.78 | M72: 732.19 | N72: 171.48 | O72: 591.78 | P72: 361.89 | Q72: 567.55 | R72: 147.91 | U72: IPC
A73: WhatsAppforBusinessAPIconversacióniniciadaporlaempresa(Entidad)MalasiaUtilidadNANANA | B73: IT-BPO-14-46 | C73: WhatsApp for Business API | D73: conversación iniciada por la empresa (Entidad) | E73: Malasia | F73: Utilidad | G73: NA | H73: NA | I73: NA | J73: Conversación | K73: 83.11 | L73: 92.58 | M73: 345.06 | N73: 79.95 | O73: 736.52 | P73: 172.53 | Q73: 706.71 | R73: 147.91 | U73: IPC
A74: WhatsAppforBusinessAPIconversacióniniciadaporlaempresa(Entidad)MéxicoUtilidadNANANA | B74: IT-BPO-14-47 | C74: WhatsApp for Business API | D74: conversación iniciada por la empresa (Entidad) | E74: México | F74: Utilidad | G74: NA | H74: NA | I74: NA | J74: Conversación | K74: 59.96 | L74: 66.28 | M74: 247.22 | N74: 56.81 | O74: 373.4 | P74: 229.34 | Q74: 358.24 | R74: 147.91 | U74: IPC
A75: WhatsAppforBusinessAPIconversacióniniciadaporlaempresa(Entidad)PaísesBajosUtilidadNANANA | B75: IT-BPO-14-48 | C75: WhatsApp for Business API | D75: conversación iniciada por la empresa (Entidad) | E75: Países Bajos | F75: Utilidad | G75: NA | H75: NA | I75: NA | J75: Conversación | K75: 295.61 | L75: 329.28 | M75: 1220.32 | N75: 286.14 | O75: 1367.69 | P75: 688.01 | Q75: 1311.63 | R75: 147.91 | U75: IPC
A76: WhatsAppforBusinessAPIconversacióniniciadaporlaempresa(Entidad)NigeriaUtilidadNANANA | B76: IT-BPO-14-49 | C76: WhatsApp for Business API | D76: conversación iniciada por la empresa (Entidad) | E76: Nigeria | F76: Utilidad | G76: NA | H76: NA | I76: NA | J76: Conversación | K76: 39.98 | L76: 44.18 | M76: 167.27 | N76: 37.87 | O76: 441.91 | P76: 274.57 | Q76: 423.79 | R76: 147.91 | U76: IPC
A77: WhatsAppforBusinessAPIconversacióniniciadaporlaempresa(Entidad)PakistánUtilidadNANANA | B77: IT-BPO-14-50 | C77: WhatsApp for Business API | D77: conversación iniciada por la empresa (Entidad) | E77: Pakistán | F77: Utilidad | G77: NA | H77: NA | I77: NA | J77: Conversación | K77: 32.61 | L77: 35.77 | M77: 136.76 | N77: 30.51 | O77: 405.08 | P77: 217.76 | Q77: 388.72 | R77: 147.91 | U77: IPC
A78: WhatsAppforBusinessAPIconversacióniniciadaporlaempresa(Entidad)PerúUtilidadNANANA | B78: IT-BPO-14-51 | C78: WhatsApp for Business API | D78: conversación iniciada por la empresa (Entidad) | E78: Perú | F78: Utilidad | G78: NA | H78: NA | I78: NA | J78: Conversación | K78: 118.88 | L78: 131.5 | M78: 489.18 | N78: 114.67 | O78: 602.06 | P78: 360.84 | Q78: 577.33 | R78: 147.91 | U78: IPC
A79: WhatsAppforBusinessAPIconversacióniniciadaporlaempresa(Entidad)RusiaUtilidadNANANA | B79: IT-BPO-14-52 | C79: WhatsApp for Business API | D79: conversación iniciada por la empresa (Entidad) | E79: Rusia | F79: Utilidad | G79: NA | H79: NA | I79: NA | J79: Conversación | K79: 236.7 | L79: 263 | M79: 974.15 | N79: 229.34 | O79: 686.84 | P79: 410.28 | Q79: 658.98 | R79: 147.91 | U79: IPC
A80: WhatsAppforBusinessAPIconversacióniniciadaporlaempresa(Entidad)ArabiaSaudíUtilidadNANANA | B80: IT-BPO-14-53 | C80: WhatsApp for Business API | D80: conversación iniciada por la empresa (Entidad) | E80: Arabia Saudí | F80: Utilidad | G80: NA | H80: NA | I80: NA | J80: Conversación | K80: 68.38 | L80: 75.74 | M80: 284.04 | N80: 66.28 | O80: 389.67 | P80: 217.76 | Q80: 373.77 | R80: 147.91 | U80: IPC
A81: WhatsAppforBusinessAPIconversacióniniciadaporlaempresa(Entidad)SudáfricaUtilidadNANANA | B81: IT-BPO-14-54 | C81: WhatsApp for Business API | D81: conversación iniciada por la empresa (Entidad) | E81: Sudáfrica | F81: Utilidad | G81: NA | H81: NA | I81: NA | J81: Conversación | K81: 45.24 | L81: 50.5 | M81: 186.2 | N81: 43.13 | O81: 324.58 | P81: 172.53 | Q81: 311.09 | R81: 147.91 | U81: IPC
A82: WhatsAppforBusinessAPIconversacióniniciadaporlaempresa(Entidad)EspañaUtilidadNANANA | B82: IT-BPO-14-55 | C82: WhatsApp for Business API | D82: conversación iniciada por la empresa (Entidad) | E82: España | F82: Utilidad | G82: NA | H82: NA | I82: NA | J82: Conversación | K82: 118.88 | L82: 131.5 | M82: 489.18 | N82: 114.67 | O82: 526.69 | P82: 327.17 | Q82: 505.45 | R82: 147.91 | U82: IPC
A83: WhatsAppforBusinessAPIconversacióniniciadaporlaempresa(Entidad)TurquíaUtilidadNANANA | B83: IT-BPO-14-56 | C83: WhatsApp for Business API | D83: conversación iniciada por la empresa (Entidad) | E83: Turquía | F83: Utilidad | G83: NA | H83: NA | I83: NA | J83: Conversación | K83: 31.56 | L83: 34.72 | M83: 132.55 | N83: 30.51 | O83: 93.34 | P83: 81 | Q83: 89.7 | R83: 147.91 | U83: IPC
A84: WhatsAppforBusinessAPIconversacióniniciadaporlaempresa(Entidad)EmiratosÁrabesUnidosUtilidadNANANA | B84: IT-BPO-14-57 | C84: WhatsApp for Business API | D84: conversación iniciada por la empresa (Entidad) | E84: Emiratos Árabes Unidos | F84: Utilidad | G84: NA | H84: NA | I84: NA | J84: Conversación | K84: 93.63 | L84: 103.1 | M84: 385.03 | N84: 89.42 | O84: 328.87 | P84: 170.42 | Q84: 315.69 | R84: 147.91 | U84: IPC
A85: WhatsAppforBusinessAPIconversacióniniciadaporlaempresa(Entidad)ReinoUnidoUtilidadNANANA | B85: IT-BPO-14-58 | C85: WhatsApp for Business API | D85: conversación iniciada por la empresa (Entidad) | E85: Reino Unido | F85: Utilidad | G85: NA | H85: NA | I85: NA | J85: Conversación | K85: 130.45 | L85: 145.18 | M85: 536.52 | N85: 126.24 | O85: 453.04 | P85: 341.9 | Q85: 434.72 | R85: 147.91 | U85: IPC
A86: WhatsAppforBusinessAPIconversacióniniciadaporlaempresa(Entidad)Norteamérica*UtilidadNANANA | B86: IT-BPO-14-59 | C86: WhatsApp for Business API | D86: conversación iniciada por la empresa (Entidad) | E86: Norteamérica* | F86: Utilidad | G86: NA | H86: NA | I86: NA | J86: Conversación | K86: 24.2 | L86: 26.3 | M86: 99.94 | N86: 23.14 | O86: 214.1 | P86: 129.4 | Q86: 205.28 | R86: 147.91 | U86: IPC
A87: WhatsAppforBusinessAPIconversacióniniciadaporlaempresa(Entidad)RestodeÁfrica*UtilidadNANANA | B87: IT-BPO-14-60 | C87: WhatsApp for Business API | D87: conversación iniciada por la empresa (Entidad) | E87: Resto de África* | F87: Utilidad | G87: NA | H87: NA | I87: NA | J87: Conversación | K87: 36.82 | L87: 26.3 | M87: 151.49 | N87: 34.72 | O87: 192.69 | P87: 137.81 | Q87: 184.58 | R87: 147.91 | U87: IPC
A88: WhatsAppforBusinessAPIconversacióniniciadaporlaempresa(Entidad)RestodeAsia-Pacífico*UtilidadNANANA | B88: IT-BPO-14-61 | C88: WhatsApp for Business API | D88: conversación iniciada por la empresa (Entidad) | E88: Resto de Asia-Pacífico* | F88: Utilidad | G88: NA | H88: NA | I88: NA | J88: Conversación | K88: 93.63 | L88: 103.1 | M88: 385.03 | N88: 89.42 | O88: 626.9 | P88: 406.07 | Q88: 601.48 | R88: 147.91 | U88: IPC
A89: WhatsAppforBusinessAPIconversacióniniciadaporlaempresa(Entidad)RestodeEuropaCentralyOriental*UtilidadNANANA | B89: IT-BPO-14-62 | C89: WhatsApp for Business API | D89: conversación iniciada por la empresa (Entidad) | E89: Resto de Europa Central y Oriental* | F89: Utilidad | G89: NA | H89: NA | I89: NA | J89: Conversación | K89: 209.35 | L89: 232.49 | M89: 859.48 | N89: 201.98 | O89: 736.52 | P89: 532.31 | Q89: 706.71 | R89: 147.91 | U89: IPC
A90: WhatsAppforBusinessAPIconversacióniniciadaporlaempresa(Entidad)RestodeLatinoamérica*UtilidadNANANA | B90: IT-BPO-14-63 | C90: WhatsApp for Business API | D90: conversación iniciada por la empresa (Entidad) | E90: Resto de Latinoamérica* | F90: Utilidad | G90: NA | H90: NA | I90: NA | J90: Conversación | K90: 67.33 | L90: 74.69 | M90: 277.73 | N90: 65.22 | O90: 633.75 | P90: 425.01 | Q90: 607.8 | R90: 147.91 | U90: IPC
A91: WhatsAppforBusinessAPIconversacióniniciadaporlaempresa(Entidad)RestodeOrienteMedio*UtilidadNANANA | B91: IT-BPO-14-64 | C91: WhatsApp for Business API | D91: conversación iniciada por la empresa (Entidad) | E91: Resto de Oriente Medio* | F91: Utilidad | G91: NA | H91: NA | I91: NA | J91: Conversación | K91: 93.63 | L91: 103.1 | M91: 385.03 | N91: 89.42 | O91: 292.04 | P91: 170.42 | Q91: 280.04 | R91: 147.91 | U91: IPC
A92: WhatsAppforBusinessAPIconversacióniniciadaporlaempresa(Entidad)RestodeEuropaOccidental*UtilidadNANANA | B92: IT-BPO-14-65 | C92: WhatsApp for Business API | D92: conversación iniciada por la empresa (Entidad) | E92: Resto de Europa Occidental* | F92: Utilidad | G92: NA | H92: NA | I92: NA | J92: Conversación | K92: 177.79 | L92: 197.78 | M92: 732.19 | N92: 171.48 | O92: 507 | P92: 361.89 | Q92: 486.47 | R92: 147.91 | U92: IPC
A93: WhatsAppforBusinessAPIconversacióniniciadaporlaempresa(Entidad)Otros*UtilidadNANANA | B93: IT-BPO-14-66 | C93: WhatsApp for Business API | D93: conversación iniciada por la empresa (Entidad) | E93: Otros* | F93: Utilidad | G93: NA | H93: NA | I93: NA | J93: Conversación | K93: 46.29 | L93: 50.5 | M93: 190.41 | N93: 44.18 | O93: 517.27 | P93: 290.35 | Q93: 496.25 | R93: 147.91 | U93: IPC
A94: WhatsAppforBusinessAPIconversacióniniciadaporlaempresa(Entidad)ArgentinaAutenticaciónNANANA | B94: IT-BPO-14-67 | C94: WhatsApp for Business API | D94: conversación iniciada por la empresa (Entidad) | E94: Argentina | F94: Autenticación | G94: NA | H94: NA | I94: NA | J94: Conversación | K94: 217.76 | L94: 240.91 | M94: 896.3 | N94: 210.4 | O94: 529.26 | P94: 315.6 | Q94: 507.75 | R94: 147.91 | U94: IPC
A95: WhatsAppforBusinessAPIconversacióniniciadaporlaempresa(Entidad)BrasilAutenticaciónNANANA | B95: IT-BPO-14-68 | C95: WhatsApp for Business API | D95: conversación iniciada por la empresa (Entidad) | E95: Brasil | F95: Autenticación | G95: NA | H95: NA | I95: NA | J95: Conversación | K95: 186.2 | L95: 207.24 | M95: 769.01 | N95: 179.89 | O95: 535.26 | P95: 271.42 | Q95: 513.5 | R95: 147.91 | U95: IPC
A96: WhatsAppforBusinessAPIconversacióniniciadaporlaempresa(Entidad)ChileAutenticaciónNANANA | B96: IT-BPO-14-69 | C96: WhatsApp for Business API | D96: conversación iniciada por la empresa (Entidad) | E96: Chile | F96: Autenticación | G96: NA | H96: NA | I96: NA | J96: Conversación | K96: 312.44 | L96: 346.11 | M96: 1284.49 | N96: 301.92 | O96: 761.35 | P96: 453.41 | Q96: 730.28 | R96: 147.91 | U96: IPC
A97: WhatsAppforBusinessAPIconversacióniniciadaporlaempresa(Entidad)ColombiaAutenticaciónNANANA | B97: IT-BPO-14-70 | C97: WhatsApp for Business API | D97: conversación iniciada por la empresa (Entidad) | E97: Colombia | F97: Autenticación | G97: NA | H97: NA | I97: NA | J97: Conversación | K97: 46.29 | L97: 408.18 | M97: 190.41 | N97: 44.18 | O97: 107.05 | P97: 66.28 | Q97: 102.93 | R97: 147.91 | U97: IPC
A98: WhatsAppforBusinessAPIconversacióniniciadaporlaempresa(Entidad)EgiptoAutenticaciónNANANA | B98: IT-BPO-14-71 | C98: WhatsApp for Business API | D98: conversación iniciada por la empresa (Entidad) | E98: Egipto | F98: Autenticación | G98: NA | H98: NA | I98: NA | J98: Conversación | K98: 366.1 | L98: 406.07 | M98: 1506.46 | N98: 353.47 | O98: 918.93 | P98: 531.26 | Q98: 881.51 | R98: 147.91 | U98: IPC
A99: WhatsAppforBusinessAPIconversacióniniciadaporlaempresa(Entidad)FranciaAutenticaciónNANANA | B99: IT-BPO-14-72 | C99: WhatsApp for Business API | D99: conversación iniciada por la empresa (Entidad) | E99: Francia | F99: Autenticación | G99: NA | H99: NA | I99: NA | J99: Conversación | K99: 409.23 | L99: 454.46 | M99: 1684.25 | N99: 395.55 | O99: 1226.38 | P99: 594.38 | Q99: 1176.5 | R99: 147.91 | U99: IPC
A100: WhatsAppforBusinessAPIconversacióniniciadaporlaempresa(Entidad)AlemaniaAutenticaciónNANANA | B100: IT-BPO-14-73 | C100: WhatsApp for Business API | D100: conversación iniciada por la empresa (Entidad) | E100: Alemania | F100: Autenticación | G100: NA | H100: NA | I100: NA | J100: Conversación | K100: 454.46 | L100: 504.96 | M100: 1869.4 | N100: 439.74 | O100: 1169 | P100: 660.66 | Q100: 1121.3 | R100: 147.91 | U100: IPC
A101: WhatsAppforBusinessAPIconversacióniniciadaporlaempresa(Entidad)IndiaAutenticaciónNANANA | B101: IT-BPO-14-74 | C101: WhatsApp for Business API | D101: conversación iniciada por la empresa (Entidad) | E101: India | F101: Autenticación | G101: NA | H101: NA | I101: NA | J101: Conversación | K101: 8.42 | L101: 105.2 | M101: 38.92 | N101: 8.42 | O101: 91.64 | P101: 86.26 | Q101: 87.98 | R101: 147.91 | U101: IPC
A102: WhatsAppforBusinessAPIconversacióniniciadaporlaempresa(Entidad)IndonesiaAutenticaciónNANANA | B102: IT-BPO-14-75 | C102: WhatsApp for Business API | D102: conversación iniciada por la empresa (Entidad) | E102: Indonesia | F102: Autenticación | G102: NA | H102: NA | I102: NA | J102: Conversación | K102: 177.79 | L102: 197.78 | M102: 732.19 | N102: 171.48 | O102: 351.99 | P102: 258.79 | Q102: 337.54 | R102: 147.91 | U102: IPC
A103: WhatsAppforBusinessAPIconversacióniniciadaporlaempresa(Entidad)IsraelAutenticaciónNANANA | B103: IT-BPO-14-76 | C103: WhatsApp for Business API | D103: conversación iniciada por la empresa (Entidad) | E103: Israel | F103: Autenticación | G103: NA | H103: NA | I103: NA | J103: Conversación | K103: 99.94 | L103: 111.51 | M103: 415.54 | N103: 96.78 | O103: 302.31 | P103: 146.23 | Q103: 289.81 | R103: 147.91 | U103: IPC
A104: WhatsAppforBusinessAPIconversacióniniciadaporlaempresa(Entidad)ItaliaAutenticaciónNANANA | B104: IT-BPO-14-77 | C104: WhatsApp for Business API | D104: conversación iniciada por la empresa (Entidad) | E104: Italia | F104: Autenticación | G104: NA | H104: NA | I104: NA | J104: Conversación | K104: 224.08 | L104: 248.27 | M104: 924.71 | N104: 216.71 | O104: 591.78 | P104: 325.07 | Q104: 567.55 | R104: 147.91 | U104: IPC
A105: WhatsAppforBusinessAPIconversacióniniciadaporlaempresa(Entidad)MalasiaAutenticaciónNANANA | B105: IT-BPO-14-78 | C105: WhatsApp for Business API | D105: conversación iniciada por la empresa (Entidad) | E105: Malasia | F105: Autenticación | G105: NA | H105: NA | I105: NA | J105: Conversación | K105: 107.3 | L105: 118.88 | M105: 441.84 | N105: 103.1 | O105: 736.52 | P105: 155.7 | Q105: 706.71 | R105: 147.91 | U105: IPC
A106: WhatsAppforBusinessAPIconversacióniniciadaporlaempresa(Entidad)MéxicoAutenticaciónNANANA | B106: IT-BPO-14-79 | C106: WhatsApp for Business API | D106: conversación iniciada por la empresa (Entidad) | E106: México | F106: Autenticación | G106: NA | H106: NA | I106: NA | J106: Conversación | K106: 142.02 | L106: 156.75 | M106: 583.86 | N106: 136.76 | O106: 373.4 | P106: 206.19 | Q106: 358.24 | R106: 147.91 | U106: IPC
A107: WhatsAppforBusinessAPIconversacióniniciadaporlaempresa(Entidad)PaísesBajosAutenticaciónNANANA | B107: IT-BPO-14-80 | C107: WhatsApp for Business API | D107: conversación iniciada por la empresa (Entidad) | E107: Países Bajos | F107: Autenticación | G107: NA | H107: NA | I107: NA | J107: Conversación | K107: 426.06 | L107: 473.4 | M107: 1755.79 | N107: 412.38 | O107: 1367.69 | P107: 619.63 | Q107: 1311.63 | R107: 147.91 | U107: IPC
A108: WhatsAppforBusinessAPIconversacióniniciadaporlaempresa(Entidad)NigeriaAutenticaciónNANANA | B108: IT-BPO-14-81 | C108: WhatsApp for Business API | D108: conversación iniciada por la empresa (Entidad) | E108: Nigeria | F108: Autenticación | G108: NA | H108: NA | I108: NA | J108: Conversación | K108: 170.42 | L108: 188.31 | M108: 701.68 | N108: 164.11 | O108: 441.91 | P108: 247.22 | Q108: 423.79 | R108: 147.91 | U108: IPC
A109: WhatsAppforBusinessAPIconversacióniniciadaporlaempresa(Entidad)PakistánAutenticaciónNANANA | B109: IT-BPO-14-82 | C109: WhatsApp for Business API | D109: conversación iniciada por la empresa (Entidad) | E109: Pakistán | F109: Autenticación | G109: NA | H109: NA | I109: NA | J109: Conversación | K109: 135.71 | L109: 150.44 | M109: 556.51 | N109: 130.45 | O109: 405.08 | P109: 196.72 | Q109: 388.72 | R109: 147.91 | U109: IPC
A110: WhatsAppforBusinessAPIconversacióniniciadaporlaempresa(Entidad)PerúAutenticaciónNANANA | B110: IT-BPO-14-83 | C110: WhatsApp for Business API | D110: conversación iniciada por la empresa (Entidad) | E110: Perú | F110: Autenticación | G110: NA | H110: NA | I110: NA | J110: Conversación | K110: 223.02 | L110: 248.27 | M110: 920.5 | N110: 215.66 | O110: 602.06 | P110: 324.02 | Q110: 577.33 | R110: 147.91 | U110: IPC
A111: WhatsAppforBusinessAPIconversacióniniciadaporlaempresa(Entidad)RusiaAutenticaciónNANANA | B111: IT-BPO-14-84 | C111: WhatsApp for Business API | D111: conversación iniciada por la empresa (Entidad) | E111: Rusia | F111: Autenticación | G111: NA | H111: NA | I111: NA | J111: Conversación | K111: 254.58 | L111: 281.94 | M111: 1045.69 | N111: 245.12 | O111: 686.84 | P111: 369.25 | Q111: 658.98 | R111: 147.91 | U111: IPC
A112: WhatsAppforBusinessAPIconversacióniniciadaporlaempresa(Entidad)ArabiaSaudíAutenticaciónNANANA | B112: IT-BPO-14-85 | C112: WhatsApp for Business API | D112: conversación iniciada por la empresa (Entidad) | E112: Arabia Saudí | F112: Autenticación | G112: NA | H112: NA | I112: NA | J112: Conversación | K112: 133.6 | L112: 148.33 | M112: 554.4 | N112: 129.4 | O112: 389.67 | P112: 194.62 | Q112: 373.77 | R112: 147.91 | U112: IPC
A113: WhatsAppforBusinessAPIconversacióniniciadaporlaempresa(Entidad)SudáfricaAutenticaciónNANANA | B113: IT-BPO-14-86 | C113: WhatsApp for Business API | D113: conversación iniciada por la empresa (Entidad) | E113: Sudáfrica | F113: Autenticación | G113: NA | H113: NA | I113: NA | J113: Conversación | K113: 107.3 | L113: 118.88 | M113: 441.84 | N113: 103.1 | O113: 324.58 | P113: 155.7 | Q113: 311.09 | R113: 147.91 | U113: IPC
A114: WhatsAppforBusinessAPIconversacióniniciadaporlaempresa(Entidad)EspañaAutenticaciónNANANA | B114: IT-BPO-14-87 | C114: WhatsApp for Business API | D114: conversación iniciada por la empresa (Entidad) | E114: España | F114: Autenticación | G114: NA | H114: NA | I114: NA | J114: Conversación | K114: 203.04 | L114: 225.13 | M114: 835.29 | N114: 195.67 | O114: 526.69 | P114: 294.56 | Q114: 505.45 | R114: 147.91 | U114: IPC
A115: WhatsAppforBusinessAPIconversacióniniciadaporlaempresa(Entidad)TurquíaAutenticaciónNANANA | B115: IT-BPO-14-88 | C115: WhatsApp for Business API | D115: conversación iniciada por la empresa (Entidad) | E115: Turquía | F115: Autenticación | G115: NA | H115: NA | I115: NA | J115: Conversación | K115: 49.44 | L115: 54.7 | M115: 203.04 | N115: 47.34 | O115: 93.34 | P115: 71.54 | Q115: 89.7 | R115: 147.91 | U115: IPC
A116: WhatsAppforBusinessAPIconversacióniniciadaporlaempresa(Entidad)EmiratosÁrabesUnidosAutenticaciónNANANA | B116: IT-BPO-14-89 | C116: WhatsApp for Business API | D116: conversación iniciada por la empresa (Entidad) | E116: Emiratos Árabes Unidos | F116: Autenticación | G116: NA | H116: NA | I116: NA | J116: Conversación | K116: 106.25 | L116: 116.77 | M116: 435.53 | N116: 102.04 | O116: 328.87 | P116: 153.59 | Q116: 315.69 | R116: 147.91 | U116: IPC
A117: WhatsAppforBusinessAPIconversacióniniciadaporlaempresa(Entidad)ReinoUnidoAutenticaciónNANANA | B117: IT-BPO-14-90 | C117: WhatsApp for Business API | D117: conversación iniciada por la empresa (Entidad) | E117: Reino Unido | F117: Autenticación | G117: NA | H117: NA | I117: NA | J117: Conversación | K117: 212.5 | L117: 235.65 | M117: 873.16 | N117: 205.14 | O117: 453.04 | P117: 308.24 | Q117: 434.72 | R117: 147.91 | U117: IPC
A118: WhatsAppforBusinessAPIconversacióniniciadaporlaempresa(Entidad)Norteamérica*AutenticaciónNANANA | B118: IT-BPO-14-91 | C118: WhatsApp for Business API | D118: conversación iniciada por la empresa (Entidad) | E118: Norteamérica* | F118: Autenticación | G118: NA | H118: NA | I118: NA | J118: Conversación | K118: 79.95 | L118: 88.37 | M118: 331.38 | N118: 76.8 | O118: 214.1 | P118: 116.77 | Q118: 205.28 | R118: 147.91 | U118: IPC
A119: WhatsAppforBusinessAPIconversacióniniciadaporlaempresa(Entidad)RestodeÁfrica*AutenticaciónNANANA | B119: IT-BPO-14-92 | C119: WhatsApp for Business API | D119: conversación iniciada por la empresa (Entidad) | E119: Resto de África* | F119: Autenticación | G119: NA | H119: NA | I119: NA | J119: Conversación | K119: 85.21 | L119: 94.68 | M119: 354.52 | N119: 82.06 | O119: 192.69 | P119: 124.14 | Q119: 184.58 | R119: 147.91 | U119: IPC
A120: WhatsAppforBusinessAPIconversacióniniciadaporlaempresa(Entidad)RestodeAsia-Pacífico*AutenticaciónNANANA | B120: IT-BPO-14-93 | C120: WhatsApp for Business API | D120: conversación iniciada por la empresa (Entidad) | E120: Resto de Asia-Pacífico* | F120: Autenticación | G120: NA | H120: NA | I120: NA | J120: Conversación | K120: 251.43 | L120: 279.83 | M120: 1035.17 | N120: 243.01 | O120: 626.9 | P120: 366.1 | Q120: 601.48 | R120: 147.91 | U120: IPC
A121: WhatsAppforBusinessAPIconversacióniniciadaporlaempresa(Entidad)RestodeEuropaCentralyOriental*AutenticaciónNANANA | B121: IT-BPO-14-94 | C121: WhatsApp for Business API | D121: conversación iniciada por la empresa (Entidad) | E121: Resto de Europa Central y Oriental* | F121: Autenticación | G121: NA | H121: NA | I121: NA | J121: Conversación | K121: 329.28 | L121: 366.1 | M121: 1358.13 | N121: 318.76 | O121: 736.52 | P121: 479.71 | Q121: 706.71 | R121: 147.91 | U121: IPC
A122: WhatsAppforBusinessAPIconversacióniniciadaporlaempresa(Entidad)RestodeLatinoamérica*AutenticaciónNANANA | B122: IT-BPO-14-95 | C122: WhatsApp for Business API | D122: conversación iniciada por la empresa (Entidad) | E122: Resto de Latinoamérica* | F122: Autenticación | G122: NA | H122: NA | I122: NA | J122: Conversación | K122: 264.05 | L122: 292.46 | M122: 1085.66 | N122: 254.58 | O122: 633.75 | P122: 382.93 | Q122: 607.8 | R122: 147.91 | U122: IPC
A123: WhatsAppforBusinessAPIconversacióniniciadaporlaempresa(Entidad)RestodeOrienteMedio*AutenticaciónNANANA | B123: IT-BPO-14-96 | C123: WhatsApp for Business API | D123: conversación iniciada por la empresa (Entidad) | E123: Resto de Oriente Medio* | F123: Autenticación | G123: NA | H123: NA | I123: NA | J123: Conversación | K123: 106.25 | L123: 116.77 | M123: 435.53 | N123: 102.04 | O123: 292.04 | P123: 153.59 | Q123: 280.04 | R123: 147.91 | U123: IPC
A124: WhatsAppforBusinessAPIconversacióniniciadaporlaempresa(Entidad)RestodeEuropaOccidental*AutenticaciónNANANA | B124: IT-BPO-14-97 | C124: WhatsApp for Business API | D124: conversación iniciada por la empresa (Entidad) | E124: Resto de Europa Occidental* | F124: Autenticación | G124: NA | H124: NA | I124: NA | J124: Conversación | K124: 224.08 | L124: 248.27 | M124: 924.71 | N124: 216.71 | O124: 507 | P124: 325.07 | Q124: 486.47 | R124: 147.91 | U124: IPC
A125: WhatsAppforBusinessAPIconversacióniniciadaporlaempresa(Entidad)Otros*AutenticaciónNANANA | B125: IT-BPO-14-98 | C125: WhatsApp for Business API | D125: conversación iniciada por la empresa (Entidad) | E125: Otros* | F125: Autenticación | G125: NA | H125: NA | I125: NA | J125: Conversación | K125: 179.89 | L125: 199.88 | M125: 742.71 | N125: 173.58 | O125: 517.27 | P125: 261.95 | Q125: 496.25 | R125: 147.91 | U125: IPC
A126: WhatsAppforBusinessAPIconversacióniniciadaporelclienteArgentinaServicioNANANA | B126: IT-BPO-14-99 | C126: WhatsApp for Business API | D126: conversación iniciada por el cliente | E126: Argentina | F126: Servicio | G126: NA | H126: NA | I126: NA | J126: Conversación | K126: 187.26 | L126: 279.83 | M126: 773.22 | N126: 180.94 | O126: 270.63 | P126: 272.47 | Q126: 507.75 | R126: 71.01 | U126: IPC
A127: WhatsAppforBusinessAPIconversacióniniciadaporelclienteBrasilServicioNANANA | B127: IT-BPO-14-100 | C127: WhatsApp for Business API | D127: conversación iniciada por el cliente | E127: Brasil | F127: Servicio | G127: NA | H127: NA | I127: NA | J127: Conversación | K127: 177.79 | L127: 265.1 | M127: 732.19 | N127: 171.48 | O127: 256.92 | P127: 258.79 | Q127: 513.5 | R127: 71.01 | U127: IPC
A128: WhatsAppforBusinessAPIconversacióniniciadaporelclienteChileServicioNANANA | B128: IT-BPO-14-101 | C128: WhatsApp for Business API | D128: conversación iniciada por el cliente | E128: Chile | F128: Servicio | G128: NA | H128: NA | I128: NA | J128: Conversación | K128: 269.31 | L128: 401.86 | M128: 1106.7 | N128: 259.84 | O128: 388.81 | P128: 390.29 | Q128: 730.28 | R128: 71.01 | U128: IPC
A129: WhatsAppforBusinessAPIconversacióniniciadaporelclienteColombiaServicioNANANA | B129: IT-BPO-14-102 | C129: WhatsApp for Business API | D129: conversación iniciada por el cliente | E129: Colombia | F129: Servicio | G129: NA | H129: NA | I129: NA | J129: Conversación | K129: 35.77 | L129: 408.18 | M129: 150.44 | N129: 34.72 | O129: 51.38 | P129: 52.6 | Q129: 102.93 | R129: 71.01 | U129: IPC
A130: =SUBSTITUTE(C130&D130&E130&F130&G130&H130&I130," ","") -> WhatsAppforBusinessAPIconversacióniniciadaporelclienteEgiptoServicioNANANA | B130: IT-BPO-14-103 | C130: WhatsApp for Business API | D130: conversación iniciada por el cliente | E130: Egipto | F130: Servicio | G130: NA | H130: NA | I130: NA | J130: Conversación | K130: 380.82 | L130: 569.13 | M130: 1569.58 | N130: 369.25 | O130: 551.53 | P130: 554.4 | Q130: 881.51 | R130: 71.01 | U130: IPC
A131: WhatsAppforBusinessAPIconversacióniniciadaporelclienteFranciaServicioNANANA | B131: IT-BPO-14-104 | C131: WhatsApp for Business API | D131: conversación iniciada por el cliente | E131: Francia | F131: Servicio | G131: NA | H131: NA | I131: NA | J131: Conversación | K131: 508.12 | L131: 759.54 | M131: 2091.38 | N131: 492.34 | O131: 735.65 | P131: 739.56 | Q131: 1176.5 | R131: 71.01 | U131: IPC
A132: WhatsAppforBusinessAPIconversacióniniciadaporelclienteAlemaniaServicioNANANA | B132: IT-BPO-14-105 | C132: WhatsApp for Business API | D132: conversación iniciada por el cliente | E132: Alemania | F132: Servicio | G132: NA | H132: NA | I132: NA | J132: Conversación | K132: 484.97 | L132: 723.78 | M132: 1994.59 | N132: 469.19 | O132: 701.4 | P132: 704.84 | Q132: 1121.3 | R132: 71.01 | U132: IPC
A133: WhatsAppforBusinessAPIconversacióniniciadaporelclienteIndiaServicioNANANA | B133: IT-BPO-14-106 | C133: WhatsApp for Business API | D133: conversación iniciada por el cliente | E133: India | F133: Servicio | G133: NA | H133: NA | I133: NA | J133: Conversación | K133: 24.2 | L133: 105.2 | M133: 99.94 | N133: 23.14 | O133: 34.25 | P133: 34.72 | Q133: 87.98 | R133: 71.01 | U133: IPC
A134: WhatsAppforBusinessAPIconversacióniniciadaporelclienteIndonesiaServicioNANANA | B134: IT-BPO-14-107 | C134: WhatsApp for Business API | D134: conversación iniciada por el cliente | E134: Indonesia | F134: Servicio | G134: NA | H134: NA | I134: NA | J134: Conversación | K134: 112.56 | L134: 168.32 | M134: 466.04 | N134: 108.36 | O134: 162.72 | P134: 164.11 | Q134: 337.54 | R134: 71.01 | U134: IPC
A135: WhatsAppforBusinessAPIconversacióniniciadaporelclienteIsraelServicioNANANA | B135: IT-BPO-14-108 | C135: WhatsApp for Business API | D135: conversación iniciada por el cliente | E135: Israel | F135: Servicio | G135: NA | H135: NA | I135: NA | J135: Conversación | K135: 107.3 | L135: 158.85 | M135: 441.84 | N135: 103.1 | O135: 154.15 | P135: 155.7 | Q135: 289.81 | R135: 71.01 | U135: IPC
A136: WhatsAppforBusinessAPIconversacióniniciadaporelclienteItaliaServicioNANANA | B136: IT-BPO-14-109 | C136: WhatsApp for Business API | D136: conversación iniciada por el cliente | E136: Italia | F136: Servicio | G136: NA | H136: NA | I136: NA | J136: Conversación | K136: 228.28 | L136: 340.85 | M136: 939.44 | N136: 220.92 | O136: 330.57 | P136: 332.43 | Q136: 567.55 | R136: 71.01 | U136: IPC
A137: WhatsAppforBusinessAPIconversacióniniciadaporelclienteMalasiaServicioNANANA | B137: IT-BPO-14-110 | C137: WhatsApp for Business API | D137: conversación iniciada por el cliente | E137: Malasia | F137: Servicio | G137: NA | H137: NA | I137: NA | J137: Conversación | K137: 130.45 | L137: 194.62 | M137: 536.52 | N137: 126.24 | O137: 188.41 | P137: 189.36 | Q137: 706.71 | R137: 71.01 | U137: IPC
A138: WhatsAppforBusinessAPIconversacióniniciadaporelclienteMéxicoServicioNANANA | B138: IT-BPO-14-111 | C138: WhatsApp for Business API | D138: conversación iniciada por el cliente | E138: México | F138: Servicio | G138: NA | H138: NA | I138: NA | J138: Conversación | K138: 62.07 | L138: 92.58 | M138: 257.74 | N138: 59.96 | O138: 89.92 | P138: 91.52 | Q138: 358.24 | R138: 71.01 | U138: IPC
A139: WhatsAppforBusinessAPIconversacióniniciadaporelclientePaísesBajosServicioNANANA | B139: IT-BPO-14-112 | C139: WhatsApp for Business API | D139: conversación iniciada por el cliente | E139: Países Bajos | F139: Servicio | G139: NA | H139: NA | I139: NA | J139: Conversación | K139: 527.05 | L139: 787.95 | M139: 2169.22 | N139: 510.22 | O139: 763.07 | P139: 765.86 | Q139: 1311.63 | R139: 71.01 | U139: IPC
A140: WhatsAppforBusinessAPIconversacióniniciadaporelclienteNigeriaServicioNANANA | B140: IT-BPO-14-113 | C140: WhatsApp for Business API | D140: conversación iniciada por el cliente | E140: Nigeria | F140: Servicio | G140: NA | H140: NA | I140: NA | J140: Conversación | K140: 184.1 | L140: 274.57 | M140: 756.39 | N140: 177.79 | O140: 265.48 | P140: 267.21 | Q140: 423.79 | R140: 71.01 | U140: IPC
A141: WhatsAppforBusinessAPIconversacióniniciadaporelclientePakistánServicioNANANA | B141: IT-BPO-14-114 | C141: WhatsApp for Business API | D141: conversación iniciada por el cliente | E141: Pakistán | F141: Servicio | G141: NA | H141: NA | I141: NA | J141: Conversación | K141: 84.16 | L141: 125.19 | M141: 349.26 | N141: 81 | O141: 121.61 | P141: 123.08 | Q141: 388.72 | R141: 71.01 | U141: IPC
A142: WhatsAppforBusinessAPIconversacióniniciadaporelclientePerúServicioNANANA | B142: IT-BPO-14-115 | C142: WhatsApp for Business API | D142: conversación iniciada por el cliente | E142: Perú | F142: Servicio | G142: NA | H142: NA | I142: NA | J142: Conversación | K142: 106.25 | L142: 157.8 | M142: 439.74 | N142: 102.04 | O142: 153.3 | P142: 154.64 | Q142: 577.33 | R142: 71.01 | U142: IPC
A143: WhatsAppforBusinessAPIconversacióniniciadaporelclienteRusiaServicioNANANA | B143: IT-BPO-14-116 | C143: WhatsApp for Business API | D143: conversación iniciada por el cliente | E143: Rusia | F143: Servicio | G143: NA | H143: NA | I143: NA | J143: Conversación | K143: 235.65 | L143: 351.37 | M143: 969.94 | N143: 228.28 | O143: 340.85 | P143: 341.9 | Q143: 658.98 | R143: 71.01 | U143: IPC
A144: WhatsAppforBusinessAPIconversacióniniciadaporelclienteArabiaSaudíServicioNANANA | B144: IT-BPO-14-117 | C144: WhatsApp for Business API | D144: conversación iniciada por el cliente | E144: Arabia Saudí | F144: Servicio | G144: NA | H144: NA | I144: NA | J144: Conversación | K144: 115.72 | L144: 172.53 | M144: 476.56 | N144: 111.51 | O144: 167.01 | P144: 168.32 | Q144: 373.77 | R144: 71.01 | U144: IPC
A145: WhatsAppforBusinessAPIconversacióniniciadaporelclienteSudáfricaServicioNANANA | B145: IT-BPO-14-118 | C145: WhatsApp for Business API | D145: conversación iniciada por el cliente | E145: Sudáfrica | F145: Servicio | G145: NA | H145: NA | I145: NA | J145: Conversación | K145: 99.94 | L145: 148.33 | M145: 411.33 | N145: 95.73 | O145: 143.88 | P145: 145.18 | Q145: 311.09 | R145: 71.01 | U145: IPC
A146: WhatsAppforBusinessAPIconversacióniniciadaporelclienteEspañaServicioNANANA | B146: IT-BPO-14-119 | C146: WhatsApp for Business API | D146: conversación iniciada por el cliente | E146: España | F146: Servicio | G146: NA | H146: NA | I146: NA | J146: Conversación | K146: 218.82 | L146: 326.12 | M146: 900.51 | N146: 211.45 | O146: 316.02 | P146: 317.7 | Q146: 505.45 | R146: 71.01 | U146: IPC
A147: WhatsAppforBusinessAPIconversacióniniciadaporelclienteTurquíaServicioNANANA | B147: IT-BPO-14-120 | C147: WhatsApp for Business API | D147: conversación iniciada por el cliente | E147: Turquía | F147: Servicio | G147: NA | H147: NA | I147: NA | J147: Conversación | K147: 17.88 | L147: 26.3 | M147: 75.74 | N147: 16.83 | O147: 25.69 | P147: 26.3 | Q147: 89.7 | R147: 71.01 | U147: IPC
A148: WhatsAppforBusinessAPIconversacióniniciadaporelclienteEmiratosÁrabesUnidosServicioNANANA | B148: IT-BPO-14-121 | C148: WhatsApp for Business API | D148: conversación iniciada por el cliente | E148: Emiratos Árabes Unidos | F148: Servicio | G148: NA | H148: NA | I148: NA | J148: Conversación | K148: 112.56 | L148: 168.32 | M148: 466.04 | N148: 108.36 | O148: 162.72 | P148: 164.11 | Q148: 315.69 | R148: 71.01 | U148: IPC
A149: WhatsAppforBusinessAPIconversacióniniciadaporelclienteReinoUnidoServicioNANANA | B149: IT-BPO-14-122 | C149: WhatsApp for Business API | D149: conversación iniciada por el cliente | E149: Reino Unido | F149: Servicio | G149: NA | H149: NA | I149: NA | J149: Conversación | K149: 229.34 | L149: 342.95 | M149: 947.85 | N149: 221.97 | O149: 332.28 | P149: 333.48 | Q149: 434.72 | R149: 71.01 | U149: IPC
A150: WhatsAppforBusinessAPIconversacióniniciadaporelclienteNorteamérica*ServicioNANANA | B150: IT-BPO-14-123 | C150: WhatsApp for Business API | D150: conversación iniciada por el cliente | E150: Norteamérica* | F150: Servicio | G150: NA | H150: NA | I150: NA | J150: Conversación | K150: 52.6 | L150: 77.85 | M150: 216.71 | N150: 50.5 | O150: 75.37 | P150: 75.74 | Q150: 205.28 | R150: 71.01 | U150: IPC
A151: WhatsAppforBusinessAPIconversacióniniciadaporelclienteRestodeÁfrica*ServicioNANANA | B151: IT-BPO-14-124 | C151: WhatsApp for Business API | D151: conversación iniciada por el cliente | E151: Resto de África* | F151: Servicio | G151: NA | H151: NA | I151: NA | J151: Conversación | K151: 214.61 | L151: 320.86 | M151: 886.84 | N151: 208.3 | O151: 310.88 | P151: 312.44 | Q151: 184.58 | R151: 71.01 | U151: IPC
A152: WhatsAppforBusinessAPIconversacióniniciadaporelclienteRestodeAsia-Pacífico*ServicioNANANA | B152: IT-BPO-14-125 | C152: WhatsApp for Business API | D152: conversación iniciada por el cliente | E152: Resto de Asia-Pacífico* | F152: Servicio | G152: NA | H152: NA | I152: NA | J152: Conversación | K152: 132.55 | L152: 197.78 | M152: 545.99 | N152: 128.34 | O152: 191.83 | P152: 192.52 | Q152: 601.48 | R152: 71.01 | U152: IPC
A153: WhatsAppforBusinessAPIconversacióniniciadaporelclienteRestodeEuropaCentralyOriental*ServicioNANANA | B153: IT-BPO-14-126 | C153: WhatsApp for Business API | D153: conversación iniciada por el cliente | E153: Resto de Europa Central y Oriental* | F153: Servicio | G153: NA | H153: NA | I153: NA | J153: Conversación | K153: 148.33 | L153: 220.92 | M153: 610.16 | N153: 143.07 | O153: 214.1 | P153: 215.66 | Q153: 706.71 | R153: 71.01 | U153: IPC
A154: WhatsAppforBusinessAPIconversacióniniciadaporelclienteRestodeLatinoamérica*ServicioNANANA | B154: IT-BPO-14-127 | C154: WhatsApp for Business API | D154: conversación iniciada por el cliente | E154: Resto de Latinoamérica* | F154: Servicio | G154: NA | H154: NA | I154: NA | J154: Conversación | K154: 250.38 | L154: 373.46 | M154: 1030.96 | N154: 241.96 | O154: 362.27 | P154: 363.99 | Q154: 607.8 | R154: 71.01 | U154: IPC
A155: WhatsAppforBusinessAPIconversacióniniciadaporelclienteRestodeOrienteMedio*ServicioNANANA | B155: IT-BPO-14-128 | C155: WhatsApp for Business API | D155: conversación iniciada por el cliente | E155: Resto de Oriente Medio* | F155: Servicio | G155: NA | H155: NA | I155: NA | J155: Conversación | K155: 129.4 | L155: 320.86 | M155: 532.31 | N155: 125.19 | O155: 186.7 | P155: 187.26 | Q155: 280.04 | R155: 71.01 | U155: IPC
A156: WhatsAppforBusinessAPIconversacióniniciadaporelclienteRestodeEuropaOccidental*ServicioNANANA | B156: IT-BPO-14-129 | C156: WhatsApp for Business API | D156: conversación iniciada por el cliente | E156: Resto de Europa Occidental* | F156: Servicio | G156: NA | H156: NA | I156: NA | J156: Conversación | K156: 235.65 | L156: 351.37 | M156: 967.84 | N156: 227.23 | O156: 340 | P156: 341.9 | Q156: 486.47 | R156: 71.01 | U156: IPC
A157: WhatsAppforBusinessAPIconversacióniniciadaporelclienteOtros*ServicioNANANA | B157: IT-BPO-14-130 | C157: WhatsApp for Business API | D157: conversación iniciada por el cliente | E157: Otros* | F157: Servicio | G157: NA | H157: NA | I157: NA | J157: Conversación | K157: 86.26 | L157: 324.02 | M157: 354.52 | N157: 83.11 | O157: 124.18 | P157: 125.19 | Q157: 496.25 | R157: 71.01 | U157: IPC
A158: MensajeSMS(ShortMessageService)SMSenunavíaNANANANANA | B158: IT-BPO-16-1 | C158: Mensaje SMS (Short Message Service) | D158: SMS en una vía | E158: NA | F158: NA | G158: NA | H158: NA | I158: NA | J158: Mensaje SMS | K158: 4.21 | L158: 18.94 | M158: 600.69 | N158: 5.26 | O158: 12.01 | P158: 4.21 | Q158: 5.39 | R158: 9.47 | U158: IPC
A159: MensajeSMS(ShortMessageService)SMSendoblevíaNANANANANA | B159: IT-BPO-16-2 | C159: Mensaje SMS (Short Message Service) | D159: SMS en doble vía | E159: NA | F159: NA | G159: NA | H159: NA | I159: NA | J159: Mensaje SMS | K159: 5.26 | L159: 31.56 | M159: 1079.35 | N159: 10.52 | O159: 22.77 | P159: 5.26 | Q159: 10.79 | R159: 18.94 | U159: IPC
A160: MensajeSMS(ShortMessageService)SMSalexteriorunavíaEstadosUnidosNANANANA | B160: IT-BPO-16-3 | C160: Mensaje SMS (Short Message Service) | D160: SMS al exterior una vía | E160: Estados Unidos | F160: NA | G160: NA | H160: NA | I160: NA | J160: Mensaje SMS | K160: 336.64 | L160: 2525.85 | M160: 1090.92 | N160: 66.28 | O160: 919.4 | P160: 71.54 | Q160: 103.85 | R160: 72.9 | U160: IPC
A161: MensajeSMS(ShortMessageService)SMSalexteriorunavíaCanadáyPuertoRicoNANANANA | B161: IT-BPO-16-4 | C161: Mensaje SMS (Short Message Service) | D161: SMS al exterior una vía | E161: Canadá y Puerto Rico | F161: NA | G161: NA | H161: NA | I161: NA | J161: Mensaje SMS | K161: 336.64 | L161: 2525.85 | M161: 1090.92 | N161: 106.25 | O161: 181.99 | P161: 116.77 | Q161: 252.21 | R161: 87.11 | U161: IPC
A162: MensajeSMS(ShortMessageService)SMSalexteriorunavíaEuropaNANANANA | B162: IT-BPO-16-5 | C162: Mensaje SMS (Short Message Service) | D162: SMS al exterior una vía | E162: Europa | F162: NA | G162: NA | H162: NA | I162: NA | J162: Mensaje SMS | K162: 336.64 | L162: 2525.85 | M162: 1090.92 | N162: 266.16 | O162: 798.09 | P162: 1874.66 | Q162: 782.26 | R162: 1047.16 | U162: IPC
A163: MensajeSMS(ShortMessageService)SMSalexteriorunavíaAsiaNANANANA | B163: IT-BPO-16-6 | C163: Mensaje SMS (Short Message Service) | D163: SMS al exterior una vía | E163: Asia | F163: NA | G163: NA | H163: NA | I163: NA | J163: Mensaje SMS | K163: 336.64 | L163: 2525.85 | M163: 1090.92 | N163: 332.43 | O163: 985.77 | P163: 3376.92 | Q163: 876.67 | R163: 1047.16 | U163: IPC
A164: MensajeSMS(ShortMessageService)SMSalexteriorunavíaOceaníayelrestodeAméricaNANANANA | B164: IT-BPO-16-7 | C164: Mensaje SMS (Short Message Service) | D164: SMS al exterior una vía | E164: Oceanía y el resto de América | F164: NA | G164: NA | H164: NA | I164: NA | J164: Mensaje SMS | K164: 336.64 | L164: 2525.85 | M164: 1090.92 | N164: 466.04 | O164: 587.67 | P164: 2114.52 | Q164: 4720.51 | R164: 1047.16 | U164: IPC
A165: MensajeSMS(ShortMessageService)SMSalexteriorunavíarestodelmundoNANANANA | B165: IT-BPO-16-8 | C165: Mensaje SMS (Short Message Service) | D165: SMS al exterior una vía | E165: resto del mundo | F165: NA | G165: NA | H165: NA | I165: NA | J165: Mensaje SMS | K165: 336.64 | L165: 3158.1 | M165: 1090.92 | N165: 732.19 | O165: 2551.39 | P165: 1803.13 | Q165: 4720.51 | R165: 1047.16 | U165: IPC
A166: SMSconLandingPageNANANANANANA | B166: IT-BPO-17-1 | C166: SMS con Landing Page | D166: NA | E166: NA | F166: NA | G166: NA | H166: NA | I166: NA | J166: Mensaje SMS | K166: 38.92 | L166: 50.5 | M166: 600.69 | N166: 8.42 | O166: 36.25 | P166: 29.46 | Q166: 5.39 | R166: 11.89 | U166: IPC
A167: SMScomoCHATAgenteGeneralJornadaOrdinariaNANANANA | B167: IT-BPO-18-1 | C167: SMS como CHAT | D167: Agente General | E167: Jornada Ordinaria | F167: NA | G167: NA | H167: NA | I167: NA | J167: Mes | K167: 5585393.52 | L167: 5730809.52 | M167: 7359268.34 | N167: 5773493.72 | O167: 6632267.71 | P167: 8807005.07 | Q167: 4462552.5 | R167: 5539458.71 | U167: SMMLV
A168: SMScomoCHATAgenteGeneralServicio7x24NANANANA | B168: IT-BPO-18-2 | C168: SMS como CHAT | D168: Agente General | E168: Servicio 7x24 | F168: NA | G168: NA | H168: NA | I168: NA | J168: Mes 7x24 | K168: 5585393.52 | L168: 21015668.15 | M168: 32353229.16 | N168: 23342988.81 | O168: 23043600.82 | P168: 42138249.9 | Q168: 20561262.58 | R168: 20138279.69 | U168: SMMLV
A169: SMScomoCHATAgentetécnicoJornadaOrdinariaNANANANA | B169: IT-BPO-18-3 | C169: SMS como CHAT | D169: Agente técnico | E169: Jornada Ordinaria | F169: NA | G169: NA | H169: NA | I169: NA | J169: Mes | K169: 6790331.52 | L169: 6984115.86 | M169: 8655217.26 | N169: 7020186.26 | O169: 7943897.74 | P169: 10624477.31 | Q169: 5755244.84 | R169: 6657600 | U169: SMMLV
A170: SMScomoCHATAgentetécnicoServicio7x24NANANANA | B170: IT-BPO-18-4 | C170: SMS como CHAT | D170: Agente técnico | E170: Servicio 7x24 | F170: NA | G170: NA | H170: NA | I170: NA | J170: Mes 7x24 | K170: 6790331.52 | L170: 26028893.51 | M170: 39984836.04 | N170: 27810663.27 | O170: 28501362.48 | P170: 52547287.05 | Q170: 26799767.5 | R170: 25351700.17 | U170: SMMLV
A171: SMScomoCHATAgenteProfesionalJornadaOrdinariaNANANANA | B171: IT-BPO-18-5 | C171: SMS como CHAT | D171: Agente Profesional | E171: Jornada Ordinaria | F171: NA | G171: NA | H171: NA | I171: NA | J171: Mes | K171: 9009073.08 | L171: 9225166.95 | M171: 10890321.41 | N171: 9249381.78 | O171: 11429496.96 | P171: 17438406.08 | Q171: 8416675.78 | R171: 8631504.6 | U171: SMMLV
A172: SMScomoCHATAgenteProfesionalServicio7x24NANANANA | B172: IT-BPO-18-6 | C172: SMS como CHAT | D172: Agente Profesional | E172: Servicio 7x24 | F172: NA | G172: NA | H172: NA | I172: NA | J172: Mes 7x24 | K172: 9009073.08 | L172: 34993102.25 | M172: 53681843.93 | N172: 38283317.73 | O172: 45324673.11 | P172: 91903629.23 | Q172: 39643774.96 | R172: 34555183.6 | U172: SMMLV
A173: SMScomoCHATAgenteEspecializadoJornadaOrdinariaNANANANA | B173: IT-BPO-18-7 | C173: SMS como CHAT | D173: Agente Especializado | E173: Jornada Ordinaria | F173: NA | G173: NA | H173: NA | I173: NA | J173: Mes | K173: 11490693.48 | L173: 11731779.63 | M173: 13837242.35 | N173: 11742766.86 | O173: 14890386.2 | P173: 21073349.46 | Q173: 11078106.73 | R173: 10867787.07 | U173: SMMLV
A174: SMScomoCHATAgenteEspecializadoServicio7x24NANANANA | B174: IT-BPO-18-8 | C174: SMS como CHAT | D174: Agente Especializado | E174: Servicio 7x24 | F174: NA | G174: NA | H174: NA | I174: NA | J174: Mes 7x24 | K174: 11490693.48 | L174: 45019552.97 | M174: 69049502.07 | N174: 49997125.13 | O174: 58682152.72 | P174: 112721692.6 | Q174: 52487782.43 | R174: 44982024.36 | U174: SMMLV
A175: TransferenciadechatNANANANANANA | B175: IT-BPO-19-1 | C175: Transferencia de chat | D175: NA | E175: NA | F175: NA | G175: NA | H175: NA | I175: NA | J175: Transferencia | K175: 1343.4 | L175: 631.2 | M175: 23425.94 | N175: 932.07 | O175: 697.89 | P175: 451.31 | Q175: 45.86 | R175: 336.64 | U175: IPC
A176: ChatbotdumbNANANANANANA | B176: IT-BPO-20-1 | C176: Chatbot dumb | D176: NA | E176: NA | F176: NA | G176: NA | H176: NA | I176: NA | J176: Respuesta Chatbot dumb | K176: 36.82 | L176: 757.44 | M176: 1597.99 | N176: 605.95 | O176: 319.33 | P176: 61.02 | Q176: 62.48 | R176: 484.97 | U176: IPC
A177: ChatbotSmartNANANANANANA | B177: IT-BPO-21-1 | C177: Chatbot Smart | D177: NA | E177: NA | F177: NA | G177: NA | H177: NA | I177: NA | J177: Respuesta Chatbot Smart | K177: 68.38 | L177: 1074.09 | M177: 3413.74 | N177: 1262.4 | O177: 472.21 | P177: 120.98 | Q177: 62.48 | R177: 823.82 | U177: IPC
A178: VoicebotSmartNANANANANANA | B178: IT-BPO-22-1 | C178: Voicebot Smart | D178: NA | E178: NA | F178: NA | G178: NA | H178: NA | I178: NA | J178: Minuto Voicebot Smart | K178: 368.2 | L178: 1515.93 | M178: 5513.53 | N178: 830.03 | O178: 1137.52 | P178: 391.34 | Q178: 46.22 | R178: 1385.69 | U178: IPC
A179: HoradesarrolloparaIntegracionesycanalesdigitalesNANANANANANA | B179: IT-BPO-23-1 | C179: Hora desarrollo para Integraciones y canales digitales | D179: NA | E179: NA | F179: NA | G179: NA | H179: NA | I179: NA | J179: Hora desarrollo para Integraciones y canales digitales | K179: 126658.7 | L179: 353648.74 | M179: 656449.05 | N179: 87288.65 | O179: 477018.88 | P179: 264503.31 | Q179: 87666.67 | R179: 91031.98 | U179: IPC
A180: AnalyticsNANANANANANA | B180: IT-BPO-24-1 | C180: Analytics | D180: NA | E180: NA | F180: NA | G180: NA | H180: NA | I180: NA | J180: Licencia Mes | K180: 272161.87 | L180: 757818.72 | M180: 11884780.64 | N180: 115713.69 | O180: 229849.71 | P180: 198377.74 | Q180: 124956.02 | R180: 198407.2 | U180: IPC
A181: AgenteenSitio AgentegeneralJornadaOrdinariaEnsitioOroNANA | B181: IT-BPO-25-1 | C181: Agente en Sitio | D181: Agente general | E181: Jornada Ordinaria | F181: En sitio | G181: Oro | H181: NA | I181: NA | J181: Mes | K181: 5275604.88 | L181: 5270679.57 | M181: 8976091.68 | N181: 5664921.18 | O181: 7158459.44 | P181: 6688011.44 | Q181: 4965358.74 | R181: 5539458.71 | U181: SMMLV
A182: AgenteenSitio AgentegeneralHoraextradiurnaEnsitioOroNANA | B182: IT-BPO-25-2 | C182: Agente en Sitio | D182: Agente general | E182: Hora extra diurna | F182: En sitio | G182: Oro | H182: NA | I182: NA | J182: Hora | K182: 31402.41 | L182: 24478.73 | M182: 48784.44 | N182: 22854.84 | O182: 30652.43 | P182: 39809.82 | Q182: 25893.44 | R182: 20929.28 | U182: SMMLV
A183: AgenteenSitio AgentegeneralHoraextranocturna EnsitioOroNANA | B183: IT-BPO-25-3 | C183: Agente en Sitio | D183: Agente general | E183: Hora extra nocturna | F183: En sitio | G183: Oro | H183: NA | I183: NA | J183: Hora | K183: 43963.37 | L183: 34270.22 | M183: 68297.34 | N183: 31467.02 | O183: 41108.71 | P183: 55734.41 | Q183: 36250.81 | R183: 29301.11 | U183: SMMLV
A184: AgenteenSitio AgentegeneralHoraextradominicalyfestivoEnsitioOroNANA | B184: IT-BPO-25-4 | C184: Agente en Sitio | D184: Agente general | E184: Hora extra dominical y festivo | F184: En sitio | G184: Oro | H184: NA | I184: NA | J184: Hora | K184: 50243.86 | L184: 48957.45 | M184: 78053.79 | N184: 35773.65 | O184: 48125.36 | P184: 79619.64 | Q184: 36250.81 | R184: 33486.96 | U184: SMMLV
A185: AgenteenSitio AgentegeneralServicio7x24EnsitioOroNANA | B185: IT-BPO-25-5 | C185: Agente en Sitio | D185: Agente general | E185: Servicio 7x24 | F185: En sitio | G185: Oro | H185: NA | I185: NA | J185: Mes 7x24 | K185: 22259160 | L185: 19763457.9 | M185: 35904363.44 | N185: 23234416.28 | O185: 25620917.84 | P185: 37405079.55 | Q185: 20023632.82 | R185: 20138279.69 | U185: SMMLV
A186: AgenteenSitio AgentegeneralJornadaOrdinariaEnsitioPlatinoNANA | B186: IT-BPO-25-6 | C186: Agente en Sitio | D186: Agente general | E186: Jornada Ordinaria | F186: En sitio | G186: Platino | H186: NA | I186: NA | J186: Mes | K186: 5539385.12 | L186: 5315377.47 | M186: 8285623.01 | N186: 5664921.18 | O186: 7146357.59 | P186: 6786872.42 | Q186: 4965358.74 | R186: 5625469.64 | U186: SMMLV
A187: AgenteenSitio AgentegeneralHoraextradiurnaEnsitioPlatinoNANA | B187: IT-BPO-25-7 | C187: Agente en Sitio | D187: Agente general | E187: Hora extra diurna | F187: En sitio | G187: Platino | H187: NA | I187: NA | J187: Hora | K187: 32972.53 | L187: 24478.73 | M187: 45031.88 | N187: 22854.84 | O187: 31185.47 | P187: 40398.93 | Q187: 25893.44 | R187: 21386.88 | U187: SMMLV
A188: AgenteenSitio AgentegeneralHoraextranocturna EnsitioPlatinoNANA | B188: IT-BPO-25-8 | C188: Agente en Sitio | D188: Agente general | E188: Hora extra nocturna | F188: En sitio | G188: Platino | H188: NA | I188: NA | J188: Hora | K188: 46161.54 | L188: 34270.22 | M188: 63044.63 | N188: 31467.02 | O188: 41832.03 | P188: 56557.85 | Q188: 36250.81 | R188: 29941.57 | U188: SMMLV
A189: AgenteenSitio AgentegeneralHoraextradominicalyfestivoEnsitioPlatinoNANA | B189: IT-BPO-25-9 | C189: Agente en Sitio | D189: Agente general | E189: Hora extra dominical y festivo | F189: En sitio | G189: Platino | H189: NA | I189: NA | J189: Hora | K189: 52756.05 | L189: 48957.45 | M189: 72049.91 | N189: 35773.65 | O189: 48944.01 | P189: 80796.77 | Q189: 36250.81 | R189: 34218.97 | U189: SMMLV
A190: AgenteenSitio AgentegeneralServicio7x24EnsitioPlatinoNANA | B190: IT-BPO-25-10 | C190: Agente en Sitio | D190: Agente general | E190: Servicio 7x24 | F190: En sitio | G190: Platino | H190: NA | I190: NA | J190: Mes 7x24 | K190: 23372118 | L190: 19891636.41 | M190: 33142489.83 | N190: 23234416.28 | O190: 24073320.14 | P190: 37957999.8 | Q190: 20023632.82 | R190: 20539312.05 | U190: SMMLV
A191: AgenteenSitio AgentetécnicoJornadaOrdinariaEnsitioOroNANA | B191: IT-BPO-25-11 | C191: Agente en Sitio | D191: Agente técnico | E191: Jornada Ordinaria | F191: En sitio | G191: Oro | H191: NA | I191: NA | J191: Mes | K191: 6480358.92 | L191: 6523985.91 | M191: 10733037.8 | N191: 6911613.72 | O191: 8834809.41 | P191: 8505482.58 | Q191: 6258051.08 | R191: 6657600 | U191: SMMLV
A192: AgenteenSitio AgentetécnicoHoraextradiurnaEnsitioOroNANA | B192: IT-BPO-25-12 | C192: Agente en Sitio | D192: Agente técnico | E192: Hora extra diurna | F192: En sitio | G192: Oro | H192: NA | I192: NA | J192: Hora | K192: 38573.57 | L192: 32638.67 | M192: 58332.84 | N192: 29348.19 | O192: 38575.04 | P192: 50628.42 | Q192: 34524.58 | R192: 26876.88 | U192: SMMLV
A193: AgenteenSitio AgentetécnicoHoraextranocturna EnsitioOroNANA | B193: IT-BPO-25-13 | C193: Agente en Sitio | D193: Agente técnico | E193: Hora extra nocturna | F193: En sitio | G193: Oro | H193: NA | I193: NA | J193: Hora | K193: 54002.99 | L193: 45693.26 | M193: 81665.1 | N193: 40557.71 | O193: 52020.14 | P193: 70879.35 | Q193: 48334.41 | R193: 37627.59 | U193: SMMLV
A194: =SUBSTITUTE(C194&D194&E194&F194&G194&H194&I194," ","") -> AgenteenSitio AgentetécnicoHoraextradominicalyfestivoEnsitioOroNANA | B194: IT-BPO-25-14 | C194: Agente en Sitio | D194: Agente técnico | E194: Hora extra dominical y festivo | F194: En sitio | G194: Oro | H194: NA | I194: NA | J194: Hora | K194: 61717.7 | L194: 65276.24 | M194: 93331.23 | N194: 46163.01 | O194: 58239.92 | P194: 101255.75 | Q194: 48334.41 | R194: 43003.06 | U194: SMMLV
A195: AgenteenSitio AgentetécnicoServicio7x24EnsitioOroNANA | B195: IT-BPO-25-15 | C195: Agente en Sitio | D195: Agente técnico | E195: Servicio 7x24 | F195: En sitio | G195: Oro | H195: NA | I195: NA | J195: Mes 7x24 | K195: 28282930.2 | L195: 24776683.26 | M195: 42932145.71 | N195: 27708552.33 | O195: 32317719.33 | P195: 47814111.23 | Q195: 26445636.55 | R195: 25351700.17 | U195: SMMLV
A196: AgenteenSitio AgentetécnicoJornadaOrdinariaEnsitioPlatinoNANA | B196: IT-BPO-25-16 | C196: Agente en Sitio | D196: Agente técnico | E196: Jornada Ordinaria | F196: En sitio | G196: Platino | H196: NA | I196: NA | J196: Mes | K196: 6804376.87 | L196: 6568683.81 | M196: 9907418.75 | N196: 6911613.72 | O196: 8565214.9 | P196: 8631210.48 | Q196: 6258051.08 | R196: 6743610.83 | U196: SMMLV
A197: AgenteenSitio AgentetécnicoHoraextradiurnaEnsitioPlatinoNANA | B197: IT-BPO-25-17 | C197: Agente en Sitio | D197: Agente técnico | E197: Hora extra diurna | F197: En sitio | G197: Platino | H197: NA | I197: NA | J197: Hora | K197: 40502.24 | L197: 32638.67 | M197: 53846.63 | N197: 29348.19 | O197: 39253.81 | P197: 51376.31 | Q197: 34524.58 | R197: 27334.38 | U197: SMMLV
A198: AgenteenSitio AgentetécnicoHoraextranocturna EnsitioPlatinoNANA | B198: IT-BPO-25-18 | C198: Agente en Sitio | D198: Agente técnico | E198: Hora extra nocturna | F198: En sitio | G198: Platino | H198: NA | I198: NA | J198: Hora | K198: 56703.14 | L198: 45693.26 | M198: 75383.09 | N198: 40557.71 | O198: 52944.03 | P198: 71927.27 | Q198: 48334.41 | R198: 38268.17 | U198: SMMLV
A199: AgenteenSitio AgentetécnicoHoraextradominicalyfestivoEnsitioPlatinoNANA | B199: IT-BPO-25-19 | C199: Agente en Sitio | D199: Agente técnico | E199: Hora extra dominical y festivo | F199: En sitio | G199: Platino | H199: NA | I199: NA | J199: Hora | K199: 64803.59 | L199: 65276.24 | M199: 86152.41 | N199: 46163.01 | O199: 62412.04 | P199: 102752.61 | Q199: 48334.41 | R199: 43735.07 | U199: SMMLV
A200: AgenteenSitio AgentetécnicoServicio7x24EnsitioPlatinoNANA | B200: IT-BPO-25-20 | C200: Agente en Sitio | D200: Agente técnico | E200: Servicio 7x24 | F200: En sitio | G200: Platino | H200: NA | I200: NA | J200: Mes 7x24 | K200: 29697076.71 | L200: 24904861.77 | M200: 39629672.79 | N200: 27708552.33 | O200: 33179698.16 | P200: 48520900.88 | Q200: 26445636.55 | R200: 25752732.53 | U200: SMMLV
... 4300 more rows

Sheet ServiciosLote2 (hidden)
A1: concatenar | B1: Código del servicio | C1: Nombre del servicio | D1: Caracteristica 1 | E1: Caracteristica 2 | F1: Caracteristica 3 | G1: Caracteristica 4 | H1: Caracteristica 5 | I1: Caracteristica 6 | J1: Unidad de facturación | K1: ANDES BPO | L1: LEON & ASOCIADOS | M1: INNOVA TECH IT S.A.S | N1: RST ASOCIADOS SAS | Q1: INCREMENTO
A2: =SUBSTITUTE(C2&D2&E2&F2&G2&H2&I2," ","") -> TroncalSIPNANANANANANA | B2: IT-BPO-1-1 | C2: Troncal SIP | D2: NA | E2: NA | F2: NA | G2: NA | H2: NA | I2: NA | J2: Mes | K2: 89625.14 | L2: 84686 | M2: 85202.7 | N2: 55149 | Q2: IPC
A3: MinutoIVR(InteractiveVoiceResponse)-EnrutadorNANANANANANA | B3: IT-BPO-2-1 | C3: Minuto IVR (Interactive Voice Response) - Enrutador | D3: NA | E3: NA | F3: NA | G3: NA | H3: NA | I3: NA | J3: Minuto | K3: 51.55 | L3: 24.2 | M3: 16.75 | N3: 6.31 | Q3: IPC
A4: MinutoIVR(InteractiveVoiceResponse)-AudiotextoNANANANANANA | B4: IT-BPO-3-1 | C4: Minuto IVR (Interactive Voice Response) - Audiotexto | D4: NA | E4: NA | F4: NA | G4: NA | H4: NA | I4: NA | J4: Minuto | K4: 51.55 | L4: 24.2 | M4: 26.34 | N4: 17.88 | Q4: IPC
A5: MinutoIVR(InteractiveVoiceResponse)TransaccionalNANANANANANA | B5: IT-BPO-4-1 | C5: Minuto IVR (Interactive Voice Response) Transaccional | D5: NA | E5: NA | F5: NA | G5: NA | H5: NA | I5: NA | J5: Minuto | K5: 82.06 | L5: 36.29 | M5: 60.83 | N5: 45.24 | Q5: IPC
A6: MinutoIVRconreconocimientodeVozNANANANANANA | B6: IT-BPO-5-1 | C6: Minuto IVR con reconocimiento de Voz | D6: NA | E6: NA | F6: NA | G6: NA | H6: NA | I6: NA | J6: Minuto | K6: 263 | L6: 518.64 | M6: 933.77 | N6: 554.4 | Q6: IPC
A7: MinutoIVRMixtoNANANANANANA | B7: IT-BPO-15-1 | C7: Minuto IVR Mixto | D7: NA | E7: NA | F7: NA | G7: NA | H7: NA | I7: NA | J7: Minuto | K7: 263 | L7: 650.14 | M7: 1126.69 | N7: 108.36 | Q7: IPC
A8: GrabaciónanunciosIVR(InteractiveVoiceResponse)RespuestadeVozInteractivaVozprofesionalNANANANANA | B8: IT-BPO-6-1 | C8: Grabación anuncios IVR (Interactive Voice Response) Respuesta de Voz Interactiva | D8: Voz profesional | E8: NA | F8: NA | G8: NA | H8: NA | I8: NA | J8: Anuncio | K8: 114587 | L8: 469486.56 | M8: 153205.94 | N8: 63806.96 | Q8: IPC
A9: GrabaciónanunciosIVR(InteractiveVoiceResponse)RespuestadeVozInteractivaVozsintéticaNANANANANA | B9: IT-BPO-6-2 | C9: Grabación anuncios IVR (Interactive Voice Response) Respuesta de Voz Interactiva | D9: Voz sintética | E9: NA | F9: NA | G9: NA | H9: NA | I9: NA | J9: Anuncio | K9: 52010.88 | L9: 1180.34 | M9: 45769.13 | N9: 22442.32 | Q9: IPC
A10: Minutosdeconexiónoutbound/InboundOutbounddefijoa01-8000NANANANANA | B10: IT-BPO-7-1 | C10: Minutos de conexión outbound/Inbound | D10: Outbound de fijo a 01-8000 | E10: NA | F10: NA | G10: NA | H10: NA | I10: NA | J10: Minuto | K10: 203.04 | L10: 131.5 | M10: 146.69 | N10: 114.67 | Q10: IPC
A11: Minutosdeconexiónoutbound/InboundOutbounddesdecelulara01-8000NANANANANA | B11: IT-BPO-7-2 | C11: Minutos de conexión outbound/Inbound | D11: Outbound desde celular a 01-8000 | E11: NA | F11: NA | G11: NA | H11: NA | I11: NA | J11: Minuto | K11: 341.9 | L11: 294.56 | M11: 203.55 | N11: 185.15 | Q11: IPC
A12: Minutosdeconexiónoutbound/InboundOutboundentrefijosenciudadesprincipalesNANANANANA | B12: IT-BPO-7-3 | C12: Minutos de conexión outbound/Inbound | D12: Outbound entre fijos en ciudades principales | E12: NA | F12: NA | G12: NA | H12: NA | I12: NA | J12: Minuto | K12: 73.64 | L12: 147.28 | M12: 105.68 | N12: 39.98 | Q12: IPC
A13: Minutosdeconexiónoutbound/InboundOutboundentrefijosenelrestodelterritorionacionalNANANANANA | B13: IT-BPO-7-4 | C13: Minutos de conexión outbound/Inbound | D13: Outbound entre fijos en el resto del territorio nacional | E13: NA | F13: NA | G13: NA | H13: NA | I13: NA | J13: Minuto | K13: 98.89 | L13: 200.93 | M13: 316.81 | N13: 53.65 | Q13: IPC
A14: Minutosdeconexiónoutbound/InboundOutbounddefijoalargadistancianacionalNANANANANA | B14: IT-BPO-7-5 | C14: Minutos de conexión outbound/Inbound | D14: Outbound de fijo a larga distancia nacional | E14: NA | F14: NA | G14: NA | H14: NA | I14: NA | J14: Minuto | K14: 102.04 | L14: 32.61 | M14: 319.9 | N14: 53.65 | Q14: IPC
A15: Minutosdeconexiónoutbound/InboundOutbounddefijoacelularNANANANANA | B15: IT-BPO-7-6 | C15: Minutos de conexión outbound/Inbound | D15: Outbound de fijo a celular | E15: NA | F15: NA | G15: NA | H15: NA | I15: NA | J15: Minuto | K15: 63.12 | L15: 32.61 | M15: 254.56 | N15: 45.24 | Q15: IPC
A16: Minutosdeconexiónoutbound/InboundInternacionalOutboundafijosymóvilesenEstadosUnidos,CanadáyPuertoRicoNANANANANA | B16: IT-BPO-7-7 | C16: Minutos de conexión outbound/Inbound | D16: Internacional Outbound a fijos y móviles en Estados Unidos, Canadá y Puerto Rico | E16: NA | F16: NA | G16: NA | H16: NA | I16: NA | J16: Minuto | K16: 105.2 | L16: 803.73 | M16: 444.13 | N16: 274.57 | Q16: IPC
A17: Minutosdeconexiónoutbound/InboundInternacionalOutboundafijosymóvilesenEuropa,Asia,OceaníaNANANANANA | B17: IT-BPO-7-8 | C17: Minutos de conexión outbound/Inbound | D17: Internacional Outbound a fijos y móviles en Europa, Asia, Oceanía | E17: NA | F17: NA | G17: NA | H17: NA | I17: NA | J17: Minuto | K17: 1402.32 | L17: 804.78 | M17: 1655.92 | N17: 765.86 | Q17: IPC
A18: Minutosdeconexiónoutbound/InboundInternacionalOutboundafijosymóvileselrestodeAméricaNANANANANA | B18: IT-BPO-7-9 | C18: Minutos de conexión outbound/Inbound | D18: Internacional Outbound a fijos y móviles el resto de América | E18: NA | F18: NA | G18: NA | H18: NA | I18: NA | J18: Minuto | K18: 925.76 | L18: 804.78 | M18: 1641.57 | N18: 496.54 | Q18: IPC
A19: Minutosdeconexiónoutbound/InboundInternacionalOutboundafijosymóvilesyalrestodelmundoNANANANANA | B19: IT-BPO-7-10 | C19: Minutos de conexión outbound/Inbound | D19: Internacional Outbound a fijos y móviles y al resto del mundo | E19: NA | F19: NA | G19: NA | H19: NA | I19: NA | J19: Minuto | K19: 3444.25 | L19: 804.78 | M19: 5808.94 | N19: 1758.94 | Q19: IPC
A20: Minutosdeconexiónoutbound/InboundInbounddefijoa018000NANANANANA | B20: IT-BPO-7-11 | C20: Minutos de conexión outbound/Inbound | D20: Inbound de fijo a 018000 | E20: NA | F20: NA | G20: NA | H20: NA | I20: NA | J20: Minuto | K20: 228.28 | L20: 131.5 | M20: 220.16 | N20: 153.59 | Q20: IPC
A21: Minutosdeconexiónoutbound/InboundInbounddecelulara018000NANANANANA | B21: IT-BPO-7-12 | C21: Minutos de conexión outbound/Inbound | D21: Inbound de celular a 018000 | E21: NA | F21: NA | G21: NA | H21: NA | I21: NA | J21: Minuto | K21: 420.8 | L21: 295.61 | M21: 651.39 | N21: 309.29 | Q21: IPC
A22: TransferenciadellamadasNANANANANANA | B22: IT-BPO-8-1 | C22: Transferencia de llamadas | D22: NA | E22: NA | F22: NA | G22: NA | H22: NA | I22: NA | J22: Transferencia | K22: 98.89 | L22: 10.52 | M22: 41.79 | N22: 31.56 | Q22: IPC
A23: MensajesdevozoaudioNANANANANANA | B23: IT-BPO-9-1 | C23: Mensajes de voz o audio | D23: NA | E23: NA | F23: NA | G23: NA | H23: NA | I23: NA | J23: Minuto | K23: 73.64 | L23: 47.34 | M23: 69.42 | N23: 57.86 | Q23: IPC
A24: MinutoVirtualHoldNANANANANANA | B24: IT-BPO-10-1 | C24: Minuto Virtual Hold | D24: NA | E24: NA | F24: NA | G24: NA | H24: NA | I24: NA | J24: Minuto | K24: 82.06 | L24: 14.73 | M24: 84.37 | N24: 62.07 | Q24: IPC
A25: ClictocallNANANANANANA | B25: IT-BPO-11-1 | C25: Clic to call | D25: NA | E25: NA | F25: NA | G25: NA | H25: NA | I25: NA | J25: Licencia Mes | K25: 551048.12 | L25: 132828.68 | M25: 431365.67 | N25: 242325.04 | Q25: IPC
A26: WebCallbackNANANANANANA | B26: IT-BPO-12-1 | C26: Web Callback | D26: NA | E26: NA | F26: NA | G26: NA | H26: NA | I26: NA | J26: Licencia Mes | K26: 551048.12 | L26: 128148.33 | M26: 431365.67 | N26: 259127.59 | Q26: IPC
A27: MailingNANANANANANA | B27: IT-BPO-13-1 | C27: Mailing | D27: NA | E27: NA | F27: NA | G27: NA | H27: NA | I27: NA | J27: Correo | K27: 8.42 | L27: 5.26 | M27: 8.14 | N27: 6.31 | Q27: IPC
A28: WhatsAppforBusinessAPIsetupNANANANANA | B28: IT-BPO-14-1 | C28: WhatsApp for Business API | D28: setup | E28: NA | F28: NA | G28: NA | H28: NA | I28: NA | J28: setup | K28: 2719772.42 | L28: 2016393.65 | M28: 1840505.82 | N28: 1775144.8 | Q28: IPC
A29: WhatsAppforBusinessAPIAPINANANANANA | B29: IT-BPO-14-2 | C29: WhatsApp for Business API | D29: API | E29: NA | F29: NA | G29: NA | H29: NA | I29: NA | J29: Mes | K29: 1707370.75 | L29: 968687.91 | M29: 1411242.59 | N29: 614473.2 | Q29: IPC
A30: WhatsAppforBusinessAPIconversacióniniciadaporlaempresa(Entidad)ArgentinamarketingNANANA | B30: IT-BPO-14-3 | C30: WhatsApp for Business API | D30: conversación iniciada por la empresa (Entidad) | E30: Argentina | F30: marketing | G30: NA | H30: NA | I30: NA | J30: Conversación | K30: 1018.55 | L30: 355.58 | M30: 162.74 | N30: 141.52 | Q30: IPC
A31: WhatsAppforBusinessAPIconversacióniniciadaporlaempresa(Entidad)BrasilmarketingNANANA | B31: IT-BPO-14-4 | C31: WhatsApp for Business API | D31: conversación iniciada por la empresa (Entidad) | E31: Brasil | F31: marketing | G31: NA | H31: NA | I31: NA | J31: Conversación | K31: 1030.08 | L31: 359.78 | M31: 162.74 | N31: 141.52 | Q31: IPC
A32: WhatsAppforBusinessAPIconversacióniniciadaporlaempresa(Entidad)ChilemarketingNANANA | B32: IT-BPO-14-5 | C32: WhatsApp for Business API | D32: conversación iniciada por la empresa (Entidad) | E32: Chile | F32: marketing | G32: NA | H32: NA | I32: NA | J32: Conversación | K32: 1465.19 | L32: 513.38 | M32: 162.74 | N32: 141.52 | Q32: IPC
A33: WhatsAppforBusinessAPIconversacióniniciadaporlaempresa(Entidad)ColombiamarketingNANANA | B33: IT-BPO-14-6 | C33: WhatsApp for Business API | D33: conversación iniciada por la empresa (Entidad) | E33: Colombia | F33: marketing | G33: NA | H33: NA | I33: NA | J33: Conversación | K33: 206.02 | L33: 71.54 | M33: 86.79 | N33: 141.52 | Q33: IPC
A34: WhatsAppforBusinessAPIconversacióniniciadaporlaempresa(Entidad)EgiptomarketingNANANA | B34: IT-BPO-14-7 | C34: WhatsApp for Business API | D34: conversación iniciada por la empresa (Entidad) | E34: Egipto | F34: marketing | G34: NA | H34: NA | I34: NA | J34: Conversación | K34: 1768.45 | L34: 618.58 | M34: 162.74 | N34: 141.52 | Q34: IPC
A35: WhatsAppforBusinessAPIconversacióniniciadaporlaempresa(Entidad)FranciamarketingNANANA | B35: IT-BPO-14-8 | C35: WhatsApp for Business API | D35: conversación iniciada por la empresa (Entidad) | E35: Francia | F35: marketing | G35: NA | H35: NA | I35: NA | J35: Conversación | K35: 2360.13 | L35: 824.77 | M35: 162.74 | N35: 141.52 | Q35: IPC
A36: WhatsAppforBusinessAPIconversacióniniciadaporlaempresa(Entidad)AlemaniamarketingNANANA | B36: IT-BPO-14-9 | C36: WhatsApp for Business API | D36: conversación iniciada por la empresa (Entidad) | E36: Alemania | F36: marketing | G36: NA | H36: NA | I36: NA | J36: Conversación | K36: 2249.7 | L36: 786.9 | M36: 162.74 | N36: 141.52 | Q36: IPC
A37: WhatsAppforBusinessAPIconversacióniniciadaporlaempresa(Entidad)IndiamarketingNANANA | B37: IT-BPO-14-10 | C37: WhatsApp for Business API | D37: conversación iniciada por la empresa (Entidad) | E37: India | F37: marketing | G37: NA | H37: NA | I37: NA | J37: Conversación | K37: 163.17 | L37: 62.07 | M37: 162.74 | N37: 141.52 | Q37: IPC
A38: WhatsAppforBusinessAPIconversacióniniciadaporlaempresa(Entidad)IndonesiamarketingNANANA | B38: IT-BPO-14-11 | C38: WhatsApp for Business API | D38: conversación iniciada por la empresa (Entidad) | E38: Indonesia | F38: marketing | G38: NA | H38: NA | I38: NA | J38: Conversación | K38: 677.38 | L38: 236.7 | M38: 162.74 | N38: 141.52 | Q38: IPC
A39: WhatsAppforBusinessAPIconversacióniniciadaporlaempresa(Entidad)IsraelmarketingNANANA | B39: IT-BPO-14-12 | C39: WhatsApp for Business API | D39: conversación iniciada por la empresa (Entidad) | E39: Israel | F39: marketing | G39: NA | H39: NA | I39: NA | J39: Conversación | K39: 581.79 | L39: 204.09 | M39: 162.74 | N39: 141.52 | Q39: IPC
A40: WhatsAppforBusinessAPIconversacióniniciadaporlaempresa(Entidad)ItaliamarketingNANANA | B40: IT-BPO-14-13 | C40: WhatsApp for Business API | D40: conversación iniciada por la empresa (Entidad) | E40: Italia | F40: marketing | G40: NA | H40: NA | I40: NA | J40: Conversación | K40: 1138.86 | L40: 397.66 | M40: 162.74 | N40: 141.52 | Q40: IPC
A41: WhatsAppforBusinessAPIconversacióniniciadaporlaempresa(Entidad)MalasiamarketingNANANA | B41: IT-BPO-14-14 | C41: WhatsApp for Business API | D41: conversación iniciada por la empresa (Entidad) | E41: Malasia | F41: marketing | G41: NA | H41: NA | I41: NA | J41: Conversación | K41: 1417.39 | L41: 495.49 | M41: 162.74 | N41: 141.52 | Q41: IPC
A42: WhatsAppforBusinessAPIconversacióniniciadaporlaempresa(Entidad)MéxicomarketingNANANA | B42: IT-BPO-14-15 | C42: WhatsApp for Business API | D42: conversación iniciada por la empresa (Entidad) | E42: México | F42: marketing | G42: NA | H42: NA | I42: NA | J42: Conversación | K42: 718.59 | L42: 251.43 | M42: 162.74 | N42: 141.52 | Q42: IPC
A43: WhatsAppforBusinessAPIconversacióniniciadaporlaempresa(Entidad)PaísesBajosmarketingNANANA | B43: IT-BPO-14-16 | C43: WhatsApp for Business API | D43: conversación iniciada por la empresa (Entidad) | E43: Países Bajos | F43: marketing | G43: NA | H43: NA | I43: NA | J43: Conversación | K43: 2632.07 | L43: 919.45 | M43: 162.74 | N43: 141.52 | Q43: IPC
A44: WhatsAppforBusinessAPIconversacióniniciadaporlaempresa(Entidad)NigeriamarketingNANANA | B44: IT-BPO-14-17 | C44: WhatsApp for Business API | D44: conversación iniciada por la empresa (Entidad) | E44: Nigeria | F44: marketing | G44: NA | H44: NA | I44: NA | J44: Conversación | K44: 850.44 | L44: 297.72 | M44: 162.74 | N44: 141.52 | Q44: IPC
A45: WhatsAppforBusinessAPIconversacióniniciadaporlaempresa(Entidad)PakistánmarketingNANANA | B45: IT-BPO-14-18 | C45: WhatsApp for Business API | D45: conversación iniciada por la empresa (Entidad) | E45: Pakistán | F45: marketing | G45: NA | H45: NA | I45: NA | J45: Conversación | K45: 779.57 | L45: 272.47 | M45: 162.74 | N45: 141.52 | Q45: IPC
A46: WhatsAppforBusinessAPIconversacióniniciadaporlaempresa(Entidad)PerúmarketingNANANA | B46: IT-BPO-14-19 | C46: WhatsApp for Business API | D46: conversación iniciada por la empresa (Entidad) | E46: Perú | F46: marketing | G46: NA | H46: NA | I46: NA | J46: Conversación | K46: 1158.64 | L46: 405.02 | M46: 162.74 | N46: 141.52 | Q46: IPC
A47: WhatsAppforBusinessAPIconversacióniniciadaporlaempresa(Entidad)RusiamarketingNANANA | B47: IT-BPO-14-20 | C47: WhatsApp for Business API | D47: conversación iniciada por la empresa (Entidad) | E47: Rusia | F47: marketing | G47: NA | H47: NA | I47: NA | J47: Conversación | K47: 1321.8 | L47: 462.88 | M47: 162.74 | N47: 141.52 | Q47: IPC
A48: WhatsAppforBusinessAPIconversacióniniciadaporlaempresa(Entidad)ArabiaSaudímarketingNANANA | B48: IT-BPO-14-21 | C48: WhatsApp for Business API | D48: conversación iniciada por la empresa (Entidad) | E48: Arabia Saudí | F48: marketing | G48: NA | H48: NA | I48: NA | J48: Conversación | K48: 669.14 | L48: 263 | M48: 162.74 | N48: 141.52 | Q48: IPC
A49: WhatsAppforBusinessAPIconversacióniniciadaporlaempresa(Entidad)SudáfricamarketingNANANA | B49: IT-BPO-14-22 | C49: WhatsApp for Business API | D49: conversación iniciada por la empresa (Entidad) | E49: Sudáfrica | F49: marketing | G49: NA | H49: NA | I49: NA | J49: Conversación | K49: 624.64 | L49: 217.76 | M49: 162.74 | N49: 141.52 | Q49: IPC
A50: WhatsAppforBusinessAPIconversacióniniciadaporlaempresa(Entidad)EspañamarketingNANANA | B50: IT-BPO-14-23 | C50: WhatsApp for Business API | D50: conversación iniciada por la empresa (Entidad) | E50: España | F50: marketing | G50: NA | H50: NA | I50: NA | J50: Conversación | K50: 1013.6 | L50: 353.47 | M50: 162.74 | N50: 141.52 | Q50: IPC
A51: WhatsAppforBusinessAPIconversacióniniciadaporlaempresa(Entidad)TurquíamarketingNANANA | B51: IT-BPO-14-24 | C51: WhatsApp for Business API | D51: conversación iniciada por la empresa (Entidad) | E51: Turquía | F51: marketing | G51: NA | H51: NA | I51: NA | J51: Conversación | K51: 179.65 | L51: 63.12 | M51: 162.74 | N51: 141.52 | Q51: IPC
A52: WhatsAppforBusinessAPIconversacióniniciadaporlaempresa(Entidad)EmiratosÁrabesUnidosmarketingNANANA | B52: IT-BPO-14-25 | C52: WhatsApp for Business API | D52: conversación iniciada por la empresa (Entidad) | E52: Emiratos Árabes Unidos | F52: marketing | G52: NA | H52: NA | I52: NA | J52: Conversación | K52: 560.37 | L52: 220.92 | M52: 162.74 | N52: 141.52 | Q52: IPC
A53: WhatsAppforBusinessAPIconversacióniniciadaporlaempresa(Entidad)ReinoUnidomarketingNANANA | B53: IT-BPO-14-26 | C53: WhatsApp for Business API | D53: conversación iniciada por la empresa (Entidad) | E53: Reino Unido | F53: marketing | G53: NA | H53: NA | I53: NA | J53: Conversación | K53: 1161.93 | L53: 305.08 | M53: 162.74 | N53: 141.52 | Q53: IPC
A54: WhatsAppforBusinessAPIconversacióniniciadaporlaempresa(Entidad)Norteamérica*marketingNANANA | B54: IT-BPO-14-27 | C54: WhatsApp for Business API | D54: conversación iniciada por la empresa (Entidad) | E54: Norteamérica* | F54: marketing | G54: NA | H54: NA | I54: NA | J54: Conversación | K54: 412.03 | L54: 144.12 | M54: 162.74 | N54: 141.52 | Q54: IPC
A55: WhatsAppforBusinessAPIconversacióniniciadaporlaempresa(Entidad)RestodeÁfrica*marketingNANANA | B55: IT-BPO-14-28 | C55: WhatsApp for Business API | D55: conversación iniciada por la empresa (Entidad) | E55: Resto de África* | F55: marketing | G55: NA | H55: NA | I55: NA | J55: Conversación | K55: 370.83 | L55: 129.4 | M55: 162.74 | N55: 141.52 | Q55: IPC
A56: WhatsAppforBusinessAPIconversacióniniciadaporlaempresa(Entidad)RestodeAsia-Pacífico*marketingNANANA | B56: IT-BPO-14-29 | C56: WhatsApp for Business API | D56: conversación iniciada por la empresa (Entidad) | E56: Resto de Asia-Pacífico* | F56: marketing | G56: NA | H56: NA | I56: NA | J56: Conversación | K56: 1206.43 | L56: 421.85 | M56: 162.74 | N56: 141.52 | Q56: IPC
A57: WhatsAppforBusinessAPIconversacióniniciadaporlaempresa(Entidad)RestodeEuropaCentralyOriental*marketingNANANA | B57: IT-BPO-14-30 | C57: WhatsApp for Business API | D57: conversación iniciada por la empresa (Entidad) | E57: Resto de Europa Central y Oriental* | F57: marketing | G57: NA | H57: NA | I57: NA | J57: Conversación | K57: 1417.39 | L57: 495.49 | M57: 162.74 | N57: 141.52 | Q57: IPC
A58: WhatsAppforBusinessAPIconversacióniniciadaporlaempresa(Entidad)RestodeLatinoamérica*marketingNANANA | B58: IT-BPO-14-31 | C58: WhatsApp for Business API | D58: conversación iniciada por la empresa (Entidad) | E58: Resto de Latinoamérica* | F58: marketing | G58: NA | H58: NA | I58: NA | J58: Conversación | K58: 1219.62 | L58: 426.06 | M58: 162.74 | N58: 141.52 | Q58: IPC
A59: WhatsAppforBusinessAPIconversacióniniciadaporlaempresa(Entidad)RestodeOrienteMedio*marketingNANANA | B59: IT-BPO-14-32 | C59: WhatsApp for Business API | D59: conversación iniciada por la empresa (Entidad) | E59: Resto de Oriente Medio* | F59: marketing | G59: NA | H59: NA | I59: NA | J59: Conversación | K59: 562.01 | L59: 196.72 | M59: 162.74 | N59: 141.52 | Q59: IPC
A60: WhatsAppforBusinessAPIconversacióniniciadaporlaempresa(Entidad)RestodeEuropaOccidental*marketingNANANA | B60: IT-BPO-14-33 | C60: WhatsApp for Business API | D60: conversación iniciada por la empresa (Entidad) | E60: Resto de Europa Occidental* | F60: marketing | G60: NA | H60: NA | I60: NA | J60: Conversación | K60: 975.69 | L60: 341.9 | M60: 162.74 | N60: 141.52 | Q60: IPC
A61: WhatsAppforBusinessAPIconversacióniniciadaporlaempresa(Entidad)Otros*marketingNANANA | B61: IT-BPO-14-34 | C61: WhatsApp for Business API | D61: conversación iniciada por la empresa (Entidad) | E61: Otros* | F61: marketing | G61: NA | H61: NA | I61: NA | J61: Conversación | K61: 995.47 | L61: 348.21 | M61: 162.74 | N61: 141.52 | Q61: IPC
A62: WhatsAppforBusinessAPIconversacióniniciadaporlaempresa(Entidad)ArgentinaUtilidadNANANA | B62: IT-BPO-14-35 | C62: WhatsApp for Business API | D62: conversación iniciada por la empresa (Entidad) | E62: Argentina | F62: Utilidad | G62: NA | H62: NA | I62: NA | J62: Conversación | K62: 536.52 | L62: 195.67 | M62: 162.74 | N62: 95.58 | Q62: IPC
A63: WhatsAppforBusinessAPIconversacióniniciadaporlaempresa(Entidad)BrasilUtilidadNANANA | B63: IT-BPO-14-36 | C63: WhatsApp for Business API | D63: conversación iniciada por la empresa (Entidad) | E63: Brasil | F63: Utilidad | G63: NA | H63: NA | I63: NA | J63: Conversación | K63: 126.24 | L63: 46.29 | M63: 162.74 | N63: 95.58 | Q63: IPC
A64: WhatsAppforBusinessAPIconversacióniniciadaporlaempresa(Entidad)ChileUtilidadNANANA | B64: IT-BPO-14-37 | C64: WhatsApp for Business API | D64: conversación iniciada por la empresa (Entidad) | E64: Chile | F64: Utilidad | G64: NA | H64: NA | I64: NA | J64: Conversación | K64: 315.6 | L64: 114.67 | M64: 162.74 | N64: 95.58 | Q64: IPC
A65: WhatsAppforBusinessAPIconversacióniniciadaporlaempresa(Entidad)ColombiaUtilidadNANANA | B65: IT-BPO-14-38 | C65: WhatsApp for Business API | D65: conversación iniciada por la empresa (Entidad) | E65: Colombia | F65: Utilidad | G65: NA | H65: NA | I65: NA | J65: Conversación | K65: 3.16 | L65: 3.16 | M65: 162.74 | N65: 95.58 | Q65: IPC
A66: WhatsAppforBusinessAPIconversacióniniciadaporlaempresa(Entidad)EgiptoUtilidadNANANA | B66: IT-BPO-14-39 | C66: WhatsApp for Business API | D66: conversación iniciada por la empresa (Entidad) | E66: Egipto | F66: Utilidad | G66: NA | H66: NA | I66: NA | J66: Conversación | K66: 82.06 | L66: 29.46 | M66: 162.74 | N66: 95.58 | Q66: IPC
A67: WhatsAppforBusinessAPIconversacióniniciadaporlaempresa(Entidad)FranciaUtilidadNANANA | B67: IT-BPO-14-40 | C67: WhatsApp for Business API | D67: conversación iniciada por la empresa (Entidad) | E67: Francia | F67: Utilidad | G67: NA | H67: NA | I67: NA | J67: Conversación | K67: 473.4 | L67: 172.53 | M67: 162.74 | N67: 95.58 | Q67: IPC
A68: WhatsAppforBusinessAPIconversacióniniciadaporlaempresa(Entidad)AlemaniaUtilidadNANANA | B68: IT-BPO-14-41 | C68: WhatsApp for Business API | D68: conversación iniciada por la empresa (Entidad) | E68: Alemania | F68: Utilidad | G68: NA | H68: NA | I68: NA | J68: Conversación | K68: 867.9 | L68: 317.7 | M68: 162.74 | N68: 95.58 | Q68: IPC
A69: WhatsAppforBusinessAPIconversacióniniciadaporlaempresa(Entidad)IndiaUtilidadNANANA | B69: IT-BPO-14-42 | C69: WhatsApp for Business API | D69: conversación iniciada por la empresa (Entidad) | E69: India | F69: Utilidad | G69: NA | H69: NA | I69: NA | J69: Conversación | K69: 22.09 | L69: 8.42 | M69: 162.74 | N69: 95.58 | Q69: IPC
A70: WhatsAppforBusinessAPIconversacióniniciadaporlaempresa(Entidad)IndonesiaUtilidadNANANA | B70: IT-BPO-14-43 | C70: WhatsApp for Business API | D70: conversación iniciada por la empresa (Entidad) | E70: Indonesia | F70: Utilidad | G70: NA | H70: NA | I70: NA | J70: Conversación | K70: 315.6 | L70: 115.72 | M70: 162.74 | N70: 95.58 | Q70: IPC
A71: WhatsAppforBusinessAPIconversacióniniciadaporlaempresa(Entidad)IsraelUtilidadNANANA | B71: IT-BPO-14-44 | C71: WhatsApp for Business API | D71: conversación iniciada por la empresa (Entidad) | E71: Israel | F71: Utilidad | G71: NA | H71: NA | I71: NA | J71: Conversación | K71: 83.63 | L71: 30.51 | M71: 162.74 | N71: 95.58 | Q71: IPC
A72: WhatsAppforBusinessAPIconversacióniniciadaporlaempresa(Entidad)ItaliaUtilidadNANANA | B72: IT-BPO-14-45 | C72: WhatsApp for Business API | D72: conversación iniciada por la empresa (Entidad) | E72: Italia | F72: Utilidad | G72: NA | H72: NA | I72: NA | J72: Conversación | K72: 473.4 | L72: 172.53 | M72: 162.74 | N72: 95.58 | Q72: IPC
A73: WhatsAppforBusinessAPIconversacióniniciadaporlaempresa(Entidad)MalasiaUtilidadNANANA | B73: IT-BPO-14-46 | C73: WhatsApp for Business API | D73: conversación iniciada por la empresa (Entidad) | E73: Malasia | F73: Utilidad | G73: NA | H73: NA | I73: NA | J73: Conversación | K73: 220.92 | L73: 81 | M73: 162.74 | N73: 95.58 | Q73: IPC
A74: WhatsAppforBusinessAPIconversacióniniciadaporlaempresa(Entidad)MéxicoUtilidadNANANA | B74: IT-BPO-14-47 | C74: WhatsApp for Business API | D74: conversación iniciada por la empresa (Entidad) | E74: México | F74: Utilidad | G74: NA | H74: NA | I74: NA | J74: Conversación | K74: 157.8 | L74: 57.86 | M74: 162.74 | N74: 95.58 | Q74: IPC
A75: WhatsAppforBusinessAPIconversacióniniciadaporlaempresa(Entidad)PaísesBajosUtilidadNANANA | B75: IT-BPO-14-48 | C75: WhatsApp for Business API | D75: conversación iniciada por la empresa (Entidad) | E75: Países Bajos | F75: Utilidad | G75: NA | H75: NA | I75: NA | J75: Conversación | K75: 789 | L75: 288.25 | M75: 162.74 | N75: 95.58 | Q75: IPC
A76: WhatsAppforBusinessAPIconversacióniniciadaporlaempresa(Entidad)NigeriaUtilidadNANANA | B76: IT-BPO-14-49 | C76: WhatsApp for Business API | D76: conversación iniciada por la empresa (Entidad) | E76: Nigeria | F76: Utilidad | G76: NA | H76: NA | I76: NA | J76: Conversación | K76: 105.73 | L76: 38.92 | M76: 162.74 | N76: 95.58 | Q76: IPC
A77: WhatsAppforBusinessAPIconversacióniniciadaporlaempresa(Entidad)PakistánUtilidadNANANA | B77: IT-BPO-14-50 | C77: WhatsApp for Business API | D77: conversación iniciada por la empresa (Entidad) | E77: Pakistán | F77: Utilidad | G77: NA | H77: NA | I77: NA | J77: Conversación | K77: 85.21 | L77: 31.56 | M77: 162.74 | N77: 95.58 | Q77: IPC
A78: WhatsAppforBusinessAPIconversacióniniciadaporlaempresa(Entidad)PerúUtilidadNANANA | B78: IT-BPO-14-51 | C78: WhatsApp for Business API | D78: conversación iniciada por la empresa (Entidad) | E78: Perú | F78: Utilidad | G78: NA | H78: NA | I78: NA | J78: Conversación | K78: 315.6 | L78: 115.72 | M78: 162.74 | N78: 95.58 | Q78: IPC
A79: WhatsAppforBusinessAPIconversacióniniciadaporlaempresa(Entidad)RusiaUtilidadNANANA | B79: IT-BPO-14-52 | C79: WhatsApp for Business API | D79: conversación iniciada por la empresa (Entidad) | E79: Rusia | F79: Utilidad | G79: NA | H79: NA | I79: NA | J79: Conversación | K79: 631.2 | L79: 230.39 | M79: 162.74 | N79: 95.58 | Q79: IPC
A80: WhatsAppforBusinessAPIconversacióniniciadaporlaempresa(Entidad)ArabiaSaudíUtilidadNANANA | B80: IT-BPO-14-53 | C80: WhatsApp for Business API | D80: conversación iniciada por la empresa (Entidad) | E80: Arabia Saudí | F80: Utilidad | G80: NA | H80: NA | I80: NA | J80: Conversación | K80: 181.47 | L80: 66.28 | M80: 162.74 | N80: 95.58 | Q80: IPC
A81: WhatsAppforBusinessAPIconversacióniniciadaporlaempresa(Entidad)SudáfricaUtilidadNANANA | B81: IT-BPO-14-54 | C81: WhatsApp for Business API | D81: conversación iniciada por la empresa (Entidad) | E81: Sudáfrica | F81: Utilidad | G81: NA | H81: NA | I81: NA | J81: Conversación | K81: 119.93 | L81: 44.18 | M81: 162.74 | N81: 95.58 | Q81: IPC
A82: WhatsAppforBusinessAPIconversacióniniciadaporlaempresa(Entidad)EspañaUtilidadNANANA | B82: IT-BPO-14-55 | C82: WhatsApp for Business API | D82: conversación iniciada por la empresa (Entidad) | E82: España | F82: Utilidad | G82: NA | H82: NA | I82: NA | J82: Conversación | K82: 315.6 | L82: 114.67 | M82: 162.74 | N82: 95.58 | Q82: IPC
A83: WhatsAppforBusinessAPIconversacióniniciadaporlaempresa(Entidad)TurquíaUtilidadNANANA | B83: IT-BPO-14-56 | C83: WhatsApp for Business API | D83: conversación iniciada por la empresa (Entidad) | E83: Turquía | F83: Utilidad | G83: NA | H83: NA | I83: NA | J83: Conversación | K83: 83.63 | L83: 30.51 | M83: 162.74 | N83: 95.58 | Q83: IPC
A84: WhatsAppforBusinessAPIconversacióniniciadaporlaempresa(Entidad)EmiratosÁrabesUnidosUtilidadNANANA | B84: IT-BPO-14-57 | C84: WhatsApp for Business API | D84: conversación iniciada por la empresa (Entidad) | E84: Emiratos Árabes Unidos | F84: Utilidad | G84: NA | H84: NA | I84: NA | J84: Conversación | K84: 247.75 | L84: 90.47 | M84: 162.74 | N84: 95.58 | Q84: IPC
A85: WhatsAppforBusinessAPIconversacióniniciadaporlaempresa(Entidad)ReinoUnidoUtilidadNANANA | B85: IT-BPO-14-58 | C85: WhatsApp for Business API | D85: conversación iniciada por la empresa (Entidad) | E85: Reino Unido | F85: Utilidad | G85: NA | H85: NA | I85: NA | J85: Conversación | K85: 347.16 | L85: 126.24 | M85: 162.74 | N85: 95.58 | Q85: IPC
A86: WhatsAppforBusinessAPIconversacióniniciadaporlaempresa(Entidad)Norteamérica*UtilidadNANANA | B86: IT-BPO-14-59 | C86: WhatsApp for Business API | D86: conversación iniciada por la empresa (Entidad) | E86: Norteamérica* | F86: Utilidad | G86: NA | H86: NA | I86: NA | J86: Conversación | K86: 63.12 | L86: 23.14 | M86: 162.74 | N86: 95.58 | Q86: IPC
A87: WhatsAppforBusinessAPIconversacióniniciadaporlaempresa(Entidad)RestodeÁfrica*UtilidadNANANA | B87: IT-BPO-14-60 | C87: WhatsApp for Business API | D87: conversación iniciada por la empresa (Entidad) | E87: Resto de África* | F87: Utilidad | G87: NA | H87: NA | I87: NA | J87: Conversación | K87: 96.26 | L87: 34.72 | M87: 162.74 | N87: 95.58 | Q87: IPC
A88: WhatsAppforBusinessAPIconversacióniniciadaporlaempresa(Entidad)RestodeAsia-Pacífico*UtilidadNANANA | B88: IT-BPO-14-61 | C88: WhatsApp for Business API | D88: conversación iniciada por la empresa (Entidad) | E88: Resto de Asia-Pacífico* | F88: Utilidad | G88: NA | H88: NA | I88: NA | J88: Conversación | K88: 247.75 | L88: 90.47 | M88: 162.74 | N88: 95.58 | Q88: IPC
A89: WhatsAppforBusinessAPIconversacióniniciadaporlaempresa(Entidad)RestodeEuropaCentralyOriental*UtilidadNANANA | B89: IT-BPO-14-62 | C89: WhatsApp for Business API | D89: conversación iniciada por la empresa (Entidad) | E89: Resto de Europa Central y Oriental* | F89: Utilidad | G89: NA | H89: NA | I89: NA | J89: Conversación | K89: 557.03 | L89: 203.04 | M89: 162.74 | N89: 95.58 | Q89: IPC
A90: WhatsAppforBusinessAPIconversacióniniciadaporlaempresa(Entidad)RestodeLatinoamérica*UtilidadNANANA | B90: IT-BPO-14-63 | C90: WhatsApp for Business API | D90: conversación iniciada por la empresa (Entidad) | E90: Resto de Latinoamérica* | F90: Utilidad | G90: NA | H90: NA | I90: NA | J90: Conversación | K90: 178.31 | L90: 65.22 | M90: 162.74 | N90: 95.58 | Q90: IPC
A91: WhatsAppforBusinessAPIconversacióniniciadaporlaempresa(Entidad)RestodeOrienteMedio*UtilidadNANANA | B91: IT-BPO-14-64 | C91: WhatsApp for Business API | D91: conversación iniciada por la empresa (Entidad) | E91: Resto de Oriente Medio* | F91: Utilidad | G91: NA | H91: NA | I91: NA | J91: Conversación | K91: 247.75 | L91: 90.47 | M91: 162.74 | N91: 95.58 | Q91: IPC
A92: WhatsAppforBusinessAPIconversacióniniciadaporlaempresa(Entidad)RestodeEuropaOccidental*UtilidadNANANA | B92: IT-BPO-14-65 | C92: WhatsApp for Business API | D92: conversación iniciada por la empresa (Entidad) | E92: Resto de Europa Occidental* | F92: Utilidad | G92: NA | H92: NA | I92: NA | J92: Conversación | K92: 473.4 | L92: 172.53 | M92: 162.74 | N92: 95.58 | Q92: IPC
A93: WhatsAppforBusinessAPIconversacióniniciadaporlaempresa(Entidad)Otros*UtilidadNANANA | B93: IT-BPO-14-66 | C93: WhatsApp for Business API | D93: conversación iniciada por la empresa (Entidad) | E93: Otros* | F93: Utilidad | G93: NA | H93: NA | I93: NA | J93: Conversación | K93: 121.51 | L93: 44.18 | M93: 162.74 | N93: 95.58 | Q93: IPC
A94: WhatsAppforBusinessAPIconversacióniniciadaporlaempresa(Entidad)ArgentinaAutenticaciónNANANA | B94: IT-BPO-14-67 | C94: WhatsApp for Business API | D94: conversación iniciada por la empresa (Entidad) | E94: Argentina | F94: Autenticación | G94: NA | H94: NA | I94: NA | J94: Conversación | K94: 604.86 | L94: 211.45 | M94: 162.74 | N94: 86.9 | Q94: IPC
A95: WhatsAppforBusinessAPIconversacióniniciadaporlaempresa(Entidad)BrasilAutenticaciónNANANA | B95: IT-BPO-14-68 | C95: WhatsApp for Business API | D95: conversación iniciada por la empresa (Entidad) | E95: Brasil | F95: Autenticación | G95: NA | H95: NA | I95: NA | J95: Conversación | K95: 519.16 | L95: 182 | M95: 162.74 | N95: 86.9 | Q95: IPC
A96: WhatsAppforBusinessAPIconversacióniniciadaporlaempresa(Entidad)ChileAutenticaciónNANANA | B96: IT-BPO-14-69 | C96: WhatsApp for Business API | D96: conversación iniciada por la empresa (Entidad) | E96: Chile | F96: Autenticación | G96: NA | H96: NA | I96: NA | J96: Conversación | K96: 868.57 | L96: 304.03 | M96: 162.74 | N96: 86.9 | Q96: IPC
A97: WhatsAppforBusinessAPIconversacióniniciadaporlaempresa(Entidad)ColombiaAutenticaciónNANANA | B97: IT-BPO-14-70 | C97: WhatsApp for Business API | D97: conversación iniciada por la empresa (Entidad) | E97: Colombia | F97: Autenticación | G97: NA | H97: NA | I97: NA | J97: Conversación | K97: 126.91 | L97: 44.18 | M97: 162.74 | N97: 86.9 | Q97: IPC
A98: WhatsAppforBusinessAPIconversacióniniciadaporlaempresa(Entidad)EgiptoAutenticaciónNANANA | B98: IT-BPO-14-71 | C98: WhatsApp for Business API | D98: conversación iniciada por la empresa (Entidad) | E98: Egipto | F98: Autenticación | G98: NA | H98: NA | I98: NA | J98: Conversación | K98: 1018.55 | L98: 356.63 | M98: 162.74 | N98: 86.9 | Q98: IPC
A99: WhatsAppforBusinessAPIconversacióniniciadaporlaempresa(Entidad)FranciaAutenticaciónNANANA | B99: IT-BPO-14-72 | C99: WhatsApp for Business API | D99: conversación iniciada por la empresa (Entidad) | E99: Francia | F99: Autenticación | G99: NA | H99: NA | I99: NA | J99: Conversación | K99: 1138.86 | L99: 398.71 | M99: 162.74 | N99: 86.9 | Q99: IPC
A100: WhatsAppforBusinessAPIconversacióniniciadaporlaempresa(Entidad)AlemaniaAutenticaciónNANANA | B100: IT-BPO-14-73 | C100: WhatsApp for Business API | D100: conversación iniciada por la empresa (Entidad) | E100: Alemania | F100: Autenticación | G100: NA | H100: NA | I100: NA | J100: Conversación | K100: 1265.77 | L100: 442.89 | M100: 162.74 | N100: 86.9 | Q100: IPC
A101: WhatsAppforBusinessAPIconversacióniniciadaporlaempresa(Entidad)IndiaAutenticaciónNANANA | B101: IT-BPO-14-74 | C101: WhatsApp for Business API | D101: conversación iniciada por la empresa (Entidad) | E101: India | F101: Autenticación | G101: NA | H101: NA | I101: NA | J101: Conversación | K101: 23.07 | L101: 8.42 | M101: 162.74 | N101: 86.9 | Q101: IPC
A102: WhatsAppforBusinessAPIconversacióniniciadaporlaempresa(Entidad)IndonesiaAutenticaciónNANANA | B102: IT-BPO-14-75 | C102: WhatsApp for Business API | D102: conversación iniciada por la empresa (Entidad) | E102: Indonesia | F102: Autenticación | G102: NA | H102: NA | I102: NA | J102: Conversación | K102: 494.44 | L102: 172.53 | M102: 162.74 | N102: 86.9 | Q102: IPC
A103: WhatsAppforBusinessAPIconversacióniniciadaporlaempresa(Entidad)IsraelAutenticaciónNANANA | B103: IT-BPO-14-76 | C103: WhatsApp for Business API | D103: conversación iniciada por la empresa (Entidad) | E103: Israel | F103: Autenticación | G103: NA | H103: NA | I103: NA | J103: Conversación | K103: 278.53 | L103: 96.78 | M103: 162.74 | N103: 86.9 | Q103: IPC
A104: WhatsAppforBusinessAPIconversacióniniciadaporlaempresa(Entidad)ItaliaAutenticaciónNANANA | B104: IT-BPO-14-77 | C104: WhatsApp for Business API | D104: conversación iniciada por la empresa (Entidad) | E104: Italia | F104: Autenticación | G104: NA | H104: NA | I104: NA | J104: Conversación | K104: 622.99 | L104: 217.76 | M104: 162.74 | N104: 86.9 | Q104: IPC
A105: WhatsAppforBusinessAPIconversacióniniciadaporlaempresa(Entidad)MalasiaAutenticaciónNANANA | B105: IT-BPO-14-78 | C105: WhatsApp for Business API | D105: conversación iniciada por la empresa (Entidad) | E105: Malasia | F105: Autenticación | G105: NA | H105: NA | I105: NA | J105: Conversación | K105: 296.66 | L105: 104.15 | M105: 162.74 | N105: 86.9 | Q105: IPC
A106: WhatsAppforBusinessAPIconversacióniniciadaporlaempresa(Entidad)MéxicoAutenticaciónNANANA | B106: IT-BPO-14-79 | C106: WhatsApp for Business API | D106: conversación iniciada por la empresa (Entidad) | E106: México | F106: Autenticación | G106: NA | H106: NA | I106: NA | J106: Conversación | K106: 393.9 | L106: 137.81 | M106: 162.74 | N106: 86.9 | Q106: IPC
A107: WhatsAppforBusinessAPIconversacióniniciadaporlaempresa(Entidad)PaísesBajosAutenticaciónNANANA | B107: IT-BPO-14-80 | C107: WhatsApp for Business API | D107: conversación iniciada por la empresa (Entidad) | E107: Países Bajos | F107: Autenticación | G107: NA | H107: NA | I107: NA | J107: Conversación | K107: 1186.66 | L107: 415.54 | M107: 162.74 | N107: 86.9 | Q107: IPC
A108: WhatsAppforBusinessAPIconversacióniniciadaporlaempresa(Entidad)NigeriaAutenticaciónNANANA | B108: IT-BPO-14-81 | C108: WhatsApp for Business API | D108: conversación iniciada por la empresa (Entidad) | E108: Nigeria | F108: Autenticación | G108: NA | H108: NA | I108: NA | J108: Conversación | K108: 473.01 | L108: 165.16 | M108: 162.74 | N108: 86.9 | Q108: IPC
A109: WhatsAppforBusinessAPIconversacióniniciadaporlaempresa(Entidad)PakistánAutenticaciónNANANA | B109: IT-BPO-14-82 | C109: WhatsApp for Business API | D109: conversación iniciada por la empresa (Entidad) | E109: Pakistán | F109: Autenticación | G109: NA | H109: NA | I109: NA | J109: Conversación | K109: 375.77 | L109: 131.5 | M109: 162.74 | N109: 86.9 | Q109: IPC
A110: WhatsAppforBusinessAPIconversacióniniciadaporlaempresa(Entidad)PerúAutenticaciónNANANA | B110: IT-BPO-14-83 | C110: WhatsApp for Business API | D110: conversación iniciada por la empresa (Entidad) | E110: Perú | F110: Autenticación | G110: NA | H110: NA | I110: NA | J110: Conversación | K110: 621.35 | L110: 216.71 | M110: 162.74 | N110: 86.9 | Q110: IPC
A111: WhatsAppforBusinessAPIconversacióniniciadaporlaempresa(Entidad)RusiaAutenticaciónNANANA | B111: IT-BPO-14-84 | C111: WhatsApp for Business API | D111: conversación iniciada por la empresa (Entidad) | E111: Rusia | F111: Autenticación | G111: NA | H111: NA | I111: NA | J111: Conversación | K111: 707.05 | L111: 247.22 | M111: 162.74 | N111: 86.9 | Q111: IPC
A112: WhatsAppforBusinessAPIconversacióniniciadaporlaempresa(Entidad)ArabiaSaudíAutenticaciónNANANA | B112: IT-BPO-14-85 | C112: WhatsApp for Business API | D112: conversación iniciada por la empresa (Entidad) | E112: Arabia Saudí | F112: Autenticación | G112: NA | H112: NA | I112: NA | J112: Conversación | K112: 372.48 | L112: 130.45 | M112: 162.74 | N112: 86.9 | Q112: IPC
A113: WhatsAppforBusinessAPIconversacióniniciadaporlaempresa(Entidad)SudáfricaAutenticaciónNANANA | B113: IT-BPO-14-86 | C113: WhatsApp for Business API | D113: conversación iniciada por la empresa (Entidad) | E113: Sudáfrica | F113: Autenticación | G113: NA | H113: NA | I113: NA | J113: Conversación | K113: 296.66 | L113: 104.15 | M113: 162.74 | N113: 86.9 | Q113: IPC
A114: WhatsAppforBusinessAPIconversacióniniciadaporlaempresa(Entidad)EspañaAutenticaciónNANANA | B114: IT-BPO-14-87 | C114: WhatsApp for Business API | D114: conversación iniciada por la empresa (Entidad) | E114: España | F114: Autenticación | G114: NA | H114: NA | I114: NA | J114: Conversación | K114: 563.66 | L114: 196.72 | M114: 162.74 | N114: 86.9 | Q114: IPC
A115: WhatsAppforBusinessAPIconversacióniniciadaporlaempresa(Entidad)TurquíaAutenticaciónNANANA | B115: IT-BPO-14-88 | C115: WhatsApp for Business API | D115: conversación iniciada por la empresa (Entidad) | E115: Turquía | F115: Autenticación | G115: NA | H115: NA | I115: NA | J115: Conversación | K115: 136.8 | L115: 48.39 | M115: 162.74 | N115: 86.9 | Q115: IPC
A116: WhatsAppforBusinessAPIconversacióniniciadaporlaempresa(Entidad)EmiratosÁrabesUnidosAutenticaciónNANANA | B116: IT-BPO-14-89 | C116: WhatsApp for Business API | D116: conversación iniciada por la empresa (Entidad) | E116: Emiratos Árabes Unidos | F116: Autenticación | G116: NA | H116: NA | I116: NA | J116: Conversación | K116: 293.37 | L116: 103.1 | M116: 162.74 | N116: 86.9 | Q116: IPC
A117: WhatsAppforBusinessAPIconversacióniniciadaporlaempresa(Entidad)ReinoUnidoAutenticaciónNANANA | B117: IT-BPO-14-90 | C117: WhatsApp for Business API | D117: conversación iniciada por la empresa (Entidad) | E117: Reino Unido | F117: Autenticación | G117: NA | H117: NA | I117: NA | J117: Conversación | K117: 590.03 | L117: 206.19 | M117: 162.74 | N117: 86.9 | Q117: IPC
A118: WhatsAppforBusinessAPIconversacióniniciadaporlaempresa(Entidad)Norteamérica*AutenticaciónNANANA | B118: IT-BPO-14-91 | C118: WhatsApp for Business API | D118: conversación iniciada por la empresa (Entidad) | E118: Norteamérica* | F118: Autenticación | G118: NA | H118: NA | I118: NA | J118: Conversación | K118: 222.5 | L118: 77.85 | M118: 162.74 | N118: 86.9 | Q118: IPC
A119: WhatsAppforBusinessAPIconversacióniniciadaporlaempresa(Entidad)RestodeÁfrica*AutenticaciónNANANA | B119: IT-BPO-14-92 | C119: WhatsApp for Business API | D119: conversación iniciada por la empresa (Entidad) | E119: Resto de África* | F119: Autenticación | G119: NA | H119: NA | I119: NA | J119: Conversación | K119: 237.33 | L119: 83.11 | M119: 162.74 | N119: 86.9 | Q119: IPC
A120: WhatsAppforBusinessAPIconversacióniniciadaporlaempresa(Entidad)RestodeAsia-Pacífico*AutenticaciónNANANA | B120: IT-BPO-14-93 | C120: WhatsApp for Business API | D120: conversación iniciada por la empresa (Entidad) | E120: Resto de Asia-Pacífico* | F120: Autenticación | G120: NA | H120: NA | I120: NA | J120: Conversación | K120: 700.46 | L120: 245.12 | M120: 162.74 | N120: 86.9 | Q120: IPC
A121: WhatsAppforBusinessAPIconversacióniniciadaporlaempresa(Entidad)RestodeEuropaCentralyOriental*AutenticaciónNANANA | B121: IT-BPO-14-94 | C121: WhatsApp for Business API | D121: conversación iniciada por la empresa (Entidad) | E121: Resto de Europa Central y Oriental* | F121: Autenticación | G121: NA | H121: NA | I121: NA | J121: Conversación | K121: 918.01 | L121: 320.86 | M121: 162.74 | N121: 86.9 | Q121: IPC
A122: WhatsAppforBusinessAPIconversacióniniciadaporlaempresa(Entidad)RestodeLatinoamérica*AutenticaciónNANANA | B122: IT-BPO-14-95 | C122: WhatsApp for Business API | D122: conversación iniciada por la empresa (Entidad) | E122: Resto de Latinoamérica* | F122: Autenticación | G122: NA | H122: NA | I122: NA | J122: Conversación | K122: 733.42 | L122: 256.69 | M122: 162.74 | N122: 86.9 | Q122: IPC
A123: WhatsAppforBusinessAPIconversacióniniciadaporlaempresa(Entidad)RestodeOrienteMedio*AutenticaciónNANANA | B123: IT-BPO-14-96 | C123: WhatsApp for Business API | D123: conversación iniciada por la empresa (Entidad) | E123: Resto de Oriente Medio* | F123: Autenticación | G123: NA | H123: NA | I123: NA | J123: Conversación | K123: 293.37 | L123: 102.04 | M123: 162.74 | N123: 86.9 | Q123: IPC
A124: WhatsAppforBusinessAPIconversacióniniciadaporlaempresa(Entidad)RestodeEuropaOccidental*AutenticaciónNANANA | B124: IT-BPO-14-97 | C124: WhatsApp for Business API | D124: conversación iniciada por la empresa (Entidad) | E124: Resto de Europa Occidental* | F124: Autenticación | G124: NA | H124: NA | I124: NA | J124: Conversación | K124: 622.99 | L124: 217.76 | M124: 162.74 | N124: 86.9 | Q124: IPC
A125: WhatsAppforBusinessAPIconversacióniniciadaporlaempresa(Entidad)Otros*AutenticaciónNANANA | B125: IT-BPO-14-98 | C125: WhatsApp for Business API | D125: conversación iniciada por la empresa (Entidad) | E125: Otros* | F125: Autenticación | G125: NA | H125: NA | I125: NA | J125: Conversación | K125: 501.03 | L125: 174.63 | M125: 162.74 | N125: 86.9 | Q125: IPC
A126: WhatsAppforBusinessAPIconversacióniniciadaporelclienteArgentinaServicioNANANA | B126: IT-BPO-14-99 | C126: WhatsApp for Business API | D126: conversación iniciada por el cliente | E126: Argentina | F126: Servicio | G126: NA | H126: NA | I126: NA | J126: Conversación | K126: 520.81 | L126: 182 | M126: 162.74 | N126: 68.27 | Q126: IPC
A127: WhatsAppforBusinessAPIconversacióniniciadaporelclienteBrasilServicioNANANA | B127: IT-BPO-14-100 | C127: WhatsApp for Business API | D127: conversación iniciada por el cliente | E127: Brasil | F127: Servicio | G127: NA | H127: NA | I127: NA | J127: Conversación | K127: 494.44 | L127: 172.53 | M127: 162.74 | N127: 68.27 | Q127: IPC
A128: WhatsAppforBusinessAPIconversacióniniciadaporelclienteChileServicioNANANA | B128: IT-BPO-14-101 | C128: WhatsApp for Business API | D128: conversación iniciada por el cliente | E128: Chile | F128: Servicio | G128: NA | H128: NA | I128: NA | J128: Conversación | K128: 748.25 | L128: 260.9 | M128: 162.74 | N128: 68.27 | Q128: IPC
A129: WhatsAppforBusinessAPIconversacióniniciadaporelclienteColombiaServicioNANANA | B129: IT-BPO-14-102 | C129: WhatsApp for Business API | D129: conversación iniciada por el cliente | E129: Colombia | F129: Servicio | G129: NA | H129: NA | I129: NA | J129: Conversación | K129: 98.89 | L129: 34.72 | M129: 162.74 | N129: 68.27 | Q129: IPC
A130: =SUBSTITUTE(C130&D130&E130&F130&G130&H130&I130," ","") -> WhatsAppforBusinessAPIconversacióniniciadaporelclienteEgiptoServicioNANANA | B130: IT-BPO-14-103 | C130: WhatsApp for Business API | D130: conversación iniciada por el cliente | E130: Egipto | F130: Servicio | G130: NA | H130: NA | I130: NA | J130: Conversación | K130: 1061.4 | L130: 370.3 | M130: 162.74 | N130: 68.27 | Q130: IPC
A131: WhatsAppforBusinessAPIconversacióniniciadaporelclienteFranciaServicioNANANA | B131: IT-BPO-14-104 | C131: WhatsApp for Business API | D131: conversación iniciada por el cliente | E131: Francia | F131: Servicio | G131: NA | H131: NA | I131: NA | J131: Conversación | K131: 1415.75 | L131: 494.44 | M131: 162.74 | N131: 68.27 | Q131: IPC
A132: WhatsAppforBusinessAPIconversacióniniciadaporelclienteAlemaniaServicioNANANA | B132: IT-BPO-14-105 | C132: WhatsApp for Business API | D132: conversación iniciada por el cliente | E132: Alemania | F132: Servicio | G132: NA | H132: NA | I132: NA | J132: Conversación | K132: 1349.82 | L132: 471.3 | M132: 162.74 | N132: 68.27 | Q132: IPC
A133: WhatsAppforBusinessAPIconversacióniniciadaporelclienteIndiaServicioNANANA | B133: IT-BPO-14-106 | C133: WhatsApp for Business API | D133: conversación iniciada por el cliente | E133: India | F133: Servicio | G133: NA | H133: NA | I133: NA | J133: Conversación | K133: 65.93 | L133: 23.14 | M133: 162.74 | N133: 68.27 | Q133: IPC
A134: WhatsAppforBusinessAPIconversacióniniciadaporelclienteIndonesiaServicioNANANA | B134: IT-BPO-14-107 | C134: WhatsApp for Business API | D134: conversación iniciada por el cliente | E134: Indonesia | F134: Servicio | G134: NA | H134: NA | I134: NA | J134: Conversación | K134: 313.15 | L134: 109.41 | M134: 162.74 | N134: 68.27 | Q134: IPC
A135: WhatsAppforBusinessAPIconversacióniniciadaporelclienteIsraelServicioNANANA | B135: IT-BPO-14-108 | C135: WhatsApp for Business API | D135: conversación iniciada por el cliente | E135: Israel | F135: Servicio | G135: NA | H135: NA | I135: NA | J135: Conversación | K135: 296.66 | L135: 104.15 | M135: 162.74 | N135: 68.27 | Q135: IPC
A136: WhatsAppforBusinessAPIconversacióniniciadaporelclienteItaliaServicioNANANA | B136: IT-BPO-14-109 | C136: WhatsApp for Business API | D136: conversación iniciada por el cliente | E136: Italia | F136: Servicio | G136: NA | H136: NA | I136: NA | J136: Conversación | K136: 636.18 | L136: 221.97 | M136: 162.74 | N136: 68.27 | Q136: IPC
A137: WhatsAppforBusinessAPIconversacióniniciadaporelclienteMalasiaServicioNANANA | B137: IT-BPO-14-110 | C137: WhatsApp for Business API | D137: conversación iniciada por el cliente | E137: Malasia | F137: Servicio | G137: NA | H137: NA | I137: NA | J137: Conversación | K137: 362.59 | L137: 126.24 | M137: 162.74 | N137: 68.27 | Q137: IPC
A138: WhatsAppforBusinessAPIconversacióniniciadaporelclienteMéxicoServicioNANANA | B138: IT-BPO-14-111 | C138: WhatsApp for Business API | D138: conversación iniciada por el cliente | E138: México | F138: Servicio | G138: NA | H138: NA | I138: NA | J138: Conversación | K138: 173.05 | L138: 61.02 | M138: 162.74 | N138: 68.27 | Q138: IPC
A139: WhatsAppforBusinessAPIconversacióniniciadaporelclientePaísesBajosServicioNANANA | B139: IT-BPO-14-112 | C139: WhatsApp for Business API | D139: conversación iniciada por el cliente | E139: Países Bajos | F139: Servicio | G139: NA | H139: NA | I139: NA | J139: Conversación | K139: 1468.49 | L139: 513.38 | M139: 162.74 | N139: 68.27 | Q139: IPC
A140: WhatsAppforBusinessAPIconversacióniniciadaporelclienteNigeriaServicioNANANA | B140: IT-BPO-14-113 | C140: WhatsApp for Business API | D140: conversación iniciada por el cliente | E140: Nigeria | F140: Servicio | G140: NA | H140: NA | I140: NA | J140: Conversación | K140: 510.92 | L140: 178.84 | M140: 162.74 | N140: 68.27 | Q140: IPC
A141: WhatsAppforBusinessAPIconversacióniniciadaporelclientePakistánServicioNANANA | B141: IT-BPO-14-114 | C141: WhatsApp for Business API | D141: conversación iniciada por el cliente | E141: Pakistán | F141: Servicio | G141: NA | H141: NA | I141: NA | J141: Conversación | K141: 234.03 | L141: 82.06 | M141: 162.74 | N141: 68.27 | Q141: IPC
A142: WhatsAppforBusinessAPIconversacióniniciadaporelclientePerúServicioNANANA | B142: IT-BPO-14-115 | C142: WhatsApp for Business API | D142: conversación iniciada por el cliente | E142: Perú | F142: Servicio | G142: NA | H142: NA | I142: NA | J142: Conversación | K142: 295.02 | L142: 103.1 | M142: 162.74 | N142: 68.27 | Q142: IPC
A143: WhatsAppforBusinessAPIconversacióniniciadaporelclienteRusiaServicioNANANA | B143: IT-BPO-14-116 | C143: WhatsApp for Business API | D143: conversación iniciada por el cliente | E143: Rusia | F143: Servicio | G143: NA | H143: NA | I143: NA | J143: Conversación | K143: 655.96 | L143: 229.34 | M143: 162.74 | N143: 68.27 | Q143: IPC
A144: WhatsAppforBusinessAPIconversacióniniciadaporelclienteArabiaSaudíServicioNANANA | B144: IT-BPO-14-117 | C144: WhatsApp for Business API | D144: conversación iniciada por el cliente | E144: Arabia Saudí | F144: Servicio | G144: NA | H144: NA | I144: NA | J144: Conversación | K144: 321.39 | L144: 112.56 | M144: 162.74 | N144: 68.27 | Q144: IPC
A145: WhatsAppforBusinessAPIconversacióniniciadaporelclienteSudáfricaServicioNANANA | B145: IT-BPO-14-118 | C145: WhatsApp for Business API | D145: conversación iniciada por el cliente | E145: Sudáfrica | F145: Servicio | G145: NA | H145: NA | I145: NA | J145: Conversación | K145: 276.89 | L145: 96.78 | M145: 162.74 | N145: 68.27 | Q145: IPC
A146: WhatsAppforBusinessAPIconversacióniniciadaporelclienteEspañaServicioNANANA | B146: IT-BPO-14-119 | C146: WhatsApp for Business API | D146: conversación iniciada por el cliente | E146: España | F146: Servicio | G146: NA | H146: NA | I146: NA | J146: Conversación | K146: 608.16 | L146: 212.5 | M146: 162.74 | N146: 68.27 | Q146: IPC
A147: WhatsAppforBusinessAPIconversacióniniciadaporelclienteTurquíaServicioNANANA | B147: IT-BPO-14-120 | C147: WhatsApp for Business API | D147: conversación iniciada por el cliente | E147: Turquía | F147: Servicio | G147: NA | H147: NA | I147: NA | J147: Conversación | K147: 49.44 | L147: 16.83 | M147: 162.74 | N147: 68.27 | Q147: IPC
A148: WhatsAppforBusinessAPIconversacióniniciadaporelclienteEmiratosÁrabesUnidosServicioNANANA | B148: IT-BPO-14-121 | C148: WhatsApp for Business API | D148: conversación iniciada por el cliente | E148: Emiratos Árabes Unidos | F148: Servicio | G148: NA | H148: NA | I148: NA | J148: Conversación | K148: 313.15 | L148: 109.41 | M148: 162.74 | N148: 68.27 | Q148: IPC
A149: WhatsAppforBusinessAPIconversacióniniciadaporelclienteReinoUnidoServicioNANANA | B149: IT-BPO-14-122 | C149: WhatsApp for Business API | D149: conversación iniciada por el cliente | E149: Reino Unido | F149: Servicio | G149: NA | H149: NA | I149: NA | J149: Conversación | K149: 639.48 | L149: 223.02 | M149: 162.74 | N149: 68.27 | Q149: IPC
A150: WhatsAppforBusinessAPIconversacióniniciadaporelclienteNorteamérica*ServicioNANANA | B150: IT-BPO-14-123 | C150: WhatsApp for Business API | D150: conversación iniciada por el cliente | E150: Norteamérica* | F150: Servicio | G150: NA | H150: NA | I150: NA | J150: Conversación | K150: 145.04 | L150: 50.5 | M150: 162.74 | N150: 68.27 | Q150: IPC
A151: WhatsAppforBusinessAPIconversacióniniciadaporelclienteRestodeÁfrica*ServicioNANANA | B151: IT-BPO-14-124 | C151: WhatsApp for Business API | D151: conversación iniciada por el cliente | E151: Resto de África* | F151: Servicio | G151: NA | H151: NA | I151: NA | J151: Conversación | K151: 598.27 | L151: 209.35 | M151: 162.74 | N151: 68.27 | Q151: IPC
A152: WhatsAppforBusinessAPIconversacióniniciadaporelclienteRestodeAsia-Pacífico*ServicioNANANA | B152: IT-BPO-14-125 | C152: WhatsApp for Business API | D152: conversación iniciada por el cliente | E152: Resto de Asia-Pacífico* | F152: Servicio | G152: NA | H152: NA | I152: NA | J152: Conversación | K152: 369.18 | L152: 129.4 | M152: 162.74 | N152: 68.27 | Q152: IPC
A153: WhatsAppforBusinessAPIconversacióniniciadaporelclienteRestodeEuropaCentralyOriental*ServicioNANANA | B153: IT-BPO-14-126 | C153: WhatsApp for Business API | D153: conversación iniciada por el cliente | E153: Resto de Europa Central y Oriental* | F153: Servicio | G153: NA | H153: NA | I153: NA | J153: Conversación | K153: 412.03 | L153: 144.12 | M153: 162.74 | N153: 68.27 | Q153: IPC
A154: WhatsAppforBusinessAPIconversacióniniciadaporelclienteRestodeLatinoamérica*ServicioNANANA | B154: IT-BPO-14-127 | C154: WhatsApp for Business API | D154: conversación iniciada por el cliente | E154: Resto de Latinoamérica* | F154: Servicio | G154: NA | H154: NA | I154: NA | J154: Conversación | K154: 697.16 | L154: 244.06 | M154: 162.74 | N154: 68.27 | Q154: IPC
A155: WhatsAppforBusinessAPIconversacióniniciadaporelclienteRestodeOrienteMedio*ServicioNANANA | B155: IT-BPO-14-128 | C155: WhatsApp for Business API | D155: conversación iniciada por el cliente | E155: Resto de Oriente Medio* | F155: Servicio | G155: NA | H155: NA | I155: NA | J155: Conversación | K155: 359.29 | L155: 125.19 | M155: 162.74 | N155: 68.27 | Q155: IPC
A156: WhatsAppforBusinessAPIconversacióniniciadaporelclienteRestodeEuropaOccidental*ServicioNANANA | B156: IT-BPO-14-129 | C156: WhatsApp for Business API | D156: conversación iniciada por el cliente | E156: Resto de Europa Occidental* | F156: Servicio | G156: NA | H156: NA | I156: NA | J156: Conversación | K156: 654.31 | L156: 228.28 | M156: 162.74 | N156: 68.27 | Q156: IPC
A157: WhatsAppforBusinessAPIconversacióniniciadaporelclienteOtros*ServicioNANANA | B157: IT-BPO-14-130 | C157: WhatsApp for Business API | D157: conversación iniciada por el cliente | E157: Otros* | F157: Servicio | G157: NA | H157: NA | I157: NA | J157: Conversación | K157: 238.98 | L157: 83.11 | M157: 162.74 | N157: 68.27 | Q157: IPC
A158: MensajeSMS(ShortMessageService)SMSenunavíaNANANANANA | B158: IT-BPO-16-1 | C158: Mensaje SMS (Short Message Service) | D158: SMS en una vía | E158: NA | F158: NA | G158: NA | H158: NA | I158: NA | J158: Mensaje SMS | K158: 10.52 | L158: 5.26 | M158: 13.07 | N158: 6.31 | Q158: IPC
A159: MensajeSMS(ShortMessageService)SMSendoblevíaNANANANANA | B159: IT-BPO-16-2 | C159: Mensaje SMS (Short Message Service) | D159: SMS en doble vía | E159: NA | F159: NA | G159: NA | H159: NA | I159: NA | J159: Mensaje SMS | K159: 21.04 | L159: 18.15 | M159: 25.72 | N159: 11.57 | Q159: IPC
A160: MensajeSMS(ShortMessageService)SMSalexteriorunavíaEstadosUnidosNANANANA | B160: IT-BPO-16-3 | C160: Mensaje SMS (Short Message Service) | D160: SMS al exterior una vía | E160: Estados Unidos | F160: NA | G160: NA | H160: NA | I160: NA | J160: Mensaje SMS | K160: 3735.65 | L160: 67.33 | M160: 54.81 | N160: 7.45 | Q160: IPC
A161: MensajeSMS(ShortMessageService)SMSalexteriorunavíaCanadáyPuertoRicoNANANANA | B161: IT-BPO-16-4 | C161: Mensaje SMS (Short Message Service) | D161: SMS al exterior una vía | E161: Canadá y Puerto Rico | F161: NA | G161: NA | H161: NA | I161: NA | J161: Mensaje SMS | K161: 3735.65 | L161: 107.3 | M161: 47.13 | N161: 7.45 | Q161: IPC
A162: MensajeSMS(ShortMessageService)SMSalexteriorunavíaEuropaNANANANA | B162: IT-BPO-16-5 | C162: Mensaje SMS (Short Message Service) | D162: SMS al exterior una vía | E162: Europa | F162: NA | G162: NA | H162: NA | I162: NA | J162: Mensaje SMS | K162: 4482.78 | L162: 268.26 | M162: 807.26 | N162: 7.45 | Q162: IPC
A163: MensajeSMS(ShortMessageService)SMSalexteriorunavíaAsiaNANANANA | B163: IT-BPO-16-6 | C163: Mensaje SMS (Short Message Service) | D163: SMS al exterior una vía | E163: Asia | F163: NA | G163: NA | H163: NA | I163: NA | J163: Mensaje SMS | K163: 4482.78 | L163: 335.59 | M163: 807.26 | N163: 7.45 | Q163: IPC
A164: MensajeSMS(ShortMessageService)SMSalexteriorunavíaOceaníayelrestodeAméricaNANANANA | B164: IT-BPO-16-7 | C164: Mensaje SMS (Short Message Service) | D164: SMS al exterior una vía | E164: Oceanía y el resto de América | F164: NA | G164: NA | H164: NA | I164: NA | J164: Mensaje SMS | K164: 4856.35 | L164: 469.19 | M164: 807.26 | N164: 7.45 | Q164: IPC
A165: MensajeSMS(ShortMessageService)SMSalexteriorunavíarestodelmundoNANANANA | B165: IT-BPO-16-8 | C165: Mensaje SMS (Short Message Service) | D165: SMS al exterior una vía | E165: resto del mundo | F165: NA | G165: NA | H165: NA | I165: NA | J165: Mensaje SMS | K165: 5229.91 | L165: 737.45 | M165: 807.26 | N165: 7.45 | Q165: IPC
A166: SMSconLandingPageNANANANANANA | B166: IT-BPO-17-1 | C166: SMS con Landing Page | D166: NA | E166: NA | F166: NA | G166: NA | H166: NA | I166: NA | J166: Mensaje SMS | K166: 38.92 | L166: 12.1 | M166: 56.6 | N166: 22.09 | Q166: IPC
A167: SMScomoCHATAgenteGeneralJornadaOrdinariaNANANANA | B167: IT-BPO-18-1 | C167: SMS como CHAT | D167: Agente General | E167: Jornada Ordinaria | F167: NA | G167: NA | H167: NA | I167: NA | J167: Mes | K167: 6154820.38 | L167: 5807252.15 | M167: 4960750.3 | N167: 6481801.66 | Q167: SMMLV
A168: SMScomoCHATAgenteGeneralServicio7x24NANANANA | B168: IT-BPO-18-2 | C168: SMS como CHAT | D168: Agente General | E168: Servicio 7x24 | F168: NA | G168: NA | H168: NA | I168: NA | J168: Mes 7x24 | K168: 32005065.95 | L168: 23494427.29 | M168: 16353551.66 | N168: 23254518.26 | Q168: SMMLV
A169: SMScomoCHATAgentetécnicoJornadaOrdinariaNANANANA | B169: IT-BPO-18-3 | C169: SMS como CHAT | D169: Agente técnico | E169: Jornada Ordinaria | F169: NA | G169: NA | H169: NA | I169: NA | J169: Mes | K169: 7267201.84 | L169: 7060603.35 | M169: 5609303.96 | N169: 7767269.99 | Q169: SMMLV
A170: SMScomoCHATAgentetécnicoServicio7x24NANANANA | B170: IT-BPO-18-4 | C170: SMS como CHAT | D170: Agente técnico | E170: Servicio 7x24 | F170: NA | G170: NA | H170: NA | I170: NA | J170: Mes 7x24 | K170: 37789449.58 | L170: 28036433.28 | M170: 20464110.74 | N170: 28732851.36 | Q170: SMMLV
A171: SMScomoCHATAgenteProfesionalJornadaOrdinariaNANANANA | B171: IT-BPO-18-5 | C171: SMS como CHAT | D171: Agente Profesional | E171: Jornada Ordinaria | F171: NA | G171: NA | H171: NA | I171: NA | J171: Mes | K171: 9031334.09 | L171: 9314568.49 | M171: 7365846.59 | N171: 10311621.29 | Q171: SMMLV
A172: SMScomoCHATAgenteProfesionalServicio7x24NANANANA | B172: IT-BPO-18-6 | C172: SMS como CHAT | D172: Agente Profesional | E172: Servicio 7x24 | F172: NA | G172: NA | H172: NA | I172: NA | J172: Mes 7x24 | K172: 46962937.25 | L172: 38590659.39 | M172: 27599920.88 | N172: 39501535.97 | Q172: SMMLV
A173: SMScomoCHATAgenteEspecializadoJornadaOrdinariaNANANANA | B173: IT-BPO-18-7 | C173: SMS como CHAT | D173: Agente Especializado | E173: Jornada Ordinaria | F173: NA | G173: NA | H173: NA | I173: NA | J173: Mes | K173: 13179039.67 | L173: 11835042.27 | M173: 9370165.27 | N173: 13055911.58 | Q173: SMMLV
A174: SMScomoCHATAgenteEspecializadoServicio7x24NANANANA | B174: IT-BPO-18-8 | C174: SMS como CHAT | D174: Agente Especializado | E174: Servicio 7x24 | F174: NA | G174: NA | H174: NA | I174: NA | J174: Mes 7x24 | K174: 68531006.27 | L174: 50348991.89 | M174: 35740839.07 | N174: 51052740.38 | Q174: SMMLV
A175: TransferenciadechatNANANANANANA | B175: IT-BPO-19-1 | C175: Transferencia de chat | D175: NA | E175: NA | F175: NA | G175: NA | H175: NA | I175: NA | J175: Transferencia | K175: 747.97 | L175: 937.33 | M175: 5401.66 | N175: 329.28 | Q175: IPC
A176: ChatbotdumbNANANANANANA | B176: IT-BPO-20-1 | C176: Chatbot dumb | D176: NA | E176: NA | F176: NA | G176: NA | H176: NA | I176: NA | J176: Respuesta Chatbot dumb | K176: 15.78 | L176: 611.21 | M176: 75.11 | N176: 88.14 | Q176: IPC
A177: ChatbotSmartNANANANANANA | B177: IT-BPO-21-1 | C177: Chatbot Smart | D177: NA | E177: NA | F177: NA | G177: NA | H177: NA | I177: NA | J177: Respuesta Chatbot Smart | K177: 47.34 | L177: 1271.87 | M177: 77.62 | N177: 141.02 | Q177: IPC
A178: VoicebotSmartNANANANANANA | B178: IT-BPO-22-1 | C178: Voicebot Smart | D178: NA | E178: NA | F178: NA | G178: NA | H178: NA | I178: NA | J178: Minuto Voicebot Smart | K178: 73.64 | L178: 835.29 | M178: 751.13 | N178: 363.1 | Q178: IPC
A179: HoradesarrolloparaIntegracionesycanalesdigitalesNANANANANANA | B179: IT-BPO-23-1 | C179: Hora desarrollo para Integraciones y canales digitales | D179: NA | E179: NA | F179: NA | G179: NA | H179: NA | I179: NA | J179: Hora desarrollo para Integraciones y canales digitales | K179: 173580 | L179: 169529.8 | M179: 175263.2 | N179: 169522.6 | Q179: IPC
A180: AnalyticsNANANANANANA | B180: IT-BPO-24-1 | C180: Analytics | D180: NA | E180: NA | F180: NA | G180: NA | H180: NA | I180: NA | J180: Licencia Mes | K180: 63120 | L180: 116455.35 | M180: 375564 | N180: 1566201.57 | Q180: IPC
A181: AgenteenSitio AgentegeneralJornadaOrdinariaEnsitioPlataNANA | B181: IT-BPO-25-1 | C181: Agente en Sitio | D181: Agente general | E181: Jornada Ordinaria | F181: En sitio | G181: Plata | H181: NA | I181: NA | J181: Mes | K181: 6207790.92 | L181: 5696514.87 | M181: 6164964.66 | N181: 7765256.64 | Q181: SMMLV
A182: AgenteenSitio AgentegeneralHoraextradiurnaEnsitioPlataNANA | B182: IT-BPO-25-2 | C182: Agente en Sitio | D182: Agente general | E182: Hora extra diurna | F182: En sitio | G182: Plata | H182: NA | I182: NA | J182: Hora | K182: 43530.24 | L182: 22985.87 | M182: 26839.03 | N182: 32212.43 | Q182: SMMLV
A183: AgenteenSitio AgentegeneralHoraextranocturna EnsitioPlataNANA | B183: IT-BPO-25-3 | C183: Agente en Sitio | D183: Agente general | E183: Hora extra nocturna | F183: En sitio | G183: Plata | H183: NA | I183: NA | J183: Hora | K183: 56778.58 | L183: 31686.64 | M183: 36686.83 | N183: 43011.98 | Q183: SMMLV
A184: AgenteenSitio AgentegeneralHoraextradominicalyfestivoEnsitioPlataNANA | B184: IT-BPO-25-4 | C184: Agente en Sitio | D184: Agente general | E184: Hora extra dominical y festivo | F184: En sitio | G184: Plata | H184: NA | I184: NA | J184: Hora | K184: 64349.05 | L184: 36066.05 | M184: 42279.13 | N184: 51426.84 | Q184: SMMLV
A185: AgenteenSitio AgentegeneralServicio7x24EnsitioPlataNANA | B185: IT-BPO-25-5 | C185: Agente en Sitio | D185: Agente general | E185: Servicio 7x24 | F185: En sitio | G185: Plata | H185: NA | I185: NA | J185: Mes 7x24 | K185: 32280512.79 | L185: 23377480.2 | M185: 20555538.2 | N185: 26350967.59 | Q185: SMMLV
A186: AgenteenSitio AgentetécnicoJornadaOrdinariaEnsitioPlataNANA | B186: IT-BPO-25-6 | C186: Agente en Sitio | D186: Agente técnico | E186: Jornada Ordinaria | F186: En sitio | G186: Plata | H186: NA | I186: NA | J186: Mes | K186: 7267201.84 | L186: 6949262.51 | M186: 7300522.58 | N186: 7858260.48 | Q186: SMMLV
A187: AgenteenSitio AgentetécnicoHoraextradiurnaEnsitioPlataNANA | B187: IT-BPO-25-7 | C187: Agente en Sitio | D187: Agente técnico | E187: Hora extra diurna | F187: En sitio | G187: Plata | H187: NA | I187: NA | J187: Hora | K187: 50959.04 | L187: 29574.7 | M187: 34095.58 | N187: 32511.47 | Q187: SMMLV
A188: AgenteenSitio AgentetécnicoHoraextranocturna EnsitioPlataNANA | B188: IT-BPO-25-8 | C188: Agente en Sitio | D188: Agente técnico | E188: Hora extra nocturna | F188: En sitio | G188: Plata | H188: NA | I188: NA | J188: Hora | K188: 66468.31 | L188: 40885.81 | M188: 46818.1 | N188: 43404.13 | Q188: SMMLV
A189: AgenteenSitio AgentetécnicoHoraextradominicalyfestivoEnsitioPlataNANA | B189: IT-BPO-25-9 | C189: Agente en Sitio | D189: Agente técnico | E189: Hora extra dominical y festivo | F189: En sitio | G189: Plata | H189: NA | I189: NA | J189: Hora | K189: 75330.75 | L189: 46417.58 | M189: 53999.58 | N189: 51866.09 | Q189: SMMLV
A190: AgenteenSitio AgentetécnicoServicio7x24EnsitioPlataNANA | B190: IT-BPO-25-10 | C190: Agente en Sitio | D190: Agente técnico | E190: Servicio 7x24 | F190: En sitio | G190: Plata | H190: NA | I190: NA | J190: Mes 7x24 | K190: 37789449.58 | L190: 27914921.66 | M190: 25526237.82 | N190: 26761228.85 | Q190: SMMLV
A191: AgenteenSitio AgentegeneralJornadaOrdinariaTeletrabajoPlataNANA | B191: IT-BPO-25-11 | C191: Agente en Sitio | D191: Agente general | E191: Jornada Ordinaria | F191: Teletrabajo | G191: Plata | H191: NA | I191: NA | J191: Mes | K191: 6207790.92 | L191: 5274048.67 | M191: 5773538.33 | N191: 7954250.39 | Q191: SMMLV
A192: AgenteenSitio AgentegeneralHoraextradiurnaTeletrabajoPlataNANA | B192: IT-BPO-25-12 | C192: Agente en Sitio | D192: Agente general | E192: Hora extra diurna | F192: Teletrabajo | G192: Plata | H192: NA | I192: NA | J192: Hora | K192: 43530.24 | L192: 23015.45 | M192: 25134.96 | N192: 32889.39 | Q192: SMMLV
A193: AgenteenSitio AgentegeneralHoraextranocturna TeletrabajoPlataNANA | B193: IT-BPO-25-13 | C193: Agente en Sitio | D193: Agente general | E193: Hora extra nocturna | F193: Teletrabajo | G193: Plata | H193: NA | I193: NA | J193: Hora | K193: 56778.58 | L193: 31650.49 | M193: 34357.51 | N193: 43906.92 | Q193: SMMLV
A194: =SUBSTITUTE(C194&D194&E194&F194&G194&H194&I194," ","") -> AgenteenSitio AgentegeneralHoraextradominicalyfestivoTeletrabajoPlataNANA | B194: IT-BPO-25-14 | C194: Agente en Sitio | D194: Agente general | E194: Hora extra dominical y festivo | F194: Teletrabajo | G194: Plata | H194: NA | I194: NA | J194: Hora | K194: 64349.05 | L194: 35968.55 | M194: 39594.73 | N194: 52432.42 | Q194: SMMLV
A195: AgenteenSitio AgentegeneralServicio7x24TeletrabajoPlataNANA | B195: IT-BPO-25-15 | C195: Agente en Sitio | D195: Agente general | E195: Servicio 7x24 | F195: Teletrabajo | G195: Plata | H195: NA | I195: NA | J195: Mes 7x24 | K195: 32280512.79 | L195: 22813740.25 | M195: 19250424.67 | N195: 27350193.67 | Q195: SMMLV
A196: AgenteenSitio AgentetécnicoJornadaOrdinariaTeletrabajoPlataNANA | B196: IT-BPO-25-16 | C196: Agente en Sitio | D196: Agente técnico | E196: Jornada Ordinaria | F196: Teletrabajo | G196: Plata | H196: NA | I196: NA | J196: Mes | K196: 7267201.84 | L196: 6530982.93 | M196: 7300522.58 | N196: 9275862.54 | Q196: SMMLV
A197: AgenteenSitio AgentetécnicoHoraextradiurnaTeletrabajoPlataNANA | B197: IT-BPO-25-17 | C197: Agente en Sitio | D197: Agente técnico | E197: Hora extra diurna | F197: Teletrabajo | G197: Plata | H197: NA | I197: NA | J197: Hora | K197: 50959.04 | L197: 29558.27 | M197: 34095.58 | N197: 40556.09 | Q197: SMMLV
A198: AgenteenSitio AgentetécnicoHoraextranocturna TeletrabajoPlataNANA | B198: IT-BPO-25-18 | C198: Agente en Sitio | D198: Agente técnico | E198: Hora extra nocturna | F198: Teletrabajo | G198: Plata | H198: NA | I198: NA | J198: Hora | K198: 66468.31 | L198: 40794.89 | M198: 46818.1 | N198: 54485.2 | Q198: SMMLV
A199: AgenteenSitio AgentetécnicoHoraextradominicalyfestivoTeletrabajoPlataNANA | B199: IT-BPO-25-19 | C199: Agente en Sitio | D199: Agente técnico | E199: Hora extra dominical y festivo | F199: Teletrabajo | G199: Plata | H199: NA | I199: NA | J199: Hora | K199: 75330.75 | L199: 46443.86 | M199: 53999.58 | N199: 65385.52 | Q199: SMMLV
A200: AgenteenSitio AgentetécnicoServicio7x24TeletrabajoPlataNANA | B200: IT-BPO-25-20 | C200: Agente en Sitio | D200: Agente técnico | E200: Servicio 7x24 | F200: Teletrabajo | G200: Plata | H200: NA | I200: NA | J200: Mes 7x24 | K200: 37789449.58 | L200: 29067716.24 | M200: 25526237.82 | N200: 33347334.5 | Q200: SMMLV
... 4300 more rows

Sheet CSV (hidden)
A1: Tipo | B1: Cantidad | C1: Código de unidad de medida* | D1: Precio base | E1: Divisa | F1: Descripción | G1: Mercancía
A2: item | B2: 2 | C2: Mes | D2: 50,27 | E2: COP | F2: bpo03--1 - IT-BPO-4-1-Minuto IVR (Interactive Voice Response) Transaccional _NA_NA_NA_NA_NA_NA - 1 Minuto
A3: item | B3: 2 | C3: Mes | D3: 205,72 | E3: COP | F3: bpo03--2 - IT-BPO-7-2-Minutos de conexión outbound/Inbound_Outbound desde celular a 01-8000 _NA_NA_NA_NA_NA - 1 Minuto
A4: item | B4: 2 | C4: Mes | D4: 269250,04 | E4: COP | F4: bpo03--3 - IT-BPO-11-1-Clic to call_NA_NA_NA_NA_NA_NA - 1 Licencia Mes
A5: item | B5: 2 | C5: Mes | D5: 111052,87 | E5: COP | F5: bpo03--4 - IT-BPO-28-449-Agente Front Office sin herramienta_Agente especializado_Ciencias sociales, humanas y afines_Hora extra dominical y festivo_Bronce_Zona 3_NA - 1 Hora
A6: item | B6: 2 | C6: Mes | D6: 53287164,32 | E6: COP | F6: bpo03--5 - IT-BPO-29-515-Agente con dominio en lenguaje de señas colombiana (Videollamada)_Agente profesional_Ciencias de la salud y afines_En Sitio_Servicio 7x24_Bronce_NA - 1 Mes 7x24
A7: item | B7: 2 | C7: Mes | D7: 205,72 | E7: COP | F7: bpo03--6 - IT-BPO-7-2-Minutos de conexión outbound/Inbound_Outbound desde celular a 01-8000 _NA_NA_NA_NA_NA - 1 Minuto
A8: item | B8: 1 | C8: Und | D8: 20393813 | E8: COP | F8: bpo03--IVA

Sheet temp (hidden)
A1: concatenar | B1: Código del servicio | C1: Nombre del servicio | D1: Caracteristica 1 | E1: Caracteristica 2 | F1: Caracteristica 3 | G1: Caracteristica 4 | H1: Caracteristica 5 | I1: Caracteristica 6 | J1: Unidad de facturación | K1: EMTELCO | L1: BPM CONSULTING | M1: C&C SERVICES S.A.S | N1: OUTSOURCING S.A.S BIC | O1: UT ACUERDO MARCO ASD-IQ 2024 | P1: COS | Q1: CONALCREDITOS - CONALCENTER BPO | R1: MILLENIUM BPO | S1: capacidad | T1: cant en tiempo | U1: ="V"&K1 -> VEMTELCO | V1: ="V"&L1 -> VBPM CONSULTING | W1: VC&C SERVICES S.A.S | X1: VOUTSOURCING S.A.S BIC | Y1: VUT ACUERDO MARCO ASD-IQ 2024 | Z1: VCOS | AA1: VCONALCREDITOS - CONALCENTER BPO | AB1: VMILLENIUM BPO | AC1: vmin | AD1: v+grava | AE1: xcapacidad | AF1: total
A2: TroncalSIPNANANANANANA | B2: IT-BPO-1-1 | C2: Troncal SIP | D2: NA | E2: NA | F2: NA | G2: NA | H2: NA | I2: NA | J2: Mes | K2: 50586.47 | L2: 138933.43 | M2: 2065392.65 | N2: 53263.81 | O2: 410313.63 | P2: 45086.62 | Q2: 45721.54 | R2: 52223.07 | S2: =SUMIF(ResumenCotizacion!$C:$C,temp!$B2,ResumenCotizacion!$K:$K) -> 110 | T2: =SUMIF(ResumenCotizacion!$C:$C,temp!$B2,ResumenCotizacion!$M:$M) -> 28 | U2: =ROUND(K2*$S2*$T2,2) -> 155806327.6 | V2: =ROUND(L2*$S2*$T2,2) -> 427914964.4 | W2: 6361409362 | X2: 164052534.8 | Y2: 1263765980 | Z2: 138866789.6 | AA2: 140822343.2 | AB2: 160847055.6 | AC2: 45721.54 | AD2: =ROUND(AC2/(1-VLOOKUP("Total porcentaje:",ResumenCotizacion!$F:$G,2,0)),2) -> 47926.14 | AE2: =ROUND(S2*AD2,2) -> 5271875.4 | AF2: =ROUND(T2*AE2,2) -> 147612511.2
A3: MinutoIVR(InteractiveVoiceResponse)-EnrutadorNANANANANANA | B3: IT-BPO-2-1 | C3: Minuto IVR (Interactive Voice Response) - Enrutador | D3: NA | E3: NA | F3: NA | G3: NA | H3: NA | I3: NA | J3: Minuto | K3: 22.09 | L3: 18.94 | M3: 176.74 | N3: 11.57 | O3: 10.92 | P3: 5.26 | Q3: 45.86 | R3: 9.57 | S3: =SUMIF(ResumenCotizacion!$C:$C,temp!$B3,ResumenCotizacion!$K:$K) -> 110000 | T3: =SUMIF(ResumenCotizacion!$C:$C,temp!$B3,ResumenCotizacion!$M:$M) -> 4 | U3: =ROUND(K3*$S3*$T3,2) -> 9719600 | V3: =ROUND(L3*$S3*$T3,2) -> 8333600 | W3: =ROUND(M3*$S3*$T3,2) -> 77765600 | X3: =ROUND(N3*$S3*$T3,2) -> 5090800 | Y3: =ROUND(O3*$S3*$T3,2) -> 4804800 | Z3: =ROUND(P3*$S3*$T3,2) -> 2314400 | AA3: =ROUND(Q3*$S3*$T3,2) -> 20178400 | AB3: =ROUND(R3*$S3*$T3,2) -> 4210800 | AC3: 45.86 | AD3: =ROUND(AC3/(1-VLOOKUP("Total porcentaje:",ResumenCotizacion!$F:$G,2,0)),2) -> 48.07 | AE3: =ROUND(S3*AD3,2) -> 5287700 | AF3: 21150800
A4: MinutoIVR(InteractiveVoiceResponse)-AudiotextoNANANANANANA | B4: IT-BPO-3-1 | C4: Minuto IVR (Interactive Voice Response) - Audiotexto | D4: NA | E4: NA | F4: NA | G4: NA | H4: NA | I4: NA | J4: Minuto | K4: 54.7 | L4: 37.87 | M4: 176.74 | N4: 11.57 | O4: 34.96 | P4: 23.14 | Q4: 45.86 | R4: 9.57 | S4: =SUMIF(ResumenCotizacion!$C:$C,temp!$B4,ResumenCotizacion!$K:$K) -> 110000 | T4: =SUMIF(ResumenCotizacion!$C:$C,temp!$B4,ResumenCotizacion!$M:$M) -> 24 | U4: 144408000 | V4: 99976800 | W4: 466593600 | X4: 30544800 | Y4: 92294400 | Z4: 61089600 | AA4: 121070400 | AB4: 25264800 | AC4: 45.86 | AD4: =ROUND(AC4/(1-VLOOKUP("Total porcentaje:",ResumenCotizacion!$F:$G,2,0)),2) -> 48.07 | AE4: =ROUND(S4*AD4,2) -> 5287700 | AF4: 126904800
A5: MinutoIVR(InteractiveVoiceResponse)TransaccionalNANANANANANA | B5: IT-BPO-4-1 | C5: Minuto IVR (Interactive Voice Response) Transaccional | D5: NA | E5: NA | F5: NA | G5: NA | H5: NA | I5: NA | J5: Minuto | K5: 22.09 | L5: 126.24 | M5: 177.79 | N5: 26.3 | O5: 79.91 | P5: 45.24 | Q5: 112.46 | R5: 9.57 | S5: =SUMIF(ResumenCotizacion!$C:$C,temp!$B5,ResumenCotizacion!$K:$K) -> 110000 | T5: =SUMIF(ResumenCotizacion!$C:$C,temp!$B5,ResumenCotizacion!$M:$M) -> 12 | U5: 29158800 | V5: 166636800 | W5: 234682800 | X5: 34716000 | Y5: 105481200 | Z5: 59716800 | AA5: 148447200 | AB5: 12632400 | AC5: 112.46 | AD5: =ROUND(AC5/(1-VLOOKUP("Total porcentaje:",ResumenCotizacion!$F:$G,2,0)),2) -> 117.88 | AE5: =ROUND(S5*AD5,2) -> 12966800 | AF5: 155601600
